Workbook

Sheet Instructions
A1: Project Name: | C1: Reclaim Model - Overview of Program
B2: Enter Mine Name | C2: All users are urged to read the Reclaim Model User Manual - Scroll down for overview description of program.
A3: Reclaim Menu | C3: The default Excel menu bar has an additional tab labelled "Add-Ins" that provides options specific to the Reclaim Model.
B4: Clear | C4: This option deletes all input data, deletes any duplicated elements and blanks out the project name. It also allows for segregation into land costs vs water costs if required.
B5: Duplicate | C5: This option Duplicates components of the project. E.g. if there is more than one Open Pit, use duplicate to add a second Open Pit. Quantities for the new Open Pit are erased, but the Activities and Cost Codes are carried over from the original Open Pit. The new Open Pit subtotal is added to the Summary page.
B6: Unit Costs | C6: This option opens a window of unit costs to provide easy reference. NOTE: the unit cost table has a filter in the 'UNITS' column. You can select to only see a particular unit (e.g. km) or multiple units (km and m3) or all units.
A8: Worksheets
B9: Summary | C9: This worksheet contains a cumulative summary of costs for each component of the project. Associated costs such as engineering and project management are added as a percentage of the component costs.
B10: Components | C10: Costs are derived for individual closure and reclamation activities by multiplying a "quantity" of activity by a "unit cost". An activity can be edited, added, or deleted from worksheet. However, care should be taken not to modify cells that are defined and used elsewhere in the program.
C11: Do not change the content or column width of the first column of each component worksheet.
B12: Unit Costs | C12: This worksheet contains a look up table with costs for typical work associated with each closure and reclamation activity
A14: Limitations | C14: The Reclaim Program will NOT work if the worksheets are changed such that the following requirements are not met. Please review the following prior to modifying worksheets.
B15: Worksheet Names | C15: The names of the worksheets must not be changed.
B16: Defined Names | C16: Certain cells have defined names, which must not be changed. Where the cell is named, the name will appear in the "Name Box" to the left of the formula bar.
B17: First line of data | C17: The first line of data for any component worksheet starts on line 4. Do not change the first line of a component worksheet, i.e. the component name.
B18: Cell A1 | C18: Cell A1 on the component sheet MUST always contain the count of that component for the duplicate function to operate. DO NOT CHANGE.
B19: Adding Lines | C19: You can add lines to components and the unit cost table, as long as they are not the last lines. The last line might fall outside the named ranges. You can check the size of the named range by selecting the name from the drop down box at the top left of the sheet. Usually this box has a cell reference, or a name.
A21: Conditions of Use | C21: The Reclamation Cost Estimating Model was prepared to serve as a guide for Government Agencies, mining companies, and others to estimate the cost of mine reclamation. This model is not intended to replace reclamation planning or to be used to determine the activities required to reclaim a site or to dictate how much should be spent on reclamation.
C23: Reclaim was prepared by CIRNAC and GNWT and are not responsible for the completeness or accuracy of any reclamation estimate made using this model. The user agrees to check and take responsibility for all aspects of any cost estimate made using this model.
A25: The following table provides guidance as to whether water management and treatment is considered short term or long term. All water treatment is covered under the 'Water Treatment" sheet.
A26: Water treatment during ICM is linked to the "ICM" sheet. Water treatment during construction is linked to the "Tailings" and "Water Management" sheet. Long term or post-closure water treatment is linked
A27: and in the "PostClosure" sheet.
D28: Ops/ICM/ Construction | E28: Post Closure
A29: Open Pit | C29: flood pit - install/operate pumping system | D29: x
C30: construct diversion ditches | D30: x
C31: treat 1st filling | D31: x
C32: install pump/decant system | D32: x
C33: passive/biological treatment | D33: x | E33: x
C34: overflow treatment | D34: x | E34: x
A35: Rock Pile/Heap Leach Facility | C35: construct diversion ditches | D35: x
C36: install groundwater collection system | D36: x
C37: install toe seepage collection system | D37: x
C38: collect and treat groundwater | D38: x | E38: x
C39: collect and treat seepage (ARD/ML) | D39: x | E39: x
C40: install passive treatment system | D40: x
C41: operate and maintain passive treatment system | D41: x | E41: x
C42: operate pump and detoxify heap leach pile (cyanide destruction) | D42: x
A43: Tailings Facility | C43: construct diversion ditches | D43: x
C44: pump supernatant (to pit, U/G) | D44: x | E44: x
C45: treat supernatant | D45: x | E45: x
C46: install toe seepage collection system | D46: x
C47: collect and treat seepage (ARD/ML) | D47: x | E47: x
C48: install passive treatment system | D48: x
C49: operate and maintain passive treatment system | D49: x | E49: x
A50: U/G Mine | C50: accelerate flooding | D50: x
C51: install seepage collection system | D51: x
C52: install dewatering/pumping system | D52: x
C53: operate seepage/dewatering system (ARD/ML) | D53: x | E53: x
A54: Water Management | C54: refill lakes | D54: x | E54: x
C55: redirect creeks/streams | D55: x
C56: stabilize water management ponds | D56: x | E56: x
C57: stabilize/close sediment ponds | D57: x
C58: fresh water supply - breach embankment | D58: x
C59: fresh water supply - remove piping system | D59: x
C60: water treatment plant | D60: x | E60: x
C61: sludge pond | D61: x | E61: x
C62: water control in reclamation quarry | D62: x
C63: operate/maintain water treatment plant | D63: x | E63: x

Sheet Tools
B2: Save file before clearing all data
B5: These functions duplicate components within worksheet
B8: Shows both active worksheet as well as table of Unit Costs in a separate window

Sheet Summary
J1: Number of Years of ICM | K1: =ICM!E26 -> 5
J2: When will Post-Closure Begin | K2: 8
J3: Estimated Annual Inflation | K3: 0.03
B5: =CONCATENATE("SUMMARY OF COSTS (",Unit_Costs!B3," Dollars)") -> SUMMARY OF COSTS (2026 Dollars) | K5: SUMMARY OF COSTS (Future Value)
A7: CAPITAL COSTS | B7: COMPONENT NAME | D7: COST | F7: LAND LIABILITY | H7: WATER LIABILITY | J7: CAPITAL COSTS | K7: COMPONENT NAME | M7: COST | O7: LAND LIABILITY | Q7: WATER LIABILITY
A8: INTERIM CARE AND MAINTENANCE | B8: =IF(ISBLANK(ICM!$C$1),"",ICM!$C$1) ->  | D8: =ICMTotal -> 2.44e-05 | F8: - | H8: =ICMTotal -> 2.44e-05 | J8: INTERIM CARE AND MAINTENANCE | K8: =IF(ISBLANK(ICM!$C$1),"",ICM!$C$1) ->  | M8: =D8 -> 2.44e-05 | O8: - | Q8: =H8 -> 2.44e-05
A9: OPEN PIT | B9: =IF(ISBLANK('Open Pit'!$C$1),"",'Open Pit'!$C$1) ->  | D9: =Pit1Total -> 0.0001 | F9: =Pit1LandTotal -> 0 | H9: =Pit1WaterTotal -> 0 | J9: OPEN PIT | K9: =IF(ISBLANK('Open Pit'!$C$1),"",'Open Pit'!$C$1) ->  | M9: =D9*(1+$K$3)^$K$1 -> 0.0001159274074 | O9: =F9/D9*M9 -> 0 | Q9: =M9-O9 -> 0.0001159274074
A10: UNDERGROUND MINE | B10: =IF(ISBLANK('UG Mine'!$C$1),"",'UG Mine'!$C$1) ->  | D10: =UG1Total -> 0.0001 | F10: =UG1LandTotal -> 0 | H10: =UG1WaterTotal -> 0 | J10: UNDERGROUND MINE | K10: =IF(ISBLANK('UG Mine'!$C$1),"",'UG Mine'!$C$1) ->  | M10: =D10*(1+$K$3)^$K$1 -> 0.0001159274074 | O10: =F10/D10*M10 -> 0 | Q10: =M10-O10 -> 0.0001159274074
A11: TAILINGS FACILITY | B11: =IF(ISBLANK(Tailings!$C$1),"",Tailings!$C$1) ->  | D11: =Tailings1Total -> 0.0001 | F11: =Tailings1LandTotal -> 0 | H11: =Tailings1WaterTotal -> 0 | J11: TAILINGS FACILITY | K11: =IF(ISBLANK(Tailings!$C$1),"",Tailings!$C$1) ->  | M11: 0.0001159274074 | O11: 0 | Q11: 0.0001159274074
A12: ROCK PILE | B12: =IF(ISBLANK('Rock Pile'!$C$1),"",'Rock Pile'!$C$1) ->  | D12: =RP1Total -> 0.0001 | F12: =RP1LandTotal -> 0 | H12: =RP1WaterTotal -> 0 | J12: ROCK PILE | K12: =IF(ISBLANK('Rock Pile'!$C$1),"",'Rock Pile'!$C$1) ->  | M12: 0.0001159274074 | O12: 0 | Q12: 0.0001159274074
A13: BUILDINGS AND EQUIPMENT | B13: =IF(ISBLANK('Bldgs & Equip'!$C$1),"",'Bldgs & Equip'!$C$1) ->  | D13: =Bldg1Total -> 0.0001 | F13: =Bldg1LandTotal -> 0 | H13: =Bldg1WaterTotal -> 0 | J13: BUILDINGS AND EQUIPMENT | K13: =IF(ISBLANK('Bldgs & Equip'!$C$1),"",'Bldgs & Equip'!$C$1) ->  | M13: 0.0001159274074 | O13: 0 | Q13: 0.0001159274074
A14: CHEMICALS AND CONTAMINATED SOIL MANAGEMENT | B14: =IF(ISBLANK(Chemicals!$C$1),"",Chemicals!$C$1) ->  | D14: =Chem1Total -> 0.0001 | F14: =Chem1LandTotal -> 0 | H14: =Chem1WaterTotal -> 0 | J14: CHEMICALS AND CONTAMINATED SOIL MANAGEMENT | K14: =IF(ISBLANK(Chemicals!$C$1),"",Chemicals!$C$1) ->  | M14: =D14*(1+$K$3)^$K$1 -> 0.0001159274074 | O14: 0 | Q14: 0.0001159274074
A15: WATER MANAGEMENT | D15: ='Water Management'!H62 -> 1e-05 | F15: - | H15: =Water1Total -> 1e-05 | J15: WATER MANAGEMENT | M15: 1.159274074e-05 | O15: - | Q15: =M15 -> 1.159274074e-05
A16: POST-CLOSURE MONITORING AND MAINTENANCE | B16: =IF(ISBLANK(PostClosure!$C$1),"",PostClosure!$C$1) ->  | D16: =PC1Total -> 1e-07 | F16: =D16*$F$19 -> 0 | H16: =D16*$H$19 -> 0 | J16: POST-CLOSURE MONITORING AND MAINTENANCE | K16: =IF(ISBLANK(PostClosure!$C$1),"",PostClosure!$C$1) ->  | M16: =(PCAnnualTotal*(1+$K$3)^($K$2+$K$1))*((POWER((1+K3),PostClosure!E37)-1)/K3)+('Water Treatment'!AF35*(1+$K$3)^($K$2+$K$1))*((POWER((1+K3),'Water Treatment'!AC36)-1)/K3) -> 0 | O16: =F16/D16*M16 -> 0 | Q16: 0
B18: SUBTOTAL: Capital Costs | D18: =SUM(D8:D16) -> 0.0006345 | F18: =SUM(F8:F16) -> 0 | H18: =SUM(H8:H16) -> 3.44e-05 | K18: SUBTOTAL: Capital Costs | M18: =SUM(M8:M16) -> 0.0007315571853 | O18: =SUM(O8:O16) -> 0 | Q18: =SUM(Q8:Q16) -> 0.0007315571853
B19: PERCENT OF SUBTOTAL | F19: =SUM(F8:F15)/SUM(D8:D15) -> 0 | H19: =IF(F19<0.01,0,1-F19) -> 0 | K19: PERCENT OF SUBTOTAL | O19: =F19 -> 0 | Q19: =H19 -> 0
A21: INDIRECT COSTS | D21: COST | F21: LAND LIABILITY | H21: WATER LIABILITY | J21: INDIRECT COSTS | M21: COST | O21: LAND LIABILITY | Q21: WATER LIABILITY
A22: MOBILIZATION | D22: =SUM(Mobilization!H58,Mobilization!P58,Mobilization!X58) -> 0.0003 | F22: =$F$19*D22 -> 0 | H22: =+$H$19*D22 -> 0 | J22: =A22 -> MOBILIZATION | M22: =Mobilization!H58+Mobilization!P58*(1+$K$3)^$K$1+Mobilization!X58*(1+$K$3)^$K$2 -> 0.0003426044156 | O22: =+$F$19*M22 -> 0 | Q22: =+$H$19*M22 -> 0
A23: ENGINEERING DESIGN | B23: 0.05 | D23: =IF(B23="n/a", 0, B23*$D$18) -> 3.1725e-05 | F23: =+$F$19*D23 -> 0 | H23: =+$H$19*D23 -> 0 | J23: ENGINEERING DESIGN | K23: =B23 -> 0.05 | M23: =IFERROR(K23*$M$18,0) -> 3.657785927e-05 | O23: =+$F$19*M23 -> 0 | Q23: =+$H$19*M23 -> 0
A24: PROJECT MANAGEMENT | B24: 0.08 | D24: =IF(B24="n/a", 0, B24*$D$18) -> 5.076e-05 | F24: 0 | H24: 0 | J24: PROJECT MANAGEMENT | K24: 0.08 | M24: 5.852457483e-05 | O24: 0 | Q24: 0
A25: MONITORING & QA/QC | B25: 0.01 | D25: 6.345e-06 | F25: =+$F$19*D25 -> 0 | H25: =+$H$19*D25 -> 0 | J25: MONITORING & QA/QC | K25: 0.01 | M25: 7.315571853e-06 | O25: =+$F$19*M25 -> 0 | Q25: =+$H$19*M25 -> 0
A26: BONDING/INSURANCE | B26: 0.03 | D26: 1.9035e-05 | F26: 0 | H26: 0 | J26: BONDING/INSURANCE | K26: 0.03 | M26: 2.194671556e-05 | O26: 0 | Q26: 0
A27: ENGAGEMENT AND REGULATORY COMPLIANCE | B27: 0.03 | D27: 1.9035e-05 | F27: 0 | H27: 0 | J27: ENGAGEMENT AND REGULATORY COMPLIANCE | K27: 0.03 | M27: =IFERROR(K27*$M$18,0) -> 2.194671556e-05 | O27: 0 | Q27: 0
A28: CONTINGENCY | B28: 0.25 | D28: 0.000158625 | F28: 0 | H28: 0 | J28: CONTINGENCY | K28: 0.25 | M28: =K28*$M$18 -> 0.0001828892963 | O28: 0 | Q28: 0
A29: OWNERS REPRESENTATIVE | B29: 0.05 | D29: 3.1725e-05 | F29: =+$F$19*D29 -> 0 | H29: =+$H$19*D29 -> 0 | J29: OWNERS REPRESENTATIVE | K29: =B29 -> 0.05 | M29: =IFERROR(K29*$M$18,0) -> 3.657785927e-05 | O29: =+$F$19*M29 -> 0 | Q29: =+$H$19*M29 -> 0
A30: MARKET PRICE FACTOR ADJUSTMENT | B30: 0 | D30: 0 | F30: =+$F$19*D30 -> 0 | H30: =+$H$19*D30 -> 0 | J30: MARKET PRICE FACTOR ADJUSTMENT | K30: =B30 -> 0 | M30: =K30*$M$18 -> 0 | O30: =+$F$19*M30 -> 0 | Q30: =+$H$19*M30 -> 0
B31: SUBTOTAL: Indirect Costs | D31: =SUM(D22:D30) -> 0.00061725 | F31: =SUM(F22:F30) -> 0 | H31: =SUM(H22:H30) -> 0 | K31: SUBTOTAL: Indirect Costs | M31: =SUM(M22:M30) -> 0.0007083830082 | O31: =SUM(O22:O30) -> 0 | Q31: =SUM(Q22:Q30) -> 0
A33: TOTAL COSTS | D33: =D18+D31 -> 0.00125175 | F33: =F18+F31 -> 0 | H33: =H18+H31 -> 3.44e-05 | J33: TOTAL COSTS | M33: =M18+M31 -> 0.001439940194 | O33: =O18+O31 -> 0 | Q33: =Q18+Q31 -> 0.0007315571853

Sheet ICM
A1: 1 | B1: Interim Care and Maintenance
B3: ACTIVITY/MATERIAL | C3: Notes | D3: Units | E3: Quantity | F3: Cost Code | G3: Unit Cost | H3: Cost
B4: INTERIM CARE & MAINTENANCE
B5: On-site caretaker | D5: hr | F5: =NA() ->  | G5: =IFERROR(IF(ISNA(F5),0,INDEX(IF(RIGHT(F5,1)="L",UnitCostLow, IF(RIGHT(F5,1)="H",UnitCostHigh,UnitCostSpecified)),MATCH(LEFT(F5,LEN(F5)-1),CostCode,0))),0) -> 0 | H5: =G5*E5 -> 0
B6: Extra personnel | D6: hr | F6: =NA() ->  | G6: 0 | H6: 0
B7: -electrician | D7: hr | F7: =NA() ->  | G7: 0 | H7: =G7*E7 -> 0
B8: -mechanic | D8: hr | F8: =NA() ->  | G8: 0 | H8: =G8*E8 -> 0
B9: Annual fuel | D9: litre | F9: =NA() ->  | G9: 0 | H9: 0
B10: Misc. supplies | D10: allow | F10: =NA() ->  | G10: 0 | H10: =G10*E10 -> 0
B11: Pick-up truck | D11: each | F11: =NA() ->  | G11: 0 | H11: 0
B12: Small dozer | D12: allow | F12: =NA() ->  | G12: 0 | H12: 0
B13: Small excavator | D13: allow | F13: =NA() ->  | G13: 0 | H13: 0
B14: Snow machine | D14: allow | F14: =NA() ->  | G14: 0 | H14: 0
B15: Communications | D15: allow | F15: =NA() ->  | G15: 0 | H15: 0
B16: SNP/AEMP water sampling & reporting | D16: each | F16: =NA() ->  | G16: 0 | H16: 0
B17: Geotechnical assessment & reporting | D17: each | F17: =NA() ->  | G17: 0 | H17: 0
B18: Dewatering activities | D18: each | F18: =NA() ->  | G18: 0 | H18: =G18*E18 -> 0
B19: Ditch Maintenance | D19: each | F19: =NA() ->  | G19: 0 | H19: =G19*E19 -> 0
B20: Water Management Pond Maintenance | D20: each | F20: =NA() ->  | G20: 0 | H20: =G20*E20 -> 0
B21: Water Management Other | D21: each | F21: =NA() ->  | G21: 0 | H21: =G21*E21 -> 0
B22: Airstrip Maintenance | D22: ha | F22: =NA() ->  | G22: 0 | H22: =G22*E22 -> 0
B23: Maintain Road Access | D23: ha | F23: =NA() ->  | G23: 0 | H23: =G23*E23 -> 0
B24: Other | D24: each | F24: =NA() ->  | G24: 0 | H24: =G24*E24 -> 0
G25: Annual Interim C&M Cost | H25: =SUM(H5:H24) -> 0
B26: Number of years of ICM | D26: years | E26: 5 | G26: Sub Total | H26: =H25*E26 -> 0
B27: Total water treatment cost, from "ICM Water Treatment" | H27: ='Water Treatment'!H37 -> 0
B29: Finalize Closure and Reclamation Plan (% Closure Costs) | G29: 0.04 | H29: =G29*SUM(Summary!D9:D15) -> 2.44e-05
G30: Total | H30: =H27+H26+H29 -> 2.44e-05

Sheet Open Pit
A1: =COUNTIF(B1:YH1,"*Open Pit Name*") -> 1 | B1: Open Pit Name | G1: Pit # | H1: 1
B3: ACTIVITY/MATERIAL | C3: Notes | D3: Units | E3: Quantity | F3: Cost Code | G3: Unit Cost | H3: Cost | I3: % Land | J3: Land Cost | K3: Water Cost
B4: CONTROL ACCESS
B5: Fence | D5: m | F5: =NA() ->  | G5: =IFERROR(IF(ISNA(F5),0,INDEX(IF(RIGHT(F5,1)="L",UnitCostLow, IF(RIGHT(F5,1)="H",UnitCostHigh,UnitCostSpecified)),MATCH(LEFT(F5,LEN(F5)-1),CostCode,0))),0) -> 0 | H5: =G5*E5 -> 0 | J5: =H5*I5 -> 0 | K5: =H5-J5 -> 0
B6: Signs | D6: each | F6: =NA() ->  | G6: =IFERROR(IF(ISNA(F6),0,INDEX(IF(RIGHT(F6,1)="L",UnitCostLow, IF(RIGHT(F6,1)="H",UnitCostHigh,UnitCostSpecified)),MATCH(LEFT(F6,LEN(F6)-1),CostCode,0))),0) -> 0 | H6: =G6*E6 -> 0 | J6: 0 | K6: 0
B7: Berm at crest | D7: m3 | F7: =NA() ->  | G7: =IFERROR(IF(ISNA(F7),0,INDEX(IF(RIGHT(F7,1)="L",UnitCostLow, IF(RIGHT(F7,1)="H",UnitCostHigh,UnitCostSpecified)),MATCH(LEFT(F7,LEN(F7)-1),CostCode,0))),0) -> 0 | H7: =G7*E7 -> 0 | J7: 0 | K7: 0
B8: Block roads | D8: m3 | F8: =NA() ->  | G8: =IFERROR(IF(ISNA(F8),0,INDEX(IF(RIGHT(F8,1)="L",UnitCostLow, IF(RIGHT(F8,1)="H",UnitCostHigh,UnitCostSpecified)),MATCH(LEFT(F8,LEN(F8)-1),CostCode,0))),0) -> 0 | H8: =G8*E8 -> 0 | J8: 0 | K8: 0
B9: Other | F9: =NA() ->  | G9: =IFERROR(IF(ISNA(F9),0,INDEX(IF(RIGHT(F9,1)="L",UnitCostLow, IF(RIGHT(F9,1)="H",UnitCostHigh,UnitCostSpecified)),MATCH(LEFT(F9,LEN(F9)-1),CostCode,0))),0) -> 0 | H9: =G9*E9 -> 0 | J9: 0 | K9: 0
B10: STABILITY STUDY
B11: Conduct stability and setback study | D11: allow | F11: =NA() ->  | G11: =IFERROR(IF(ISNA(F11),0,INDEX(IF(RIGHT(F11,1)="L",UnitCostLow, IF(RIGHT(F11,1)="H",UnitCostHigh,UnitCostSpecified)),MATCH(LEFT(F11,LEN(F11)-1),CostCode,0))),0) -> 0 | H11: =G11*E11 -> 0 | J11: =H11*I11 -> 0 | K11: =H11-J11 -> 0
B12: STABILIZE SLOPES
B13: Off-load crest, soil A | D13: m3 | F13: =NA() ->  | G13: =IFERROR(IF(ISNA(F13),0,INDEX(IF(RIGHT(F13,1)="L",UnitCostLow, IF(RIGHT(F13,1)="H",UnitCostHigh,UnitCostSpecified)),MATCH(LEFT(F13,LEN(F13)-1),CostCode,0))),0) -> 0 | H13: =G13*E13 -> 0 | J13: =H13*I13 -> 0 | K13: =H13-J13 -> 0
B14: Off-load crest, soil B | D14: m3 | F14: =NA() ->  | G14: 0 | H14: 0 | J14: 0 | K14: 0
B15: Doze/trim overburden at crest | D15: m3 | F15: =NA() ->  | G15: 0 | H15: 0 | J15: 0 | K15: 0
B16: Drill & blast pit crest | D16: m3 | F16: =NA() ->  | G16: 0 | H16: 0 | J16: 0 | K16: 0
B17: Buttress slope | D17: m3 | F17: =NA() ->  | G17: 0 | H17: 0 | J17: 0 | K17: 0
B18: Other | F18: =NA() ->  | G18: 0 | H18: 0 | J18: 0 | K18: 0
B19: COVER/CONTOUR SLOPES
B20: Place fill, soil A | D20: m3 | F20: =NA() ->  | G20: =IFERROR(IF(ISNA(F20),0,INDEX(IF(RIGHT(F20,1)="L",UnitCostLow, IF(RIGHT(F20,1)="H",UnitCostHigh,UnitCostSpecified)),MATCH(LEFT(F20,LEN(F20)-1),CostCode,0))),0) -> 0 | H20: =G20*E20 -> 0 | J20: =H20*I20 -> 0 | K20: =H20-J20 -> 0
B21: Place fill, soil B | D21: m3 | F21: =NA() ->  | G21: 0 | H21: 0 | J21: 0 | K21: 0
B22: Rip rap | D22: m3 | F22: =NA() ->  | G22: 0 | H22: 0 | J22: 0 | K22: 0
B23: Vegetate slopes | D23: ha | F23: =NA() ->  | G23: 0 | H23: 0 | J23: 0 | K23: 0
B24: Vegetate pit floor | D24: ha | F24: =NA() ->  | G24: 0 | H24: 0 | J24: 0 | K24: 0
B25: Other | F25: =NA() ->  | G25: 0 | H25: 0 | J25: 0 | K25: 0
B26: CONSTRUCT DIVERSION DITCHES
B27: Excavate ditches -soil | D27: m3 | F27: =NA() ->  | G27: =IFERROR(IF(ISNA(F27),0,INDEX(IF(RIGHT(F27,1)="L",UnitCostLow, IF(RIGHT(F27,1)="H",UnitCostHigh,UnitCostSpecified)),MATCH(LEFT(F27,LEN(F27)-1),CostCode,0))),0) -> 0 | H27: =G27*E27 -> 0 | J27: =H27*I27 -> 0 | K27: =H27-J27 -> 0
B28: Excavate ditches -rock | D28: m3 | F28: =NA() ->  | G28: =IFERROR(IF(ISNA(F28),0,INDEX(IF(RIGHT(F28,1)="L",UnitCostLow, IF(RIGHT(F28,1)="H",UnitCostHigh,UnitCostSpecified)),MATCH(LEFT(F28,LEN(F28)-1),CostCode,0))),0) -> 0 | H28: =G28*E28 -> 0 | J28: 0 | K28: 0
B29: Rip rap in channel base | D29: m3 | F29: =NA() ->  | G29: =IFERROR(IF(ISNA(F29),0,INDEX(IF(RIGHT(F29,1)="L",UnitCostLow, IF(RIGHT(F29,1)="H",UnitCostHigh,UnitCostSpecified)),MATCH(LEFT(F29,LEN(F29)-1),CostCode,0))),0) -> 0 | H29: =G29*E29 -> 0 | J29: 0 | K29: 0
B30: CONSTRUCT SPILLWAY
B31: Excavate channel | D31: m3 | F31: =NA() ->  | G31: =IFERROR(IF(ISNA(F31),0,INDEX(IF(RIGHT(F31,1)="L",UnitCostLow, IF(RIGHT(F31,1)="H",UnitCostHigh,UnitCostSpecified)),MATCH(LEFT(F31,LEN(F31)-1),CostCode,0))),0) -> 0 | H31: =G31*E31 -> 0 | J31: =H31*I31 -> 0 | K31: =H31-J31 -> 0
B32: Concrete | D32: m3 | F32: =NA() ->  | G32: =IFERROR(IF(ISNA(F32),0,INDEX(IF(RIGHT(F32,1)="L",UnitCostLow, IF(RIGHT(F32,1)="H",UnitCostHigh,UnitCostSpecified)),MATCH(LEFT(F32,LEN(F32)-1),CostCode,0))),0) -> 0 | H32: =G32*E32 -> 0 | J32: 0 | K32: 0
B33: Rip rap | D33: m3 | F33: =NA() ->  | G33: =IFERROR(IF(ISNA(F33),0,INDEX(IF(RIGHT(F33,1)="L",UnitCostLow, IF(RIGHT(F33,1)="H",UnitCostHigh,UnitCostSpecified)),MATCH(LEFT(F33,LEN(F33)-1),CostCode,0))),0) -> 0 | H33: =G33*E33 -> 0 | J33: 0 | K33: 0
B34: Other | F34: =NA() ->  | G34: =IFERROR(IF(ISNA(F34),0,INDEX(IF(RIGHT(F34,1)="L",UnitCostLow, IF(RIGHT(F34,1)="H",UnitCostHigh,UnitCostSpecified)),MATCH(LEFT(F34,LEN(F34)-1),CostCode,0))),0) -> 0 | H34: =G34*E34 -> 0 | J34: 0 | K34: 0
B35: DEVELOP AND RECLAIM QUARRIES AND BORROWS
B36: Strip overburden | D36: m3 | F36: =NA() ->  | G36: =IFERROR(IF(ISNA(F36),0,INDEX(IF(RIGHT(F36,1)="L",UnitCostLow, IF(RIGHT(F36,1)="H",UnitCostHigh,UnitCostSpecified)),MATCH(LEFT(F36,LEN(F36)-1),CostCode,0))),0) -> 0 | H36: =G36*E36 -> 0 | J36: =H36*I36 -> 0 | K36: =H36-J36 -> 0
B37: Drill & blast | D37: m3 | F37: =NA() ->  | G37: =IFERROR(IF(ISNA(F37),0,INDEX(IF(RIGHT(F37,1)="L",UnitCostLow, IF(RIGHT(F37,1)="H",UnitCostHigh,UnitCostSpecified)),MATCH(LEFT(F37,LEN(F37)-1),CostCode,0))),0) -> 0 | H37: 0 | J37: 0 | K37: 0
B38: Contour slopes | D38: m3 | F38: =NA() ->  | G38: =IFERROR(IF(ISNA(F38),0,INDEX(IF(RIGHT(F38,1)="L",UnitCostLow, IF(RIGHT(F38,1)="H",UnitCostHigh,UnitCostSpecified)),MATCH(LEFT(F38,LEN(F38)-1),CostCode,0))),0) -> 0 | H38: =G38*E38 -> 0 | J38: =H38*I38 -> 0 | K38: =H38-J38 -> 0
B39: Place overburden | D39: m3 | F39: =NA() ->  | G39: =IFERROR(IF(ISNA(F39),0,INDEX(IF(RIGHT(F39,1)="L",UnitCostLow, IF(RIGHT(F39,1)="H",UnitCostHigh,UnitCostSpecified)),MATCH(LEFT(F39,LEN(F39)-1),CostCode,0))),0) -> 0 | H39: =G39*E39 -> 0 | J39: 0 | K39: 0
B40: Other | F40: =NA() ->  | G40: =IFERROR(IF(ISNA(F40),0,INDEX(IF(RIGHT(F40,1)="L",UnitCostLow, IF(RIGHT(F40,1)="H",UnitCostHigh,UnitCostSpecified)),MATCH(LEFT(F40,LEN(F40)-1),CostCode,0))),0) -> 0 | H40: =G40*E40 -> 0 | J40: =H40*I40 -> 0 | K40: =H40-J40 -> 0
B41: OTHER RECLAMATION ACTIVITIES
B42: Backfill of Pit | D42: m3 | F42: =NA() ->  | G42: =IFERROR(IF(ISNA(F42),0,INDEX(IF(RIGHT(F42,1)="L",UnitCostLow, IF(RIGHT(F42,1)="H",UnitCostHigh,UnitCostSpecified)),MATCH(LEFT(F42,LEN(F42)-1),CostCode,0))),0) -> 0 | H42: =G42*E42 -> 0 | J42: =H42*I42 -> 0 | K42: =H42-J42 -> 0
B43: Other | F43: =NA() ->  | G43: =IFERROR(IF(ISNA(F43),0,INDEX(IF(RIGHT(F43,1)="L",UnitCostLow, IF(RIGHT(F43,1)="H",UnitCostHigh,UnitCostSpecified)),MATCH(LEFT(F43,LEN(F43)-1),CostCode,0))),0) -> 0 | H43: =G43*E43 -> 0 | J43: 0 | K43: 0
B44: FLOOD PIT-Capital
B45: Remove stationary equipment (sump pumps) | D45: each | F45: =NA() ->  | G45: =IFERROR(IF(ISNA(F45),0,INDEX(IF(RIGHT(F45,1)="L",UnitCostLow, IF(RIGHT(F45,1)="H",UnitCostHigh,UnitCostSpecified)),MATCH(LEFT(F45,LEN(F45)-1),CostCode,0))),0) -> 0 | H45: =G45*E45 -> 0 | J45: =H45*I45 -> 0 | K45: =H45-J45 -> 0
B46: Remove dewatering pipeline | D46: m | F46: =NA() ->  | G46: 0 | H46: 0 | J46: 0 | K46: 0
B47: Remove power lines | D47: each | F47: =NA() ->  | G47: 0 | H47: 0 | J47: 0 | K47: 0
B48: Construct diversion ditches | D48: m3 | F48: =NA() ->  | G48: 0 | H48: 0 | J48: 0 | K48: 0
B49: -Ditch, mat'l A | D49: m3 | F49: =NA() ->  | G49: 0 | H49: 0 | J49: 0 | K49: 0
B50: -Ditch, mat'l B | D50: m3 | F50: =NA() ->  | G50: 0 | H50: 0 | J50: 0 | K50: 0
B51: Construct embankment/dam | D51: m3 | F51: =NA() ->  | G51: 0 | H51: 0 | J51: 0 | K51: 0
B52: Supply/install pump station | D52: each | F52: =NA() ->  | G52: 0 | H52: 0 | J52: 0 | K52: 0
B53: Supply/install piping system | D53: m | F53: =NA() ->  | G53: 0 | H53: 0 | J53: 0 | K53: 0
B54: Remove pump post-closure | D54: each | F54: =NA() ->  | G54: 0 | H54: 0 | J54: 0 | K54: 0
B55: Remove pipeline post-closure | D55: m | F55: =NA() ->  | G55: 0 | H55: 0 | J55: 0 | K55: 0
B56: FLOOD PIT-Annual Cost
B57: Operate pumps (power) | D57: m3 | F57: =NA() ->  | G57: =IFERROR(IF(ISNA(F57),0,INDEX(IF(RIGHT(F57,1)="L",UnitCostLow, IF(RIGHT(F57,1)="H",UnitCostHigh,UnitCostSpecified)),MATCH(LEFT(F57,LEN(F57)-1),CostCode,0))),0) -> 0 | H57: =G57*E57 -> 0 | J57: =H57*I57 -> 0 | K57: =H57*(1-I57) -> 0
B58: Maintain pump/pipeline | D58: allow | F58: =NA() ->  | G58: 0 | H58: 0 | J58: =H58*I58 -> 0 | K58: =H58*(1-I58) -> 0
B59: Labour: fuel management, commissioning/decom | D59: $/h | F59: =NA() ->  | G59: 0 | H59: 0 | J59: =H59*I59 -> 0 | K59: =H59*(1-I59) -> 0
B60: Chemical addition, _____ kg/m3 of water | D60: kg | F60: =NA() ->  | G60: 0 | H60: 0 | J60: 0 | K60: 0
B61: Chemicals, purchase and shipping | D61: kg | F61: =NA() ->  | G61: 0 | H61: 0 | J61: 0 | K61: 0
B62: Passive/biological additives | D62: $/ha | F62: =NA() ->  | G62: 0 | H62: 0 | J62: =H62*I62 -> 0 | K62: =H62*(1-I62) -> 0
B63: Passive additives purchase and shipping | D63: tonne | F63: =NA() ->  | G63: 0 | H63: 0 | J63: =H63*I63 -> 0 | K63: =H63*(1-I63) -> 0
B64: Other | F64: =NA() ->  | G64: 0 | H64: 0 | J64: =H64*I64 -> 0 | K64: 0
G65: Annual pumping costs | H65: =SUM(H57:H64)+0.0001 -> 0.0001
B66: Number of years of pump flooding | D66: years
G67: Total pumping costs | H67: =H65*E66 -> 0 | J67: =H67*I67 -> 0 | K67: =H67*(1-I67) -> 0
G68: Total | H68: =SUM(H5:H55)+H67+0.0001 -> 0.0001 | J68: =SUM(J5:J55)+J67 -> 0 | K68: =SUM(K5:K55)+K67 -> 0
G69: % of Total | J69: =J68/H68 -> 0 | K69: =K68/H68 -> 0

Sheet UG Mine
A1: 1 | B1: Underground Mine Name | G1: UG Mine # | H1: 1
B3: ACTIVITY/MATERIAL | C3: Notes | D3: Unit | E3: Qty | F3: Cost Code | G3: Unit Cost | H3: Cost | I3: % Land | J3: Land Cost | K3: Water Cost
B4: CONTROL ACCESS
B5: Fence | D5: m | F5: =NA() ->  | G5: =IFERROR(IF(ISNA(F5),0,INDEX(IF(RIGHT(F5,1)="L",UnitCostLow, IF(RIGHT(F5,1)="H",UnitCostHigh,UnitCostSpecified)),MATCH(LEFT(F5,LEN(F5)-1),CostCode,0))),0) -> 0 | H5: =G5*E5 -> 0 | J5: =H5*I5 -> 0 | K5: =H5-J5 -> 0
B6: Signs | D6: each | F6: =NA() ->  | G6: 0 | H6: 0 | J6: 0 | K6: 0
B7: Block roads | D7: m3 | F7: =NA() ->  | G7: 0 | H7: =G7*E7 -> 0 | J7: 0 | K7: 0
B8: Berm | D8: m3 | F8: =NA() ->  | G8: 0 | H8: 0 | J8: 0 | K8: 0
B9: Concrete wall in portals | D9: m3 | F9: =NA() ->  | G9: 0 | H9: 0 | J9: 0 | K9: 0
B10: Backfill portal #1 | D10: m3 | F10: =NA() ->  | G10: 0 | H10: 0 | J10: 0 | K10: 0
B11: Backfill portal #2 | D11: m3 | F11: =NA() ->  | G11: 0 | H11: 0 | J11: 0 | K11: 0
B12: Cap raise # 1 | D12: m3 | F12: =NA() ->  | G12: 0 | H12: 0 | J12: 0 | K12: 0
B13: Cap raise #2 | D13: m3 | F13: =NA() ->  | G13: 0 | H13: 0 | J13: 0 | K13: 0
B14: Cap shaft #1 | D14: m3 | F14: =NA() ->  | G14: 0 | H14: 0 | J14: 0 | K14: 0
B15: Cap shaft #2 | D15: m3 | F15: =NA() ->  | G15: 0 | H15: 0 | J15: 0 | K15: 0
B16: Backfill adits | D16: m3 | F16: =NA() ->  | G16: 0 | H16: 0 | J16: 0 | K16: 0
B17: Backfill open stope | D17: m3 | F17: =NA() ->  | G17: 0 | H17: 0 | J17: 0 | K17: 0
B18: Concrete cap over open stope | D18: m3 | F18: =NA() ->  | G18: 0 | H18: 0 | J18: 0 | K18: 0
B19: Other | F19: =NA() ->  | G19: 0 | H19: 0 | J19: 0 | K19: 0
B20: REMOVE HAZARDOUS MATERIALS
B21: Remove hazardous materials, U/G labor | D21: mandays | F21: =NA() ->  | G21: =IFERROR(IF(ISNA(F21),0,INDEX(IF(RIGHT(F21,1)="L",UnitCostLow, IF(RIGHT(F21,1)="H",UnitCostHigh,UnitCostSpecified)),MATCH(LEFT(F21,LEN(F21)-1),CostCode,0))),0) -> 0 | H21: =G21*E21 -> 0 | J21: =H21*I21 -> 0 | K21: =H21-J21 -> 0
B22: Remove/decontam. stationary & electrical equip | D22: mandays | F22: =NA() ->  | G22: =IFERROR(IF(ISNA(F22),0,INDEX(IF(RIGHT(F22,1)="L",UnitCostLow, IF(RIGHT(F22,1)="H",UnitCostHigh,UnitCostSpecified)),MATCH(LEFT(F22,LEN(F22)-1),CostCode,0))),0) -> 0 | H22: =G22*E22 -> 0 | J22: 0 | K22: 0
B23: Remove/decontam. mobile equipment | D23: each | F23: =NA() ->  | G23: =IFERROR(IF(ISNA(F23),0,INDEX(IF(RIGHT(F23,1)="L",UnitCostLow, IF(RIGHT(F23,1)="H",UnitCostHigh,UnitCostSpecified)),MATCH(LEFT(F23,LEN(F23)-1),CostCode,0))),0) -> 0 | H23: =G23*E23 -> 0 | J23: 0 | K23: 0
B24: Remove misc. haz. mat & explosives | D24: kg | F24: =NA() ->  | G24: =IFERROR(IF(ISNA(F24),0,INDEX(IF(RIGHT(F24,1)="L",UnitCostLow, IF(RIGHT(F24,1)="H",UnitCostHigh,UnitCostSpecified)),MATCH(LEFT(F24,LEN(F24)-1),CostCode,0))),0) -> 0 | H24: =G24*E24 -> 0 | J24: 0 | K24: 0
B25: Other | F25: =NA() ->  | G25: =IFERROR(IF(ISNA(F25),0,INDEX(IF(RIGHT(F25,1)="L",UnitCostLow, IF(RIGHT(F25,1)="H",UnitCostHigh,UnitCostSpecified)),MATCH(LEFT(F25,LEN(F25)-1),CostCode,0))),0) -> 0 | H25: =G25*E25 -> 0 | J25: 0 | K25: 0
B26: INSTALL BULKHEADS
B27: Bulkheads to control water flow | D27: each | F27: =NA() ->  | G27: =IFERROR(IF(ISNA(F27),0,INDEX(IF(RIGHT(F27,1)="L",UnitCostLow, IF(RIGHT(F27,1)="H",UnitCostHigh,UnitCostSpecified)),MATCH(LEFT(F27,LEN(F27)-1),CostCode,0))),0) -> 0 | H27: =G27*E27 -> 0 | J27: =H27*I27 -> 0 | K27: =H27-J27 -> 0
B28: Grout bulkhead | D28: m3 | F28: =NA() ->  | G28: =IFERROR(IF(ISNA(F28),0,INDEX(IF(RIGHT(F28,1)="L",UnitCostLow, IF(RIGHT(F28,1)="H",UnitCostHigh,UnitCostSpecified)),MATCH(LEFT(F28,LEN(F28)-1),CostCode,0))),0) -> 0 | H28: =G28*E28 -> 0 | J28: 0 | K28: 0
B29: FLOOD MINE
B30: Supply/install pump | D30: each | F30: =NA() ->  | G30: =IFERROR(IF(ISNA(F30),0,INDEX(IF(RIGHT(F30,1)="L",UnitCostLow, IF(RIGHT(F30,1)="H",UnitCostHigh,UnitCostSpecified)),MATCH(LEFT(F30,LEN(F30)-1),CostCode,0))),0) -> 0 | H30: =G30*E30 -> 0 | J30: =H30*I30 -> 0 | K30: =H30-J30 -> 0
B31: Supply/install piping system | D31: each | F31: =NA() ->  | G31: =IFERROR(IF(ISNA(F31),0,INDEX(IF(RIGHT(F31,1)="L",UnitCostLow, IF(RIGHT(F31,1)="H",UnitCostHigh,UnitCostSpecified)),MATCH(LEFT(F31,LEN(F31)-1),CostCode,0))),0) -> 0 | H31: =G31*E31 -> 0 | J31: 0 | K31: 0
B32: Operate pumps to flood workings | D32: m3 | F32: =NA() ->  | G32: =IFERROR(IF(ISNA(F32),0,INDEX(IF(RIGHT(F32,1)="L",UnitCostLow, IF(RIGHT(F32,1)="H",UnitCostHigh,UnitCostSpecified)),MATCH(LEFT(F32,LEN(F32)-1),CostCode,0))),0) -> 0 | H32: =G32*E32 -> 0 | J32: 0 | K32: 0
B33: Other | F33: =NA() ->  | G33: =IFERROR(IF(ISNA(F33),0,INDEX(IF(RIGHT(F33,1)="L",UnitCostLow, IF(RIGHT(F33,1)="H",UnitCostHigh,UnitCostSpecified)),MATCH(LEFT(F33,LEN(F33)-1),CostCode,0))),0) -> 0 | H33: =G33*E33 -> 0 | J33: 0 | K33: 0
B34: INSTALL GROUNDWATER COLLECTION SYSTEM
B35: Excavate/install sumps | D35: m2 | F35: =NA() ->  | G35: =IFERROR(IF(ISNA(F35),0,INDEX(IF(RIGHT(F35,1)="L",UnitCostLow, IF(RIGHT(F35,1)="H",UnitCostHigh,UnitCostSpecified)),MATCH(LEFT(F35,LEN(F35)-1),CostCode,0))),0) -> 0 | H35: =G35*E35 -> 0 | J35: =H35*I35 -> 0 | K35: =H35-J35 -> 0
B36: Install pumping wells | D36: m3 | F36: =NA() ->  | G36: =IFERROR(IF(ISNA(F36),0,INDEX(IF(RIGHT(F36,1)="L",UnitCostLow, IF(RIGHT(F36,1)="H",UnitCostHigh,UnitCostSpecified)),MATCH(LEFT(F36,LEN(F36)-1),CostCode,0))),0) -> 0 | H36: =G36*E36 -> 0 | J36: 0 | K36: 0
B37: Install pumps/pipelines/power supply | D37: LS | F37: =NA() ->  | G37: =IFERROR(IF(ISNA(F37),0,INDEX(IF(RIGHT(F37,1)="L",UnitCostLow, IF(RIGHT(F37,1)="H",UnitCostHigh,UnitCostSpecified)),MATCH(LEFT(F37,LEN(F37)-1),CostCode,0))),0) -> 0 | H37: =G37*E37 -> 0 | J37: 0 | K37: 0
B38: SPECIALIZED ITEMS
B39: Install water quality monitoring pipes | D39: each | F39: =NA() ->  | G39: =IFERROR(IF(ISNA(F39),0,INDEX(IF(RIGHT(F39,1)="L",UnitCostLow, IF(RIGHT(F39,1)="H",UnitCostHigh,UnitCostSpecified)),MATCH(LEFT(F39,LEN(F39)-1),CostCode,0))),0) -> 0 | H39: =G39*E39 -> 0 | J39: =H39*I39 -> 0 | K39: =H39-J39 -> 0
B40: Install permanent pumping system | D40: each | F40: =NA() ->  | G40: =IFERROR(IF(ISNA(F40),0,INDEX(IF(RIGHT(F40,1)="L",UnitCostLow, IF(RIGHT(F40,1)="H",UnitCostHigh,UnitCostSpecified)),MATCH(LEFT(F40,LEN(F40)-1),CostCode,0))),0) -> 0 | H40: =G40*E40 -> 0 | J40: 0 | K40: 0
B41: Other | F41: =NA() ->  | G41: =IFERROR(IF(ISNA(F41),0,INDEX(IF(RIGHT(F41,1)="L",UnitCostLow, IF(RIGHT(F41,1)="H",UnitCostHigh,UnitCostSpecified)),MATCH(LEFT(F41,LEN(F41)-1),CostCode,0))),0) -> 0 | H41: =G41*E41 -> 0 | J41: 0 | K41: 0
G42: Total | H42: =SUM(H5:H41)+0.0001 -> 0.0001 | J42: =SUM(J5:J41) -> 0 | K42: =SUM(K5:K41) -> 0
G43: % of Total | J43: =J42/H42 -> 0 | K43: =K42/H42 -> 0

Sheet Tailings
A1: 1 | B1: Tailings Impoundment Name: | G1: Pond # | H1: 1
B3: ACTIVITY/MATERIAL | C3: Notes | D3: Units | E3: Quantity | F3: Cost Code | G3: Unit Cost | H3: Cost | I3: % Land | J3: Land Cost | K3: Water Cost
B4: CONTROL ACCESS
B5: Fence | D5: m | F5: =NA() ->  | G5: =IF(ISNA(F5),0,INDEX(IF(RIGHT(F5,1)="L",UnitCostLow, IF(RIGHT(F5,1)="H",UnitCostHigh,UnitCostSpecified)),MATCH(LEFT(F5,LEN(F5)-1),CostCode,0))) -> 0 | H5: =G5*E5 -> 0 | J5: =H5*I5 -> 0 | K5: =H5-J5 -> 0
B6: Signs | D6: each | F6: =NA() ->  | G6: =IF(ISNA(F6),0,INDEX(IF(RIGHT(F6,1)="L",UnitCostLow, IF(RIGHT(F6,1)="H",UnitCostHigh,UnitCostSpecified)),MATCH(LEFT(F6,LEN(F6)-1),CostCode,0))) -> 0 | H6: =G6*E6 -> 0 | J6: 0 | K6: 0
B7: Berm | D7: m3 | F7: =NA() ->  | G7: =IF(ISNA(F7),0,INDEX(IF(RIGHT(F7,1)="L",UnitCostLow, IF(RIGHT(F7,1)="H",UnitCostHigh,UnitCostSpecified)),MATCH(LEFT(F7,LEN(F7)-1),CostCode,0))) -> 0 | H7: =G7*E7 -> 0 | J7: 0 | K7: 0
B8: Block roads | D8: m3 | F8: =NA() ->  | G8: =IF(ISNA(F8),0,INDEX(IF(RIGHT(F8,1)="L",UnitCostLow, IF(RIGHT(F8,1)="H",UnitCostHigh,UnitCostSpecified)),MATCH(LEFT(F8,LEN(F8)-1),CostCode,0))) -> 0 | H8: =G8*E8 -> 0 | J8: 0 | K8: 0
B9: Other | F9: =NA() ->  | G9: =IF(ISNA(F9),0,INDEX(IF(RIGHT(F9,1)="L",UnitCostLow, IF(RIGHT(F9,1)="H",UnitCostHigh,UnitCostSpecified)),MATCH(LEFT(F9,LEN(F9)-1),CostCode,0))) -> 0 | H9: =G9*E9 -> 0 | J9: 0 | K9: 0
B10: STABILIZE EMBANKMENT(S)
B11: Toe buttress, drainage layer | D11: m3 | F11: =NA() ->  | G11: =IF(ISNA(F11),0,INDEX(IF(RIGHT(F11,1)="L",UnitCostLow, IF(RIGHT(F11,1)="H",UnitCostHigh,UnitCostSpecified)),MATCH(LEFT(F11,LEN(F11)-1),CostCode,0))) -> 0 | H11: =G11*E11 -> 0 | J11: =H11*I11 -> 0 | K11: =H11-J11 -> 0
B12: Toe buttress, bulk fill | D12: m3 | F12: =NA() ->  | G12: 0 | H12: 0 | J12: 0 | K12: 0
B13: Rip rap | D13: m3 | F13: =NA() ->  | G13: 0 | H13: 0 | J13: 0 | K13: 0
B14: Vegetate | D14: ha | F14: =NA() ->  | G14: 0 | H14: 0 | J14: 0 | K14: 0
B15: Raise crest | D15: m3 | F15: =NA() ->  | G15: 0 | H15: 0 | J15: 0 | K15: 0
B16: Flatten slopes | D16: m3 | F16: =NA() ->  | G16: 0 | H16: 0 | J16: 0 | K16: 0
B17: Other | F17: =NA() ->  | G17: 0 | H17: 0 | J17: 0 | K17: 0
B18: COVER TAILINGS
B19: Grade/shape tailings surface | D19: m3 | F19: =NA() ->  | G19: =IF(ISNA(F19),0,INDEX(IF(RIGHT(F19,1)="L",UnitCostLow, IF(RIGHT(F19,1)="H",UnitCostHigh,UnitCostSpecified)),MATCH(LEFT(F19,LEN(F19)-1),CostCode,0))) -> 0 | H19: =G19*E19 -> 0 | J19: =H19*I19 -> 0 | K19: =H19-J19 -> 0
B20: Liner bedding | D20: m3 | F20: =NA() ->  | G20: 0 | H20: =G20*E20 -> 0 | J20: =H20*I20 -> 0 | K20: =H20-J20 -> 0
B21: Subgrade preparation - compact | D21: m2 | F21: =NA() ->  | G21: 0 | H21: =G21*E21 -> 0 | J21: 0 | K21: 0
B22: Supply geotextile/geosynthetic | D22: m2 | F22: =NA() ->  | G22: 0 | H22: 0 | J22: 0 | K22: 0
B23: Install geotextile/geosynthetic | D23: m2 | F23: =NA() ->  | G23: 0 | H23: =G23*E23 -> 0 | J23: 0 | K23: 0
B24: Soil cover | D24: m3 | F24: =NA() ->  | G24: 0 | H24: 0 | J24: 0 | K24: 0
B25: Rock cover | D25: m3 | F25: =NA() ->  | G25: 0 | H25: =G25*E25 -> 0 | J25: 0 | K25: 0
B26: Vegetate | D26: m2 | F26: =NA() ->  | G26: 0 | H26: 0 | J26: 0 | K26: 0
B27: Other (includes cultural use restoration) | F27: =NA() ->  | G27: 0 | H27: =G27*E27 -> 0 | J27: 0 | K27: 0
B28: BURY PAG ROCK
B29: Relocate PAG rock | D29: m3 | F29: =NA() ->  | G29: =IF(ISNA(F29),0,INDEX(IF(RIGHT(F29,1)="L",UnitCostLow, IF(RIGHT(F29,1)="H",UnitCostHigh,UnitCostSpecified)),MATCH(LEFT(F29,LEN(F29)-1),CostCode,0))) -> 0 | H29: =G29*E29 -> 0 | J29: =H29*I29 -> 0 | K29: =H29-J29 -> 0
B30: Place cover over PAG rock | D30: m3 | F30: =NA() ->  | G30: =IF(ISNA(F30),0,INDEX(IF(RIGHT(F30,1)="L",UnitCostLow, IF(RIGHT(F30,1)="H",UnitCostHigh,UnitCostSpecified)),MATCH(LEFT(F30,LEN(F30)-1),CostCode,0))) -> 0 | H30: =G30*E30 -> 0 | J30: 0 | K30: 0
B31: Raise crest of dam | D31: m3 | F31: =NA() ->  | G31: =IF(ISNA(F31),0,INDEX(IF(RIGHT(F31,1)="L",UnitCostLow, IF(RIGHT(F31,1)="H",UnitCostHigh,UnitCostSpecified)),MATCH(LEFT(F31,LEN(F31)-1),CostCode,0))) -> 0 | H31: =G31*E31 -> 0 | J31: 0 | K31: 0
B32: Other | F32: =NA() ->  | G32: =IF(ISNA(F32),0,INDEX(IF(RIGHT(F32,1)="L",UnitCostLow, IF(RIGHT(F32,1)="H",UnitCostHigh,UnitCostSpecified)),MATCH(LEFT(F32,LEN(F32)-1),CostCode,0))) -> 0 | H32: =G32*E32 -> 0 | J32: 0 | K32: 0
B33: STABILIZE DECANT SYSTEM
B34: Excavate and replace | D34: m3 | F34: =NA() ->  | G34: =IF(ISNA(F34),0,INDEX(IF(RIGHT(F34,1)="L",UnitCostLow, IF(RIGHT(F34,1)="H",UnitCostHigh,UnitCostSpecified)),MATCH(LEFT(F34,LEN(F34)-1),CostCode,0))) -> 0 | H34: =G34*E34 -> 0 | J34: =H34*I34 -> 0 | K34: =H34-J34 -> 0
B35: Plug/backfill with concrete or clay | D35: m3 | F35: =NA() ->  | G35: =IF(ISNA(F35),0,INDEX(IF(RIGHT(F35,1)="L",UnitCostLow, IF(RIGHT(F35,1)="H",UnitCostHigh,UnitCostSpecified)),MATCH(LEFT(F35,LEN(F35)-1),CostCode,0))) -> 0 | H35: =G35*E35 -> 0 | J35: 0 | K35: 0
B36: Other | F36: =NA() ->  | G36: =IF(ISNA(F36),0,INDEX(IF(RIGHT(F36,1)="L",UnitCostLow, IF(RIGHT(F36,1)="H",UnitCostHigh,UnitCostSpecified)),MATCH(LEFT(F36,LEN(F36)-1),CostCode,0))) -> 0 | H36: =G36*E36 -> 0 | J36: 0 | K36: 0
B37: REMOVE TAILINGS DISCHARGE
B38: Cyclones | D38: m3 | F38: =NA() ->  | G38: =IF(ISNA(F38),0,INDEX(IF(RIGHT(F38,1)="L",UnitCostLow, IF(RIGHT(F38,1)="H",UnitCostHigh,UnitCostSpecified)),MATCH(LEFT(F38,LEN(F38)-1),CostCode,0))) -> 0 | H38: =G38*E38 -> 0 | J38: =H38*I38 -> 0 | K38: =H38-J38 -> 0
B39: Pipe | D39: m3 | F39: =NA() ->  | G39: =IF(ISNA(F39),0,INDEX(IF(RIGHT(F39,1)="L",UnitCostLow, IF(RIGHT(F39,1)="H",UnitCostHigh,UnitCostSpecified)),MATCH(LEFT(F39,LEN(F39)-1),CostCode,0))) -> 0 | H39: =G39*E39 -> 0 | J39: 0 | K39: 0
B40: Remove reclaim barge | D40: allow | F40: =NA() ->  | G40: =IF(ISNA(F40),0,INDEX(IF(RIGHT(F40,1)="L",UnitCostLow, IF(RIGHT(F40,1)="H",UnitCostHigh,UnitCostSpecified)),MATCH(LEFT(F40,LEN(F40)-1),CostCode,0))) -> 0 | H40: =G40*E40 -> 0 | J40: 0 | K40: 0
B41: CONSTRUCT DIVERSION DITCHES
B42: Excavate ditches -soil | D42: m3 | F42: =NA() ->  | G42: =IF(ISNA(F42),0,INDEX(IF(RIGHT(F42,1)="L",UnitCostLow, IF(RIGHT(F42,1)="H",UnitCostHigh,UnitCostSpecified)),MATCH(LEFT(F42,LEN(F42)-1),CostCode,0))) -> 0 | H42: =G42*E42 -> 0 | J42: =H42*I42 -> 0 | K42: =H42-J42 -> 0
B43: Excavate ditches -rock | D43: m3 | F43: =NA() ->  | G43: =IF(ISNA(F43),0,INDEX(IF(RIGHT(F43,1)="L",UnitCostLow, IF(RIGHT(F43,1)="H",UnitCostHigh,UnitCostSpecified)),MATCH(LEFT(F43,LEN(F43)-1),CostCode,0))) -> 0 | H43: =G43*E43 -> 0 | J43: 0 | K43: 0
B44: Rip rap in channel base | D44: m3 | F44: =NA() ->  | G44: =IF(ISNA(F44),0,INDEX(IF(RIGHT(F44,1)="L",UnitCostLow, IF(RIGHT(F44,1)="H",UnitCostHigh,UnitCostSpecified)),MATCH(LEFT(F44,LEN(F44)-1),CostCode,0))) -> 0 | H44: =G44*E44 -> 0 | J44: 0 | K44: 0
B45: FLOOD TAILINGS
B46: Doze tailings to final contour | D46: m3 | F46: =NA() ->  | G46: =IF(ISNA(F46),0,INDEX(IF(RIGHT(F46,1)="L",UnitCostLow, IF(RIGHT(F46,1)="H",UnitCostHigh,UnitCostSpecified)),MATCH(LEFT(F46,LEN(F46)-1),CostCode,0))) -> 0 | H46: =G46*E46 -> 0 | J46: =H46*I46 -> 0 | K46: =H46-J46 -> 0
B47: Raise crest of dam | D47: m3 | F47: =NA() ->  | G47: =IF(ISNA(F47),0,INDEX(IF(RIGHT(F47,1)="L",UnitCostLow, IF(RIGHT(F47,1)="H",UnitCostHigh,UnitCostSpecified)),MATCH(LEFT(F47,LEN(F47)-1),CostCode,0))) -> 0 | H47: =G47*E47 -> 0 | J47: 0 | K47: 0
B48: Other | F48: =NA() ->  | G48: =IF(ISNA(F48),0,INDEX(IF(RIGHT(F48,1)="L",UnitCostLow, IF(RIGHT(F48,1)="H",UnitCostHigh,UnitCostSpecified)),MATCH(LEFT(F48,LEN(F48)-1),CostCode,0))) -> 0 | H48: =G48*E48 -> 0 | J48: 0 | K48: 0
B49: UPGRADE SPILLWAY
B50: Excavate channel, rock | D50: m3 | F50: =NA() ->  | G50: =IF(ISNA(F50),0,INDEX(IF(RIGHT(F50,1)="L",UnitCostLow, IF(RIGHT(F50,1)="H",UnitCostHigh,UnitCostSpecified)),MATCH(LEFT(F50,LEN(F50)-1),CostCode,0))) -> 0 | H50: =G50*E50 -> 0 | J50: =H50*I50 -> 0 | K50: =H50-J50 -> 0
B51: Excavate channel, soil | D51: m3 | F51: =NA() ->  | G51: =IF(ISNA(F51),0,INDEX(IF(RIGHT(F51,1)="L",UnitCostLow, IF(RIGHT(F51,1)="H",UnitCostHigh,UnitCostSpecified)),MATCH(LEFT(F51,LEN(F51)-1),CostCode,0))) -> 0 | H51: =G51*E51 -> 0 | J51: 0 | K51: 0
B52: Concrete | D52: m3 | F52: =NA() ->  | G52: =IF(ISNA(F52),0,INDEX(IF(RIGHT(F52,1)="L",UnitCostLow, IF(RIGHT(F52,1)="H",UnitCostHigh,UnitCostSpecified)),MATCH(LEFT(F52,LEN(F52)-1),CostCode,0))) -> 0 | H52: =G52*E52 -> 0 | J52: 0 | K52: 0
B53: Rip rap | D53: m3 | F53: =NA() ->  | G53: =IF(ISNA(F53),0,INDEX(IF(RIGHT(F53,1)="L",UnitCostLow, IF(RIGHT(F53,1)="H",UnitCostHigh,UnitCostSpecified)),MATCH(LEFT(F53,LEN(F53)-1),CostCode,0))) -> 0 | H53: =G53*E53 -> 0 | J53: 0 | K53: 0
B54: Other | F54: =NA() ->  | G54: =IF(ISNA(F54),0,INDEX(IF(RIGHT(F54,1)="L",UnitCostLow, IF(RIGHT(F54,1)="H",UnitCostHigh,UnitCostSpecified)),MATCH(LEFT(F54,LEN(F54)-1),CostCode,0))) -> 0 | H54: =G54*E54 -> 0 | J54: 0 | K54: 0
B55: CONSTRUCT SEEPAGE COLLECTION POND
B56: Excavate seepage collection pond | D56: m3 | F56: =NA() ->  | G56: =IF(ISNA(F56),0,INDEX(IF(RIGHT(F56,1)="L",UnitCostLow, IF(RIGHT(F56,1)="H",UnitCostHigh,UnitCostSpecified)),MATCH(LEFT(F56,LEN(F56)-1),CostCode,0))) -> 0 | H56: =G56*E56 -> 0 | J56: =H56*I56 -> 0 | K56: =H56-J56 -> 0
B57: Doze & spread excavated material | D57: m3 | F57: =NA() ->  | G57: 0 | H57: 0 | J57: 0 | K57: 0
B58: Vegetate spread material | D58: ha | F58: =NA() ->  | G58: 0 | H58: 0 | J58: 0 | K58: 0
B59: Bedding layer | D59: m3 | F59: =NA() ->  | G59: 0 | H59: 0 | J59: 0 | K59: 0
B60: Supply geomembrane | D60: m2 | F60: =NA() ->  | G60: 0 | H60: 0 | J60: 0 | K60: 0
B61: Install geomembrane | D61: m2 | F61: =NA() ->  | G61: 0 | H61: 0 | J61: 0 | K61: 0
B62: Erosion protection layer | D62: m3 | F62: =NA() ->  | G62: 0 | H62: 0 | J62: 0 | K62: 0
B63: INSTALL GROUNDWATER COLLECTION SYSTEM
B64: Excavate/install sumps | D64: m3 | F64: =NA() ->  | G64: =IF(ISNA(F64),0,INDEX(IF(RIGHT(F64,1)="L",UnitCostLow, IF(RIGHT(F64,1)="H",UnitCostHigh,UnitCostSpecified)),MATCH(LEFT(F64,LEN(F64)-1),CostCode,0))) -> 0 | H64: =G64*E64 -> 0 | J64: =H64*I64 -> 0 | K64: =H64-J64 -> 0
B65: Install pumping wells | D65: m3 | F65: =NA() ->  | G65: =IF(ISNA(F65),0,INDEX(IF(RIGHT(F65,1)="L",UnitCostLow, IF(RIGHT(F65,1)="H",UnitCostHigh,UnitCostSpecified)),MATCH(LEFT(F65,LEN(F65)-1),CostCode,0))) -> 0 | H65: =G65*E65 -> 0 | J65: 0 | K65: 0
B66: Install pumps/pipelines/power supply | D66: LS | F66: =NA() ->  | G66: =IF(ISNA(F66),0,INDEX(IF(RIGHT(F66,1)="L",UnitCostLow, IF(RIGHT(F66,1)="H",UnitCostHigh,UnitCostSpecified)),MATCH(LEFT(F66,LEN(F66)-1),CostCode,0))) -> 0 | H66: =G66*E66 -> 0 | J66: 0 | K66: 0
B67: SPECIALIZED ITEMS
B68: Install permanent instrumentation, supply & technician | D68: each | F68: =NA() ->  | G68: =IF(ISNA(F68),0,INDEX(IF(RIGHT(F68,1)="L",UnitCostLow, IF(RIGHT(F68,1)="H",UnitCostHigh,UnitCostSpecified)),MATCH(LEFT(F68,LEN(F68)-1),CostCode,0))) -> 0 | H68: =G68*E68 -> 0 | J68: =H68*I68 -> 0 | K68: =H68-J68 -> 0
B69: Install permanent instrumentation, drilling | D69: each | F69: =NA() ->  | G69: =IF(ISNA(F69),0,INDEX(IF(RIGHT(F69,1)="L",UnitCostLow, IF(RIGHT(F69,1)="H",UnitCostHigh,UnitCostSpecified)),MATCH(LEFT(F69,LEN(F69)-1),CostCode,0))) -> 0 | H69: =G69*E69 -> 0 | J69: 0 | K69: 0
B70: TREAT SEEPAGE AND CONTACT WATER - see "Water Management" *
B71: Total water treatment cost | G71: Total treatment costs | H71: ='Water Treatment'!P37 -> 0 | K71: =H71 -> 0
G72: Total | H72: =SUM(H5:H69)+H71+0.0001 -> 0.0001 | J72: =SUM(J5:J69)+J71 -> 0 | K72: =SUM(K5:K69)+K71 -> 0
G73: % of Total | J73: =J72/H72 -> 0 | K73: =K72/H72 -> 0
B75: * For construction of passive or temporary treatment system refer to "Water Management". ARD/ML seepage treatment becomes post-closure water treatment cost

Sheet Rock Pile
A1: 1 | B1: Rock Pile Name: | G1: Rock Pile # | H1: 1
B3: ACTIVITY/MATERIAL | C3: Notes | D3: Units | E3: Quantity | F3: Cost Code | G3: Unit Cost | H3: Cost | I3: % Land | J3: Land Cost | K3: Water Cost
B4: STABILIZE SLOPES
B5: Flatten slopes with dozer | D5: m3 | F5: =NA() ->  | G5: =IFERROR(IF(ISNA(F5),0,INDEX(IF(RIGHT(F5,1)="L",UnitCostLow, IF(RIGHT(F5,1)="H",UnitCostHigh,UnitCostSpecified)),MATCH(LEFT(F5,LEN(F5)-1),CostCode,0))),0) -> 0 | H5: =G5*E5 -> 0 | J5: =H5*I5 -> 0 | K5: =+H5*(1-I5) -> 0
B6: Flatten "bubble dump" areas | D6: m3 | F6: =NA() ->  | G6: 0 | H6: 0 | J6: 0 | K6: 0
B7: Divert runon, ditch material A | D7: m3 | F7: =NA() ->  | G7: 0 | H7: 0 | J7: 0 | K7: 0
B8: Divert runon, ditch material B | D8: m3 | F8: =NA() ->  | G8: 0 | H8: 0 | J8: 0 | K8: 0
B9: Toe buttress, drain material | D9: m3 | F9: =NA() ->  | G9: 0 | H9: 0 | J9: 0 | K9: 0
B10: Toe buttress, fill material A | D10: m3 | F10: =NA() ->  | G10: 0 | H10: 0 | J10: 0 | K10: 0
B11: Toe buttress, fill material B | D11: m3 | F11: =NA() ->  | G11: 0 | H11: 0 | J11: 0 | K11: 0
B12: Other | F12: =NA() ->  | G12: 0 | H12: 0 | J12: 0 | K12: 0
B13: COVER ROCK PILE
B14: Subgrade preparation - doze surface | D14: m3 | F14: =NA() ->  | G14: =IFERROR(IF(ISNA(F14),0,INDEX(IF(RIGHT(F14,1)="L",UnitCostLow, IF(RIGHT(F14,1)="H",UnitCostHigh,UnitCostSpecified)),MATCH(LEFT(F14,LEN(F14)-1),CostCode,0))),0) -> 0 | H14: =G14*E14 -> 0 | J14: =H14*I14 -> 0 | K14: =+H14*(1-I14) -> 0
B15: Soil cover - excavate, haul, spread & compact | D15: m3 | F15: =NA() ->  | G15: 0 | H15: 0 | J15: 0 | K15: 0
B16: Rock cover - excavate, haul & spread | D16: m3 | F16: =NA() ->  | G16: 0 | H16: 0 | J16: 0 | K16: 0
B17: Excavate downslope drainage channel & chute | D17: m3 | F17: =NA() ->  | G17: 0 | H17: 0 | J17: 0 | K17: 0
B18: Rip rap drainage channel and chute | D18: m3 | F18: =NA() ->  | G18: 0 | H18: 0 | J18: 0 | K18: 0
B19: Vegetate | D19: ha | F19: =NA() ->  | G19: 0 | H19: 0 | J19: 0 | K19: 0
B20: Other (includes cultural use restoration) | F20: =NA() ->  | G20: 0 | H20: 0 | J20: 0 | K20: 0
B21: VERY LOW PERMEABILITY COVER (in addition to above)
B22: Liner subgrade preparation - compact | D22: m3 | F22: =NA() ->  | G22: =IFERROR(IF(ISNA(F22),0,INDEX(IF(RIGHT(F22,1)="L",UnitCostLow, IF(RIGHT(F22,1)="H",UnitCostHigh,UnitCostSpecified)),MATCH(LEFT(F22,LEN(F22)-1),CostCode,0))),0) -> 0 | H22: =G22*E22 -> 0 | J22: =H22*I22 -> 0 | K22: =+H22*(1-I22) -> 0
B23: Supply geomembrane | D23: m2 | F23: =NA() ->  | G23: 0 | H23: =G23*E23 -> 0 | J23: 0 | K23: 0
B24: Install geomembrane | D24: m2 | F24: =NA() ->  | G24: 0 | H24: =G24*E24 -> 0 | J24: 0 | K24: 0
B25: Protective cover - excavate, haul, spread & compact | D25: m3 | F25: =NA() ->  | G25: 0 | H25: 0 | J25: 0 | K25: 0
B26: Vegetate | D26: ha | F26: =NA() ->  | G26: 0 | H26: 0 | J26: 0 | K26: 0
B27: Install infiltration/seepage instrumentation | D27: allow | F27: =NA() ->  | G27: 0 | H27: 0 | J27: 0 | K27: 0
B28: CONSTRUCT DIVERSION DITCHES
B29: Excavate ditches -soil | D29: m3 | F29: =NA() ->  | G29: =IFERROR(IF(ISNA(F29),0,INDEX(IF(RIGHT(F29,1)="L",UnitCostLow, IF(RIGHT(F29,1)="H",UnitCostHigh,UnitCostSpecified)),MATCH(LEFT(F29,LEN(F29)-1),CostCode,0))),0) -> 0 | H29: =G29*E29 -> 0 | J29: =H29*I29 -> 0 | K29: =+H29*(1-I29) -> 0
B30: Excavate ditches -rock | D30: m3 | F30: =NA() ->  | G30: =IFERROR(IF(ISNA(F30),0,INDEX(IF(RIGHT(F30,1)="L",UnitCostLow, IF(RIGHT(F30,1)="H",UnitCostHigh,UnitCostSpecified)),MATCH(LEFT(F30,LEN(F30)-1),CostCode,0))),0) -> 0 | H30: =G30*E30 -> 0 | J30: =H30*I30 -> 0 | K30: =+H30*(1-I30) -> 0
B31: Rip rap in channel base | D31: m3 | F31: =NA() ->  | G31: =IFERROR(IF(ISNA(F31),0,INDEX(IF(RIGHT(F31,1)="L",UnitCostLow, IF(RIGHT(F31,1)="H",UnitCostHigh,UnitCostSpecified)),MATCH(LEFT(F31,LEN(F31)-1),CostCode,0))),0) -> 0 | H31: =G31*E31 -> 0 | J31: =H31*I31 -> 0 | K31: =+H31*(1-I31) -> 0
B32: CONSTRUCT SEEPAGE COLLECTION POND
B33: Excavate seepage collection pond | D33: m3 | F33: =NA() ->  | G33: =IFERROR(IF(ISNA(F33),0,INDEX(IF(RIGHT(F33,1)="L",UnitCostLow, IF(RIGHT(F33,1)="H",UnitCostHigh,UnitCostSpecified)),MATCH(LEFT(F33,LEN(F33)-1),CostCode,0))),0) -> 0 | H33: 0 | J33: =H33*I33 -> 0 | K33: =+H33*(1-I33) -> 0
B34: Doze & spread excavated material | D34: m3 | F34: =NA() ->  | G34: 0 | H34: 0 | J34: 0 | K34: 0
B35: Vegetate spread material | D35: ha | F35: =NA() ->  | G35: 0 | H35: 0 | J35: 0 | K35: 0
B36: Bedding layer | D36: m3 | F36: =NA() ->  | G36: 0 | H36: 0 | J36: 0 | K36: 0
B37: Supply geomembrane | D37: m2 | F37: =NA() ->  | G37: 0 | H37: 0 | J37: 0 | K37: 0
B38: Install geomembrane | D38: m2 | F38: =NA() ->  | G38: 0 | H38: 0 | J38: 0 | K38: 0
B39: Erosion protection layer | D39: m3 | F39: =NA() ->  | G39: 0 | H39: 0 | J39: 0 | K39: 0
B40: INSTALL GROUNDWATER COLLECTION SYSTEM
B41: Excavate/install sumps | D41: m3 | F41: =NA() ->  | G41: =IFERROR(IF(ISNA(F41),0,INDEX(IF(RIGHT(F41,1)="L",UnitCostLow, IF(RIGHT(F41,1)="H",UnitCostHigh,UnitCostSpecified)),MATCH(LEFT(F41,LEN(F41)-1),CostCode,0))),0) -> 0 | H41: =G41*E41 -> 0 | J41: =H41*I41 -> 0 | K41: =+H41*(1-I41) -> 0
B42: Install pumping wells | D42: m3 | F42: =NA() ->  | G42: =IFERROR(IF(ISNA(F42),0,INDEX(IF(RIGHT(F42,1)="L",UnitCostLow, IF(RIGHT(F42,1)="H",UnitCostHigh,UnitCostSpecified)),MATCH(LEFT(F42,LEN(F42)-1),CostCode,0))),0) -> 0 | H42: =G42*E42 -> 0 | J42: =H42*I42 -> 0 | K42: =+H42*(1-I42) -> 0
B43: Install pumps/pipelines/power supply | D43: allow | F43: =NA() ->  | G43: =IFERROR(IF(ISNA(F43),0,INDEX(IF(RIGHT(F43,1)="L",UnitCostLow, IF(RIGHT(F43,1)="H",UnitCostHigh,UnitCostSpecified)),MATCH(LEFT(F43,LEN(F43)-1),CostCode,0))),0) -> 0 | H43: =G43*E43 -> 0 | J43: =H43*I43 -> 0 | K43: =+H43*(1-I43) -> 0
B44: RELOCATE DUMPS
B45: Load, haul, dump or doze | D45: m3 | F45: =NA() ->  | G45: =IFERROR(IF(ISNA(F45),0,INDEX(IF(RIGHT(F45,1)="L",UnitCostLow, IF(RIGHT(F45,1)="H",UnitCostHigh,UnitCostSpecified)),MATCH(LEFT(F45,LEN(F45)-1),CostCode,0))),0) -> 0 | H45: =G45*E45 -> 0 | J45: =H45*I45 -> 0 | K45: =+H45*(1-I45) -> 0
B46: Add lime | D46: tonne | F46: =NA() ->  | G46: =IFERROR(IF(ISNA(F46),0,INDEX(IF(RIGHT(F46,1)="L",UnitCostLow, IF(RIGHT(F46,1)="H",UnitCostHigh,UnitCostSpecified)),MATCH(LEFT(F46,LEN(F46)-1),CostCode,0))),0) -> 0 | H46: =G46*E46 -> 0 | J46: =H46*I46 -> 0 | K46: =+H46*(1-I46) -> 0
B47: Contour reclaimed area | D47: ha | F47: =NA() ->  | G47: =IFERROR(IF(ISNA(F47),0,INDEX(IF(RIGHT(F47,1)="L",UnitCostLow, IF(RIGHT(F47,1)="H",UnitCostHigh,UnitCostSpecified)),MATCH(LEFT(F47,LEN(F47)-1),CostCode,0))),0) -> 0 | H47: =G47*E47 -> 0 | J47: =H47*I47 -> 0 | K47: =+H47*(1-I47) -> 0
B48: Other | F48: =NA() ->  | G48: =IFERROR(IF(ISNA(F48),0,INDEX(IF(RIGHT(F48,1)="L",UnitCostLow, IF(RIGHT(F48,1)="H",UnitCostHigh,UnitCostSpecified)),MATCH(LEFT(F48,LEN(F48)-1),CostCode,0))),0) -> 0 | H48: =G48*E48 -> 0 | J48: =H48*I48 -> 0 | K48: =+H48*(1-I48) -> 0
B49: SPECIALIZED ITEMS
B50: Install permanent instrumentation | D50: each | F50: =NA() ->  | G50: =IFERROR(IF(ISNA(F50),0,INDEX(IF(RIGHT(F50,1)="L",UnitCostLow, IF(RIGHT(F50,1)="H",UnitCostHigh,UnitCostSpecified)),MATCH(LEFT(F50,LEN(F50)-1),CostCode,0))),0) -> 0 | H50: =G50*E50 -> 0 | J50: =H50*I50 -> 0 | K50: =+H50*(1-I50) -> 0
B51: Install permanent instrumentation, drilling | D51: each | F51: =NA() ->  | G51: =IFERROR(IF(ISNA(F51),0,INDEX(IF(RIGHT(F51,1)="L",UnitCostLow, IF(RIGHT(F51,1)="H",UnitCostHigh,UnitCostSpecified)),MATCH(LEFT(F51,LEN(F51)-1),CostCode,0))),0) -> 0 | H51: =G51*E51 -> 0 | J51: =H51*I51 -> 0 | K51: =+H51*(1-I51) -> 0
G52: Total | H52: =SUM(H5:H51)+0.0001 -> 0.0001 | J52: =SUM(J5:J51) -> 0 | K52: =SUM(K5:K51) -> 0
G53: % of Total | J53: =J52/H52 -> 0 | K53: =K52/H52 -> 0
B55: * For construction of passive treatment system refer to "Water Management". ARD/ML seepage treatment becomes post-closure water treatment cost

Sheet Bldgs & Equip
A1: 1 | B1: Building / Equip Name: | G1: Bldg / Equip #: | H1: 1
B3: ACTIVITY/MATERIAL | C3: Notes | D3: Units | E3: Quantity | F3: Cost Code | G3: Unit Cost | H3: Cost | I3: % Land | J3: Land Cost | K3: Water Cost
B4: DISPOSE MOBILE EQUIPMENT
B5: Decontaminate and ship off-site | D5: allow | F5: =NA() ->  | G5: =IFERROR(IF(ISNA(F5),0,INDEX(IF(RIGHT(F5,1)="L",UnitCostLow, IF(RIGHT(F5,1)="H",UnitCostHigh,UnitCostSpecified)),MATCH(LEFT(F5,LEN(F5)-1),CostCode,0))),0) -> 0 | H5: =G5*E5 -> 0 | J5: =H5*I5 -> 0 | K5: =+H5*(1-I5) -> 0
B6: Decontaminate and dispose on-site | D6: allow | F6: =NA() ->  | G6: =IFERROR(IF(ISNA(F6),0,INDEX(IF(RIGHT(F6,1)="L",UnitCostLow, IF(RIGHT(F6,1)="H",UnitCostHigh,UnitCostSpecified)),MATCH(LEFT(F6,LEN(F6)-1),CostCode,0))),0) -> 0 | H6: =G6*E6 -> 0 | J6: =H6*I6 -> 0 | K6: =+H6*(1-I6) -> 0
B7: Other | F7: =NA() ->  | G7: =IFERROR(IF(ISNA(F7),0,INDEX(IF(RIGHT(F7,1)="L",UnitCostLow, IF(RIGHT(F7,1)="H",UnitCostHigh,UnitCostSpecified)),MATCH(LEFT(F7,LEN(F7)-1),CostCode,0))),0) -> 0 | H7: =G7*E7 -> 0 | J7: 0 | K7: 0
B8: REMOVE BUILDINGS
B9: Accommodation Complex | D9: m2 | F9: =NA() ->  | G9: =IFERROR(IF(ISNA(F9),0,INDEX(IF(RIGHT(F9,1)="L",UnitCostLow, IF(RIGHT(F9,1)="H",UnitCostHigh,UnitCostSpecified)),MATCH(LEFT(F9,LEN(F9)-1),CostCode,0))),0) -> 0 | H9: =G9*E9 -> 0 | J9: 0 | K9: 0
B10: Process Facilities | D10: m2 | F10: =NA() ->  | G10: 0 | H10: 0 | J10: 0 | K10: 0
B11: Offices, Repair, Lab, Warehouse | D11: m2 | F11: =NA() ->  | G11: 0 | H11: 0 | J11: 0 | K11: 0
B12: Storage Facilities | D12: m2 | F12: =NA() ->  | G12: 0 | H12: 0 | J12: 0 | K12: 0
B13: Water and Wastewater Treatment Facilities | D13: m2 | F13: =NA() ->  | G13: 0 | H13: 0 | J13: 0 | K13: 0
B14: U/G Heating Plant | D14: m2 | F14: =NA() ->  | G14: 0 | H14: 0 | J14: 0 | K14: 0
B15: Emulsion Plant | D15: m2 | F15: =NA() ->  | G15: 0 | H15: 0 | J15: 0 | K15: 0
B16: AN Storage Facility | D16: m2 | F16: =NA() ->  | G16: 0 | H16: 0 | J16: =H16*I16 -> 0 | K16: =+H16*(1-I16) -> 0
B17: Warehouse, Shops and Other | D17: m2 | F17: =NA() ->  | G17: 0 | H17: 0 | J17: =H17*I17 -> 0 | K17: =+H17*(1-I17) -> 0
B18: Storage Facility at Laydown/Airstrip | D18: m2 | F18: =NA() ->  | G18: 0 | H18: 0 | J18: =H18*I18 -> 0 | K18: =+H18*(1-I18) -> 0
B19: Fuel tanks | D19: m2 | F19: =NA() ->  | G19: 0 | H19: 0 | J19: =H19*I19 -> 0 | K19: =+H19*(1-I19) -> 0
B20: Fuel Tanks | D20: m2 | F20: =NA() ->  | G20: 0 | H20: 0 | J20: =H20*I20 -> 0 | K20: =+H20*(1-I20) -> 0
B21: Freshwater intake | D21: m2 | F21: =NA() ->  | G21: 0 | H21: 0 | J21: 0 | K21: 0
B22: Reclaim pumps | D22: m2 | F22: =NA() ->  | G22: 0 | H22: 0 | J22: 0 | K22: 0
B23: Outfall & Diffuser | D23: m2 | F23: =NA() ->  | G23: 0 | H23: 0 | J23: 0 | K23: 0
B24: Airstrip lighting, navigation, electrician | D24: hr | F24: =NA() ->  | G24: 0 | H24: 0 | J24: 0 | K24: 0
B25: Airstrip lighting, navigation, mechanical | D25: hr | F25: =NA() ->  | G25: 0 | H25: 0 | J25: 0 | K25: 0
B26: Break foundation slabs | D26: m3 | F26: =NA() ->  | G26: 0 | H26: =G26*E26 -> 0 | J26: =H26*I26 -> 0 | K26: =+H26*(1-I26) -> 0
B27: Consolidate & dump boneyard debris | D27: m3 | F27: =NA() ->  | G27: 0 | H27: 0 | J27: 0 | K27: 0
B28: Other | F28: =NA() ->  | G28: 0 | H28: 0 | J28: 0 | K28: 0
B29: LANDFILL CONSTRUCTION
B30: Place rock cover | D30: m3 | F30: =NA() ->  | G30: =IFERROR(IF(ISNA(F30),0,INDEX(IF(RIGHT(F30,1)="L",UnitCostLow, IF(RIGHT(F30,1)="H",UnitCostHigh,UnitCostSpecified)),MATCH(LEFT(F30,LEN(F30)-1),CostCode,0))),0) -> 0 | H30: =G30*E30 -> 0 | J30: =H30*I30 -> 0 | K30: =+H30*(1-I30) -> 0
B31: Place soil cover | D31: m3 | F31: =NA() ->  | G31: 0 | H31: =G31*E31 -> 0 | J31: 0 | K31: =+H31*(1-I31) -> 0
B32: Vegetate | D32: ha | F32: =NA() ->  | G32: 0 | H32: =G32*E32 -> 0 | J32: 0 | K32: 0
B33: Excavate soil | D33: m3 | F33: =NA() ->  | G33: 0 | H33: =G33*E33 -> 0 | J33: =H33*I33 -> 0 | K33: =+H33*(1-I33) -> 0
B34: Excavate rock | D34: m3 | F34: =NA() ->  | G34: 0 | H34: 0 | J34: 0 | K34: 0
B35: Install Bottom Liner | D35: ha | F35: =NA() ->  | G35: 0 | H35: 0 | J35: 0 | K35: 0
B36: Regrade | D36: ha | F36: =NA() ->  | G36: 0 | H36: 0 | J36: 0 | K36: 0
B37: Collection system | D37: m | F37: =NA() ->  | G37: 0 | H37: =G37*E37 -> 0 | J37: =H37*I37 -> 0 | K37: =+H37*(1-I37) -> 0
B38: Install Cover Liner | D38: ha | F38: =NA() ->  | G38: 0 | H38: 0 | J38: 0 | K38: 0
B39: Instrumentation | D39: each | F39: =NA() ->  | G39: 0 | H39: 0 | J39: 0 | K39: 0
B40: Other | F40: =NA() ->  | G40: 0 | H40: 0 | J40: 0 | K40: 0
B41: GRADE AND CONTOUR PADS
B42: Accommodation Complex | D42: m3 | F42: =NA() ->  | G42: =IFERROR(IF(ISNA(F42),0,INDEX(IF(RIGHT(F42,1)="L",UnitCostLow, IF(RIGHT(F42,1)="H",UnitCostHigh,UnitCostSpecified)),MATCH(LEFT(F42,LEN(F42)-1),CostCode,0))),0) -> 0 | H42: =G42*E42 -> 0 | J42: 0 | K42: 0
B43: Process Facilities | D43: m3 | F43: =NA() ->  | G43: 0 | H43: 0 | J43: 0 | K43: 0
B44: Offices, Repair, Lab, Warehouse | D44: m3 | F44: =NA() ->  | G44: 0 | H44: 0 | J44: 0 | K44: 0
B45: Storage Facilities | D45: m3 | F45: =NA() ->  | G45: 0 | H45: 0 | J45: 0 | K45: 0
B46: Water and Wastewater Treatment Facilities | D46: m3 | F46: =NA() ->  | G46: 0 | H46: 0 | J46: 0 | K46: 0
B47: U/G Heating Plant | D47: m3 | F47: =NA() ->  | G47: 0 | H47: 0 | J47: 0 | K47: 0
B48: Emulsion Plant | D48: m3 | F48: =NA() ->  | G48: 0 | H48: 0 | J48: 0 | K48: 0
B49: Warehouse, Shops and Other | D49: m3 | F49: =NA() ->  | G49: 0 | H49: 0 | J49: 0 | K49: 0
B50: Place rock cover | D50: m3 | F50: =NA() ->  | G50: 0 | H50: 0 | J50: 0 | K50: 0
B51: Vegetate | D51: ha | F51: =NA() ->  | G51: 0 | H51: 0 | J51: 0 | K51: 0
B52: Other (includes cultural use restoration) | F52: =NA() ->  | G52: 0 | H52: 0 | J52: 0 | K52: 0
B53: PUNCTURE LINED SUMPS
B54: Puncture liner and place soil cover | D54: m3 | F54: =NA() ->  | G54: =IFERROR(IF(ISNA(F54),0,INDEX(IF(RIGHT(F54,1)="L",UnitCostLow, IF(RIGHT(F54,1)="H",UnitCostHigh,UnitCostSpecified)),MATCH(LEFT(F54,LEN(F54)-1),CostCode,0))),0) -> 0 | H54: =G54*E54 -> 0 | J54: =H54*I54 -> 0 | K54: =+H54*(1-I54) -> 0
B55: RECLAIM ROADS
B56: Remove culverts | D56: each | F56: =NA() ->  | G56: =IFERROR(IF(ISNA(F56),0,INDEX(IF(RIGHT(F56,1)="L",UnitCostLow, IF(RIGHT(F56,1)="H",UnitCostHigh,UnitCostSpecified)),MATCH(LEFT(F56,LEN(F56)-1),CostCode,0))),0) -> 0 | H56: =G56*E56 -> 0 | J56: 0 | K56: 0
B57: Remove bridges | D57: each | F57: =NA() ->  | G57: 0 | H57: 0 | J57: 0 | K57: 0
B58: Scarify and install water breaks | D58: ha | F58: =NA() ->  | G58: 0 | H58: 0 | J58: 0 | K58: 0
B59: Scarify airstrip | D59: ha | F59: =NA() ->  | G59: 0 | H59: 0 | J59: 0 | K59: 0
B60: Scarify laydown areas | D60: ha | F60: =NA() ->  | G60: 0 | H60: 0 | J60: 0 | K60: 0
B61: Vegetate | D61: ha | F61: =NA() ->  | G61: 0 | H61: 0 | J61: =H61*I61 -> 0 | K61: 0
B62: Remove gates | D62: each | F62: =NA() ->  | G62: 0 | H62: =G62*E62 -> 0 | J62: =H62*I62 -> 0 | K62: =+H62*(1-I62) -> 0
B63: Recontour road | D63: ha | F63: =NA() ->  | G63: 0 | H63: 0 | J63: 0 | K63: 0
B64: Other | F64: =NA() ->  | G64: 0 | H64: 0 | J64: =H64*I64 -> 0 | K64: 0
B65: SPECIALIZED ITEMS
B66: Dispose of misc. debris and laydown area refuse | F66: =NA() ->  | G66: =IFERROR(IF(ISNA(F66),0,INDEX(IF(RIGHT(F66,1)="L",UnitCostLow, IF(RIGHT(F66,1)="H",UnitCostHigh,UnitCostSpecified)),MATCH(LEFT(F66,LEN(F66)-1),CostCode,0))),0) -> 0 | H66: =G66*E66 -> 0 | J66: =H66*I66 -> 0 | K66: 0
G67: Total | H67: =SUM(H5:H66)+0.0001 -> 0.0001 | J67: =SUM(J5:J66) -> 0 | K67: =SUM(K5:K66) -> 0
G68: % of Total | J68: =J67/H67 -> 0 | K68: =K67/H67 -> 0

Sheet Chemicals
A1: 1 | B1: Chemicals/Soil Area Name:
B3: Note: The procedures, equipment and packaging for clean up and removal of chemicals or contaminated soils are highly dependent on the nature of the chemicals and their existing state of containment. Government guidelines should be consulted on an individual chemical basis. Any estimate made here should be considered very rough unless specific evaluations have been conducted.
B4: ACTIVITY/MATERIAL | C4: Notes | D4: Units | E4: Quantity | F4: Cost Code | G4: Unit Cost | H4: Cost | I4: % Land | J4: Land Cost | K4: Water Cost
B5: HAZARDOUS MATERIALS AUDIT
B6: Hazardous materials audit | D6: hr | F6: =NA() ->  | G6: =IFERROR(IF(ISNA(F6),0,INDEX(IF(RIGHT(F6,1)="L",UnitCostLow, IF(RIGHT(F6,1)="H",UnitCostHigh,UnitCostSpecified)),MATCH(LEFT(F6,LEN(F6)-1),CostCode,0))),0) -> 0 | H6: =G6*E6 -> 0 | J6: =H6*I6 -> 0 | K6: =+H6*(1-I6) -> 0
B7: BUILDING DECONTAMINATION & CONSOLIDATION OF HAZARDOUS MATERIALS
B8: Environmental technician/coordinator | D8: m2 | F8: =NA() ->  | G8: =IFERROR(IF(ISNA(F8),0,INDEX(IF(RIGHT(F8,1)="L",UnitCostLow, IF(RIGHT(F8,1)="H",UnitCostHigh,UnitCostSpecified)),MATCH(LEFT(F8,LEN(F8)-1),CostCode,0))),0) -> 0 | H8: =G8*E8 -> 0 | J8: =H8*I8 -> 0 | K8: =+H8*(1-I8) -> 0
B9: Decontaminate: oil, fuel | D9: m2 | F9: =NA() ->  | G9: 0 | H9: 0 | J9: 0 | K9: 0
B10: Decontaminate maintenance shop | D10: m2 | F10: =NA() ->  | G10: 0 | H10: 0 | J10: 0 | K10: 0
B11: Decontaminate power plant | D11: m2 | F11: =NA() ->  | G11: 0 | H11: 0 | J11: 0 | K11: 0
B12: Decontaminate bulk fuel storage | D12: m2 | F12: =NA() ->  | G12: 0 | H12: 0 | J12: 0 | K12: 0
B13: Decontaminate ANFO plant | D13: m2 | F13: =NA() ->  | G13: 0 | H13: 0 | J13: 0 | K13: 0
B14: Decontaminate offices/warehouse/accom | D14: m2 | F14: =NA() ->  | G14: 0 | H14: 0 | J14: 0 | K14: 0
B15: Removal of asbestos siding on buildings | D15: m2 | F15: =NA() ->  | G15: 0 | H15: 0 | J15: 0 | K15: 0
B16: Removal of friable asbestos on equipment | D16: m2 | F16: =NA() ->  | G16: 0 | H16: 0 | J16: 0 | K16: 0
B17: Other | F17: =NA() ->  | G17: 0 | H17: 0 | J17: 0 | K17: 0
B18: HAZARDOUS MATERIALS REMOVAL
B19: Waste oils | D19: litre | F19: =NA() ->  | G19: =IFERROR(IF(ISNA(F19),0,INDEX(IF(RIGHT(F19,1)="L",UnitCostLow, IF(RIGHT(F19,1)="H",UnitCostHigh,UnitCostSpecified)),MATCH(LEFT(F19,LEN(F19)-1),CostCode,0))),0) -> 0 | H19: =G19*E19 -> 0 | J19: =H19*I19 -> 0 | K19: =+H19*(1-I19) -> 0
B20: Waste fuel | D20: litre | F20: =NA() ->  | G20: 0 | H20: 0 | J20: 0 | K20: 0
B21: Waste batteries | D21: kg | F21: =NA() ->  | G21: 0 | H21: 0 | J21: 0 | K21: 0
B22: Assay & environmental lab reagents | D22: kg | F22: =NA() ->  | G22: 0 | H22: 0 | J22: 0 | K22: 0
B23: Machine shop paints, solvents etc. | D23: litre | F23: =NA() ->  | G23: 0 | H23: 0 | J23: 0 | K23: 0
B24: Glycol | D24: litre | F24: =NA() ->  | G24: 0 | H24: 0 | J24: 0 | K24: 0
B25: Process reagents | D25: kg | F25: =NA() ->  | G25: 0 | H25: =G25*E25 -> 0 | J25: 0 | K25: 0
B26: Nuclear sources | D26: allow | F26: =NA() ->  | G26: 0 | H26: 0 | J26: 0 | K26: 0
B27: Other hazardous materials | D27: allow | F27: =NA() ->  | G27: 0 | H27: =G27*E27 -> 0 | J27: 0 | K27: 0
B28: HAZARDOUS MATERIALS
B29: Transportation to disposal facility | D29: allow | F29: =NA() ->  | G29: =IFERROR(IF(ISNA(F29),0,INDEX(IF(RIGHT(F29,1)="L",UnitCostLow, IF(RIGHT(F29,1)="H",UnitCostHigh,UnitCostSpecified)),MATCH(LEFT(F29,LEN(F29)-1),CostCode,0))),0) -> 0 | H29: =G29*E29 -> 0 | J29: =H29*I29 -> 0 | K29: =+H29*(1-I29) -> 0
B30: Disposal fees | D30: allow | F30: =NA() ->  | G30: =IFERROR(IF(ISNA(F30),0,INDEX(IF(RIGHT(F30,1)="L",UnitCostLow, IF(RIGHT(F30,1)="H",UnitCostHigh,UnitCostSpecified)),MATCH(LEFT(F30,LEN(F30)-1),CostCode,0))),0) -> 0 | H30: =G30*E30 -> 0 | J30: =H30*I30 -> 0 | K30: =+H30*(1-I30) -> 0
B31: Other | F31: =NA() ->  | G31: =IFERROR(IF(ISNA(F31),0,INDEX(IF(RIGHT(F31,1)="L",UnitCostLow, IF(RIGHT(F31,1)="H",UnitCostHigh,UnitCostSpecified)),MATCH(LEFT(F31,LEN(F31)-1),CostCode,0))),0) -> 0 | H31: =G31*E31 -> 0 | J31: =H31*I31 -> 0 | K31: =+H31*(1-I31) -> 0
B32: CONTAMINATED SOILS
B33: Contam. soil investigation - Phase 1 | D33: each | F33: =NA() ->  | G33: =IFERROR(IF(ISNA(F33),0,INDEX(IF(RIGHT(F33,1)="L",UnitCostLow, IF(RIGHT(F33,1)="H",UnitCostHigh,UnitCostSpecified)),MATCH(LEFT(F33,LEN(F33)-1),CostCode,0))),0) -> 0 | H33: =G33*E33 -> 0 | J33: =H33*I33 -> 0 | K33: =+H33*(1-I33) -> 0
B34: Contam. soil investigation - Phase 2 | D34: each | F34: =NA() ->  | G34: =IFERROR(IF(ISNA(F34),0,INDEX(IF(RIGHT(F34,1)="L",UnitCostLow, IF(RIGHT(F34,1)="H",UnitCostHigh,UnitCostSpecified)),MATCH(LEFT(F34,LEN(F34)-1),CostCode,0))),0) -> 0 | H34: 0 | J34: 0 | K34: 0
B35: CONTAMINATED SOIL REMOVAL
B36: Excavate and transport to onsite facility | D36: m3 | F36: =NA() ->  | G36: =IFERROR(IF(ISNA(F36),0,INDEX(IF(RIGHT(F36,1)="L",UnitCostLow, IF(RIGHT(F36,1)="H",UnitCostHigh,UnitCostSpecified)),MATCH(LEFT(F36,LEN(F36)-1),CostCode,0))),0) -> 0 | H36: =G36*E36 -> 0 | J36: =H36*I36 -> 0 | K36: =+H36*(1-I36) -> 0
B37: Manage hydrocarbon remediation at facility | D37: m3 | F37: =NA() ->  | G37: 0 | H37: 0 | J37: 0 | K37: 0
B38: Reagents/stabilizing agent | D38: m2 | F38: =NA() ->  | G38: 0 | H38: =G38*E38 -> 0 | J38: =H38*I38 -> 0 | K38: =+H38*(1-I38) -> 0
B39: Excavate and transport to offsite facility | D39: m3 | F39: =NA() ->  | G39: 0 | H39: 0 | J39: 0 | K39: 0
B40: Excavate and transport remediated soil onsite | D40: m3 | F40: =NA() ->  | G40: 0 | H40: =G40*E40 -> 0 | J40: =H40*I40 -> 0 | K40: =+H40*(1-I40) -> 0
B41: Contour decontaminated area | D41: m3 | F41: =NA() ->  | G41: 0 | H41: 0 | J41: =H41*I41 -> 0 | K41: =+H41*(1-I41) -> 0
B42: CONTAMINATED SOIL VERY LOW PERMEABILITY COVER
B43: Supply geomembrane, HDPE, ES3, GCL | D43: m2 | F43: =NA() ->  | G43: =IFERROR(IF(ISNA(F43),0,INDEX(IF(RIGHT(F43,1)="L",UnitCostLow, IF(RIGHT(F43,1)="H",UnitCostHigh,UnitCostSpecified)),MATCH(LEFT(F43,LEN(F43)-1),CostCode,0))),0) -> 0 | H43: =G43*E43 -> 0 | J43: =H43*I43 -> 0 | K43: =+H43*(1-I43) -> 0
B44: Upper and lower bedding layers | D44: m3 | F44: =NA() ->  | G44: 0 | H44: 0 | J44: 0 | K44: 0
B45: Install geomembrane, HDPE, ES3, GCL | D45: m2 | F45: =NA() ->  | G45: 0 | H45: 0 | J45: 0 | K45: 0
B46: Erosion protection layer | D46: m3 | F46: =NA() ->  | G46: 0 | H46: 0 | J46: 0 | K46: 0
B47: Vegetate | D47: m2 | F47: =NA() ->  | G47: 0 | H47: 0 | J47: 0 | K47: 0
B48: Install infiltration/seepage instrumentation | D48: allow | F48: =NA() ->  | G48: 0 | H48: 0 | J48: 0 | K48: 0
B49: Other | F49: =NA() ->  | G49: 0 | H49: 0 | J49: 0 | K49: 0
B50: OTHER
F51: =NA() ->  | G51: =IFERROR(IF(ISNA(F51),0,INDEX(IF(RIGHT(F51,1)="L",UnitCostLow, IF(RIGHT(F51,1)="H",UnitCostHigh,UnitCostSpecified)),MATCH(LEFT(F51,LEN(F51)-1),CostCode,0))),0) -> 0 | H51: =G51*E51 -> 0 | J51: =H51*I51 -> 0 | K51: =+H51*(1-I51) -> 0
G52: Total | H52: =SUM(H6:H51)+0.0001 -> 0.0001 | J52: =SUM(J6:J51) -> 0 | K52: =SUM(K6:K51) -> 0
G53: % of Total | J53: =J52/H52 -> 0 | K53: =K52/H52 -> 0

Sheet Water Management
A1: 1 | B1: Capital Expenditures and Short Term Surface Water and Groundwater Treatment identified in 'Instructions' worksheet
B3: ACTIVITY/MATERIAL | C3: Notes | D3: Units | E3: Quantity | F3: Cost Code | G3: Unit Cost | H3: Cost
B4: BREACH DYKE EMBANKMENT
B5: Remove fill | D5: m3 | F5: =NA() ->  | G5: =IFERROR(IF(ISNA(F5),0,INDEX(IF(RIGHT(F5,1)="L",UnitCostLow, IF(RIGHT(F5,1)="H",UnitCostHigh,UnitCostSpecified)),MATCH(LEFT(F5,LEN(F5)-1),CostCode,0))),0) -> 0 | H5: =G5*E5 -> 0
B6: Contour water intake area | D6: m3 | F6: =NA() ->  | G6: =IFERROR(IF(ISNA(F6),0,INDEX(IF(RIGHT(F6,1)="L",UnitCostLow, IF(RIGHT(F6,1)="H",UnitCostHigh,UnitCostSpecified)),MATCH(LEFT(F6,LEN(F6)-1),CostCode,0))),0) -> 0 | H6: =G6*E6 -> 0
B7: STABILIZE SEDIMENT PONDS/WATER MANAGEMENT PONDS
B8: Place soil cover | D8: m3 | F8: =NA() ->  | G8: =IFERROR(IF(ISNA(F8),0,INDEX(IF(RIGHT(F8,1)="L",UnitCostLow, IF(RIGHT(F8,1)="H",UnitCostHigh,UnitCostSpecified)),MATCH(LEFT(F8,LEN(F8)-1),CostCode,0))),0) -> 0 | H8: =G8*E8 -> 0
B9: Doze & spread excavated material | D9: m3 | F9: =NA() ->  | G9: =IFERROR(IF(ISNA(F9),0,INDEX(IF(RIGHT(F9,1)="L",UnitCostLow, IF(RIGHT(F9,1)="H",UnitCostHigh,UnitCostSpecified)),MATCH(LEFT(F9,LEN(F9)-1),CostCode,0))),0) -> 0 | H9: =G9*E9 -> 0
B10: Vegetate spread material | D10: ha | F10: =NA() ->  | G10: =IFERROR(IF(ISNA(F10),0,INDEX(IF(RIGHT(F10,1)="L",UnitCostLow, IF(RIGHT(F10,1)="H",UnitCostHigh,UnitCostSpecified)),MATCH(LEFT(F10,LEN(F10)-1),CostCode,0))),0) -> 0 | H10: =G10*E10 -> 0
B11: Rip rap in channel base | D11: each | F11: =NA() ->  | G11: =IFERROR(IF(ISNA(F11),0,INDEX(IF(RIGHT(F11,1)="L",UnitCostLow, IF(RIGHT(F11,1)="H",UnitCostHigh,UnitCostSpecified)),MATCH(LEFT(F11,LEN(F11)-1),CostCode,0))),0) -> 0 | H11: =G11*E11 -> 0
B12: REDIRECT RUNOFF/CONSTRUCT DIVERSION DITCHES
B13: Excavate ditches -soil | D13: m3 | F13: =NA() ->  | G13: =IFERROR(IF(ISNA(F13),0,INDEX(IF(RIGHT(F13,1)="L",UnitCostLow, IF(RIGHT(F13,1)="H",UnitCostHigh,UnitCostSpecified)),MATCH(LEFT(F13,LEN(F13)-1),CostCode,0))),0) -> 0 | H13: =G13*E13 -> 0
B14: Excavate ditches -rock | D14: m3 | F14: =NA() ->  | G14: =IFERROR(IF(ISNA(F14),0,INDEX(IF(RIGHT(F14,1)="L",UnitCostLow, IF(RIGHT(F14,1)="H",UnitCostHigh,UnitCostSpecified)),MATCH(LEFT(F14,LEN(F14)-1),CostCode,0))),0) -> 0 | H14: =G14*E14 -> 0
B15: Stabilize side slopes | D15: m3 | F15: =NA() ->  | G15: =IFERROR(IF(ISNA(F15),0,INDEX(IF(RIGHT(F15,1)="L",UnitCostLow, IF(RIGHT(F15,1)="H",UnitCostHigh,UnitCostSpecified)),MATCH(LEFT(F15,LEN(F15)-1),CostCode,0))),0) -> 0 | H15: =G15*E15 -> 0
B16: Rip rap in channel base | D16: m3 | F16: =NA() ->  | G16: =IFERROR(IF(ISNA(F16),0,INDEX(IF(RIGHT(F16,1)="L",UnitCostLow, IF(RIGHT(F16,1)="H",UnitCostHigh,UnitCostSpecified)),MATCH(LEFT(F16,LEN(F16)-1),CostCode,0))),0) -> 0 | H16: =G16*E16 -> 0
B17: BREACH DITCHES
B18: Excavate breaches | D18: m3 | F18: =NA() ->  | G18: =IFERROR(IF(ISNA(F18),0,INDEX(IF(RIGHT(F18,1)="L",UnitCostLow, IF(RIGHT(F18,1)="H",UnitCostHigh,UnitCostSpecified)),MATCH(LEFT(F18,LEN(F18)-1),CostCode,0))),0) -> 0 | H18: =G18*E18 -> 0
B19: Backfill/recontour | D19: m3 | F19: =NA() ->  | G19: =IFERROR(IF(ISNA(F19),0,INDEX(IF(RIGHT(F19,1)="L",UnitCostLow, IF(RIGHT(F19,1)="H",UnitCostHigh,UnitCostSpecified)),MATCH(LEFT(F19,LEN(F19)-1),CostCode,0))),0) -> 0 | H19: =G19*E19 -> 0
B20: Install flow dissipation | D20: m3 | F20: =NA() ->  | G20: =IFERROR(IF(ISNA(F20),0,INDEX(IF(RIGHT(F20,1)="L",UnitCostLow, IF(RIGHT(F20,1)="H",UnitCostHigh,UnitCostSpecified)),MATCH(LEFT(F20,LEN(F20)-1),CostCode,0))),0) -> 0 | H20: =G20*E20 -> 0
B21: Vegetate remainder of ditch | D21: m2 | F21: =NA() ->  | G21: =IFERROR(IF(ISNA(F21),0,INDEX(IF(RIGHT(F21,1)="L",UnitCostLow, IF(RIGHT(F21,1)="H",UnitCostHigh,UnitCostSpecified)),MATCH(LEFT(F21,LEN(F21)-1),CostCode,0))),0) -> 0 | H21: =G21*E21 -> 0
B22: DECOMMISSION FRESH WATER SUPPLY
B23: Breach embankment | D23: m | F23: =NA() ->  | G23: =IFERROR(IF(ISNA(F23),0,INDEX(IF(RIGHT(F23,1)="L",UnitCostLow, IF(RIGHT(F23,1)="H",UnitCostHigh,UnitCostSpecified)),MATCH(LEFT(F23,LEN(F23)-1),CostCode,0))),0) -> 0 | H23: =G23*E23 -> 0
B24: Remove pump | D24: LS | F24: =NA() ->  | G24: =IFERROR(IF(ISNA(F24),0,INDEX(IF(RIGHT(F24,1)="L",UnitCostLow, IF(RIGHT(F24,1)="H",UnitCostHigh,UnitCostSpecified)),MATCH(LEFT(F24,LEN(F24)-1),CostCode,0))),0) -> 0 | H24: =G24*E24 -> 0
B25: Remove pipeline | D25: m | F25: =NA() ->  | G25: =IFERROR(IF(ISNA(F25),0,INDEX(IF(RIGHT(F25,1)="L",UnitCostLow, IF(RIGHT(F25,1)="H",UnitCostHigh,UnitCostSpecified)),MATCH(LEFT(F25,LEN(F25)-1),CostCode,0))),0) -> 0 | H25: =G25*E25 -> 0
B26: WATER CONTROL IN RECLAMATION QUARRY
B27: Install pumping system | D27: LS | F27: =NA() ->  | G27: =IFERROR(IF(ISNA(F27),0,INDEX(IF(RIGHT(F27,1)="L",UnitCostLow, IF(RIGHT(F27,1)="H",UnitCostHigh,UnitCostSpecified)),MATCH(LEFT(F27,LEN(F27)-1),CostCode,0))),0) -> 0 | H27: =G27*E27 -> 0
B28: Remove pumping system | D28: LS | F28: =NA() ->  | G28: =IFERROR(IF(ISNA(F28),0,INDEX(IF(RIGHT(F28,1)="L",UnitCostLow, IF(RIGHT(F28,1)="H",UnitCostHigh,UnitCostSpecified)),MATCH(LEFT(F28,LEN(F28)-1),CostCode,0))),0) -> 0 | H28: =G28*E28 -> 0
B29: Other | F29: =NA() ->  | G29: =IFERROR(IF(ISNA(F29),0,INDEX(IF(RIGHT(F29,1)="L",UnitCostLow, IF(RIGHT(F29,1)="H",UnitCostHigh,UnitCostSpecified)),MATCH(LEFT(F29,LEN(F29)-1),CostCode,0))),0) -> 0 | H29: =G29*E29 -> 0
B30: SEDIMENT CONTROL FEATURES
B31: Installation of sediment control measures | D31: each | F31: =NA() ->  | G31: =IFERROR(IF(ISNA(F31),0,INDEX(IF(RIGHT(F31,1)="L",UnitCostLow, IF(RIGHT(F31,1)="H",UnitCostHigh,UnitCostSpecified)),MATCH(LEFT(F31,LEN(F31)-1),CostCode,0))),0) -> 0 | H31: =G31*E31 -> 0
B32: Maintenance of sediment control measures | D32: each | F32: =NA() ->  | G32: =IFERROR(IF(ISNA(F32),0,INDEX(IF(RIGHT(F32,1)="L",UnitCostLow, IF(RIGHT(F32,1)="H",UnitCostHigh,UnitCostSpecified)),MATCH(LEFT(F32,LEN(F32)-1),CostCode,0))),0) -> 0 | H32: =G32*E32 -> 0
B33: Other | F33: =NA() ->  | G33: =IFERROR(IF(ISNA(F33),0,INDEX(IF(RIGHT(F33,1)="L",UnitCostLow, IF(RIGHT(F33,1)="H",UnitCostHigh,UnitCostSpecified)),MATCH(LEFT(F33,LEN(F33)-1),CostCode,0))),0) -> 0 | H33: =G33*E33 -> 0
B34: REMOVE PIPELINES
B35: Remove pipes | D35: m | F35: =NA() ->  | G35: =IFERROR(IF(ISNA(F35),0,INDEX(IF(RIGHT(F35,1)="L",UnitCostLow, IF(RIGHT(F35,1)="H",UnitCostHigh,UnitCostSpecified)),MATCH(LEFT(F35,LEN(F35)-1),CostCode,0))),0) -> 0 | H35: =G35*E35 -> 0
B36: Concrete plug deep pipes | D36: m3 | F36: =NA() ->  | G36: =IFERROR(IF(ISNA(F36),0,INDEX(IF(RIGHT(F36,1)="L",UnitCostLow, IF(RIGHT(F36,1)="H",UnitCostHigh,UnitCostSpecified)),MATCH(LEFT(F36,LEN(F36)-1),CostCode,0))),0) -> 0 | H36: =G36*E36 -> 0
B37: Other | F37: =NA() ->  | G37: =IFERROR(IF(ISNA(F37),0,INDEX(IF(RIGHT(F37,1)="L",UnitCostLow, IF(RIGHT(F37,1)="H",UnitCostHigh,UnitCostSpecified)),MATCH(LEFT(F37,LEN(F37)-1),CostCode,0))),0) -> 0 | H37: =G37*E37 -> 0
B38: GROUNDWATER COLLECTION SYSTEM
B39: Excavate/install sumps | D39: m3 | F39: =NA() ->  | G39: =IFERROR(IF(ISNA(F39),0,INDEX(IF(RIGHT(F39,1)="L",UnitCostLow, IF(RIGHT(F39,1)="H",UnitCostHigh,UnitCostSpecified)),MATCH(LEFT(F39,LEN(F39)-1),CostCode,0))),0) -> 0 | H39: =G39*E39 -> 0
B40: Install pumping wells | D40: m3 | F40: =NA() ->  | G40: =IFERROR(IF(ISNA(F40),0,INDEX(IF(RIGHT(F40,1)="L",UnitCostLow, IF(RIGHT(F40,1)="H",UnitCostHigh,UnitCostSpecified)),MATCH(LEFT(F40,LEN(F40)-1),CostCode,0))),0) -> 0 | H40: =G40*E40 -> 0
B41: Install pumps/pipelines/power supply | D41: LS | F41: =NA() ->  | G41: =IFERROR(IF(ISNA(F41),0,INDEX(IF(RIGHT(F41,1)="L",UnitCostLow, IF(RIGHT(F41,1)="H",UnitCostHigh,UnitCostSpecified)),MATCH(LEFT(F41,LEN(F41)-1),CostCode,0))),0) -> 0 | H41: =G41*E41 -> 0
B42: CONSTRUCT CONTAMINATED WATER STORAGE POND
B43: Excavate pond | D43: m3 | F43: =NA() ->  | G43: =IFERROR(IF(ISNA(F43),0,INDEX(IF(RIGHT(F43,1)="L",UnitCostLow, IF(RIGHT(F43,1)="H",UnitCostHigh,UnitCostSpecified)),MATCH(LEFT(F43,LEN(F43)-1),CostCode,0))),0) -> 0 | H43: =G43*E43 -> 0
B44: Doze & spread excavated material | D44: m3 | F44: =NA() ->  | G44: 0 | H44: 0
B45: Vegetate spread material | D45: ha | F45: =NA() ->  | G45: 0 | H45: 0
B46: Bedding layer | D46: m3 | F46: =NA() ->  | G46: 0 | H46: 0
B47: Supply geomembrane | D47: m2 | F47: =NA() ->  | G47: 0 | H47: 0
B48: Install geomembrane | D48: m2 | F48: =NA() ->  | G48: 0 | H48: 0
B49: Erosion protection layer | D49: m3 | F49: =NA() ->  | G49: 0 | H49: 0
B50: CONSTRUCT PASSIVE TREATMENT SYSTEM (e.g. Constructed Wetland, PRB, etc))
B51: Construct access roads | D51: km | F51: =NA() ->  | G51: =IFERROR(IF(ISNA(F51),0,INDEX(IF(RIGHT(F51,1)="L",UnitCostLow, IF(RIGHT(F51,1)="H",UnitCostHigh,UnitCostSpecified)),MATCH(LEFT(F51,LEN(F51)-1),CostCode,0))),0) -> 0 | H51: =G51*E51 -> 0
B52: Install HDPE piping system | D52: m | F52: =NA() ->  | G52: 0 | H52: 0
B53: Inter-cell flow structures | D53: allow | F53: =NA() ->  | G53: 0 | H53: 0
B54: Install liners | D54: m2 | F54: =NA() ->  | G54: 0 | H54: 0
B55: Install growth media | D55: m3 | F55: =NA() ->  | G55: 0 | H55: 0
B56: Treatment Media | D56: m3 | F56: =NA() ->  | G56: 0 | H56: =G56*E56 -> 0
B57: Excavate soil | D57: m3 | F57: =NA() ->  | G57: 0 | H57: 0
B58: Wetland vegetation | D58: ha | F58: =NA() ->  | G58: 0 | H58: 0
B59: Other | F59: =NA() ->  | G59: 0 | H59: 0
B60: CONSTRUCTION WATER TREATMENT*
B61: Total short term water treatment cost, from "Water Treatment" | H61: ='Water Treatment'!X37 -> 0
G62: Total | H62: =SUM(H4:H61)+0.00001 -> 1e-05
B63: *Note: include water treatment cost from "Water Treatment" worksheet if treatment is considered short term (i.e. temporary water treatment plan)
G96: Total | H96: =SUM(H5:H62,'Water Treatment'!X37)+'Water Treatment'!X5 -> 1e-05
B97: *Note: include water treatment cost if treatment is considered short term and is not included in a particular component worksheet.

Sheet Mobilization
A1: 1 | B1: Mobilization/Demobilization: | C1: ICM | J1: Mobilization/Demobilization: | K1: Closure Activities | R1: Mobilization/Demobilization: | S1: Post Closure
B3: ACTIVITY/MATERIAL | C3: Notes | D3: Units | E3: Quantity | F3: Cost Code | G3: Unit Cost | H3: Cost | J3: ACTIVITY/MATERIAL | K3: Notes | L3: Units | M3: Quantity | N3: Cost Code | O3: Unit Cost | P3: Cost | R3: ACTIVITY/MATERIAL | S3: Notes | T3: Units | U3: Quantity | V3: Cost Code | W3: Unit Cost | X3: Cost
B4: MOBILIZE HEAVY EQUIPMENT | J4: MOBILIZE HEAVY EQUIPMENT | R4: MOBILIZE HEAVY EQUIPMENT
B5: Excavators | D5: each | F5: =NA() ->  | G5: =IFERROR(IF(ISNA(F5),0,INDEX(IF(RIGHT(F5,1)="L",UnitCostLow, IF(RIGHT(F5,1)="H",UnitCostHigh,UnitCostSpecified)),MATCH(LEFT(F5,LEN(F5)-1),CostCode,0))),0) -> 0 | H5: =G5*E5 -> 0 | J5: Excavators | L5: each | N5: =NA() ->  | O5: =IFERROR(IF(ISNA(N5),0,INDEX(IF(RIGHT(N5,1)="L",UnitCostLow, IF(RIGHT(N5,1)="H",UnitCostHigh,UnitCostSpecified)),MATCH(LEFT(N5,LEN(N5)-1),CostCode,0))),0) -> 0 | P5: =O5*M5 -> 0 | R5: Excavators | T5: each | V5: =NA() ->  | W5: =IFERROR(IF(ISNA(V5),0,INDEX(IF(RIGHT(V5,1)="L",UnitCostLow, IF(RIGHT(V5,1)="H",UnitCostHigh,UnitCostSpecified)),MATCH(LEFT(V5,LEN(V5)-1),CostCode,0))),0) -> 0 | X5: =W5*U5 -> 0
B6: Dump trucks | D6: each | F6: =NA() ->  | G6: 0 | H6: 0 | J6: Dump trucks | L6: each | N6: =NA() ->  | O6: 0 | P6: 0 | R6: Dump trucks | T6: each | V6: =NA() ->  | W6: 0 | X6: 0
B7: Dozers | D7: each | F7: =NA() ->  | G7: 0 | H7: 0 | J7: Dozers | L7: each | N7: =NA() ->  | O7: 0 | P7: 0 | R7: Dozers | T7: each | V7: =NA() ->  | W7: 0 | X7: 0
B8: Demolition shears | D8: each | F8: =NA() ->  | G8: 0 | H8: 0 | J8: Demolition shears | L8: each | N8: =NA() ->  | O8: 0 | P8: 0 | R8: Demolition shears | T8: each | V8: =NA() ->  | W8: 0 | X8: 0
B9: Crane | D9: each | F9: =NA() ->  | G9: 0 | H9: 0 | J9: Crane | L9: each | N9: =NA() ->  | O9: 0 | P9: 0 | R9: Crane | T9: each | V9: =NA() ->  | W9: 0 | X9: 0
B10: Loader | D10: each | F10: =NA() ->  | G10: 0 | H10: =G10*E10 -> 0 | J10: Loader | L10: each | N10: =NA() ->  | O10: 0 | P10: =O10*M10 -> 0 | R10: Loader | T10: each | V10: =NA() ->  | W10: 0 | X10: =W10*U10 -> 0
B11: Compactor | D11: each | F11: =NA() ->  | G11: 0 | H11: =G11*E11 -> 0 | J11: Compactor | L11: each | N11: =NA() ->  | O11: 0 | P11: =O11*M11 -> 0 | R11: Compactor | T11: each | V11: =NA() ->  | W11: 0 | X11: =W11*U11 -> 0
B12: Light duty vehicles | D12: each | F12: =NA() ->  | G12: 0 | H12: 0 | J12: Light duty vehicles | L12: each | N12: =NA() ->  | O12: 0 | P12: =O12*M12 -> 0 | R12: Light duty vehicles | T12: each | V12: =NA() ->  | W12: 0 | X12: =W12*U12 -> 0
B13: MOBILIZE MISC. EQUIPMENT | J13: MOBILIZE MISC. EQUIPMENT | R13: MOBILIZE MISC. EQUIPMENT
B14: Pump shipping | D14: each | F14: =NA() ->  | G14: =IFERROR(IF(ISNA(F14),0,INDEX(IF(RIGHT(F14,1)="L",UnitCostLow, IF(RIGHT(F14,1)="H",UnitCostHigh,UnitCostSpecified)),MATCH(LEFT(F14,LEN(F14)-1),CostCode,0))),0) -> 0 | H14: =G14*E14 -> 0 | J14: Pump shipping | L14: each | N14: =NA() ->  | O14: =IFERROR(IF(ISNA(N14),0,INDEX(IF(RIGHT(N14,1)="L",UnitCostLow, IF(RIGHT(N14,1)="H",UnitCostHigh,UnitCostSpecified)),MATCH(LEFT(N14,LEN(N14)-1),CostCode,0))),0) -> 0 | P14: =O14*M14 -> 0 | R14: Pump shipping | T14: each | V14: =NA() ->  | W14: =IFERROR(IF(ISNA(V14),0,INDEX(IF(RIGHT(V14,1)="L",UnitCostLow, IF(RIGHT(V14,1)="H",UnitCostHigh,UnitCostSpecified)),MATCH(LEFT(V14,LEN(V14)-1),CostCode,0))),0) -> 0 | X14: =W14*U14 -> 0
B15: Pipe shipping | D15: m | F15: =NA() ->  | G15: =IFERROR(IF(ISNA(F15),0,INDEX(IF(RIGHT(F15,1)="L",UnitCostLow, IF(RIGHT(F15,1)="H",UnitCostHigh,UnitCostSpecified)),MATCH(LEFT(F15,LEN(F15)-1),CostCode,0))),0) -> 0 | H15: =G15*E15 -> 0 | J15: Pipe shipping | L15: m | N15: =NA() ->  | O15: =IFERROR(IF(ISNA(N15),0,INDEX(IF(RIGHT(N15,1)="L",UnitCostLow, IF(RIGHT(N15,1)="H",UnitCostHigh,UnitCostSpecified)),MATCH(LEFT(N15,LEN(N15)-1),CostCode,0))),0) -> 0 | P15: =O15*M15 -> 0 | R15: Pipe shipping | T15: m | V15: =NA() ->  | W15: =IFERROR(IF(ISNA(V15),0,INDEX(IF(RIGHT(V15,1)="L",UnitCostLow, IF(RIGHT(V15,1)="H",UnitCostHigh,UnitCostSpecified)),MATCH(LEFT(V15,LEN(V15)-1),CostCode,0))),0) -> 0 | X15: =W15*U15 -> 0
B16: Minor tools and equipment | D16: allow | F16: =NA() ->  | G16: =IFERROR(IF(ISNA(F16),0,INDEX(IF(RIGHT(F16,1)="L",UnitCostLow, IF(RIGHT(F16,1)="H",UnitCostHigh,UnitCostSpecified)),MATCH(LEFT(F16,LEN(F16)-1),CostCode,0))),0) -> 0 | H16: =G16*E16 -> 0 | J16: Minor tools and equipment | L16: allow | N16: =NA() ->  | O16: =IFERROR(IF(ISNA(N16),0,INDEX(IF(RIGHT(N16,1)="L",UnitCostLow, IF(RIGHT(N16,1)="H",UnitCostHigh,UnitCostSpecified)),MATCH(LEFT(N16,LEN(N16)-1),CostCode,0))),0) -> 0 | P16: =O16*M16 -> 0 | R16: Minor tools and equipment | T16: allow | V16: =NA() ->  | W16: =IFERROR(IF(ISNA(V16),0,INDEX(IF(RIGHT(V16,1)="L",UnitCostLow, IF(RIGHT(V16,1)="H",UnitCostHigh,UnitCostSpecified)),MATCH(LEFT(V16,LEN(V16)-1),CostCode,0))),0) -> 0 | X16: =W16*U16 -> 0
B17: Truck tires | D17: allow | F17: =NA() ->  | G17: =IFERROR(IF(ISNA(F17),0,INDEX(IF(RIGHT(F17,1)="L",UnitCostLow, IF(RIGHT(F17,1)="H",UnitCostHigh,UnitCostSpecified)),MATCH(LEFT(F17,LEN(F17)-1),CostCode,0))),0) -> 0 | H17: =G17*E17 -> 0 | J17: Truck tires | L17: allow | N17: =NA() ->  | O17: =IFERROR(IF(ISNA(N17),0,INDEX(IF(RIGHT(N17,1)="L",UnitCostLow, IF(RIGHT(N17,1)="H",UnitCostHigh,UnitCostSpecified)),MATCH(LEFT(N17,LEN(N17)-1),CostCode,0))),0) -> 0 | P17: =O17*M17 -> 0 | R17: Truck tires | T17: allow | V17: =NA() ->  | W17: =IFERROR(IF(ISNA(V17),0,INDEX(IF(RIGHT(V17,1)="L",UnitCostLow, IF(RIGHT(V17,1)="H",UnitCostHigh,UnitCostSpecified)),MATCH(LEFT(V17,LEN(V17)-1),CostCode,0))),0) -> 0 | X17: =W17*U17 -> 0
B18: Other (e.g. air shipment) | D18: allow | F18: =NA() ->  | G18: =IFERROR(IF(ISNA(F18),0,INDEX(IF(RIGHT(F18,1)="L",UnitCostLow, IF(RIGHT(F18,1)="H",UnitCostHigh,UnitCostSpecified)),MATCH(LEFT(F18,LEN(F18)-1),CostCode,0))),0) -> 0 | H18: 0 | J18: Other (e.g. air shipment) | L18: allow | N18: =NA() ->  | O18: =IFERROR(IF(ISNA(N18),0,INDEX(IF(RIGHT(N18,1)="L",UnitCostLow, IF(RIGHT(N18,1)="H",UnitCostHigh,UnitCostSpecified)),MATCH(LEFT(N18,LEN(N18)-1),CostCode,0))),0) -> 0 | P18: =O18*M18 -> 0 | R18: Other (e.g. air shipment) | T18: allow | V18: =NA() ->  | W18: =IFERROR(IF(ISNA(V18),0,INDEX(IF(RIGHT(V18,1)="L",UnitCostLow, IF(RIGHT(V18,1)="H",UnitCostHigh,UnitCostSpecified)),MATCH(LEFT(V18,LEN(V18)-1),CostCode,0))),0) -> 0 | X18: =W18*U18 -> 0
B19: MOBILIZE CAMP | J19: MOBILIZE CAMP | R19: MOBILIZE CAMP
B20: Reclamation activities | D20: allow | F20: =NA() ->  | G20: =IFERROR(IF(ISNA(F20),0,INDEX(IF(RIGHT(F20,1)="L",UnitCostLow, IF(RIGHT(F20,1)="H",UnitCostHigh,UnitCostSpecified)),MATCH(LEFT(F20,LEN(F20)-1),CostCode,0))),0) -> 0 | H20: =G20*E20 -> 0 | J20: Reclamation activities | L20: allow | N20: =NA() ->  | O20: =IFERROR(IF(ISNA(N20),0,INDEX(IF(RIGHT(N20,1)="L",UnitCostLow, IF(RIGHT(N20,1)="H",UnitCostHigh,UnitCostSpecified)),MATCH(LEFT(N20,LEN(N20)-1),CostCode,0))),0) -> 0 | P20: =O20*M20 -> 0 | R20: Reclamation activities | T20: allow | V20: =NA() ->  | W20: =IFERROR(IF(ISNA(V20),0,INDEX(IF(RIGHT(V20,1)="L",UnitCostLow, IF(RIGHT(V20,1)="H",UnitCostHigh,UnitCostSpecified)),MATCH(LEFT(V20,LEN(V20)-1),CostCode,0))),0) -> 0 | X20: =W20*U20 -> 0
B21: Long term reclamation activities (e.g. pump flooding) | D21: allow | F21: =NA() ->  | G21: =IFERROR(IF(ISNA(F21),0,INDEX(IF(RIGHT(F21,1)="L",UnitCostLow, IF(RIGHT(F21,1)="H",UnitCostHigh,UnitCostSpecified)),MATCH(LEFT(F21,LEN(F21)-1),CostCode,0))),0) -> 0 | H21: =G21*E21 -> 0 | J21: Long term reclamation activities (e.g. pump flooding) | L21: allow | N21: =NA() ->  | O21: =IFERROR(IF(ISNA(N21),0,INDEX(IF(RIGHT(N21,1)="L",UnitCostLow, IF(RIGHT(N21,1)="H",UnitCostHigh,UnitCostSpecified)),MATCH(LEFT(N21,LEN(N21)-1),CostCode,0))),0) -> 0 | P21: =O21*M21 -> 0 | R21: Long term reclamation activities (e.g. pump flooding) | T21: allow | V21: =NA() ->  | W21: =IFERROR(IF(ISNA(V21),0,INDEX(IF(RIGHT(V21,1)="L",UnitCostLow, IF(RIGHT(V21,1)="H",UnitCostHigh,UnitCostSpecified)),MATCH(LEFT(V21,LEN(V21)-1),CostCode,0))),0) -> 0 | X21: =W21*U21 -> 0
B22: MOBILIZE WORKERS | J22: MOBILIZE WORKERS | R22: MOBILIZE WORKERS
B23: Reclamation activities - transport | D23: each | F23: =NA() ->  | G23: =IFERROR(IF(ISNA(F23),0,INDEX(IF(RIGHT(F23,1)="L",UnitCostLow, IF(RIGHT(F23,1)="H",UnitCostHigh,UnitCostSpecified)),MATCH(LEFT(F23,LEN(F23)-1),CostCode,0))),0) -> 0 | H23: =G23*E23 -> 0 | J23: Reclamation activities - transport | L23: each | N23: =NA() ->  | O23: =IFERROR(IF(ISNA(N23),0,INDEX(IF(RIGHT(N23,1)="L",UnitCostLow, IF(RIGHT(N23,1)="H",UnitCostHigh,UnitCostSpecified)),MATCH(LEFT(N23,LEN(N23)-1),CostCode,0))),0) -> 0 | P23: =O23*M23 -> 0 | R23: Reclamation activities - transport | T23: each | V23: =NA() ->  | W23: =IFERROR(IF(ISNA(V23),0,INDEX(IF(RIGHT(V23,1)="L",UnitCostLow, IF(RIGHT(V23,1)="H",UnitCostHigh,UnitCostSpecified)),MATCH(LEFT(V23,LEN(V23)-1),CostCode,0))),0) -> 0 | X23: =W23*U23 -> 0
B24: Reclamation activities - travel time | D24: personhours | F24: =NA() ->  | G24: =IFERROR(IF(ISNA(F24),0,INDEX(IF(RIGHT(F24,1)="L",UnitCostLow, IF(RIGHT(F24,1)="H",UnitCostHigh,UnitCostSpecified)),MATCH(LEFT(F24,LEN(F24)-1),CostCode,0))),0) -> 0 | H24: =G24*E24 -> 0 | J24: Reclamation activities - travel time | L24: personhours | N24: =NA() ->  | O24: =IFERROR(IF(ISNA(N24),0,INDEX(IF(RIGHT(N24,1)="L",UnitCostLow, IF(RIGHT(N24,1)="H",UnitCostHigh,UnitCostSpecified)),MATCH(LEFT(N24,LEN(N24)-1),CostCode,0))),0) -> 0 | P24: =O24*M24 -> 0 | R24: Reclamation activities - travel time | T24: personhours | V24: =NA() ->  | W24: =IFERROR(IF(ISNA(V24),0,INDEX(IF(RIGHT(V24,1)="L",UnitCostLow, IF(RIGHT(V24,1)="H",UnitCostHigh,UnitCostSpecified)),MATCH(LEFT(V24,LEN(V24)-1),CostCode,0))),0) -> 0 | X24: =W24*U24 -> 0
B25: Long term reclamation activities (e.g. pump flooding) - transport | D25: each | F25: =NA() ->  | G25: =IFERROR(IF(ISNA(F25),0,INDEX(IF(RIGHT(F25,1)="L",UnitCostLow, IF(RIGHT(F25,1)="H",UnitCostHigh,UnitCostSpecified)),MATCH(LEFT(F25,LEN(F25)-1),CostCode,0))),0) -> 0 | H25: =G25*E25 -> 0 | J25: Long term reclamation activities (e.g. pump flooding) - transport | L25: each | N25: =NA() ->  | O25: =IFERROR(IF(ISNA(N25),0,INDEX(IF(RIGHT(N25,1)="L",UnitCostLow, IF(RIGHT(N25,1)="H",UnitCostHigh,UnitCostSpecified)),MATCH(LEFT(N25,LEN(N25)-1),CostCode,0))),0) -> 0 | P25: =O25*M25 -> 0 | R25: Long term reclamation activities (e.g. pump flooding) - transport | T25: each | V25: =NA() ->  | W25: =IFERROR(IF(ISNA(V25),0,INDEX(IF(RIGHT(V25,1)="L",UnitCostLow, IF(RIGHT(V25,1)="H",UnitCostHigh,UnitCostSpecified)),MATCH(LEFT(V25,LEN(V25)-1),CostCode,0))),0) -> 0 | X25: =W25*U25 -> 0
B26: Long term reclamation activities (e.g. pump flooding) - travel time | D26: each | F26: =NA() ->  | G26: =IFERROR(IF(ISNA(F26),0,INDEX(IF(RIGHT(F26,1)="L",UnitCostLow, IF(RIGHT(F26,1)="H",UnitCostHigh,UnitCostSpecified)),MATCH(LEFT(F26,LEN(F26)-1),CostCode,0))),0) -> 0 | H26: =G26*E26 -> 0 | J26: Long term reclamation activities (e.g. pump flooding) - travel time | L26: each | N26: =NA() ->  | O26: =IFERROR(IF(ISNA(N26),0,INDEX(IF(RIGHT(N26,1)="L",UnitCostLow, IF(RIGHT(N26,1)="H",UnitCostHigh,UnitCostSpecified)),MATCH(LEFT(N26,LEN(N26)-1),CostCode,0))),0) -> 0 | P26: =O26*M26 -> 0 | R26: Long term reclamation activities (e.g. pump flooding) - travel time | T26: each | V26: =NA() ->  | W26: =IFERROR(IF(ISNA(V26),0,INDEX(IF(RIGHT(V26,1)="L",UnitCostLow, IF(RIGHT(V26,1)="H",UnitCostHigh,UnitCostSpecified)),MATCH(LEFT(V26,LEN(V26)-1),CostCode,0))),0) -> 0 | X26: =W26*U26 -> 0
B27: Monitoring Airfare | D27: each | F27: =NA() ->  | G27: =IFERROR(IF(ISNA(F27),0,INDEX(IF(RIGHT(F27,1)="L",UnitCostLow, IF(RIGHT(F27,1)="H",UnitCostHigh,UnitCostSpecified)),MATCH(LEFT(F27,LEN(F27)-1),CostCode,0))),0) -> 0 | H27: =G27*E27 -> 0 | J27: Monitoring Airfare | L27: each | N27: =NA() ->  | O27: =IFERROR(IF(ISNA(N27),0,INDEX(IF(RIGHT(N27,1)="L",UnitCostLow, IF(RIGHT(N27,1)="H",UnitCostHigh,UnitCostSpecified)),MATCH(LEFT(N27,LEN(N27)-1),CostCode,0))),0) -> 0 | P27: =O27*M27 -> 0 | R27: Monitoring Airfare | T27: each | V27: =NA() ->  | W27: =IFERROR(IF(ISNA(V27),0,INDEX(IF(RIGHT(V27,1)="L",UnitCostLow, IF(RIGHT(V27,1)="H",UnitCostHigh,UnitCostSpecified)),MATCH(LEFT(V27,LEN(V27)-1),CostCode,0))),0) -> 0 | X27: =W27*U27 -> 0
B28: WORKER ACCOMMODATIONS | J28: WORKER ACCOMMODATIONS | R28: WORKER ACCOMMODATIONS
B29: Reclamation activities | D29: personmonths | F29: =NA() ->  | G29: =IFERROR(IF(ISNA(F29),0,INDEX(IF(RIGHT(F29,1)="L",UnitCostLow, IF(RIGHT(F29,1)="H",UnitCostHigh,UnitCostSpecified)),MATCH(LEFT(F29,LEN(F29)-1),CostCode,0))),0) -> 0 | H29: =G29*E29 -> 0 | J29: Reclamation activities | L29: personmonths | N29: =NA() ->  | O29: =IFERROR(IF(ISNA(N29),0,INDEX(IF(RIGHT(N29,1)="L",UnitCostLow, IF(RIGHT(N29,1)="H",UnitCostHigh,UnitCostSpecified)),MATCH(LEFT(N29,LEN(N29)-1),CostCode,0))),0) -> 0 | P29: =O29*M29 -> 0 | R29: Reclamation activities | T29: personmonths | V29: =NA() ->  | W29: =IFERROR(IF(ISNA(V29),0,INDEX(IF(RIGHT(V29,1)="L",UnitCostLow, IF(RIGHT(V29,1)="H",UnitCostHigh,UnitCostSpecified)),MATCH(LEFT(V29,LEN(V29)-1),CostCode,0))),0) -> 0 | X29: =W29*U29 -> 0
B30: Long term reclamation activities (e.g. pump flooding) | D30: personmonths | F30: =NA() ->  | G30: =IFERROR(IF(ISNA(F30),0,INDEX(IF(RIGHT(F30,1)="L",UnitCostLow, IF(RIGHT(F30,1)="H",UnitCostHigh,UnitCostSpecified)),MATCH(LEFT(F30,LEN(F30)-1),CostCode,0))),0) -> 0 | H30: =G30*E30 -> 0 | J30: Long term reclamation activities (e.g. pump flooding) | L30: personmonths | N30: =NA() ->  | O30: =IFERROR(IF(ISNA(N30),0,INDEX(IF(RIGHT(N30,1)="L",UnitCostLow, IF(RIGHT(N30,1)="H",UnitCostHigh,UnitCostSpecified)),MATCH(LEFT(N30,LEN(N30)-1),CostCode,0))),0) -> 0 | P30: =O30*M30 -> 0 | R30: Long term reclamation activities (e.g. pump flooding) | T30: personmonths | V30: =NA() ->  | W30: =IFERROR(IF(ISNA(V30),0,INDEX(IF(RIGHT(V30,1)="L",UnitCostLow, IF(RIGHT(V30,1)="H",UnitCostHigh,UnitCostSpecified)),MATCH(LEFT(V30,LEN(V30)-1),CostCode,0))),0) -> 0 | X30: =W30*U30 -> 0
B31: MOBILIZE FUEL | J31: MOBILIZE FUEL | R31: MOBILIZE FUEL
B32: Fuel freight - reclamation activities | D32: litre | F32: =NA() ->  | G32: =IFERROR(IF(ISNA(F32),0,INDEX(IF(RIGHT(F32,1)="L",UnitCostLow, IF(RIGHT(F32,1)="H",UnitCostHigh,UnitCostSpecified)),MATCH(LEFT(F32,LEN(F32)-1),CostCode,0))),0) -> 0 | H32: =G32*E32 -> 0 | J32: Fuel freight - reclamation activities | L32: litre | N32: =NA() ->  | O32: =IFERROR(IF(ISNA(N32),0,INDEX(IF(RIGHT(N32,1)="L",UnitCostLow, IF(RIGHT(N32,1)="H",UnitCostHigh,UnitCostSpecified)),MATCH(LEFT(N32,LEN(N32)-1),CostCode,0))),0) -> 0 | P32: =O32*M32 -> 0 | R32: Fuel freight - reclamation activities | T32: litre | V32: =NA() ->  | W32: =IFERROR(IF(ISNA(V32),0,INDEX(IF(RIGHT(V32,1)="L",UnitCostLow, IF(RIGHT(V32,1)="H",UnitCostHigh,UnitCostSpecified)),MATCH(LEFT(V32,LEN(V32)-1),CostCode,0))),0) -> 0 | X32: =W32*U32 -> 0
B33: Fuel freight - long term reclamation activities | D33: litre | F33: =NA() ->  | G33: =IFERROR(IF(ISNA(F33),0,INDEX(IF(RIGHT(F33,1)="L",UnitCostLow, IF(RIGHT(F33,1)="H",UnitCostHigh,UnitCostSpecified)),MATCH(LEFT(F33,LEN(F33)-1),CostCode,0))),0) -> 0 | H33: =G33*E33 -> 0 | J33: Fuel freight - long term reclamation activities | L33: litre | N33: =NA() ->  | O33: =IFERROR(IF(ISNA(N33),0,INDEX(IF(RIGHT(N33,1)="L",UnitCostLow, IF(RIGHT(N33,1)="H",UnitCostHigh,UnitCostSpecified)),MATCH(LEFT(N33,LEN(N33)-1),CostCode,0))),0) -> 0 | P33: =O33*M33 -> 0 | R33: Fuel freight - long term reclamation activities | T33: litre | V33: =NA() ->  | W33: =IFERROR(IF(ISNA(V33),0,INDEX(IF(RIGHT(V33,1)="L",UnitCostLow, IF(RIGHT(V33,1)="H",UnitCostHigh,UnitCostSpecified)),MATCH(LEFT(V33,LEN(V33)-1),CostCode,0))),0) -> 0 | X33: =W33*U33 -> 0
B34: Fuel freight accommodations | D34: litre | F34: =NA() ->  | G34: =IFERROR(IF(ISNA(F34),0,INDEX(IF(RIGHT(F34,1)="L",UnitCostLow, IF(RIGHT(F34,1)="H",UnitCostHigh,UnitCostSpecified)),MATCH(LEFT(F34,LEN(F34)-1),CostCode,0))),0) -> 0 | H34: =G34*E34 -> 0 | J34: Fuel freight accommodations | L34: litre | N34: =NA() ->  | O34: =IFERROR(IF(ISNA(N34),0,INDEX(IF(RIGHT(N34,1)="L",UnitCostLow, IF(RIGHT(N34,1)="H",UnitCostHigh,UnitCostSpecified)),MATCH(LEFT(N34,LEN(N34)-1),CostCode,0))),0) -> 0 | P34: =O34*M34 -> 0 | R34: Fuel freight accommodations | T34: litre | V34: =NA() ->  | W34: =IFERROR(IF(ISNA(V34),0,INDEX(IF(RIGHT(V34,1)="L",UnitCostLow, IF(RIGHT(V34,1)="H",UnitCostHigh,UnitCostSpecified)),MATCH(LEFT(V34,LEN(V34)-1),CostCode,0))),0) -> 0 | X34: =W34*U34 -> 0
B35: WINTER ROAD FOR MOBILIZATION | J35: WINTER ROAD FOR MOBILIZATION | R35: WINTER ROAD FOR MOBILIZATION
B36: Construction and operation | D36: km | F36: =NA() ->  | G36: =IFERROR(IF(ISNA(F36),0,INDEX(IF(RIGHT(F36,1)="L",UnitCostLow, IF(RIGHT(F36,1)="H",UnitCostHigh,UnitCostSpecified)),MATCH(LEFT(F36,LEN(F36)-1),CostCode,0))),0) -> 0 | H36: =G36*E36 -> 0 | J36: Construction and operation | L36: km | N36: =NA() ->  | O36: =IFERROR(IF(ISNA(N36),0,INDEX(IF(RIGHT(N36,1)="L",UnitCostLow, IF(RIGHT(N36,1)="H",UnitCostHigh,UnitCostSpecified)),MATCH(LEFT(N36,LEN(N36)-1),CostCode,0))),0) -> 0 | P36: =O36*M36 -> 0 | R36: Construction and operation | T36: km | V36: =NA() ->  | W36: =IFERROR(IF(ISNA(V36),0,INDEX(IF(RIGHT(V36,1)="L",UnitCostLow, IF(RIGHT(V36,1)="H",UnitCostHigh,UnitCostSpecified)),MATCH(LEFT(V36,LEN(V36)-1),CostCode,0))),0) -> 0 | X36: =W36*U36 -> 0
B37: Limited winter use | D37: km | F37: =NA() ->  | G37: =IFERROR(IF(ISNA(F37),0,INDEX(IF(RIGHT(F37,1)="L",UnitCostLow, IF(RIGHT(F37,1)="H",UnitCostHigh,UnitCostSpecified)),MATCH(LEFT(F37,LEN(F37)-1),CostCode,0))),0) -> 0 | H37: =G37*E37 -> 0 | J37: Limited winter use | L37: km | N37: =NA() ->  | O37: =IFERROR(IF(ISNA(N37),0,INDEX(IF(RIGHT(N37,1)="L",UnitCostLow, IF(RIGHT(N37,1)="H",UnitCostHigh,UnitCostSpecified)),MATCH(LEFT(N37,LEN(N37)-1),CostCode,0))),0) -> 0 | P37: =O37*M37 -> 0 | R37: Limited winter use | T37: km | V37: =NA() ->  | W37: =IFERROR(IF(ISNA(V37),0,INDEX(IF(RIGHT(V37,1)="L",UnitCostLow, IF(RIGHT(V37,1)="H",UnitCostHigh,UnitCostSpecified)),MATCH(LEFT(V37,LEN(V37)-1),CostCode,0))),0) -> 0 | X37: =W37*U37 -> 0
B38: Winter road tariff | D38: km | F38: =NA() ->  | G38: =IFERROR(IF(ISNA(F38),0,INDEX(IF(RIGHT(F38,1)="L",UnitCostLow, IF(RIGHT(F38,1)="H",UnitCostHigh,UnitCostSpecified)),MATCH(LEFT(F38,LEN(F38)-1),CostCode,0))),0) -> 0 | H38: =G38*E38 -> 0 | J38: Winter road tariff | L38: km | N38: =NA() ->  | O38: =IFERROR(IF(ISNA(N38),0,INDEX(IF(RIGHT(N38,1)="L",UnitCostLow, IF(RIGHT(N38,1)="H",UnitCostHigh,UnitCostSpecified)),MATCH(LEFT(N38,LEN(N38)-1),CostCode,0))),0) -> 0 | P38: =O38*M38 -> 0 | R38: Winter road tariff | T38: km | V38: =NA() ->  | W38: =IFERROR(IF(ISNA(V38),0,INDEX(IF(RIGHT(V38,1)="L",UnitCostLow, IF(RIGHT(V38,1)="H",UnitCostHigh,UnitCostSpecified)),MATCH(LEFT(V38,LEN(V38)-1),CostCode,0))),0) -> 0 | X38: =W38*U38 -> 0
B39: DEMOBILIZE HEAVY EQUIPMENT | J39: DEMOBILIZE HEAVY EQUIPMENT | R39: DEMOBILIZE HEAVY EQUIPMENT
B40: Excavators | D40: kmtonne | F40: =NA() ->  | G40: =IFERROR(IF(ISNA(F40),0,INDEX(IF(RIGHT(F40,1)="L",UnitCostLow, IF(RIGHT(F40,1)="H",UnitCostHigh,UnitCostSpecified)),MATCH(LEFT(F40,LEN(F40)-1),CostCode,0))),0) -> 0 | H40: =G40*E40 -> 0 | J40: Excavators | L40: kmtonne | N40: =NA() ->  | O40: =IFERROR(IF(ISNA(N40),0,INDEX(IF(RIGHT(N40,1)="L",UnitCostLow, IF(RIGHT(N40,1)="H",UnitCostHigh,UnitCostSpecified)),MATCH(LEFT(N40,LEN(N40)-1),CostCode,0))),0) -> 0 | P40: =O40*M40 -> 0 | R40: Excavators | T40: kmtonne | V40: =NA() ->  | W40: =IFERROR(IF(ISNA(V40),0,INDEX(IF(RIGHT(V40,1)="L",UnitCostLow, IF(RIGHT(V40,1)="H",UnitCostHigh,UnitCostSpecified)),MATCH(LEFT(V40,LEN(V40)-1),CostCode,0))),0) -> 0 | X40: =W40*U40 -> 0
B41: Dump trucks | D41: kmtonne | F41: =NA() ->  | G41: 0 | H41: 0 | J41: Dump trucks | L41: kmtonne | N41: =NA() ->  | O41: 0 | P41: 0 | R41: Dump trucks | T41: kmtonne | V41: =NA() ->  | W41: 0 | X41: 0
B42: Dozers | D42: kmtonne | F42: =NA() ->  | G42: 0 | H42: 0 | J42: Dozers | L42: kmtonne | N42: =NA() ->  | O42: 0 | P42: 0 | R42: Dozers | T42: kmtonne | V42: =NA() ->  | W42: 0 | X42: 0
B43: Demolition shears | D43: kmtonne | F43: =NA() ->  | G43: 0 | H43: 0 | J43: Demolition shears | L43: kmtonne | N43: =NA() ->  | O43: 0 | P43: 0 | R43: Demolition shears | T43: kmtonne | V43: =NA() ->  | W43: 0 | X43: 0
B44: Crane | D44: kmtonne | F44: =NA() ->  | G44: 0 | H44: 0 | J44: Crane | L44: kmtonne | N44: =NA() ->  | O44: 0 | P44: 0 | R44: Crane | T44: kmtonne | V44: =NA() ->  | W44: 0 | X44: 0
B45: Loader | D45: kmtonne | F45: =NA() ->  | G45: 0 | H45: =G45*E45 -> 0 | J45: Loader | L45: kmtonne | N45: =NA() ->  | O45: 0 | P45: =O45*M45 -> 0 | R45: Loader | T45: kmtonne | V45: =NA() ->  | W45: 0 | X45: =W45*U45 -> 0
B46: Compactor | D46: kmtonne | F46: =NA() ->  | G46: 0 | H46: =G46*E46 -> 0 | J46: Compactor | L46: kmtonne | N46: =NA() ->  | O46: 0 | P46: =O46*M46 -> 0 | R46: Compactor | T46: kmtonne | V46: =NA() ->  | W46: 0 | X46: =W46*U46 -> 0
B47: Light duty vehicles | D47: kmtonne | F47: =NA() ->  | G47: 0 | H47: 0 | J47: Light duty vehicles | L47: kmtonne | N47: =NA() ->  | O47: 0 | P47: =O47*M47 -> 0 | R47: Light duty vehicles | T47: kmtonne | V47: =NA() ->  | W47: 0 | X47: =W47*U47 -> 0
B48: Other | D48: kmtonne | F48: =NA() ->  | G48: 0 | H48: 0 | J48: Other | L48: kmtonne | N48: =NA() ->  | O48: 0 | P48: 0 | R48: Other | T48: kmtonne | V48: =NA() ->  | W48: 0 | X48: 0
B49: DEMOBILIZE CAMP | J49: DEMOBILIZE CAMP | R49: DEMOBILIZE CAMP
B50: Camp Demobilization | D50: allow | F50: =NA() ->  | G50: =IFERROR(IF(ISNA(F50),0,INDEX(IF(RIGHT(F50,1)="L",UnitCostLow, IF(RIGHT(F50,1)="H",UnitCostHigh,UnitCostSpecified)),MATCH(LEFT(F50,LEN(F50)-1),CostCode,0))),0) -> 0 | H50: =G50*E50 -> 0 | J50: Camp Demobilization | L50: allow | N50: =NA() ->  | O50: =IFERROR(IF(ISNA(N50),0,INDEX(IF(RIGHT(N50,1)="L",UnitCostLow, IF(RIGHT(N50,1)="H",UnitCostHigh,UnitCostSpecified)),MATCH(LEFT(N50,LEN(N50)-1),CostCode,0))),0) -> 0 | P50: =O50*M50 -> 0 | R50: Camp Demobilization | T50: allow | V50: =NA() ->  | W50: =IFERROR(IF(ISNA(V50),0,INDEX(IF(RIGHT(V50,1)="L",UnitCostLow, IF(RIGHT(V50,1)="H",UnitCostHigh,UnitCostSpecified)),MATCH(LEFT(V50,LEN(V50)-1),CostCode,0))),0) -> 0 | X50: =W50*U50 -> 0
B51: DEMOBILIZE WORKERS | J51: DEMOBILIZE WORKERS | R51: DEMOBILIZE WORKERS
B52: Crew travel time | D52: persondays | F52: =NA() ->  | G52: =IFERROR(IF(ISNA(F52),0,INDEX(IF(RIGHT(F52,1)="L",UnitCostLow, IF(RIGHT(F52,1)="H",UnitCostHigh,UnitCostSpecified)),MATCH(LEFT(F52,LEN(F52)-1),CostCode,0))),0) -> 0 | H52: =G52*E52 -> 0 | J52: Crew travel time | L52: persondays | N52: =NA() ->  | O52: =IFERROR(IF(ISNA(N52),0,INDEX(IF(RIGHT(N52,1)="L",UnitCostLow, IF(RIGHT(N52,1)="H",UnitCostHigh,UnitCostSpecified)),MATCH(LEFT(N52,LEN(N52)-1),CostCode,0))),0) -> 0 | P52: =O52*M52 -> 0 | R52: Crew travel time | T52: persondays | V52: =NA() ->  | W52: =IFERROR(IF(ISNA(V52),0,INDEX(IF(RIGHT(V52,1)="L",UnitCostLow, IF(RIGHT(V52,1)="H",UnitCostHigh,UnitCostSpecified)),MATCH(LEFT(V52,LEN(V52)-1),CostCode,0))),0) -> 0 | X52: =W52*U52 -> 0
B53: Crew transportation | D53: each | F53: =NA() ->  | G53: =IFERROR(IF(ISNA(F53),0,INDEX(IF(RIGHT(F53,1)="L",UnitCostLow, IF(RIGHT(F53,1)="H",UnitCostHigh,UnitCostSpecified)),MATCH(LEFT(F53,LEN(F53)-1),CostCode,0))),0) -> 0 | H53: =G53*E53 -> 0 | J53: Crew transportation | L53: each | N53: =NA() ->  | O53: =IFERROR(IF(ISNA(N53),0,INDEX(IF(RIGHT(N53,1)="L",UnitCostLow, IF(RIGHT(N53,1)="H",UnitCostHigh,UnitCostSpecified)),MATCH(LEFT(N53,LEN(N53)-1),CostCode,0))),0) -> 0 | P53: =O53*M53 -> 0 | R53: Crew transportation | T53: each | V53: =NA() ->  | W53: =IFERROR(IF(ISNA(V53),0,INDEX(IF(RIGHT(V53,1)="L",UnitCostLow, IF(RIGHT(V53,1)="H",UnitCostHigh,UnitCostSpecified)),MATCH(LEFT(V53,LEN(V53)-1),CostCode,0))),0) -> 0 | X53: =W53*U53 -> 0
B54: WINTER ROAD FOR DEMOBILIZATION | J54: WINTER ROAD FOR DEMOBILIZATION | R54: WINTER ROAD FOR DEMOBILIZATION
B55: Construction and operation | D55: km | F55: =NA() ->  | G55: =IFERROR(IF(ISNA(F55),0,INDEX(IF(RIGHT(F55,1)="L",UnitCostLow, IF(RIGHT(F55,1)="H",UnitCostHigh,UnitCostSpecified)),MATCH(LEFT(F55,LEN(F55)-1),CostCode,0))),0) -> 0 | H55: =G55*E55 -> 0 | J55: Construction and operation | L55: km | N55: =NA() ->  | O55: =IFERROR(IF(ISNA(N55),0,INDEX(IF(RIGHT(N55,1)="L",UnitCostLow, IF(RIGHT(N55,1)="H",UnitCostHigh,UnitCostSpecified)),MATCH(LEFT(N55,LEN(N55)-1),CostCode,0))),0) -> 0 | P55: =O55*M55 -> 0 | R55: Construction and operation | T55: km | V55: =NA() ->  | W55: =IFERROR(IF(ISNA(V55),0,INDEX(IF(RIGHT(V55,1)="L",UnitCostLow, IF(RIGHT(V55,1)="H",UnitCostHigh,UnitCostSpecified)),MATCH(LEFT(V55,LEN(V55)-1),CostCode,0))),0) -> 0 | X55: =W55*U55 -> 0
B56: Limited winter use | D56: km | F56: =NA() ->  | G56: =IFERROR(IF(ISNA(F56),0,INDEX(IF(RIGHT(F56,1)="L",UnitCostLow, IF(RIGHT(F56,1)="H",UnitCostHigh,UnitCostSpecified)),MATCH(LEFT(F56,LEN(F56)-1),CostCode,0))),0) -> 0 | H56: =G56*E56 -> 0 | J56: Limited winter use | L56: km | N56: =NA() ->  | O56: =IFERROR(IF(ISNA(N56),0,INDEX(IF(RIGHT(N56,1)="L",UnitCostLow, IF(RIGHT(N56,1)="H",UnitCostHigh,UnitCostSpecified)),MATCH(LEFT(N56,LEN(N56)-1),CostCode,0))),0) -> 0 | P56: =O56*M56 -> 0 | R56: Limited winter use | T56: km | V56: =NA() ->  | W56: =IFERROR(IF(ISNA(V56),0,INDEX(IF(RIGHT(V56,1)="L",UnitCostLow, IF(RIGHT(V56,1)="H",UnitCostHigh,UnitCostSpecified)),MATCH(LEFT(V56,LEN(V56)-1),CostCode,0))),0) -> 0 | X56: =W56*U56 -> 0
B57: Winter road tariff | D57: km | F57: =NA() ->  | G57: =IFERROR(IF(ISNA(F57),0,INDEX(IF(RIGHT(F57,1)="L",UnitCostLow, IF(RIGHT(F57,1)="H",UnitCostHigh,UnitCostSpecified)),MATCH(LEFT(F57,LEN(F57)-1),CostCode,0))),0) -> 0 | H57: =G57*E57 -> 0 | J57: Winter road tariff | L57: km | N57: =NA() ->  | O57: =IFERROR(IF(ISNA(N57),0,INDEX(IF(RIGHT(N57,1)="L",UnitCostLow, IF(RIGHT(N57,1)="H",UnitCostHigh,UnitCostSpecified)),MATCH(LEFT(N57,LEN(N57)-1),CostCode,0))),0) -> 0 | P57: =O57*M57 -> 0 | R57: Winter road tariff | T57: km | V57: =NA() ->  | W57: =IFERROR(IF(ISNA(V57),0,INDEX(IF(RIGHT(V57,1)="L",UnitCostLow, IF(RIGHT(V57,1)="H",UnitCostHigh,UnitCostSpecified)),MATCH(LEFT(V57,LEN(V57)-1),CostCode,0))),0) -> 0 | X57: =W57*U57 -> 0
G58: Total | H58: =SUM(H5:H57)+0.0001 -> 0.0001 | O58: Total | P58: =SUM(P5:P57)+0.0001 -> 0.0001 | W58: Total | X58: =SUM(X5:X57)+0.0001 -> 0.0001

Sheet PostClosure
A1: 1 | B1: Post-Closure Monitoring & Maintenance:
B3: ACTIVITY/MATERIAL | C3: Notes | D3: Units | E3: Quantity | F3: Cost Code | G3: Unit Cost | H3: Cost
B4: MONITORING, INSPECTIONS & REPORTING
B5: Geotechnical inspection | D5: each | F5: =NA() ->  | G5: =IFERROR(IF(ISNA(F5),0,INDEX(IF(RIGHT(F5,1)="L",UnitCostLow, IF(RIGHT(F5,1)="H",UnitCostHigh,UnitCostSpecified)),MATCH(LEFT(F5,LEN(F5)-1),CostCode,0))),0) -> 0 | H5: =G5*E5 -> 0
B6: Survey inspection | D6: each | F6: =NA() ->  | G6: 0 | H6: 0
B7: Site water monitoring (AEMP and SNP) | D7: each | F7: =NA() ->  | G7: 0 | H7: 0
B8: - Active closure and flooding | D8: each | F8: =NA() ->  | G8: 0 | H8: 0
B9: - Post pit flooding | D9: each | F9: =NA() ->  | G9: 0 | H9: 0
B10: Air Quality Monitoring Program (AQMP) | D10: each | F10: =NA() ->  | G10: 0 | H10: 0
B11: Wildlife Effects Monitoring Program (WEMP) | D11: each | F11: =NA() ->  | G11: 0 | H11: 0
B12: Vegetation Monitoring | D12: each | F12: =NA() ->  | G12: 0 | H12: 0
B13: Other | D13: each | F13: =NA() ->  | G13: 0 | H13: =G13*E13 -> 0
B14: COVER MAINTENANCE & REPORTING
B15: Repair erosion - infill gullies | D15: allow | F15: =NA() ->  | G15: =IFERROR(IF(ISNA(F15),0,INDEX(IF(RIGHT(F15,1)="L",UnitCostLow, IF(RIGHT(F15,1)="H",UnitCostHigh,UnitCostSpecified)),MATCH(LEFT(F15,LEN(F15)-1),CostCode,0))),0) -> 0 | H15: =G15*E15 -> 0
B16: Repair erosion - upgrade diversion ditches | D16: allow | F16: =NA() ->  | G16: 0 | H16: 0
B17: Remove problem vegetation | D17: allow | F17: =NA() ->  | G17: 0 | H17: 0
B18: Repair animal damage | D18: allow | F18: =NA() ->  | G18: 0 | H18: 0
B19: Repair/upgrade access controls | D19: allow | F19: =NA() ->  | G19: 0 | H19: 0
B20: Other | D20: allow | F20: =NA() ->  | G20: 0 | H20: 0
B21: SPILLWAY, DAM AND TAILINGS MAINTENANCE
B22: Repair erosion | D22: m3 | F22: =NA() ->  | G22: =IFERROR(IF(ISNA(F22),0,INDEX(IF(RIGHT(F22,1)="L",UnitCostLow, IF(RIGHT(F22,1)="H",UnitCostHigh,UnitCostSpecified)),MATCH(LEFT(F22,LEN(F22)-1),CostCode,0))),0) -> 0 | H22: =G22*E22 -> 0
B23: Clear spillway | D23: each | F23: =NA() ->  | G23: =IFERROR(IF(ISNA(F23),0,INDEX(IF(RIGHT(F23,1)="L",UnitCostLow, IF(RIGHT(F23,1)="H",UnitCostHigh,UnitCostSpecified)),MATCH(LEFT(F23,LEN(F23)-1),CostCode,0))),0) -> 0 | H23: =G23*E23 -> 0
B24: Dam Repairs | D24: m3 | F24: =NA() ->  | G24: =IFERROR(IF(ISNA(F24),0,INDEX(IF(RIGHT(F24,1)="L",UnitCostLow, IF(RIGHT(F24,1)="H",UnitCostHigh,UnitCostSpecified)),MATCH(LEFT(F24,LEN(F24)-1),CostCode,0))),0) -> 0 | H24: =G24*E24 -> 0
B25: Revegetation Maintenance | D25: ha | F25: =NA() ->  | G25: =IFERROR(IF(ISNA(F25),0,INDEX(IF(RIGHT(F25,1)="L",UnitCostLow, IF(RIGHT(F25,1)="H",UnitCostHigh,UnitCostSpecified)),MATCH(LEFT(F25,LEN(F25)-1),CostCode,0))),0) -> 0 | H25: =G25*E25 -> 0
B26: Other | F26: =NA() ->  | G26: =IFERROR(IF(ISNA(F26),0,INDEX(IF(RIGHT(F26,1)="L",UnitCostLow, IF(RIGHT(F26,1)="H",UnitCostHigh,UnitCostSpecified)),MATCH(LEFT(F26,LEN(F26)-1),CostCode,0))),0) -> 0 | H26: =G26*E26 -> 0
B27: GENERAL SITE MAINTENANCE
B28: Maintain Airstrip | D28: ha | F28: =NA() ->  | G28: =IFERROR(IF(ISNA(F28),0,INDEX(IF(RIGHT(F28,1)="L",UnitCostLow, IF(RIGHT(F28,1)="H",UnitCostHigh,UnitCostSpecified)),MATCH(LEFT(F28,LEN(F28)-1),CostCode,0))),0) -> 0 | H28: =G28*E28 -> 0
B29: Maintain Roadways | D29: ha | F29: =NA() ->  | G29: =IFERROR(IF(ISNA(F29),0,INDEX(IF(RIGHT(F29,1)="L",UnitCostLow, IF(RIGHT(F29,1)="H",UnitCostHigh,UnitCostSpecified)),MATCH(LEFT(F29,LEN(F29)-1),CostCode,0))),0) -> 0 | H29: =G29*E29 -> 0
B30: Other | F30: =NA() ->  | G30: =IFERROR(IF(ISNA(F30),0,INDEX(IF(RIGHT(F30,1)="L",UnitCostLow, IF(RIGHT(F30,1)="H",UnitCostHigh,UnitCostSpecified)),MATCH(LEFT(F30,LEN(F30)-1),CostCode,0))),0) -> 0 | H30: =G30*E30 -> 0
B31: PASSIVE TREATMENT SYSTEM MAINTENANCE
B32: Media replacement | D32: m3 | F32: =NA() ->  | G32: =IFERROR(IF(ISNA(F32),0,INDEX(IF(RIGHT(F32,1)="L",UnitCostLow, IF(RIGHT(F32,1)="H",UnitCostHigh,UnitCostSpecified)),MATCH(LEFT(F32,LEN(F32)-1),CostCode,0))),0) -> 0 | H32: =G32*E32 -> 0
B33: Excavation of old media | D33: m3 | F33: =NA() ->  | G33: =IFERROR(IF(ISNA(F33),0,INDEX(IF(RIGHT(F33,1)="L",UnitCostLow, IF(RIGHT(F33,1)="H",UnitCostHigh,UnitCostSpecified)),MATCH(LEFT(F33,LEN(F33)-1),CostCode,0))),0) -> 0 | H33: 0
B34: Maintain flow, restore vegetation | D34: allow | F34: =NA() ->  | G34: =IFERROR(IF(ISNA(F34),0,INDEX(IF(RIGHT(F34,1)="L",UnitCostLow, IF(RIGHT(F34,1)="H",UnitCostHigh,UnitCostSpecified)),MATCH(LEFT(F34,LEN(F34)-1),CostCode,0))),0) -> 0 | H34: 0
B35: Other | F35: =NA() ->  | G35: =IFERROR(IF(ISNA(F35),0,INDEX(IF(RIGHT(F35,1)="L",UnitCostLow, IF(RIGHT(F35,1)="H",UnitCostHigh,UnitCostSpecified)),MATCH(LEFT(F35,LEN(F35)-1),CostCode,0))),0) -> 0 | H35: 0
B36: Subtotal, Annual post-closure costs | H36: =SUM('Water Treatment'!AF35,H5:H34) -> 0.0001
B37: Number of years of post closure activities | D37: years
B38: Long Term Water Treatment* | C38: See water treatment tab | H38: ='Water Treatment'!AF37 -> 0
B39: Total | H39: =PCAnnualTotal*E37+H38+0.0000001 -> 1e-07
B41: *Include water treatment cost if treatment is considered long term, such as ARD/ML.

Sheet Water Treatment
A1: 1 | B1: Mine Contact Water Treatment Costs from ICM to Closure
B3: ICM WATER TREATMENT | J3: CONSTRUCTION WATER TREATMENT - TAILINGS | R3: CONSTRUCTION WATER TREATMENT - WATER MANAGEMENT | Z3: POST-CLOSURE WATER TREATMENT (long term)
B4: Treatment Plant - Construction | J4: Treatment Plant - Construction | R4: Treatment Plant - Construction | Z4: Treatment Plant - Construction
B5: Construction of Treatment Plant | D5: lump sum | F5: =NA() ->  | G5: =IF(ISNA(F5),0,INDEX(IF(RIGHT(F5,1)="A",unitcostaverage,IF(RIGHT(F5,1)="L",UnitCostLow, IF(RIGHT(F5,1)="H",UnitCostHigh,UnitCostSpecified))),MATCH(LEFT(F5,LEN(F5)-1),CostCode,0))) -> 0 | H5: =G5*E5 -> 0 | J5: Construction of Treatment Plant | L5: lump sum | N5: =NA() ->  | O5: =IF(ISNA(N5),0,INDEX(IF(RIGHT(N5,1)="A",unitcostaverage,IF(RIGHT(N5,1)="L",UnitCostLow, IF(RIGHT(N5,1)="H",UnitCostHigh,UnitCostSpecified))),MATCH(LEFT(N5,LEN(N5)-1),CostCode,0))) -> 0 | P5: =O5*M5 -> 0 | R5: Construction of Treatment Plant | T5: lump sum | V5: =NA() ->  | W5: =IF(ISNA(V5),0,INDEX(IF(RIGHT(V5,1)="A",unitcostaverage,IF(RIGHT(V5,1)="L",UnitCostLow, IF(RIGHT(V5,1)="H",UnitCostHigh,UnitCostSpecified))),MATCH(LEFT(V5,LEN(V5)-1),CostCode,0))) -> 0 | X5: =W5*U5 -> 0 | Z5: Construction of Treatment Plant | AB5: lump sum | AD5: =NA() ->  | AE5: =IF(ISNA(AD5),0,INDEX(IF(RIGHT(AD5,1)="A",unitcostaverage,IF(RIGHT(AD5,1)="L",UnitCostLow, IF(RIGHT(AD5,1)="H",UnitCostHigh,UnitCostSpecified))),MATCH(LEFT(AD5,LEN(AD5)-1),CostCode,0))) -> 0 | AF5: =AE5*AC5 -> 0
B6: Annual Operational Cost | D6: m3 | F6: =NA() ->  | G6: =IF(ISNA(F6),0,INDEX(IF(RIGHT(F6,1)="A",unitcostaverage,IF(RIGHT(F6,1)="L",UnitCostLow, IF(RIGHT(F6,1)="H",UnitCostHigh,UnitCostSpecified))),MATCH(LEFT(F6,LEN(F6)-1),CostCode,0))) -> 0 | H6: =G6*E6 -> 0 | J6: Annual Operational Cost | L6: m3 | N6: =NA() ->  | O6: =IF(ISNA(N6),0,INDEX(IF(RIGHT(N6,1)="A",unitcostaverage,IF(RIGHT(N6,1)="L",UnitCostLow, IF(RIGHT(N6,1)="H",UnitCostHigh,UnitCostSpecified))),MATCH(LEFT(N6,LEN(N6)-1),CostCode,0))) -> 0 | P6: =O6*M6 -> 0 | R6: Annual Operational Cost | T6: m3 | V6: =NA() ->  | W6: =IF(ISNA(V6),0,INDEX(IF(RIGHT(V6,1)="A",unitcostaverage,IF(RIGHT(V6,1)="L",UnitCostLow, IF(RIGHT(V6,1)="H",UnitCostHigh,UnitCostSpecified))),MATCH(LEFT(V6,LEN(V6)-1),CostCode,0))) -> 0 | X6: =W6*U6 -> 0 | Z6: Annual Operational Cost | AB6: m3 | AD6: =NA() ->  | AE6: =IF(ISNA(AD6),0,INDEX(IF(RIGHT(AD6,1)="A",unitcostaverage,IF(RIGHT(AD6,1)="L",UnitCostLow, IF(RIGHT(AD6,1)="H",UnitCostHigh,UnitCostSpecified))),MATCH(LEFT(AD6,LEN(AD6)-1),CostCode,0))) -> 0 | AF6: =AE6*AC6 -> 0
B7: Existing Plant Refurbishment | F7: =NA() ->  | G7: =IF(ISNA(F7),0,INDEX(IF(RIGHT(F7,1)="A",unitcostaverage,IF(RIGHT(F7,1)="L",UnitCostLow, IF(RIGHT(F7,1)="H",UnitCostHigh,UnitCostSpecified))),MATCH(LEFT(F7,LEN(F7)-1),CostCode,0))) -> 0 | H7: =G7*E7 -> 0 | J7: Existing Plant Refurbishment | N7: =NA() ->  | O7: =IF(ISNA(N7),0,INDEX(IF(RIGHT(N7,1)="A",unitcostaverage,IF(RIGHT(N7,1)="L",UnitCostLow, IF(RIGHT(N7,1)="H",UnitCostHigh,UnitCostSpecified))),MATCH(LEFT(N7,LEN(N7)-1),CostCode,0))) -> 0 | P7: =O7*M7 -> 0 | R7: Existing Plant Refurbishment | V7: =NA() ->  | W7: =IF(ISNA(V7),0,INDEX(IF(RIGHT(V7,1)="A",unitcostaverage,IF(RIGHT(V7,1)="L",UnitCostLow, IF(RIGHT(V7,1)="H",UnitCostHigh,UnitCostSpecified))),MATCH(LEFT(V7,LEN(V7)-1),CostCode,0))) -> 0 | X7: =W7*U7 -> 0 | Z7: Existing Plant Refurbishment | AD7: =NA() ->  | AE7: =IF(ISNA(AD7),0,INDEX(IF(RIGHT(AD7,1)="A",unitcostaverage,IF(RIGHT(AD7,1)="L",UnitCostLow, IF(RIGHT(AD7,1)="H",UnitCostHigh,UnitCostSpecified))),MATCH(LEFT(AD7,LEN(AD7)-1),CostCode,0))) -> 0 | AF7: =AE7*AC7 -> 0
B8: ADDITION OF REAGENTS | J8: ADDITION OF REAGENTS | R8: ADDITION OF REAGENTS | Z8: ADDITION OF REAGENTS
B9: H2O2 | D9: kg | F9: =NA() ->  | G9: =IF(ISNA(F9),0,INDEX(IF(RIGHT(F9,1)="A",unitcostaverage,IF(RIGHT(F9,1)="L",UnitCostLow, IF(RIGHT(F9,1)="H",UnitCostHigh,UnitCostSpecified))),MATCH(LEFT(F9,LEN(F9)-1),CostCode,0))) -> 0 | H9: =G9*E9 -> 0 | J9: H2O2 | L9: kg | N9: =NA() ->  | O9: =IF(ISNA(N9),0,INDEX(IF(RIGHT(N9,1)="A",unitcostaverage,IF(RIGHT(N9,1)="L",UnitCostLow, IF(RIGHT(N9,1)="H",UnitCostHigh,UnitCostSpecified))),MATCH(LEFT(N9,LEN(N9)-1),CostCode,0))) -> 0 | P9: =O9*M9 -> 0 | R9: H2O2 | T9: kg | V9: =NA() ->  | W9: =IF(ISNA(V9),0,INDEX(IF(RIGHT(V9,1)="A",unitcostaverage,IF(RIGHT(V9,1)="L",UnitCostLow, IF(RIGHT(V9,1)="H",UnitCostHigh,UnitCostSpecified))),MATCH(LEFT(V9,LEN(V9)-1),CostCode,0))) -> 0 | X9: =W9*U9 -> 0 | Z9: H2O2 | AB9: kg | AD9: =NA() ->  | AE9: =IF(ISNA(AD9),0,INDEX(IF(RIGHT(AD9,1)="A",unitcostaverage,IF(RIGHT(AD9,1)="L",UnitCostLow, IF(RIGHT(AD9,1)="H",UnitCostHigh,UnitCostSpecified))),MATCH(LEFT(AD9,LEN(AD9)-1),CostCode,0))) -> 0 | AF9: =AE9*AC9 -> 0
B10: lime | D10: kg | F10: =NA() ->  | G10: 0 | H10: 0 | J10: lime | L10: kg | N10: =NA() ->  | O10: 0 | P10: 0 | R10: lime | T10: kg | V10: =NA() ->  | W10: 0 | X10: 0 | Z10: lime | AB10: kg | AD10: =NA() ->  | AE10: 0 | AF10: 0
B11: ferric sulphate | D11: kg | F11: =NA() ->  | G11: 0 | H11: 0 | J11: ferric sulphate | L11: kg | N11: =NA() ->  | O11: 0 | P11: 0 | R11: ferric sulphate | T11: kg | V11: =NA() ->  | W11: 0 | X11: 0 | Z11: ferric sulphate | AB11: kg | AD11: =NA() ->  | AE11: 0 | AF11: 0
B12: ferrous sulphate | D12: kg | F12: =NA() ->  | G12: 0 | H12: 0 | J12: ferrous sulphate | L12: kg | N12: =NA() ->  | O12: 0 | P12: 0 | R12: ferrous sulphate | T12: kg | V12: =NA() ->  | W12: 0 | X12: 0 | Z12: ferrous sulphate | AB12: kg | AD12: =NA() ->  | AE12: 0 | AF12: 0
B13: flocculants | D13: kg | F13: =NA() ->  | G13: 0 | H13: 0 | J13: flocculants | L13: kg | N13: =NA() ->  | O13: 0 | P13: 0 | R13: flocculants | T13: kg | V13: =NA() ->  | W13: 0 | X13: 0 | Z13: flocculants | AB13: kg | AD13: =NA() ->  | AE13: 0 | AF13: 0
B14: Other | F14: =NA() ->  | G14: 0 | H14: 0 | J14: Other | N14: =NA() ->  | O14: 0 | P14: 0 | R14: Other | V14: =NA() ->  | W14: 0 | X14: 0 | Z14: Other | AD14: =NA() ->  | AE14: 0 | AF14: 0
B15: LABOUR AND SUPPLIES | J15: LABOUR AND SUPPLIES | R15: LABOUR AND SUPPLIES | Z15: LABOUR AND SUPPLIES
B16: Annual fuel | D16: litres | F16: =NA() ->  | G16: =IF(ISNA(F16),0,INDEX(IF(RIGHT(F16,1)="A",unitcostaverage,IF(RIGHT(F16,1)="L",UnitCostLow, IF(RIGHT(F16,1)="H",UnitCostHigh,UnitCostSpecified))),MATCH(LEFT(F16,LEN(F16)-1),CostCode,0))) -> 0 | H16: =G16*E16 -> 0 | J16: Annual fuel | L16: litres | N16: =NA() ->  | O16: =IF(ISNA(N16),0,INDEX(IF(RIGHT(N16,1)="A",unitcostaverage,IF(RIGHT(N16,1)="L",UnitCostLow, IF(RIGHT(N16,1)="H",UnitCostHigh,UnitCostSpecified))),MATCH(LEFT(N16,LEN(N16)-1),CostCode,0))) -> 0 | P16: =O16*M16 -> 0 | R16: Annual fuel | T16: litres | V16: =NA() ->  | W16: =IF(ISNA(V16),0,INDEX(IF(RIGHT(V16,1)="A",unitcostaverage,IF(RIGHT(V16,1)="L",UnitCostLow, IF(RIGHT(V16,1)="H",UnitCostHigh,UnitCostSpecified))),MATCH(LEFT(V16,LEN(V16)-1),CostCode,0))) -> 0 | X16: =W16*U16 -> 0 | Z16: Annual fuel | AB16: litres | AD16: =NA() ->  | AE16: =IF(ISNA(AD16),0,INDEX(IF(RIGHT(AD16,1)="A",unitcostaverage,IF(RIGHT(AD16,1)="L",UnitCostLow, IF(RIGHT(AD16,1)="H",UnitCostHigh,UnitCostSpecified))),MATCH(LEFT(AD16,LEN(AD16)-1),CostCode,0))) -> 0 | AF16: =AE16*AC16 -> 0
B17: Annual power | D17: kW-h | F17: =NA() ->  | G17: 0 | H17: 0 | J17: Annual power | L17: kW-h | N17: =NA() ->  | O17: 0 | P17: 0 | R17: Annual power | T17: kW-h | V17: =NA() ->  | W17: 0 | X17: 0 | Z17: Annual power | AB17: kW-h | AD17: =NA() ->  | AE17: 0 | AF17: 0
B18: Electrician/mechanic to maintain treatment plant | D18: allow | F18: =NA() ->  | G18: 0 | H18: 0 | J18: Electrician/mechanic to maintain treatment plant | L18: allow | N18: =NA() ->  | O18: 0 | P18: 0 | R18: Electrician/mechanic to maintain treatment plant | T18: allow | V18: =NA() ->  | W18: 0 | X18: 0 | Z18: Electrician/mechanic to maintain treatment plant | AB18: allow | AD18: =NA() ->  | AE18: 0 | AF18: 0
B19: Equipment maintenance and parts | D19: allow | F19: =NA() ->  | G19: 0 | H19: 0 | J19: Equipment maintenance and parts | L19: allow | N19: =NA() ->  | O19: 0 | P19: 0 | R19: Equipment maintenance and parts | T19: allow | V19: =NA() ->  | W19: 0 | X19: 0 | Z19: Equipment maintenance and parts | AB19: allow | AD19: =NA() ->  | AE19: 0 | AF19: 0
B20: Misc. supplies, hoses, tools | D20: allow | F20: =NA() ->  | G20: 0 | H20: 0 | J20: Misc. supplies, hoses, tools | L20: allow | N20: =NA() ->  | O20: 0 | P20: 0 | R20: Misc. supplies, hoses, tools | T20: allow | V20: =NA() ->  | W20: 0 | X20: 0 | Z20: Misc. supplies, hoses, tools | AB20: allow | AD20: =NA() ->  | AE20: 0 | AF20: 0
B21: Communications | D21: allow | F21: =NA() ->  | G21: 0 | H21: 0 | J21: Communications | L21: allow | N21: =NA() ->  | O21: 0 | P21: 0 | R21: Communications | T21: allow | V21: =NA() ->  | W21: 0 | X21: 0 | Z21: Communications | AB21: allow | AD21: =NA() ->  | AE21: 0 | AF21: 0
B22: Other | F22: =NA() ->  | G22: 0 | H22: 0 | J22: Other | N22: =NA() ->  | O22: 0 | P22: 0 | R22: Other | V22: =NA() ->  | W22: 0 | X22: 0 | Z22: Other | AD22: =NA() ->  | AE22: 0 | AF22: 0
B23: WATER SAMPLING AND ANALYSES | J23: WATER SAMPLING AND ANALYSES | R23: WATER SAMPLING AND ANALYSES | Z23: WATER SAMPLING AND ANALYSES
B24: Sampling equipment | D24: allow | F24: =NA() ->  | G24: =IF(ISNA(F24),0,INDEX(IF(RIGHT(F24,1)="A",unitcostaverage,IF(RIGHT(F24,1)="L",UnitCostLow, IF(RIGHT(F24,1)="H",UnitCostHigh,UnitCostSpecified))),MATCH(LEFT(F24,LEN(F24)-1),CostCode,0))) -> 0 | H24: =G24*E24 -> 0 | J24: Sampling equipment | L24: allow | N24: =NA() ->  | O24: =IF(ISNA(N24),0,INDEX(IF(RIGHT(N24,1)="A",unitcostaverage,IF(RIGHT(N24,1)="L",UnitCostLow, IF(RIGHT(N24,1)="H",UnitCostHigh,UnitCostSpecified))),MATCH(LEFT(N24,LEN(N24)-1),CostCode,0))) -> 0 | P24: =O24*M24 -> 0 | R24: Sampling equipment | T24: allow | V24: =NA() ->  | W24: =IF(ISNA(V24),0,INDEX(IF(RIGHT(V24,1)="A",unitcostaverage,IF(RIGHT(V24,1)="L",UnitCostLow, IF(RIGHT(V24,1)="H",UnitCostHigh,UnitCostSpecified))),MATCH(LEFT(V24,LEN(V24)-1),CostCode,0))) -> 0 | X24: =W24*U24 -> 0 | Z24: Sampling equipment | AB24: allow | AD24: =NA() ->  | AE24: =IF(ISNA(AD24),0,INDEX(IF(RIGHT(AD24,1)="A",unitcostaverage,IF(RIGHT(AD24,1)="L",UnitCostLow, IF(RIGHT(AD24,1)="H",UnitCostHigh,UnitCostSpecified))),MATCH(LEFT(AD24,LEN(AD24)-1),CostCode,0))) -> 0 | AF24: =AE24*AC24 -> 0
B25: Analyses | D25: allow | F25: =NA() ->  | G25: =IF(ISNA(F25),0,INDEX(IF(RIGHT(F25,1)="A",unitcostaverage,IF(RIGHT(F25,1)="L",UnitCostLow, IF(RIGHT(F25,1)="H",UnitCostHigh,UnitCostSpecified))),MATCH(LEFT(F25,LEN(F25)-1),CostCode,0))) -> 0 | H25: =G25*E25 -> 0 | J25: Analyses | L25: allow | N25: =NA() ->  | O25: =IF(ISNA(N25),0,INDEX(IF(RIGHT(N25,1)="A",unitcostaverage,IF(RIGHT(N25,1)="L",UnitCostLow, IF(RIGHT(N25,1)="H",UnitCostHigh,UnitCostSpecified))),MATCH(LEFT(N25,LEN(N25)-1),CostCode,0))) -> 0 | P25: =O25*M25 -> 0 | R25: Analyses | T25: allow | V25: =NA() ->  | W25: =IF(ISNA(V25),0,INDEX(IF(RIGHT(V25,1)="A",unitcostaverage,IF(RIGHT(V25,1)="L",UnitCostLow, IF(RIGHT(V25,1)="H",UnitCostHigh,UnitCostSpecified))),MATCH(LEFT(V25,LEN(V25)-1),CostCode,0))) -> 0 | X25: =W25*U25 -> 0 | Z25: Analyses | AB25: allow | AD25: =NA() ->  | AE25: =IF(ISNA(AD25),0,INDEX(IF(RIGHT(AD25,1)="A",unitcostaverage,IF(RIGHT(AD25,1)="L",UnitCostLow, IF(RIGHT(AD25,1)="H",UnitCostHigh,UnitCostSpecified))),MATCH(LEFT(AD25,LEN(AD25)-1),CostCode,0))) -> 0 | AF25: =AE25*AC25 -> 0
B26: Shipping to laboratory | D26: allow | F26: =NA() ->  | G26: =IF(ISNA(F26),0,INDEX(IF(RIGHT(F26,1)="A",unitcostaverage,IF(RIGHT(F26,1)="L",UnitCostLow, IF(RIGHT(F26,1)="H",UnitCostHigh,UnitCostSpecified))),MATCH(LEFT(F26,LEN(F26)-1),CostCode,0))) -> 0 | H26: =G26*E26 -> 0 | J26: Shipping to laboratory | L26: allow | N26: =NA() ->  | O26: =IF(ISNA(N26),0,INDEX(IF(RIGHT(N26,1)="A",unitcostaverage,IF(RIGHT(N26,1)="L",UnitCostLow, IF(RIGHT(N26,1)="H",UnitCostHigh,UnitCostSpecified))),MATCH(LEFT(N26,LEN(N26)-1),CostCode,0))) -> 0 | P26: =O26*M26 -> 0 | R26: Shipping to laboratory | T26: allow | V26: =NA() ->  | W26: =IF(ISNA(V26),0,INDEX(IF(RIGHT(V26,1)="A",unitcostaverage,IF(RIGHT(V26,1)="L",UnitCostLow, IF(RIGHT(V26,1)="H",UnitCostHigh,UnitCostSpecified))),MATCH(LEFT(V26,LEN(V26)-1),CostCode,0))) -> 0 | X26: =W26*U26 -> 0 | Z26: Shipping to laboratory | AB26: allow | AD26: =NA() ->  | AE26: =IF(ISNA(AD26),0,INDEX(IF(RIGHT(AD26,1)="A",unitcostaverage,IF(RIGHT(AD26,1)="L",UnitCostLow, IF(RIGHT(AD26,1)="H",UnitCostHigh,UnitCostSpecified))),MATCH(LEFT(AD26,LEN(AD26)-1),CostCode,0))) -> 0 | AF26: =AE26*AC26 -> 0
B27: Reporting | D27: allow | F27: =NA() ->  | G27: =IF(ISNA(F27),0,INDEX(IF(RIGHT(F27,1)="A",unitcostaverage,IF(RIGHT(F27,1)="L",UnitCostLow, IF(RIGHT(F27,1)="H",UnitCostHigh,UnitCostSpecified))),MATCH(LEFT(F27,LEN(F27)-1),CostCode,0))) -> 0 | H27: =G27*E27 -> 0 | J27: Reporting | L27: allow | N27: =NA() ->  | O27: =IF(ISNA(N27),0,INDEX(IF(RIGHT(N27,1)="A",unitcostaverage,IF(RIGHT(N27,1)="L",UnitCostLow, IF(RIGHT(N27,1)="H",UnitCostHigh,UnitCostSpecified))),MATCH(LEFT(N27,LEN(N27)-1),CostCode,0))) -> 0 | P27: =O27*M27 -> 0 | R27: Reporting | T27: allow | V27: =NA() ->  | W27: =IF(ISNA(V27),0,INDEX(IF(RIGHT(V27,1)="A",unitcostaverage,IF(RIGHT(V27,1)="L",UnitCostLow, IF(RIGHT(V27,1)="H",UnitCostHigh,UnitCostSpecified))),MATCH(LEFT(V27,LEN(V27)-1),CostCode,0))) -> 0 | X27: =W27*U27 -> 0 | Z27: Reporting | AB27: allow | AD27: =NA() ->  | AE27: =IF(ISNA(AD27),0,INDEX(IF(RIGHT(AD27,1)="A",unitcostaverage,IF(RIGHT(AD27,1)="L",UnitCostLow, IF(RIGHT(AD27,1)="H",UnitCostHigh,UnitCostSpecified))),MATCH(LEFT(AD27,LEN(AD27)-1),CostCode,0))) -> 0 | AF27: =AE27*AC27 -> 0
B28: Other | F28: =NA() ->  | G28: =IF(ISNA(F28),0,INDEX(IF(RIGHT(F28,1)="A",unitcostaverage,IF(RIGHT(F28,1)="L",UnitCostLow, IF(RIGHT(F28,1)="H",UnitCostHigh,UnitCostSpecified))),MATCH(LEFT(F28,LEN(F28)-1),CostCode,0))) -> 0 | H28: =G28*E28 -> 0 | J28: Other | N28: =NA() ->  | O28: =IF(ISNA(N28),0,INDEX(IF(RIGHT(N28,1)="A",unitcostaverage,IF(RIGHT(N28,1)="L",UnitCostLow, IF(RIGHT(N28,1)="H",UnitCostHigh,UnitCostSpecified))),MATCH(LEFT(N28,LEN(N28)-1),CostCode,0))) -> 0 | P28: =O28*M28 -> 0 | R28: Other | V28: =NA() ->  | W28: =IF(ISNA(V28),0,INDEX(IF(RIGHT(V28,1)="A",unitcostaverage,IF(RIGHT(V28,1)="L",UnitCostLow, IF(RIGHT(V28,1)="H",UnitCostHigh,UnitCostSpecified))),MATCH(LEFT(V28,LEN(V28)-1),CostCode,0))) -> 0 | X28: =W28*U28 -> 0 | Z28: Other | AD28: =NA() ->  | AE28: =IF(ISNA(AD28),0,INDEX(IF(RIGHT(AD28,1)="A",unitcostaverage,IF(RIGHT(AD28,1)="L",UnitCostLow, IF(RIGHT(AD28,1)="H",UnitCostHigh,UnitCostSpecified))),MATCH(LEFT(AD28,LEN(AD28)-1),CostCode,0))) -> 0 | AF28: =AE28*AC28 -> 0
B29: SITE ACCESS | J29: SITE ACCESS | R29: SITE ACCESS | Z29: SITE ACCESS
B30: Road maintenance (incl. snow removal) | D30: allow | F30: =NA() ->  | G30: =IF(ISNA(F30),0,INDEX(IF(RIGHT(F30,1)="A",unitcostaverage,IF(RIGHT(F30,1)="L",UnitCostLow, IF(RIGHT(F30,1)="H",UnitCostHigh,UnitCostSpecified))),MATCH(LEFT(F30,LEN(F30)-1),CostCode,0))) -> 0 | H30: =G30*E30 -> 0 | J30: Road maintenance (incl. snow removal) | L30: allow | N30: =NA() ->  | O30: =IF(ISNA(N30),0,INDEX(IF(RIGHT(N30,1)="A",unitcostaverage,IF(RIGHT(N30,1)="L",UnitCostLow, IF(RIGHT(N30,1)="H",UnitCostHigh,UnitCostSpecified))),MATCH(LEFT(N30,LEN(N30)-1),CostCode,0))) -> 0 | P30: =O30*M30 -> 0 | R30: Road maintenance (incl. snow removal) | T30: allow | V30: =NA() ->  | W30: =IF(ISNA(V30),0,INDEX(IF(RIGHT(V30,1)="A",unitcostaverage,IF(RIGHT(V30,1)="L",UnitCostLow, IF(RIGHT(V30,1)="H",UnitCostHigh,UnitCostSpecified))),MATCH(LEFT(V30,LEN(V30)-1),CostCode,0))) -> 0 | X30: =W30*U30 -> 0 | Z30: Road maintenance (incl. snow removal) | AB30: allow | AD30: =NA() ->  | AE30: =IF(ISNA(AD30),0,INDEX(IF(RIGHT(AD30,1)="A",unitcostaverage,IF(RIGHT(AD30,1)="L",UnitCostLow, IF(RIGHT(AD30,1)="H",UnitCostHigh,UnitCostSpecified))),MATCH(LEFT(AD30,LEN(AD30)-1),CostCode,0))) -> 0 | AF30: =AE30*AC30 -> 0
B31: Winter road tariff | D31: allow | F31: =NA() ->  | G31: =IF(ISNA(F31),0,INDEX(IF(RIGHT(F31,1)="A",unitcostaverage,IF(RIGHT(F31,1)="L",UnitCostLow, IF(RIGHT(F31,1)="H",UnitCostHigh,UnitCostSpecified))),MATCH(LEFT(F31,LEN(F31)-1),CostCode,0))) -> 0 | H31: =G31*E31 -> 0 | J31: Winter road tariff | L31: allow | N31: =NA() ->  | O31: =IF(ISNA(N31),0,INDEX(IF(RIGHT(N31,1)="A",unitcostaverage,IF(RIGHT(N31,1)="L",UnitCostLow, IF(RIGHT(N31,1)="H",UnitCostHigh,UnitCostSpecified))),MATCH(LEFT(N31,LEN(N31)-1),CostCode,0))) -> 0 | P31: =O31*M31 -> 0 | R31: Winter road tariff | T31: allow | V31: =NA() ->  | W31: =IF(ISNA(V31),0,INDEX(IF(RIGHT(V31,1)="A",unitcostaverage,IF(RIGHT(V31,1)="L",UnitCostLow, IF(RIGHT(V31,1)="H",UnitCostHigh,UnitCostSpecified))),MATCH(LEFT(V31,LEN(V31)-1),CostCode,0))) -> 0 | X31: =W31*U31 -> 0 | Z31: Winter road tariff | AB31: allow | AD31: =NA() ->  | AE31: =IF(ISNA(AD31),0,INDEX(IF(RIGHT(AD31,1)="A",unitcostaverage,IF(RIGHT(AD31,1)="L",UnitCostLow, IF(RIGHT(AD31,1)="H",UnitCostHigh,UnitCostSpecified))),MATCH(LEFT(AD31,LEN(AD31)-1),CostCode,0))) -> 0 | AF31: =AE31*AC31 -> 0
B32: Truck rental | D32: allow | F32: =NA() ->  | G32: =IF(ISNA(F32),0,INDEX(IF(RIGHT(F32,1)="A",unitcostaverage,IF(RIGHT(F32,1)="L",UnitCostLow, IF(RIGHT(F32,1)="H",UnitCostHigh,UnitCostSpecified))),MATCH(LEFT(F32,LEN(F32)-1),CostCode,0))) -> 0 | H32: =G32*E32 -> 0 | J32: Truck rental | L32: allow | N32: =NA() ->  | O32: =IF(ISNA(N32),0,INDEX(IF(RIGHT(N32,1)="A",unitcostaverage,IF(RIGHT(N32,1)="L",UnitCostLow, IF(RIGHT(N32,1)="H",UnitCostHigh,UnitCostSpecified))),MATCH(LEFT(N32,LEN(N32)-1),CostCode,0))) -> 0 | P32: =O32*M32 -> 0 | R32: Truck rental | T32: allow | V32: =NA() ->  | W32: =IF(ISNA(V32),0,INDEX(IF(RIGHT(V32,1)="A",unitcostaverage,IF(RIGHT(V32,1)="L",UnitCostLow, IF(RIGHT(V32,1)="H",UnitCostHigh,UnitCostSpecified))),MATCH(LEFT(V32,LEN(V32)-1),CostCode,0))) -> 0 | X32: =W32*U32 -> 0 | Z32: Truck rental | AB32: allow | AD32: =NA() ->  | AE32: =IF(ISNA(AD32),0,INDEX(IF(RIGHT(AD32,1)="A",unitcostaverage,IF(RIGHT(AD32,1)="L",UnitCostLow, IF(RIGHT(AD32,1)="H",UnitCostHigh,UnitCostSpecified))),MATCH(LEFT(AD32,LEN(AD32)-1),CostCode,0))) -> 0 | AF32: =AE32*AC32 -> 0
B33: Air support | D33: allow | F33: =NA() ->  | G33: =IF(ISNA(F33),0,INDEX(IF(RIGHT(F33,1)="A",unitcostaverage,IF(RIGHT(F33,1)="L",UnitCostLow, IF(RIGHT(F33,1)="H",UnitCostHigh,UnitCostSpecified))),MATCH(LEFT(F33,LEN(F33)-1),CostCode,0))) -> 0 | H33: =G33*E33 -> 0 | J33: Air support | L33: allow | N33: =NA() ->  | O33: =IF(ISNA(N33),0,INDEX(IF(RIGHT(N33,1)="A",unitcostaverage,IF(RIGHT(N33,1)="L",UnitCostLow, IF(RIGHT(N33,1)="H",UnitCostHigh,UnitCostSpecified))),MATCH(LEFT(N33,LEN(N33)-1),CostCode,0))) -> 0 | P33: =O33*M33 -> 0 | R33: Air support | T33: allow | V33: =NA() ->  | W33: =IF(ISNA(V33),0,INDEX(IF(RIGHT(V33,1)="A",unitcostaverage,IF(RIGHT(V33,1)="L",UnitCostLow, IF(RIGHT(V33,1)="H",UnitCostHigh,UnitCostSpecified))),MATCH(LEFT(V33,LEN(V33)-1),CostCode,0))) -> 0 | X33: =W33*U33 -> 0 | Z33: Air support | AB33: allow | AD33: =NA() ->  | AE33: =IF(ISNA(AD33),0,INDEX(IF(RIGHT(AD33,1)="A",unitcostaverage,IF(RIGHT(AD33,1)="L",UnitCostLow, IF(RIGHT(AD33,1)="H",UnitCostHigh,UnitCostSpecified))),MATCH(LEFT(AD33,LEN(AD33)-1),CostCode,0))) -> 0 | AF33: =AE33*AC33 -> 0
G35: Annual water treatment costs | H35: =SUM(H6:H34)+0.0001 -> 0.0001 | O35: Annual water treatment costs | P35: =SUM(P6:P34)+0.0001 -> 0.0001 | W35: Annual water treatment costs | X35: =SUM(X6:X34)+0.0001 -> 0.0001 | AE35: Annual water treatment costs | AF35: =SUM(AF6:AF34)+0.0001 -> 0.0001
B36: Number of years of water treatment | D36: years | J36: Number of years of water treatment | L36: years | R36: Number of years of water treatment | T36: years | Z36: Number of years of water treatment | AB36: years
G37: Total | H37: =H35*E36+H5 -> 0 | O37: Total | P37: =P35*M36+P5 -> 0 | W37: Total | X37: =X35*U36+X5 -> 0 | AE37: Total | AF37: =AF35*AC36+AF5 -> 0
B39: Note: This post-closure cost is linked back to the ICM Worksheet | J39: Note: This operational cost is linked back to the Tailings Worksheet | R39: Note: This operational cost is linked back to the Water Management Worksheet | Z39: Note: This post-closure cost is linked back to the Post Closure Worksheet

Sheet Unit_Costs
A1: Unit Cost Table (for refining unit costs see "Estimator" worksheet)
B2: Year For Rate Escalation (from 2024) Based on Annual Average CPI (obtained from Statistics Canada)* | J2: Select Location
B3: 2026 | D3: If year is highlighted yellow, no CPI data is currently available | J3: Nunavut | AB3: Do Not Touch
B4: *Excludes labour and equipment rental rates which have a 4% annual increase applied from 2024
A5: ITEM | B5: Detail | D5: COST CODE | E5: UNITS | F5: LOW $ | G5: HIGH $ | H5: SPECIFIED $ | J5: Notes | K5: Price Sources | L5: Price Basis/Reference | M5: Hyperlink where applicable **Rates or links may vary from the original time they were obtained | N5: Additional Notes | AB5: ITEM | AC5: Detail | AE5: COST CODE | AF5: UNITS | AG5: LOW $ | AH5: HIGH $ | AI5: SPECIFIED $
A7: Accommodation | AB7: Accommodation
D8: ACCM | E8: persondays | F8: =IF(ISBLANK(AG8)=TRUE,"",IF($B$3=2024,AG8,IF(SheetName="Other (enter value below)",AG8*(1+$J$4),IF($B$3>_xlfn.AGGREGATE(4,6,INDIRECT("CPI"&SUBSTITUTE(SheetName," ","")&"!$A:$A"))+1,AG8*VLOOKUP($B$3-2,INDIRECT("CPI"&SUBSTITUTE(SheetName," ","")&"!$A:$C"),3,FALSE),AG8*VLOOKUP($B$3-1,INDIRECT("CPI"&SUBSTITUTE(SheetName," ","")&"!$A:$C"),3,FALSE))))) -> 166.9055673 | G8: =IF(ISBLANK(AH8)=TRUE,"",IF($B$3=2024,AH8,IF(SheetName="Other (enter value below)",AH8*(1+$J$4),IF($B$3>_xlfn.AGGREGATE(4,6,INDIRECT("CPI"&SUBSTITUTE(SheetName," ","")&"!$A:$A"))+1,AH8*VLOOKUP($B$3-2,INDIRECT("CPI"&SUBSTITUTE(SheetName," ","")&"!$A:$C"),3,FALSE),AH8*VLOOKUP($B$3-1,INDIRECT("CPI"&SUBSTITUTE(SheetName," ","")&"!$A:$C"),3,FALSE))))) -> 273.397463 | J8: Low (road access) High (remote access) | K8: Published Database | L8: Published database - Construction Labour Relations Alberta | N8: Subsistence Rates – Construction Labour Relations (clra.org), added 30% for Yellowknife | AE8: ACCM | AF8: persondays | AG8: 163 | AH8: 267
A9: Buildings - Decontaminate | AB9: Buildings - Decontaminate
B10: Asbestos | D10: BDA | E10: m2 | F10: =IF(ISBLANK(AG10)=TRUE,"",IF($B$3=2024,AG10,IF(SheetName="Other (enter value below)",AG10*(1+$J$4),IF($B$3>_xlfn.AGGREGATE(4,6,INDIRECT("CPI"&SUBSTITUTE(SheetName," ","")&"!$A:$A"))+1,AG10*VLOOKUP($B$3-2,INDIRECT("CPI"&SUBSTITUTE(SheetName," ","")&"!$A:$C"),3,FALSE),AG10*VLOOKUP($B$3-1,INDIRECT("CPI"&SUBSTITUTE(SheetName," ","")&"!$A:$C"),3,FALSE))))) -> 539.6272023 | G10: =IF(ISBLANK(AH10)=TRUE,"",IF($B$3=2024,AH10,IF(SheetName="Other (enter value below)",AH10*(1+$J$4),IF($B$3>_xlfn.AGGREGATE(4,6,INDIRECT("CPI"&SUBSTITUTE(SheetName," ","")&"!$A:$A"))+1,AH10*VLOOKUP($B$3-2,INDIRECT("CPI"&SUBSTITUTE(SheetName," ","")&"!$A:$C"),3,FALSE),AH10*VLOOKUP($B$3-1,INDIRECT("CPI"&SUBSTITUTE(SheetName," ","")&"!$A:$C"),3,FALSE))))) -> 853.9830867 | J10: Low (non friable) High (fiable) | K10: Task Database | L10: Richardson Costonline 2024 | N10: Asbestos Abatement: 1.material and labour for containment work 2. removal work 3. clean-up work/final cleanup 4.miscellaneous 5. indirect labour/air sampling test/transportation and disposal 6 contractor overhead and profit | AC10: Asbestos | AE10: BDA | AF10: m2 | AG10: 527 | AH10: 834
A11: Buildings - Remove | AB11: Buildings - Remove
B12: Wood - teardown | D12: BRW | E12: m3 | F12: =IF(ISBLANK(AG12)=TRUE,"",IF($B$3=2024,AG12,IF(SheetName="Other (enter value below)",AG12*(1+$J$4),IF($B$3>_xlfn.AGGREGATE(4,6,INDIRECT("CPI"&SUBSTITUTE(SheetName," ","")&"!$A:$A"))+1,AG12*VLOOKUP($B$3-2,INDIRECT("CPI"&SUBSTITUTE(SheetName," ","")&"!$A:$C"),3,FALSE),AG12*VLOOKUP($B$3-1,INDIRECT("CPI"&SUBSTITUTE(SheetName," ","")&"!$A:$C"),3,FALSE))))) -> 84.98872445 | K12: Task Database | L12: Richardson Costonline 2024 | N12: note: 1. no mechanical system removal or salvage included; 2. Based on building volume; 3. Teardown only, disposal and/or transportation calculated separately | AC12: Wood | AE12: BRW | AF12: m3 | AG12: 83
B13: Concrete - teardown | D13: BRC | E13: m3 | F13: 95.22832981 | K13: Task Database | L13: Richardson Costonline 2024 | N13: note: 1. no mechanical system removal or salvage included; 2. Based on building volume; 3. Teardown only, disposal and/or transportation calculated separately | AC13: Concrete | AE13: BRC | AF13: m3 | AG13: 93
B14: Steel - teardown | D14: BRS1 | E14: m3 | F14: 82.94080338 | K14: Task Database | L14: Richardson Costonline 2024 | N14: note: 1. no mechanical system removal or salvage included; 2. Based on building volume; 3. Teardown only, disposal and/or transportation calculated separately | AC14: Steel - teardown | AE14: BRS1 | AF14: m3 | AG14: 81
B15: Steel - for salvage | D15: BRS2 | E15: mt | F15: 255.9901339 | K15: Task Database | L15: RS means 2024 Q2 Yellowknife | N15: steel scrap and salvage, changed the UoM from m2 to mt | AC15: Steel - for salvage | AE15: BRS2 | AF15: mt | AG15: 250
A16: Concrete work | AB16: Concrete work
B17: Footing | D17: CFT | E17: m3 | F17: =IF(ISBLANK(AG17)=TRUE,"",IF($B$3=2024,AG17,IF(SheetName="Other (enter value below)",AG17*(1+$J$4),IF($B$3>_xlfn.AGGREGATE(4,6,INDIRECT("CPI"&SUBSTITUTE(SheetName," ","")&"!$A:$A"))+1,AG17*VLOOKUP($B$3-2,INDIRECT("CPI"&SUBSTITUTE(SheetName," ","")&"!$A:$C"),3,FALSE),AG17*VLOOKUP($B$3-1,INDIRECT("CPI"&SUBSTITUTE(SheetName," ","")&"!$A:$C"),3,FALSE))))) -> 942.0436927 | K17: Historical Database | L17: Historical Database | N17: Contractor 2023 Sudbury Canada. rebar supply and install excluded, not include batch plant | AC17: Footing | AE17: CFT | AF17: m3 | AG17: 920
B18: Foundation | D18: CFD | E18: m3 | F18: 1658.816068 | K18: Historical Database | L18: Historical Database | N18: Contractor 2023 Sudbury Canada. rebar supply and install excluded, not include batch plant | AC18: Foundation | AE18: CFD | AF18: m3 | AG18: 1620
B19: Grade beam | D19: CGB | E19: m3 | F19: 5508.907681 | K19: Historical Database | L19: Historical Database | N19: Contractor 2023 Sudbury Canada. rebar supply and install excluded, not include batch plant | AC19: Grade beam | AE19: CGB | AF19: m3 | AG19: 5380
B20: Piers | D20: CPS | E20: m3 | F20: 3338.111346 | K20: Historical Database | L20: Historical Database | N20: Contractor 2023 Sudbury Canada. rebar supply and install excluded, not include batch plant | AC20: Piers | AE20: CPS | AF20: m3 | AG20: 3260
B21: Pile cap | D21: CPC | E21: m3 | F21: 1966.004228 | K21: Historical Database | L21: Historical Database | N21: Contractor 2023 Sudbury Canada. rebar supply and install excluded, not include batch plant | AC21: Pile cap | AE21: CPC | AF21: m3 | AG21: 1920
B22: Slab on Grade | D22: CSG | E22: m3 | F22: 921.564482 | K22: Historical Database | L22: Historical Database | N22: Contractor 2023 Sudbury Canada. rebar supply and install excluded, not include batch plant | AC22: Slab on Grade | AE22: CSG | AF22: m3 | AG22: 900
B23: Rebar | D23: CRB | E23: kg | F23: 3.819372798 | K23: Historical Database | L23: Historical Database | N23: Contractor 2023 Sudbury Canada. rebar only | AC23: Rebar | AE23: CRB | AF23: kg | AG23: 3.73
A24: Contaminated Soils | AB24: Contaminated Soils
B25: ESA Phase 1 | D25: CS1 | E25: each | F25: =IF(ISBLANK(AG25)=TRUE,"",IF($B$3=2024,AG25,IF(SheetName="Other (enter value below)",AG25*(1+$J$4),IF($B$3>_xlfn.AGGREGATE(4,6,INDIRECT("CPI"&SUBSTITUTE(SheetName," ","")&"!$A:$A"))+1,AG25*VLOOKUP($B$3-2,INDIRECT("CPI"&SUBSTITUTE(SheetName," ","")&"!$A:$C"),3,FALSE),AG25*VLOOKUP($B$3-1,INDIRECT("CPI"&SUBSTITUTE(SheetName," ","")&"!$A:$C"),3,FALSE))))) -> 56184.71459 | K25: Historical Database | L25: Historical Database | N25: Based on actual costs incurred at mine investigation projects across Canada. Based on per area or mine Site. Assumes the following approximate hours (Registered Engineer: 50 hours, Environmental Coordinator: 151 hours, Environmental Technician: 181 hours) | AC25: ESA Phase 1 | AE25: CS1 | AF25: each | AG25: 54870
B26: ESA Phase 2/3 | D26: CS2 | E26: each | F26: 307188.1607 | K26: Historical Database | L26: Historical Database | N26: Based on actual costs incurred at mine investigation projects across Canada. Based on per area or mine Site. Assumes the following approximate hours plus expenses (Registered Engineer: 125 hours, Environmental Coordinator: 250 hours, Environmental Technician: 500 hours). Expenses include drilling costs, laboratory expenses, equipment cost, etc. Does not include mobilization or living expenses which are expected to be accounted for elsewhere. | AC26: ESA Phase 2 | AE26: CS2 | AF26: each | AG26: 300000
B27: Remediate on site | D27: CSR | E27: m3 | F27: 181.2410148 | G27: 409.5842142 | J27: Low (bioremediate) High (engineered landfill) | K27: Estimated | L27: Estimated | N27: Low cost assumes 10 rotations of soil based on first principles for low spec soil excavation | AC27: Remediate on site | AE27: CSR | AF27: m3 | AG27: 177 | AH27: 400
A28: Dozing | AB28: Dozing
B29: doze rock piles | D29: DR | E29: m3 | F29: =IF(ISBLANK(AG29)=TRUE,"",IF($B$3=2024,AG29,IF(SheetName="Other (enter value below)",AG29*(1+$J$4),IF($B$3>_xlfn.AGGREGATE(4,6,INDIRECT("CPI"&SUBSTITUTE(SheetName," ","")&"!$A:$A"))+1,AG29*VLOOKUP($B$3-2,INDIRECT("CPI"&SUBSTITUTE(SheetName," ","")&"!$A:$C"),3,FALSE),AG29*VLOOKUP($B$3-1,INDIRECT("CPI"&SUBSTITUTE(SheetName," ","")&"!$A:$C"),3,FALSE))))) -> 1.7202537 | G29: =IF(ISBLANK(AH29)=TRUE,"",IF($B$3=2024,AH29,IF(SheetName="Other (enter value below)",AH29*(1+$J$4),IF($B$3>_xlfn.AGGREGATE(4,6,INDIRECT("CPI"&SUBSTITUTE(SheetName," ","")&"!$A:$A"))+1,AH29*VLOOKUP($B$3-2,INDIRECT("CPI"&SUBSTITUTE(SheetName," ","")&"!$A:$C"),3,FALSE),AH29*VLOOKUP($B$3-1,INDIRECT("CPI"&SUBSTITUTE(SheetName," ","")&"!$A:$C"),3,FALSE))))) -> 3.932008457 | J29: Low - doze crest off dump. High - push up to 300 m | K29: Escalated | L29: Escalated from previous rate | AC29: doze rock piles | AE29: DR | AF29: m3 | AG29: 1.68 | AH29: 3.84
B30: doze overburden/soil piles | D30: DS | E30: m3 | F30: =IF(ISBLANK(AG30)=TRUE,"",IF($B$3=2024,AG30,IF(SheetName="Other (enter value below)",AG30*(1+$J$4),IF($B$3>_xlfn.AGGREGATE(4,6,INDIRECT("CPI"&SUBSTITUTE(SheetName," ","")&"!$A:$A"))+1,AG30*VLOOKUP($B$3-2,INDIRECT("CPI"&SUBSTITUTE(SheetName," ","")&"!$A:$C"),3,FALSE),AG30*VLOOKUP($B$3-1,INDIRECT("CPI"&SUBSTITUTE(SheetName," ","")&"!$A:$C"),3,FALSE))))) -> 1.556420014 | G30: =IF(ISBLANK(AH30)=TRUE,"",IF($B$3=2024,AH30,IF(SheetName="Other (enter value below)",AH30*(1+$J$4),IF($B$3>_xlfn.AGGREGATE(4,6,INDIRECT("CPI"&SUBSTITUTE(SheetName," ","")&"!$A:$A"))+1,AH30*VLOOKUP($B$3-2,INDIRECT("CPI"&SUBSTITUTE(SheetName," ","")&"!$A:$C"),3,FALSE),AH30*VLOOKUP($B$3-1,INDIRECT("CPI"&SUBSTITUTE(SheetName," ","")&"!$A:$C"),3,FALSE))))) -> 6.225680056 | J30: Low - doze crest off dump. High - push up to 300 m | K30: Escalated | L30: Escalated from previous rate | AC30: doze overburden/soil piles | AE30: DS | AF30: m3 | AG30: 1.52 | AH30: 6.08
A31: Drilling & Blasting, Crushing and Screening, Clearing and Grubbing | AB31: Drilling & Blasting, Crushing and Screening, Clearing and Grubbing
B32: Drilling and Blasting | D32: DAB | E32: m3 | L32: Site Specific Cost to be developed if required | N32: Site specific. Assumes Low for soil, high for rock | AC32: Drilling and Blasting | AE32: DAB | AF32: m3
B33: Crushing and Screening | D33: CAS | E33: m3 | F33: =IF(ISBLANK(AG33)=TRUE,"",IF($B$3=2024,AG33,IF(SheetName="Other (enter value below)",AG33*(1+$J$4),IF($B$3>_xlfn.AGGREGATE(4,6,INDIRECT("CPI"&SUBSTITUTE(SheetName," ","")&"!$A:$A"))+1,AG33*VLOOKUP($B$3-2,INDIRECT("CPI"&SUBSTITUTE(SheetName," ","")&"!$A:$C"),3,FALSE),AG33*VLOOKUP($B$3-1,INDIRECT("CPI"&SUBSTITUTE(SheetName," ","")&"!$A:$C"),3,FALSE))))) -> 19.86483439 | G33: 26.43866103 | K33: Historical Database | L33: Quote | N33: Estimated. Low for soil, high for rock | AC33: Crushing and Screening | AE33: CAS | AF33: m3 | AG33: 19.4 | AH33: 25.82
B34: Clearing and Grubbing | D34: SBC | E34: m2 | F34: 1.797754713 | G34: 5.979289553 | J34: Low (cut & chip trees to 6 inch) High (cut and chip trees to 12 inch) | K34: Task Database | L34: RS means 2024 Q2 Yellowknife | N34: UR: clear and grub, cut and chip trees 12" dia, Low: clear and grub, cut and chip light trees 6" dia, High: clear and grub, cut and chip light trees 6" dia | AC34: Clearing and Grubbing | AE34: SBC | AF34: m2 | AG34: 1.7556875 | AH34: 5.839375
A35: Excavate Rock - Low Spec (e.g. Stockpile Source, Bulk Fill) | J35: Low (1KM haul) High (5 KM haul), specify in longer haul distances | AB35: Excavate Rock - Low Spec (Stockpile Source)
B36: load/haul/place | D36: RB1 | E36: m3 | F36: =IF(ISBLANK(AG36)=TRUE,"",IF($B$3=2024,AG36,IF(SheetName="Other (enter value below)",AG36*(1+$J$4),IF($B$3>_xlfn.AGGREGATE(4,6,INDIRECT("CPI"&SUBSTITUTE(SheetName," ","")&"!$A:$A"))+1,AG36*VLOOKUP($B$3-2,INDIRECT("CPI"&SUBSTITUTE(SheetName," ","")&"!$A:$C"),3,FALSE),AG36*VLOOKUP($B$3-1,INDIRECT("CPI"&SUBSTITUTE(SheetName," ","")&"!$A:$C"),3,FALSE))))) -> 10.22936575 | G36: =IF(ISBLANK(AH36)=TRUE,"",IF($B$3=2024,AH36,IF(SheetName="Other (enter value below)",AH36*(1+$J$4),IF($B$3>_xlfn.AGGREGATE(4,6,INDIRECT("CPI"&SUBSTITUTE(SheetName," ","")&"!$A:$A"))+1,AH36*VLOOKUP($B$3-2,INDIRECT("CPI"&SUBSTITUTE(SheetName," ","")&"!$A:$C"),3,FALSE),AH36*VLOOKUP($B$3-1,INDIRECT("CPI"&SUBSTITUTE(SheetName," ","")&"!$A:$C"),3,FALSE))))) -> 20.72496124 | J36: Add drilling and blasting if the source of rock is bedrock | K36: First Principles | L36: See appended estimator | N36: Material = 2.7 SG factor, 1.75 swell factor, 80% fill factor, cycle minutes per hour = 50, truck minutes per hour = 50, loader minutes per hour = 50, hours/day = 12, shifts per day = 1. 80% productivity, 300,000 m3. Equipment = CAT 725C Truck, CAT 349F Loader/Shovel, Truck Capacity 27,000 kg, Bucket capacity = 3.1 m3, Dig time per bucket = 9 sec, loaded turn = 9 sec, dump to truck = 5 sec, empty turn = 8 sec, Truck backin = 30 sec, Turn and dump = 55 sec. Low = 1km transport, truck average speed = 35km/hr; High = 5km transport, truck average speed = 40 km/hr. | AC36: load/haul/place | AE36: RB1 | AF36: m3 | AG36: 9.99 | AH36: 20.24
B37: RB1 + spread and compact | D37: RB2 | E37: m3 | F37: =IF(ISBLANK(AG37)=TRUE,"",IF($B$3=2024,AG37,IF(SheetName="Other (enter value below)",AG37*(1+$J$4),IF($B$3>_xlfn.AGGREGATE(4,6,INDIRECT("CPI"&SUBSTITUTE(SheetName," ","")&"!$A:$A"))+1,AG37*VLOOKUP($B$3-2,INDIRECT("CPI"&SUBSTITUTE(SheetName," ","")&"!$A:$C"),3,FALSE),AG37*VLOOKUP($B$3-1,INDIRECT("CPI"&SUBSTITUTE(SheetName," ","")&"!$A:$C"),3,FALSE))))) -> 14.26377026 | G37: =IF(ISBLANK(AH37)=TRUE,"",IF($B$3=2024,AH37,IF(SheetName="Other (enter value below)",AH37*(1+$J$4),IF($B$3>_xlfn.AGGREGATE(4,6,INDIRECT("CPI"&SUBSTITUTE(SheetName," ","")&"!$A:$A"))+1,AH37*VLOOKUP($B$3-2,INDIRECT("CPI"&SUBSTITUTE(SheetName," ","")&"!$A:$C"),3,FALSE),AH37*VLOOKUP($B$3-1,INDIRECT("CPI"&SUBSTITUTE(SheetName," ","")&"!$A:$C"),3,FALSE))))) -> 29.11119803 | K37: First Principles | L37: See appended estimator | N37: Dozer for spread and compact = D8T LGP. Doubled normal dozer rate under load haul place. | AC37: RB1 + spread and compact | AE37: RB2 | AF37: m3 | AG37: 13.93 | AH37: 28.43
B38: Specified activity | D38: RBS | E38: m3 | F38: =IF(ISBLANK(AG38)=TRUE,"",IF($B$3=2024,AG38,IF(SheetName="Other (enter value below)",AG38*(1+$J$4),IF($B$3>_xlfn.AGGREGATE(4,6,INDIRECT("CPI"&SUBSTITUTE(SheetName," ","")&"!$A:$A"))+1,AG38*VLOOKUP($B$3-2,INDIRECT("CPI"&SUBSTITUTE(SheetName," ","")&"!$A:$C"),3,FALSE),AG38*VLOOKUP($B$3-1,INDIRECT("CPI"&SUBSTITUTE(SheetName," ","")&"!$A:$C"),3,FALSE))))) ->  | H38: =IF(ISBLANK(AI38)=TRUE,"",IF($B$3=2024,AI38,IF(SheetName="Other (enter value below)",AI38*(1+AA34),IF($B$3>_xlfn.AGGREGATE(4,6,INDIRECT("CPI"&SheetName&"!$A:$A"))+1,AI38*VLOOKUP($B$3-2,INDIRECT("CPI"&SheetName&"!$A:$C"),3,FALSE),AI38*VLOOKUP($B$3-1,INDIRECT("CPI"&SheetName&"!$A:$C"),3,FALSE))))) ->  | AC38: Specified activity | AE38: RBS | AF38: m3
A39: Excavate Rock - High Spec (i.e. Rip Rap) | J39: Low (1KM haul) High (5 KM haul), specify in longer haul distances | AB39: Excavate Rock - High Spec (i.e. Rip Rap)
B40: load/haul/place | D40: RC1 | E40: m3 | F40: =IF(ISBLANK(AG40)=TRUE,"",IF($B$3=2024,AG40,IF(SheetName="Other (enter value below)",AG40*(1+$J$4),IF($B$3>_xlfn.AGGREGATE(4,6,INDIRECT("CPI"&SUBSTITUTE(SheetName," ","")&"!$A:$A"))+1,AG40*VLOOKUP($B$3-2,INDIRECT("CPI"&SUBSTITUTE(SheetName," ","")&"!$A:$C"),3,FALSE),AG40*VLOOKUP($B$3-1,INDIRECT("CPI"&SUBSTITUTE(SheetName," ","")&"!$A:$C"),3,FALSE))))) -> 11.71410853 | G40: =IF(ISBLANK(AH40)=TRUE,"",IF($B$3=2024,AH40,IF(SheetName="Other (enter value below)",AH40*(1+$J$4),IF($B$3>_xlfn.AGGREGATE(4,6,INDIRECT("CPI"&SUBSTITUTE(SheetName," ","")&"!$A:$A"))+1,AH40*VLOOKUP($B$3-2,INDIRECT("CPI"&SUBSTITUTE(SheetName," ","")&"!$A:$C"),3,FALSE),AH40*VLOOKUP($B$3-1,INDIRECT("CPI"&SUBSTITUTE(SheetName," ","")&"!$A:$C"),3,FALSE))))) -> 22.99815363 | K40: First Principles | L40: See appended estimator | N40: Material = 2.7 SG factor, 1.75 swell factor, 80% fill factor, cycle minutes per hour = 50, truck minutes per hour = 50, loader minutes per hour = 50, hours/day = 12, shifts per day = 1. 75% productivity, 300,000 m3. Equipment = CAT 725C Truck, CAT 349F Loader/Shovel, Truck Capacity 23,000 kg, Bucket size = 3.1 m3, Dig time per bucket = 15 sec, loaded turn = 9 sec, dump to truck = 5 sec, empty turn = 8 sec, Truck backin = 30 sec, Turn and dump = 55 sec. Low = 1km transport, truck average speed = 35km/hr; High = 5km transport, truck average speed = 40 km/hr. | AC40: load/haul/place | AE40: RC1 | AF40: m3 | AG40: 11.44 | AH40: 22.46
B41: RC1 + spread and compact | D41: RC2 | E41: m3 | F41: =IF(ISBLANK(AG41)=TRUE,"",IF($B$3=2024,AG41,IF(SheetName="Other (enter value below)",AG41*(1+$J$4),IF($B$3>_xlfn.AGGREGATE(4,6,INDIRECT("CPI"&SUBSTITUTE(SheetName," ","")&"!$A:$A"))+1,AG41*VLOOKUP($B$3-2,INDIRECT("CPI"&SUBSTITUTE(SheetName," ","")&"!$A:$C"),3,FALSE),AG41*VLOOKUP($B$3-1,INDIRECT("CPI"&SUBSTITUTE(SheetName," ","")&"!$A:$C"),3,FALSE))))) -> 18.61560254 | G41: =IF(ISBLANK(AH41)=TRUE,"",IF($B$3=2024,AH41,IF(SheetName="Other (enter value below)",AH41*(1+$J$4),IF($B$3>_xlfn.AGGREGATE(4,6,INDIRECT("CPI"&SUBSTITUTE(SheetName," ","")&"!$A:$A"))+1,AH41*VLOOKUP($B$3-2,INDIRECT("CPI"&SUBSTITUTE(SheetName," ","")&"!$A:$C"),3,FALSE),AH41*VLOOKUP($B$3-1,INDIRECT("CPI"&SUBSTITUTE(SheetName," ","")&"!$A:$C"),3,FALSE))))) -> 41.63423538 | K41: First Principles | L41: See appended estimator | N41: Dozer for spread and compact = D8T LGP. Trippled normal dozer rate under load haul place. | AC41: RC1 + spread and compact | AE41: RC3 | AF41: m3 | AG41: 18.18 | AH41: 40.66
B42: Specified activity | D42: RCS | E42: m3 | F42: =IF(ISBLANK(AG42)=TRUE,"",IF($B$3=2024,AG42,IF(SheetName="Other (enter value below)",AG42*(1+$J$4),IF($B$3>_xlfn.AGGREGATE(4,6,INDIRECT("CPI"&SUBSTITUTE(SheetName," ","")&"!$A:$A"))+1,AG42*VLOOKUP($B$3-2,INDIRECT("CPI"&SUBSTITUTE(SheetName," ","")&"!$A:$C"),3,FALSE),AG42*VLOOKUP($B$3-1,INDIRECT("CPI"&SUBSTITUTE(SheetName," ","")&"!$A:$C"),3,FALSE))))) ->  | H42: =IF(ISBLANK(AI42)=TRUE,"",IF($B$3=2024,AI42,IF(SheetName="Other (enter value below)",AI42*(1+AA38),IF($B$3>_xlfn.AGGREGATE(4,6,INDIRECT("CPI"&SheetName&"!$A:$A"))+1,AI42*VLOOKUP($B$3-2,INDIRECT("CPI"&SheetName&"!$A:$C"),3,FALSE),AI42*VLOOKUP($B$3-1,INDIRECT("CPI"&SheetName&"!$A:$C"),3,FALSE))))) ->  | AC42: Specified activity | AE42: RCS | AF42: m3
A43: Excavate Soil - Low Spec (i.e. bulk fill and excavation) | J43: Low (1KM haul) High (5 KM haul), specify in longer haul distances | AB43: Excavate Soil - Low Spec
B44: load/haul/place | D44: SB1 | E44: m3 | F44: =IF(ISBLANK(AG44)=TRUE,"",IF($B$3=2024,AG44,IF(SheetName="Other (enter value below)",AG44*(1+$J$4),IF($B$3>_xlfn.AGGREGATE(4,6,INDIRECT("CPI"&SUBSTITUTE(SheetName," ","")&"!$A:$A"))+1,AG44*VLOOKUP($B$3-2,INDIRECT("CPI"&SUBSTITUTE(SheetName," ","")&"!$A:$C"),3,FALSE),AG44*VLOOKUP($B$3-1,INDIRECT("CPI"&SUBSTITUTE(SheetName," ","")&"!$A:$C"),3,FALSE))))) -> 9.225884426 | G44: 18.68727977 | K44: First Principles | L44: See appended estimator | N44: Material = 1.95 SG factor, 1.25 swell factor, 100% fill factor, cycle minutes per hour = 50, truck minutes per hour = 50, loader minutes per hour = 50, hours/day = 12, shifts per day = 1. 80% productivity, 300,000 m3. Equipment = CAT 725C Truck, CAT 349F Loader/Shovel, Truck Capacity 23,000 kg, Bucket capacity = 3.1 m3, Dig time per bucket = 9 sec, loaded turn = 9 sec, dump to truck = 5 sec, empty turn = 8 sec, Truck backin = 30 sec, Low = 1km transport, truck average speed = 35km/hr; High = 5km transport, truck average speed = 40 km/hr. | AC44: load/haul/place | AE44: SB1 | AF44: m3 | AG44: 9.01 | AH44: 18.25
B45: SB1 + spread and compact | D45: SB2 | E45: m3 | F45: 12.88142354 | G45: 26.34650458 | K45: First Principles | L45: See appended estimator | N45: Dozer for spread and compact = D8T LGP. Doubled normal dozer rate under load haul place. | AC45: SB1 + spread and compact | AE45: SB3 | AF45: m3 | AG45: 12.58 | AH45: 25.73
B46: Tailings | D46: SBT | E46: m3 | F46: 15.24677237 | G46: 30.50378436 | K46: First Principles | L46: See appended estimator | N46: Material = 3.25 SG, 1.25 swell factor, 60% bucket fill factor, 80% productivity. Assumes same equipment, haul distance, and material volume as SB1L. | AC46: Tailings | AE46: SBT | AF46: m3 | AG46: 14.89 | AH46: 29.79
B47: Specified activity | D47: SBS | E47: m3 | F47: =IF(ISBLANK(AG47)=TRUE,"",IF($B$3=2024,AG47,IF(SheetName="Other (enter value below)",AG47*(1+$J$4),IF($B$3>_xlfn.AGGREGATE(4,6,INDIRECT("CPI"&SUBSTITUTE(SheetName," ","")&"!$A:$A"))+1,AG47*VLOOKUP($B$3-2,INDIRECT("CPI"&SUBSTITUTE(SheetName," ","")&"!$A:$C"),3,FALSE),AG47*VLOOKUP($B$3-1,INDIRECT("CPI"&SUBSTITUTE(SheetName," ","")&"!$A:$C"),3,FALSE))))) ->  | AC47: Specified activity | AE47: SBS | AF47: m3
A48: Excavate Soil - High Spec (i.e. Engineered Covers, Spillway Clearing, etc.) | J48: Low (1KM haul) High (5 KM haul), specify in longer haul distances | AB48: Excavate Soil - High Spec
B49: load/haul/place | D49: SC1 | E49: m3 | F49: =IF(ISBLANK(AG49)=TRUE,"",IF($B$3=2024,AG49,IF(SheetName="Other (enter value below)",AG49*(1+$J$4),IF($B$3>_xlfn.AGGREGATE(4,6,INDIRECT("CPI"&SUBSTITUTE(SheetName," ","")&"!$A:$A"))+1,AG49*VLOOKUP($B$3-2,INDIRECT("CPI"&SUBSTITUTE(SheetName," ","")&"!$A:$C"),3,FALSE),AG49*VLOOKUP($B$3-1,INDIRECT("CPI"&SUBSTITUTE(SheetName," ","")&"!$A:$C"),3,FALSE))))) -> 11.59123326 | G49: =IF(ISBLANK(AH49)=TRUE,"",IF($B$3=2024,AH49,IF(SheetName="Other (enter value below)",AH49*(1+$J$4),IF($B$3>_xlfn.AGGREGATE(4,6,INDIRECT("CPI"&SUBSTITUTE(SheetName," ","")&"!$A:$A"))+1,AH49*VLOOKUP($B$3-2,INDIRECT("CPI"&SUBSTITUTE(SheetName," ","")&"!$A:$C"),3,FALSE),AH49*VLOOKUP($B$3-1,INDIRECT("CPI"&SUBSTITUTE(SheetName," ","")&"!$A:$C"),3,FALSE))))) -> 19.85459479 | K49: First Principles | L49: See appended estimator | N49: Material = 1.95 SG factor, 1.25 swell factor, 100% fill factor, cycle minutes per hour = 50, truck minutes per hour = 50, loader minutes per hour = 50, hours/day = 12, shifts per day = 1. 75% productivity, 300,000 m3. Equipment = CAT 730C Truck, CAT 349F Loader/Shovel, Truck Capacity 23,000 kg, Bucket capacity = 3.1 m3, Dig time per bucket = 15 sec, loaded turn = 9 sec, dump to truck = 5 sec, empty turn = 8 sec, Truck backin = 30 sec, Turn and dump = 55 sec. Low = 1km transport, truck average speed = 35km/hr; High = 5km transport, truck average speed = 40 km/hr. | AC49: load/haul/place | AE49: SC1 | AF49: m3 | AG49: 11.32 | AH49: 19.39
B50: SC1 + spread and compact | D50: SC2 | E50: m3 | F50: =IF(ISBLANK(AG50)=TRUE,"",IF($B$3=2024,AG50,IF(SheetName="Other (enter value below)",AG50*(1+$J$4),IF($B$3>_xlfn.AGGREGATE(4,6,INDIRECT("CPI"&SUBSTITUTE(SheetName," ","")&"!$A:$A"))+1,AG50*VLOOKUP($B$3-2,INDIRECT("CPI"&SUBSTITUTE(SheetName," ","")&"!$A:$C"),3,FALSE),AG50*VLOOKUP($B$3-1,INDIRECT("CPI"&SUBSTITUTE(SheetName," ","")&"!$A:$C"),3,FALSE))))) -> 20.74544045 | G50: =IF(ISBLANK(AH50)=TRUE,"",IF($B$3=2024,AH50,IF(SheetName="Other (enter value below)",AH50*(1+$J$4),IF($B$3>_xlfn.AGGREGATE(4,6,INDIRECT("CPI"&SUBSTITUTE(SheetName," ","")&"!$A:$A"))+1,AH50*VLOOKUP($B$3-2,INDIRECT("CPI"&SUBSTITUTE(SheetName," ","")&"!$A:$C"),3,FALSE),AH50*VLOOKUP($B$3-1,INDIRECT("CPI"&SUBSTITUTE(SheetName," ","")&"!$A:$C"),3,FALSE))))) -> 34.5996265 | K50: First Principles | L50: See appended estimator | N50: Dozer for spread and compact = D8T LGP. Trippled normal dozer rate under load haul place. | AC50: SC1 + spread and compact | AE50: SC3 | AF50: m3 | AG50: 20.26 | AH50: 33.79
B51: Specified activity | D51: SCS | E51: m3 | F51: =IF(ISBLANK(AG51)=TRUE,"",IF($B$3=2024,AG51,IF(SheetName="Other (enter value below)",AG51*(1+$J$4),IF($B$3>_xlfn.AGGREGATE(4,6,INDIRECT("CPI"&SUBSTITUTE(SheetName," ","")&"!$A:$A"))+1,AG51*VLOOKUP($B$3-2,INDIRECT("CPI"&SUBSTITUTE(SheetName," ","")&"!$A:$C"),3,FALSE),AG51*VLOOKUP($B$3-1,INDIRECT("CPI"&SUBSTITUTE(SheetName," ","")&"!$A:$C"),3,FALSE))))) ->  | H51: =IF(ISBLANK(AI51)=TRUE,"",IF($B$3=2024,AI51,IF(SheetName="Other (enter value below)",AI51*(1+AA48),IF($B$3>_xlfn.AGGREGATE(4,6,INDIRECT("CPI"&SheetName&"!$A:$A"))+1,AI51*VLOOKUP($B$3-2,INDIRECT("CPI"&SheetName&"!$A:$C"),3,FALSE),AI51*VLOOKUP($B$3-1,INDIRECT("CPI"&SheetName&"!$A:$C"),3,FALSE))))) ->  | AC51: Specified activity | AE51: SCS | AF51: m3
A52: Fence | AB52: Fence
D53: FNC | E53: m | F53: =IF(ISBLANK(AG53)=TRUE,"",IF($B$3=2024,AG53,IF(SheetName="Other (enter value below)",AG53*(1+$J$4),IF($B$3>_xlfn.AGGREGATE(4,6,INDIRECT("CPI"&SUBSTITUTE(SheetName," ","")&"!$A:$A"))+1,AG53*VLOOKUP($B$3-2,INDIRECT("CPI"&SUBSTITUTE(SheetName," ","")&"!$A:$C"),3,FALSE),AG53*VLOOKUP($B$3-1,INDIRECT("CPI"&SUBSTITUTE(SheetName," ","")&"!$A:$C"),3,FALSE))))) -> 195.4363845 | G53: =IF(ISBLANK(AH53)=TRUE,"",IF($B$3=2024,AH53,IF(SheetName="Other (enter value below)",AH53*(1+$J$4),IF($B$3>_xlfn.AGGREGATE(4,6,INDIRECT("CPI"&SUBSTITUTE(SheetName," ","")&"!$A:$A"))+1,AH53*VLOOKUP($B$3-2,INDIRECT("CPI"&SUBSTITUTE(SheetName," ","")&"!$A:$C"),3,FALSE),AH53*VLOOKUP($B$3-1,INDIRECT("CPI"&SUBSTITUTE(SheetName," ","")&"!$A:$C"),3,FALSE))))) -> 320.5102968 | J53: Low (6 ft fence) High (8 ft fence) | K53: Task Database | L53: RS means 2024 Q2 Yellowknife | N53: Low: 6' high Chain link, excavation/concrete included High: 8' high, excavation/concrete included | AE53: FNC | AF53: m | AG53: 190.8632 | AH53: 313.0104
A54: Fuel and Electricity | AB54: Fuel and Electricity
B55: Fuel cost - gas | D55: FCG | E55: litre | F55: =IF(ISBLANK(AG55)=TRUE,"",IF($B$3=2024,AG55,IF(SheetName="Other (enter value below)",AG55*(1+$J$4),IF($B$3>_xlfn.AGGREGATE(4,6,INDIRECT("CPI"&SUBSTITUTE(SheetName," ","")&"!$A:$A"))+1,AG55*VLOOKUP($B$3-2,INDIRECT("CPI"&SUBSTITUTE(SheetName," ","")&"!$A:$C"),3,FALSE),AG55*VLOOKUP($B$3-1,INDIRECT("CPI"&SUBSTITUTE(SheetName," ","")&"!$A:$C"),3,FALSE))))) -> 1.607618041 | G55: 1.685439042 | K55: Published Database | L55: Published database - Statistic Canada | M55: https://www150.statcan.gc.ca/t1/tbl1/en/tv.action?pid=1810000101 | N55: Gas 2024 year low, high - City: Yellowknife | AC55: Fuel cost - gas | AE55: FCG | AF55: litre | AG55: 1.57 | AH55: 1.646
B56: Fuel cost - diesel | D56: FCD | E56: litre | F56: 1.831865398 | G56: 1.901494715 | K56: Published Database | L56: Published database - Statistic Canada | M56: https://www150.statcan.gc.ca/t1/tbl1/en/tv.action?pid=1810000101&pickMembers%5B0%5D=2.6&cubeTimeFrame.startMonth=04&cubeTimeFrame.startYear=2025&cubeTimeFrame.endMonth=08&cubeTimeFrame.endYear=2025&referencePeriods=20250401%2C20250801 | N56: Diesel 2024 year low, high - City: Yellowknife | AC56: Fuel cost - diesel | AE56: FCD | AF56: litre | AG56: 1.789 | AH56: 1.857
B57: Fuel cost - Jet A-1 | D57: FCJA | E57: litre | F57: 1.402825934 | G57: 2.723735025 | J57: Low Yellowknife. High Sachs Harbour | K57: Published database | L57: low: https://jet-a1-fuel.com/price/canada. High https://www.inf.gov.nt.ca/en/services/fuel-services/prices | M57: https://www.inf.gov.nt.ca/en/services/fuel-services/prices | N57: Obtained August 15th, 2025. Low Yellowknife. High Sachs Harbour | AC57: Fuel cost - Jet A-1 | AE57: FCJA | AF57: litre | AG57: 1.37 | AH57: 2.66
B58: Fuel cost - Jet B | D58: FCJB | E58: litre | F58: 1.914806202 | J58: Low Edmonton | K58: Supplier Estimate | M58: https://flightfuels.com/ | AC58: Fuel cost - Jet B | AE58: FCJB | AF58: litre | AG58: 1.87
B59: Fuel cost - Avgas | D59: FCAV | E59: litre | F59: 1.625946934 | K59: Published database | M59: https://www.inf.gov.nt.ca/en/services/fuel-services/prices | N59: Obtained August 15th, 2025 | AC59: Fuel cost - Avgas | AG59: =1587.9/1000 -> 1.5879
B60: Fuel mobilization | D60: FCM | E60: $/litre | F60: =IF(ISBLANK(AG60)=TRUE,"",IF($B$3=2024,AG60,IF(SheetName="Other (enter value below)",AG60*(1+$J$4),IF($B$3>_xlfn.AGGREGATE(4,6,INDIRECT("CPI"&SUBSTITUTE(SheetName," ","")&"!$A:$A"))+1,AG60*VLOOKUP($B$3-2,INDIRECT("CPI"&SUBSTITUTE(SheetName," ","")&"!$A:$C"),3,FALSE),AG60*VLOOKUP($B$3-1,INDIRECT("CPI"&SUBSTITUTE(SheetName," ","")&"!$A:$C"),3,FALSE))))) -> 0.6143763214 | G60: =IF(ISBLANK(AH60)=TRUE,"",IF($B$3=2024,AH60,IF(SheetName="Other (enter value below)",AH60*(1+$J$4),IF($B$3>_xlfn.AGGREGATE(4,6,INDIRECT("CPI"&SUBSTITUTE(SheetName," ","")&"!$A:$A"))+1,AH60*VLOOKUP($B$3-2,INDIRECT("CPI"&SUBSTITUTE(SheetName," ","")&"!$A:$C"),3,FALSE),AH60*VLOOKUP($B$3-1,INDIRECT("CPI"&SUBSTITUTE(SheetName," ","")&"!$A:$C"),3,FALSE))))) ->  | K60: Estimated | L60: Estimated | AC60: Fuel mobilization | AE60: FCM | AF60: $/litre | AG60: 0.6
B61: Electricity | D61: FCE | E61: kW-h | F61: 0.9727625088 | K61: Published Database | L61: Published database | M61: https://www.qec.nu.ca/customer-care/accounts-and-billing/customer-rates | N61: 2024 Nunavut, Qulliq Energy Corporation | AC61: Electricity | AE61: FCE | AF61: kW-h | AG61: 0.95
A62: Geo-Synthetics | AB62: Geo-Synthetics
B63: geotextile | D63: GST | E63: m2 | F63: =IF(ISBLANK(AG63)=TRUE,"",IF($B$3=2024,AG63,IF(SheetName="Other (enter value below)",AG63*(1+$J$4),IF($B$3>_xlfn.AGGREGATE(4,6,INDIRECT("CPI"&SUBSTITUTE(SheetName," ","")&"!$A:$A"))+1,AG63*VLOOKUP($B$3-2,INDIRECT("CPI"&SUBSTITUTE(SheetName," ","")&"!$A:$C"),3,FALSE),AG63*VLOOKUP($B$3-1,INDIRECT("CPI"&SUBSTITUTE(SheetName," ","")&"!$A:$C"),3,FALSE))))) -> 1.638336857 | K63: Historical Database | L63: Quote | N63: 2023-06 quote ( Whitehorse), 5% escalation and waste applied | AC63: geotextile | AE63: GST | AF63: m2 | AG63: 1.6
B64: geogrid | D64: GSG | E64: m2 | F64: 3.245954898 | K64: Historical Database | L64: Quote | N64: 2023-06 quote ( Whitehorse), 5% escalation and waste applied | AC64: geogrid | AE64: GSG | AF64: m2 | AG64: 3.17
B65: liner, HDPE | D65: GSHDPE | E65: m2 | F65: 5.358589974 | K65: Historical Database | L65: Historical Database | N65: supply only, Purchased order Rochester-2020 escalated, supply only | AC65: liner, HDPE | AE65: GSHDPE | AF65: m2 | AG65: 5.233199706
B66: liner, ES3 | D66: GSES3 | E66: m2 | F66: 23.78660324 | K66: Escalated | L66: Escalated from previous rate | AC66: liner, ES3 | AE66: GSES3 | AF66: m2 | AG66: 23.23
B67: geotextile installation | D67: GTI | E67: m2 | F67: 7.051401832 | AC67: geotextile installation | AE67: GTI | AF67: m2 | AG67: 6.8864
B68: geosynthetic installation | D68: GSI | E68: m2 | F68: 7.051401832 | K68: Historical Database | L68: Historical Database | N68: Contract Rochester - 2020, installation including subgrade preparation | AC68: geosynthetic installation | AE68: GSI | AG68: 6.8864
B69: bentonite soil amendment | D69: GSBA | E69: tonne | F69: 389.1050035 | K69: Escalated | L69: Escalated from previous rate | AC69: bentonite soil amendment | AE69: GSBA | AF69: tonne | AG69: 380
A70: Grouting (/m3 of rock grouted) | AB70: Grouting (/m3 of rock grouted)
D71: grout | E71: m3 | F71: =IF(ISBLANK(AG71)=TRUE,"",IF($B$3=2024,AG71,IF(SheetName="Other (enter value below)",AG71*(1+$J$4),IF($B$3>_xlfn.AGGREGATE(4,6,INDIRECT("CPI"&SUBSTITUTE(SheetName," ","")&"!$A:$A"))+1,AG71*VLOOKUP($B$3-2,INDIRECT("CPI"&SUBSTITUTE(SheetName," ","")&"!$A:$C"),3,FALSE),AG71*VLOOKUP($B$3-1,INDIRECT("CPI"&SUBSTITUTE(SheetName," ","")&"!$A:$C"),3,FALSE))))) -> 515.9532347 | G71: =IF(ISBLANK(AH71)=TRUE,"",IF($B$3=2024,AH71,IF(SheetName="Other (enter value below)",AH71*(1+$J$4),IF($B$3>_xlfn.AGGREGATE(4,6,INDIRECT("CPI"&SUBSTITUTE(SheetName," ","")&"!$A:$A"))+1,AH71*VLOOKUP($B$3-2,INDIRECT("CPI"&SUBSTITUTE(SheetName," ","")&"!$A:$C"),3,FALSE),AH71*VLOOKUP($B$3-1,INDIRECT("CPI"&SUBSTITUTE(SheetName," ","")&"!$A:$C"),3,FALSE))))) ->  | H71: =IF(ISBLANK(AI71)=TRUE,"",IF($B$3=2024,AI71,IF(SheetName="Other (enter value below)",AI71*(1+AA68),IF($B$3>_xlfn.AGGREGATE(4,6,INDIRECT("CPI"&SheetName&"!$A:$A"))+1,AI71*VLOOKUP($B$3-2,INDIRECT("CPI"&SheetName&"!$A:$C"),3,FALSE),AI71*VLOOKUP($B$3-1,INDIRECT("CPI"&SheetName&"!$A:$C"),3,FALSE))))) ->  | K71: Historical Database | L71: Civil Est. Tool | N71: Quotation 2024, The rate for supply only | AE71: grout | AF71: m3 | AG71: 503.88
A72: Labour & Equipment Rates | AB72: Labour & Equipment Rates
B73: Site manager | D73: sman | E73: $/hr | F73: =IF(ISBLANK(AG73)=TRUE,"",IF($B$3=2024,AG73,AG73*(1+0.04)^($B$3-2024))) -> 183.872 | G73: =IF(ISBLANK(AH73)=TRUE,"",IF($B$3=2024,AH73,AH73*(1+0.04)^($B$3-2024))) ->  | K73: Published Database | L73: Published database - Alberta union collective agreement | N73: Includes a 1.35 inflation factor on union rates | AC73: Site manager | AE73: sman | AF73: $/hr | AG73: 170
B74: Supervisor | D74: super | E74: $/hr | F74: =IF(ISBLANK(AG74)=TRUE,"",IF($B$3=2024,AG74,AG74*(1+0.04)^($B$3-2024))) -> 108.16 | G74: =IF(ISBLANK(AH74)=TRUE,"",IF($B$3=2024,AH74,AH74*(1+0.04)^($B$3-2024))) ->  | K74: Published Database | L74: Published database - Alberta union collective agreement | N74: Includes a 1.35 inflation factor on union rates | AC74: Supervisor | AE74: super | AF74: $/hr | AG74: 100
B75: Registered engineer | D75: eng | E75: $/hr | F75: 227.136 | K75: Estimated | L75: Estimated | N75: Based on industry standards | AC75: Registered engineer | AE75: eng | AF75: $/hr | AG75: 210
B76: Environmental coordinator | D76: envco | E76: $/hr | F76: 162.24 | K76: Estimated | L76: Estimated | N76: Based on industry standards | AC76: Environmental coordinator | AE76: envco | AF76: $/hr | AG76: 150
B77: Environmental technologist | D77: envtech | E77: $/hr | F77: 129.792 | K77: Estimated | L77: Estimated | N77: Based on industry standards | AC77: Environmental technologist | AE77: envtech | AF77: $/hr | AG77: 120
B78: Electrician | D78: elec | E78: $/hr | F78: 97.344 | K78: Published Database | L78: Published database - Alberta union collective agreement | N78: Includes a 1.35 inflation factor on union rates | AC78: Electrician | AE78: elec | AF78: $/hr | AG78: 90
B79: Journeyman - various | D79: journey | E79: $/hr | F79: 108.16 | K79: Published Database | L79: Published database - Alberta union collective agreement | N79: Includes a 1.35 inflation factor on union rates | AC79: Journeyman - various | AE79: journey | AF79: $/hr | AG79: 100
B80: Labour - skilled | D80: lab-s | E80: $/hr | F80: 86.528 | K80: Published Database | L80: Published database - Alberta union collective agreement | N80: Includes a 1.35 inflation factor on union rates | AC80: Labour - skilled | AE80: lab-s | AF80: $/hr | AG80: 80
B81: Labour - unskilled | D81: lab-us | E81: $/hr | F81: 75.712 | K81: Published Database | L81: Published database - Alberta union collective agreement | N81: Includes a 1.35 inflation factor on union rates | AC81: Labour - unskilled | AE81: lab-us | AF81: $/hr | AG81: 70
B82: Equipment operator | D82: oper | E82: $/hr | F82: 97.344 | K82: Published Database | L82: Published database - Alberta union collective agreement | N82: Includes a 1.35 inflation factor on union rates | AC82: Equipment operator | AE82: oper | AF82: $/hr | AG82: 90
B83: Heavy duty mechanic | D83: mech | E83: $/hr | F83: 118.976 | K83: Published Database | L83: Published database - Alberta union collective agreement | N83: Includes a 1.35 inflation factor on union rates | AC83: Heavy duty mechanic | AE83: mech | AF83: $/hr | AG83: 110
B84: Water treatment plant operator | D84: oper-wt | E84: $/hr | F84: 86.528 | K84: Published Database | L84: Published database - Alberta union collective agreement | N84: Includes a 1.35 inflation factor on union rates | AC84: Water treatment plant operator | AE84: oper-wt | AF84: $/hr | AG84: 80
B85: Security / first aid | D85: safety | E85: $/hr | F85: 108.16 | K85: Published Database | L85: Published database - Alberta union collective agreement | N85: Includes a 1.35 inflation factor on union rates | AC85: Security / first aid | AE85: safety | AF85: $/hr | AG85: 100
B86: Administrative staff | D86: admin | E86: $/hr | F86: 108.16 | K86: Published Database | L86: Published database - Alberta union collective agreement | N86: Includes a 1.35 inflation factor on union rates | AC86: Administrative staff | AE86: admin | AF86: $/hr | AG86: 100
B88: Loader - 4 cu.yd (3.06m3) | D88: load-s | E88: $/hr | F88: =IF(ISBLANK(AG88)=TRUE,"",IF($B$3=2024,AG88,AG88*(1+0.04)^($B$3-2024))) -> 224.9728 | G88: =IF(ISBLANK(AH88)=TRUE,"",IF($B$3=2024,AH88,AH88*(1+0.04)^($B$3-2024))) ->  | K88: Published Database | L88: Published database - Alberta Equipment Rental Rates Guide | N88: Model: CAT950M,3.06-3.43M3 ), includes: - rental cost/hr - fuel cost - filter and lube - operator | AC88: Loader - 4 cu.yd (3.06m3) | AE88: load-s | AF88: $/hr | AG88: 208
B89: Loader - 7 cu.yd (5.35m3) | D89: load-l | E89: $/hr | F89: 354.7648 | K89: Published Database | L89: Published database - Alberta Equipment Rental Rates Guide | N89: Model:CAT980K,980M (5.35-5.73M3)-, includes: - rental cost/hr - fuel cost - filter and lube - operator | AC89: Loader - 7 cu.yd (5.35m3) | AE89: load-l | AF89: $/hr | AG89: 328
B90: Excavator - 26.76-30.84 tonnes | D90: exc-s | E90: $/hr | F90: 245.5232 | K90: Published Database | L90: Published database - Alberta Equipment Rental Rates Guide | N90: Model: Hydraulic excavator group 12 (28000kg-32999kg, CASE CX290B), includes: - rental cost/hr - fuel cost - filter and lube - operator | AC90: Excavator - 26.76-30.84 tonnes | AE90: exc-s | AF90: $/hr | AG90: 227
B91: Excavator - 68.95+tonnes | D91: exc-l | E91: $/hr | F91: 496.4544 | K91: Published Database | L91: Published database - Alberta Equipment Rental Rates Guide | N91: Model: Hydraulic excavator 17 (60000kg-76999kg, CAT374), includes: - rental cost/hr - fuel cost - filter and lube - operator | AC91: Excavator - 68.95+tonnes | AE91: exc-l | AF91: $/hr | AG91: 459
B92: Grader | D92: grad | E92: $/hr | F92: 188.52288 | K92: Published Database | L92: Published database - Alberta Equipment Rental Rates Guide | N92: Model :motor grader CAT120M), includes: - rental cost/hr - fuel cost - filter and lube - operator | AC92: Grader | AE92: grad | AF92: $/hr | AG92: 174.3
B93: Dump truck off hwy 35-45 tonnes | D93: truck-s | E93: $/hr | F93: 441.2928 | K93: Published Database | L93: Published database - Alberta Equipment Rental Rates Guide | N93: Model: CAT 772,775D, includes: - rental cost/hr - fuel cost - filter and lube - operator | AC93: Dump truck off hwy 35-45 tonnes | AE93: truck-s | AF93: $/hr | AG93: 408
B94: Dump truck off hwy 65-85 tonnes | D94: truck-l | E94: $/hr | F94: 535.392 | K94: Published Database | L94: Published database - Alberta Equipment Rental Rates Guide | N94: Model: CAT 775F, 777B,C,D, includes: - rental cost/hr - fuel cost - filter and lube - operator | AC94: Dump truck off hwy 65-85 tonnes | AE94: truck-l | AF94: $/hr | AG94: 495
B95: dozer, small | D95: dozers | E95: $/hr | F95: 247.47008 | K95: Published Database | L95: Published database - Alberta Equipment Rental Rates Guide | N95: D6R includes: - rental cost/hr - fuel cost - filter and lube - operator | AC95: dozer, small | AE95: dozers | AF95: $/hr | AG95: 228.8
B96: dozer, large | D96: dozerl | E96: $/hr | F96: 384.703488 | K96: Published Database | L96: Published database - Alberta Equipment Rental Rates Guide | N96: D9R includes: - rental cost/hr - fuel cost - filter and lube - operator | AC96: dozer, large | AE96: dozerl | AF96: $/hr | AG96: 355.68
B97: smooth drum compactor | D97: comp | E97: $/hr | F97: 149.2608 | K97: Published Database | L97: Published database - Alberta Equipment Rental Rates Guide | N97: Steel Wheel Static, 20t and over - rental cost/hr - fuel cost - filter and lube - operator | AC97: smooth drum compactor | AE97: comp | AF97: $/hr | AG97: 138
B98: Crawler front end loader 3.75 yd3 (and over) bucket | D98: scoop | E98: $/hr | F98: 322.3168 | K98: Published Database | L98: Published database - Alberta Equipment Rental Rates Guide | N98: Crawler Front End Loader, 3.75yd3 and over - rental cost/hr - fuel cost - filter and lube - operator | AC98: Crawler front end loader 3.75 yd3 (and over) bucket | AE98: scoop | AF98: $/hr | AG98: 298
B99: flat bed truck with hiab | D99: hiab | E99: $/hr | F99: 196.8512 | K99: Published Database | L99: Published database - Alberta Equipment Rental Rates Guide | N99: Single Axle bed truck - rental cost/hr - fuel cost - filter and lube - operator | AC99: flat bed truck with hiab | AE99: hiab | AF99: $/hr | AG99: 182
B100: fuel truck | D100: ftruck | E100: $/hr | F100: 243.36 | K100: Published Database | L100: Published database - Alberta Equipment Rental Rates Guide | N100: Fuel Truck, 6000gal(27,277 litre), self loading - rental cost/hr - fuel cost - filter and lube - operator | AC100: fuel truck | AE100: ftruck | AF100: $/hr | AG100: 225
B101: water truck | D101: wtruck | E101: $/hr | F101: 178.464 | K101: Published Database | L101: Published database - Alberta Equipment Rental Rates Guide | N101: Fuel Truck, 3000gal(13638 litre), self loading - rental cost/hr - fuel cost - filter and lube - operator | AC101: water truck | AE101: wtruck | AF101: $/hr | AG101: 165
A102: Mobilize Heavy Equipment | AB102: Mobilize Heavy Equipment
B103: Road access | D103: MHER | E103: kmtonne | F103: =IF(ISBLANK(AG103)=TRUE,"",IF($B$3=2024,AG103,IF(SheetName="Other (enter value below)",AG103*(1+$J$4),IF($B$3>_xlfn.AGGREGATE(4,6,INDIRECT("CPI"&SUBSTITUTE(SheetName," ","")&"!$A:$A"))+1,AG103*VLOOKUP($B$3-2,INDIRECT("CPI"&SUBSTITUTE(SheetName," ","")&"!$A:$C"),3,FALSE),AG103*VLOOKUP($B$3-1,INDIRECT("CPI"&SUBSTITUTE(SheetName," ","")&"!$A:$C"),3,FALSE))))) -> 0.4095842142 | K103: Published Database | L103: estimated | N103: Based on actuals with slight markup, assumption based on Port of landing: becancour Quebec, destination: Arctic bay Nunavut | AC103: Road access | AE103: MHER | AF103: kmtonne | AG103: 0.4
B104: Sealift | D104: MHES | E104: kmtonne | F104: =IF(ISBLANK(AG104)=TRUE,"",IF($B$3=2024,AG104,IF(SheetName="Other (enter value below)",AG104*(1+$J$4),IF($B$3>_xlfn.AGGREGATE(4,6,INDIRECT("CPI"&SUBSTITUTE(SheetName," ","")&"!$A:$A"))+1,AG104*VLOOKUP($B$3-2,INDIRECT("CPI"&SUBSTITUTE(SheetName," ","")&"!$A:$C"),3,FALSE),AG104*VLOOKUP($B$3-1,INDIRECT("CPI"&SUBSTITUTE(SheetName," ","")&"!$A:$C"),3,FALSE))))) -> 0.1228752643 | K104: Published Database | M104: https://neas.ca/rates/ | AC104: Sealift | AE104: MHEA | AF104: kmtonne | AG104: 0.12
B105: Barge | D105: MHEB | E105: tonne | F105: =IF(ISBLANK(AG105)=TRUE,"",IF($B$3=2024,AG105,IF(SheetName="Other (enter value below)",AG105*(1+$J$4),IF($B$3>_xlfn.AGGREGATE(4,6,INDIRECT("CPI"&SUBSTITUTE(SheetName," ","")&"!$A:$A"))+1,AG105*VLOOKUP($B$3-2,INDIRECT("CPI"&SUBSTITUTE(SheetName," ","")&"!$A:$C"),3,FALSE),AG105*VLOOKUP($B$3-1,INDIRECT("CPI"&SUBSTITUTE(SheetName," ","")&"!$A:$C"),3,FALSE))))) -> 6143.763214 | G105: =IF(ISBLANK(AH105)=TRUE,"",IF($B$3=2024,AH105,IF(SheetName="Other (enter value below)",AH105*(1+$J$4),IF($B$3>_xlfn.AGGREGATE(4,6,INDIRECT("CPI"&SUBSTITUTE(SheetName," ","")&"!$A:$A"))+1,AH105*VLOOKUP($B$3-2,INDIRECT("CPI"&SUBSTITUTE(SheetName," ","")&"!$A:$C"),3,FALSE),AH105*VLOOKUP($B$3-1,INDIRECT("CPI"&SUBSTITUTE(SheetName," ","")&"!$A:$C"),3,FALSE))))) -> 10239.60536 | J105: Low and High are based on distance from port | K105: Estimated | L105: Web search | AC105: Barge | AE105: MHEB | AF105: tonne | AG105: 6000 | AH105: 10000
B106: Other (e.g. airlift) | D106: MHEA | E106: kmtonne | F106: =IF(ISBLANK(AG106)=TRUE,"",IF($B$3=2024,AG106,IF(SheetName="Other (enter value below)",AG106*(1+$J$4),IF($B$3>_xlfn.AGGREGATE(4,6,INDIRECT("CPI"&SUBSTITUTE(SheetName," ","")&"!$A:$A"))+1,AG106*VLOOKUP($B$3-2,INDIRECT("CPI"&SUBSTITUTE(SheetName," ","")&"!$A:$C"),3,FALSE),AG106*VLOOKUP($B$3-1,INDIRECT("CPI"&SUBSTITUTE(SheetName," ","")&"!$A:$C"),3,FALSE))))) ->  | G106: =IF(ISBLANK(AH106)=TRUE,"",IF($B$3=2024,AH106,IF(SheetName="Other (enter value below)",AH106*(1+$J$4),IF($B$3>_xlfn.AGGREGATE(4,6,INDIRECT("CPI"&SUBSTITUTE(SheetName," ","")&"!$A:$A"))+1,AH106*VLOOKUP($B$3-2,INDIRECT("CPI"&SUBSTITUTE(SheetName," ","")&"!$A:$C"),3,FALSE),AH106*VLOOKUP($B$3-1,INDIRECT("CPI"&SUBSTITUTE(SheetName," ","")&"!$A:$C"),3,FALSE))))) ->  | H106: =IF(ISBLANK(AI106)=TRUE,"",IF($B$3=2024,AI106,IF(SheetName="Other (enter value below)",AI106*(1+AA103),IF($B$3>_xlfn.AGGREGATE(4,6,INDIRECT("CPI"&SheetName&"!$A:$A"))+1,AI106*VLOOKUP($B$3-2,INDIRECT("CPI"&SheetName&"!$A:$C"),3,FALSE),AI106*VLOOKUP($B$3-1,INDIRECT("CPI"&SheetName&"!$A:$C"),3,FALSE))))) ->  | AC106: Other
A107: Mobilize Camp | AB107: Mobilize Camp
B108: Purchase of Camp | D108: MCR | E108: each | F108: =IF(ISBLANK(AG108)=TRUE,"",IF($B$3=2024,AG108,IF(SheetName="Other (enter value below)",AG108*(1+$J$4),IF($B$3>_xlfn.AGGREGATE(4,6,INDIRECT("CPI"&SUBSTITUTE(SheetName," ","")&"!$A:$A"))+1,AG108*VLOOKUP($B$3-2,INDIRECT("CPI"&SUBSTITUTE(SheetName," ","")&"!$A:$C"),3,FALSE),AG108*VLOOKUP($B$3-1,INDIRECT("CPI"&SUBSTITUTE(SheetName," ","")&"!$A:$C"),3,FALSE))))) -> 102396.0536 | G108: =IF(ISBLANK(AH108)=TRUE,"",IF($B$3=2024,AH108,IF(SheetName="Other (enter value below)",AH108*(1+$J$4),IF($B$3>_xlfn.AGGREGATE(4,6,INDIRECT("CPI"&SUBSTITUTE(SheetName," ","")&"!$A:$A"))+1,AH108*VLOOKUP($B$3-2,INDIRECT("CPI"&SUBSTITUTE(SheetName," ","")&"!$A:$C"),3,FALSE),AH108*VLOOKUP($B$3-1,INDIRECT("CPI"&SUBSTITUTE(SheetName," ","")&"!$A:$C"),3,FALSE))))) -> 1023960.536 | J108: 50 person camp, road access (low) remote access (high) | K108: Estimated | L108: Estimated | AC108: Road access | AE108: MCR | AF108: each | AG108: 100000 | AH108: 1000000
A109: Mobilize Workers (round trip) | AB109: Mobilize Workers
B110: flight (charter 20 person) | D110: MWC | E110: km | F110: =IF(ISBLANK(AG110)=TRUE,"",IF($B$3=2024,AG110,IF(SheetName="Other (enter value below)",AG110*(1+$J$4),IF($B$3>_xlfn.AGGREGATE(4,6,INDIRECT("CPI"&SUBSTITUTE(SheetName," ","")&"!$A:$A"))+1,AG110*VLOOKUP($B$3-2,INDIRECT("CPI"&SUBSTITUTE(SheetName," ","")&"!$A:$C"),3,FALSE),AG110*VLOOKUP($B$3-1,INDIRECT("CPI"&SUBSTITUTE(SheetName," ","")&"!$A:$C"),3,FALSE))))) -> 12.28752643 | J110: Low (short flight < 500 km) High (long flight >500 km) | L110: Published database - online info | AC110: flight (charter to Site) | AE110: MWC | AF110: each | AG110: 12
B111: flight (charter 50 person) | D111: MWC1 | E111: km | F111: 20.47921071 | L111: Published database - online info | AG111: 20
B112: flight (commercial south to north) | D112: MWA | E112: per person | F112: 1023.960536 | G112: 3071.881607 | J112: Low (short flight < 1000 km ) High (>1000 km) | L112: Published database - online info | M112: https://www.chemanalyst.com/Pricing-data/copper-sulphate-1163 | N112: Based on actuals from Yellowknife to Site and Air Canada rates from Halifax to Yellowknife. | AC112: flight (commercial south to north) | AE112: MWA | AF112: each | AG112: 1000 | AH112: 3000
B113: Helicopter - Small (e.g. Bell 206) | D113: MHL | E113: per hour | F113: 1535.940803 | L113: Published database - online info | AC113: Helicopter - Small (e.g. Bell 206) | AE113: MHL | AF113: per hour | AG113: 1500
B114: Helicopter - Medium (e.g. Sikorsky S-76) | D114: MHM | E114: per hour | F114: 3071.881607 | L114: Published database - online info | AC114: Helicopter - Medium (e.g. Sikorsky S-76) | AE114: MHM | AF114: per hour | AG114: 3000
B115: Helicopter - Heavy (e.g. CH-47 Chinook) | D115: MHH | E115: per hour | F115: 7167.723749 | L115: Published database - online info | AC115: Helicopter - Heavy (e.g. CH-47 Chinook) | AE115: MHH | AF115: per hour | AG115: 7000
A116: Oil Removal | AB116: Oil Removal
B117: oil removal | D117: OR | E117: litre | F117: =IF(ISBLANK(AG117)=TRUE,"",IF($B$3=2024,AG117,IF(SheetName="Other (enter value below)",AG117*(1+$J$4),IF($B$3>_xlfn.AGGREGATE(4,6,INDIRECT("CPI"&SUBSTITUTE(SheetName," ","")&"!$A:$A"))+1,AG117*VLOOKUP($B$3-2,INDIRECT("CPI"&SUBSTITUTE(SheetName," ","")&"!$A:$C"),3,FALSE),AG117*VLOOKUP($B$3-1,INDIRECT("CPI"&SUBSTITUTE(SheetName," ","")&"!$A:$C"),3,FALSE))))) -> 0.9625229035 | G117: =IF(ISBLANK(AH117)=TRUE,"",IF($B$3=2024,AH117,IF(SheetName="Other (enter value below)",AH117*(1+$J$4),IF($B$3>_xlfn.AGGREGATE(4,6,INDIRECT("CPI"&SUBSTITUTE(SheetName," ","")&"!$A:$A"))+1,AH117*VLOOKUP($B$3-2,INDIRECT("CPI"&SUBSTITUTE(SheetName," ","")&"!$A:$C"),3,FALSE),AH117*VLOOKUP($B$3-1,INDIRECT("CPI"&SUBSTITUTE(SheetName," ","")&"!$A:$C"),3,FALSE))))) ->  | K117: Escalated | L117: Escalated from previous rate | N117: Disposal tipping fee captured in Hazardous Waste Removal | AC117: oil removal | AE117: OR | AF117: litre | AG117: 0.94
A118: PCB Removal | AB118: PCB Removal
B119: Remove from site | D119: PCBR | E119: litre | F119: =IF(ISBLANK(AG119)=TRUE,"",IF($B$3=2024,AG119,IF(SheetName="Other (enter value below)",AG119*(1+$J$4),IF($B$3>_xlfn.AGGREGATE(4,6,INDIRECT("CPI"&SUBSTITUTE(SheetName," ","")&"!$A:$A"))+1,AG119*VLOOKUP($B$3-2,INDIRECT("CPI"&SUBSTITUTE(SheetName," ","")&"!$A:$C"),3,FALSE),AG119*VLOOKUP($B$3-1,INDIRECT("CPI"&SUBSTITUTE(SheetName," ","")&"!$A:$C"),3,FALSE))))) -> 51.19802678 | G119: =IF(ISBLANK(AH119)=TRUE,"",IF($B$3=2024,AH119,IF(SheetName="Other (enter value below)",AH119*(1+$J$4),IF($B$3>_xlfn.AGGREGATE(4,6,INDIRECT("CPI"&SUBSTITUTE(SheetName," ","")&"!$A:$A"))+1,AH119*VLOOKUP($B$3-2,INDIRECT("CPI"&SUBSTITUTE(SheetName," ","")&"!$A:$C"),3,FALSE),AH119*VLOOKUP($B$3-1,INDIRECT("CPI"&SUBSTITUTE(SheetName," ","")&"!$A:$C"),3,FALSE))))) ->  | K119: Escalated | L119: Escalated from previous rate | N119: Disposal tipping fee captured in Hazardous Waste Removal | AC119: Remove from site | AE119: PCBR | AF119: litre | AG119: 50
A120: Pipes, small (<6in dia.) | AB120: Pipes, small (<6in dia.)
B121: remove/dispose on site | D121: PSR | E121: m | F121: =IF(ISBLANK(AG121)=TRUE,"",IF($B$3=2024,AG121,IF(SheetName="Other (enter value below)",AG121*(1+$J$4),IF($B$3>_xlfn.AGGREGATE(4,6,INDIRECT("CPI"&SUBSTITUTE(SheetName," ","")&"!$A:$A"))+1,AG121*VLOOKUP($B$3-2,INDIRECT("CPI"&SUBSTITUTE(SheetName," ","")&"!$A:$C"),3,FALSE),AG121*VLOOKUP($B$3-1,INDIRECT("CPI"&SUBSTITUTE(SheetName," ","")&"!$A:$C"),3,FALSE))))) -> 63.48555321 | K121: Task Database | L121: RS means 2024 Q2 Yellowknife | N121: Remove plastic pipe 4' depth, excavate & backfill, hauling, no dump fee | AC121: remove/dispose on site | AE121: PSR | AF121: m | AG121: 62
B122: supply (4") | D122: PSS4 | E122: m | F122: 15.35940803 | G122: 89.0845666 | K122: Quotation | L122: Quotation | N122: Straight pipe in trench, fittings, overbuy material, freight, rework material | AC122: supply (4") | AE122: PSS4 | AF122: m | AG122: 15 | AH122: 87
B123: install (4") | D123: PSI4 | E123: m | F123: 253.9422128 | G123: 301.0443975 | K123: Historical Database | L123: Historical Database | N123: Including placing piping , trench excavation, bedding , backfill and granular supply and install | AC123: install (4") | AE123: PSI4 | AF123: m | AG123: 248 | AH123: 294
B124: supply (6") | D124: PSS6 | E124: m | F124: 32.76673714 | G124: 117.7554616 | K124: Quotation | L124: Quotation | N124: Straight pipe in trench, fittings, overbuy material, freight, rework material | AC124: supply (6") | AE124: PSS6 | AF124: m | AG124: 32 | AH124: 115
B125: install (6") | D125: PSI6 | E125: m | F125: 306.1642001 | G125: 340.9788584 | K125: Historical Database | L125: Historical Database | N125: Including placing piping , trench excavation, bedding , backfill and granular supply and install | AC125: install (6") | AE125: PSI6 | AF125: m | AG125: 299 | AH125: 333
A126: Pipes, large (>6in dia.) | AB126: Pipes, large (>6in dia.)
B127: remove/dispose on site (6"-8") | D127: PLR1 | E127: m | F127: =IF(ISBLANK(AG127)=TRUE,"",IF($B$3=2024,AG127,IF(SheetName="Other (enter value below)",AG127*(1+$J$4),IF($B$3>_xlfn.AGGREGATE(4,6,INDIRECT("CPI"&SUBSTITUTE(SheetName," ","")&"!$A:$A"))+1,AG127*VLOOKUP($B$3-2,INDIRECT("CPI"&SUBSTITUTE(SheetName," ","")&"!$A:$C"),3,FALSE),AG127*VLOOKUP($B$3-1,INDIRECT("CPI"&SUBSTITUTE(SheetName," ","")&"!$A:$C"),3,FALSE))))) -> 72.70119803 | K127: Task Database | L127: RS means 2024 Q2 Yellowknife | N127: Remove plastic pipe 4' depth, excavate & backfill, hauling, no dump fee | AC127: remove/dispose on site (6"-8") | AE127: PLR1 | AF127: m | AG127: 71
B128: remove/dispose on site (10"-12") | D128: PLR2 | E128: m | F128: 92.1564482 | K128: Task Database | L128: RS means 2024 Q2 Yellowknife | N128: Remove plastic pipe 4' depth, excavate & backfill, hauling, no dump fee | AC128: remove/dispose on site (10"-12") | AE128: PLR2 | AF128: m | AG128: 90
B129: supply (8") | D129: PLS8 | E129: m | F129: 60.4136716 | G129: 227.3192389 | K129: Quotation | L129: Quotation | N129: Remove plastic pipe 4' depth, excavate & backfill, hauling, no dump fee | AC129: supply (8") | AE129: PLS8 | AF129: m | AG129: 59 | AH129: 222
B130: install (8") | D130: PLI8 | E130: m | F130: 348.1465821 | G130: 385.0091614 | K130: Historical Database | L130: Historical Database | N130: Straight pipe in trench, fittings, overbuy material, freight, rework material | AC130: install (8") | AE130: PLI8 | AF130: m | AG130: 340 | AH130: 376
B131: supply (10") | D131: PLS10 | E131: m | F131: 103.4200141 | G131: 297.9725159 | K131: Quotation | L131: Quotation | N131: Remove plastic pipe 4' depth, excavate & backfill, hauling, no dump fee | AC131: supply (10") | AE131: PLS10 | AF131: m | AG131: 101 | AH131: 291
B132: install (10") | D132: PLI10 | E132: m | F132: 358.3861875 | G132: 455.6624383 | K132: Historical Database | L132: Historical Database | N132: Straight pipe in trench, fittings, overbuy material, freight, rework material | AC132: install (10") | AE132: PLI10 | AF132: m | AG132: 350 | AH132: 445
B133: supply (12") | D133: PLS12 | E133: m | F133: 143.354475 | G133: 356.3382664 | K133: Quotation | L133: Quotation | N133: Remove plastic pipe 4' depth, excavate & backfill, hauling, no dump fee | AC133: supply (12") | AE133: PLS12 | AF133: m | AG133: 140 | AH133: 348
B134: install (12") | D134: PLI12 | E134: m | F134: 452.5905567 | G134: 519.1479915 | K134: Historical Database | L134: Historical Database | N134: Straight pipe in trench, fittings, overbuy material, freight, rework material | AC134: install (12") | AE134: PLI12 | AF134: m | AG134: 442 | AH134: 507
A135: Power Lines | AB135: Power Lines
B136: remove/dispose on site | D136: POWR | E136: m | F136: =IF(ISBLANK(AG136)=TRUE,"",IF($B$3=2024,AG136,IF(SheetName="Other (enter value below)",AG136*(1+$J$4),IF($B$3>_xlfn.AGGREGATE(4,6,INDIRECT("CPI"&SUBSTITUTE(SheetName," ","")&"!$A:$A"))+1,AG136*VLOOKUP($B$3-2,INDIRECT("CPI"&SUBSTITUTE(SheetName," ","")&"!$A:$C"),3,FALSE),AG136*VLOOKUP($B$3-1,INDIRECT("CPI"&SUBSTITUTE(SheetName," ","")&"!$A:$C"),3,FALSE))))) -> 40.95842142 | G136: =IF(ISBLANK(AH136)=TRUE,"",IF($B$3=2024,AH136,IF(SheetName="Other (enter value below)",AH136*(1+$J$4),IF($B$3>_xlfn.AGGREGATE(4,6,INDIRECT("CPI"&SUBSTITUTE(SheetName," ","")&"!$A:$A"))+1,AH136*VLOOKUP($B$3-2,INDIRECT("CPI"&SUBSTITUTE(SheetName," ","")&"!$A:$C"),3,FALSE),AH136*VLOOKUP($B$3-1,INDIRECT("CPI"&SUBSTITUTE(SheetName," ","")&"!$A:$C"),3,FALSE))))) ->  | K136: Historical Database | L136: Historical Database | N136: for 13.8kV power line, demolition cost : 30% of installed new line , including structure, poles, cabling, guys and anchors, insulators and hardware | AC136: remove/dispose on site | AE136: POWR | AF136: m | AG136: 40
A137: Process Chemicals | AB137: Process Chemicals
B138: Remove from site | D138: PCR | E138: kg | F138: =IF(ISBLANK(AG138)=TRUE,"",IF($B$3=2024,AG138,IF(SheetName="Other (enter value below)",AG138*(1+$J$4),IF($B$3>_xlfn.AGGREGATE(4,6,INDIRECT("CPI"&SUBSTITUTE(SheetName," ","")&"!$A:$A"))+1,AG138*VLOOKUP($B$3-2,INDIRECT("CPI"&SUBSTITUTE(SheetName," ","")&"!$A:$C"),3,FALSE),AG138*VLOOKUP($B$3-1,INDIRECT("CPI"&SUBSTITUTE(SheetName," ","")&"!$A:$C"),3,FALSE))))) -> 1.740732911 | G138: =IF(ISBLANK(AH138)=TRUE,"",IF($B$3=2024,AH138,IF(SheetName="Other (enter value below)",AH138*(1+$J$4),IF($B$3>_xlfn.AGGREGATE(4,6,INDIRECT("CPI"&SUBSTITUTE(SheetName," ","")&"!$A:$A"))+1,AH138*VLOOKUP($B$3-2,INDIRECT("CPI"&SUBSTITUTE(SheetName," ","")&"!$A:$C"),3,FALSE),AH138*VLOOKUP($B$3-1,INDIRECT("CPI"&SUBSTITUTE(SheetName," ","")&"!$A:$C"),3,FALSE))))) ->  | K138: Escalated | L138: Escalated from previous rate | AC138: Remove from site | AE138: PCR | AF138: kg | AG138: 1.7
A139: Pumps | AB139: Pumps
B140: Centrifugal Pumps, Single stage, vertical split case, 3550RPM, Specific gravity 1.0, from 50gpm to 900gpm | D140: PC1 | E140: each | F140: =IF(ISBLANK(AG140)=TRUE,"",IF($B$3=2024,AG140,IF(SheetName="Other (enter value below)",AG140*(1+$J$4),IF($B$3>_xlfn.AGGREGATE(4,6,INDIRECT("CPI"&SUBSTITUTE(SheetName," ","")&"!$A:$A"))+1,AG140*VLOOKUP($B$3-2,INDIRECT("CPI"&SUBSTITUTE(SheetName," ","")&"!$A:$C"),3,FALSE),AG140*VLOOKUP($B$3-1,INDIRECT("CPI"&SUBSTITUTE(SheetName," ","")&"!$A:$C"),3,FALSE))))) -> 33483.50951 | G140: =IF(ISBLANK(AH140)=TRUE,"",IF($B$3=2024,AH140,IF(SheetName="Other (enter value below)",AH140*(1+$J$4),IF($B$3>_xlfn.AGGREGATE(4,6,INDIRECT("CPI"&SUBSTITUTE(SheetName," ","")&"!$A:$A"))+1,AH140*VLOOKUP($B$3-2,INDIRECT("CPI"&SUBSTITUTE(SheetName," ","")&"!$A:$C"),3,FALSE),AH140*VLOOKUP($B$3-1,INDIRECT("CPI"&SUBSTITUTE(SheetName," ","")&"!$A:$C"),3,FALSE))))) -> 65533.47428 | K140: Published Database | L140: Richardson Costonline 2024 | N140: motor included, freight excluded | AC140: Centrifugal Pumps, Single stage, vertical split case, 3550RPM, Specific gravity 1.0, from 50gpm to 900gpm | AE140: PC1 | AF140: each | AG140: 32700 | AH140: 64000
B141: Centrifugal Pumps, Single stage, vertical split case, 1750RPM, Specific gravity 1.0, from 50gpm to 3500gpm | D141: PC2 | E141: each | F141: 25599.01339 | G141: 134138.8302 | K141: Published Database | L141: Richardson Costonline 2024 | N141: motor included, freight excluded | AC141: Centrifugal Pumps, Single stage, vertical split case, 1750RPM, Specific gravity 1.0, from 50gpm to 3500gpm | AE141: PC2 | AF141: each | AG141: 25000 | AH141: 131000
B142: Centrifugal Pumps, Single stage, horizontal split case, 3550RPM, Specific gravity 1.0, 1000gpm to 3500ggpm | D142: PC3 | E142: each | F142: 83964.76392 | G142: 141306.5539 | K142: Published Database | L142: Richardson Costonline 2024 | N142: motor included, freight excluded | AC142: Centrifugal Pumps, Single stage, horizontal split case, 3550RPM, Specific gravity 1.0, 1000gpm to 3500ggpm | AE142: PC3 | AF142: each | AG142: 82000 | AH142: 138000
B143: Centrifugal Pumps, Single stage, horizontal split case, 1750RPM, Specific gravity 1.0, 1000gpm to 5000gpm | D143: PC4 | E143: each | F143: 101372.093 | G143: 269301.6209 | K143: Published Database | L143: Richardson Costonline 2024 | N143: motor included, freight excluded | AC143: Centrifugal Pumps, Single stage, horizontal split case, 1750RPM, Specific gravity 1.0, 1000gpm to 5000gpm | AE143: PC4 | AF143: each | AG143: 99000 | AH143: 263000
B144: Centrifugal Pumps, multi stage, radially split case, 3550RPM, Specific gravity 1.0, 100gpm to 700gpm | D144: PC5 | E144: each | F144: 162502.537 | G144: 374769.556 | K144: Published Database | L144: Richardson Costonline 2024 | N144: motor included, freight excluded | AC144: Centrifugal Pumps, multi stage, radially split case, 3550RPM, Specific gravity 1.0, 100gpm to 700gpm | AE144: PC5 | AF144: each | AG144: 158700 | AH144: 366000
B145: Turbine pumps, vertical, single an multi stage, 3550 rmp, gravity 1, 100gpm to 6000gpm | D145: PC6 | E145: each | F145: 60413.6716 | G145: 229367.16 | K145: Published Database | L145: Richardson Costonline 2024 | N145: motor included, freight excluded | AC145: Turbine pumps, vertical, single an multi stage, 3550 rmp, gravity 1, 100gpm to 6000gpm | AE145: PC6 | AF145: each | AG145: 59000 | AH145: 224000
B146: Turbine pumps, vertical, single an multi stage, 1170rmp, gravity 1, 2000gpm to 10000gpm | D146: PC7 | E146: each | F146: 186360.8175 | G146: 349170.5426 | K146: Published Database | L146: Richardson Costonline 2024 | N146: motor included, freight excluded | AC146: Turbine pumps, vertical, single an multi stage, 1170rmp, gravity 1, 2000gpm to 10000gpm | AE146: PC7 | AF146: each | AG146: 182000 | AH146: 341000
B147: Pump shipping | D147: PS | E147: % | F147: 0.0921564482 | G147: 0.1331148696 | K147: Historical Database | L147: Historical Database | N147: 9-13% as er historical projects. this should be by % of supply of equipment cost, not by $ | AC147: Pump shipping | AE147: PS | AF147: % | AG147: 0.09 | AH147: 0.13
B148: Pump operating cost | D148: POC | E148: kw-h | F148: 0.9727625088 | K148: Estimated | L148: Estimated | N148: electricity cost use average from NAKA Power rate assumption: running wattage=motor wattage x2.4, running 10 hrs/day changed uom from m3 to kwh | AC148: Pump operating cost | AE148: POC | AF148: kw-h | AG148: 0.95
B149: Pump maintenance | D149: PM | E149: allow | F149: 25599.01339 | K149: Estimated | L149: Estimated | N149: Based on actuals | AC149: Pump maintenance | AE149: PM | AF149: allow | AG149: 25000
A150: Pump sand Backfill | AB150: Pump sand Backfill
D151: PBF | E151: m3 | F151: =IF(ISBLANK(AG151)=TRUE,"",IF($B$3=2024,AG151,IF(SheetName="Other (enter value below)",AG151*(1+$J$4),IF($B$3>_xlfn.AGGREGATE(4,6,INDIRECT("CPI"&SUBSTITUTE(SheetName," ","")&"!$A:$A"))+1,AG151*VLOOKUP($B$3-2,INDIRECT("CPI"&SUBSTITUTE(SheetName," ","")&"!$A:$C"),3,FALSE),AG151*VLOOKUP($B$3-1,INDIRECT("CPI"&SUBSTITUTE(SheetName," ","")&"!$A:$C"),3,FALSE))))) -> 122.8752643 | G151: =IF(ISBLANK(AH151)=TRUE,"",IF($B$3=2024,AH151,IF(SheetName="Other (enter value below)",AH151*(1+$J$4),IF($B$3>_xlfn.AGGREGATE(4,6,INDIRECT("CPI"&SUBSTITUTE(SheetName," ","")&"!$A:$A"))+1,AH151*VLOOKUP($B$3-2,INDIRECT("CPI"&SUBSTITUTE(SheetName," ","")&"!$A:$C"),3,FALSE),AH151*VLOOKUP($B$3-1,INDIRECT("CPI"&SUBSTITUTE(SheetName," ","")&"!$A:$C"),3,FALSE))))) ->  | K151: Historical Database | L151: Historical Database | AE151: PBF | AF151: m3 | AG151: 120
A152: Scarify - road/mine site | AB152: Scarify - road/mine site
D153: SCFY | E153: ha | F153: =IF(ISBLANK(AG153)=TRUE,"",IF($B$3=2024,AG153,IF(SheetName="Other (enter value below)",AG153*(1+$J$4),IF($B$3>_xlfn.AGGREGATE(4,6,INDIRECT("CPI"&SUBSTITUTE(SheetName," ","")&"!$A:$A"))+1,AG153*VLOOKUP($B$3-2,INDIRECT("CPI"&SUBSTITUTE(SheetName," ","")&"!$A:$C"),3,FALSE),AG153*VLOOKUP($B$3-1,INDIRECT("CPI"&SUBSTITUTE(SheetName," ","")&"!$A:$C"),3,FALSE))))) -> 11161.16984 | G153: =IF(ISBLANK(AH153)=TRUE,"",IF($B$3=2024,AH153,IF(SheetName="Other (enter value below)",AH153*(1+$J$4),IF($B$3>_xlfn.AGGREGATE(4,6,INDIRECT("CPI"&SUBSTITUTE(SheetName," ","")&"!$A:$A"))+1,AH153*VLOOKUP($B$3-2,INDIRECT("CPI"&SUBSTITUTE(SheetName," ","")&"!$A:$C"),3,FALSE),AH153*VLOOKUP($B$3-1,INDIRECT("CPI"&SUBSTITUTE(SheetName," ","")&"!$A:$C"),3,FALSE))))) ->  | K153: First principles | L153: See appended estimator | N153: Based on dozer hours as presented in the first principles model (i.e., appended estimator). Low cost assumes single pass. | AE153: SCFY | AF153: ha | AG153: 10900
A154: Shaft, Raise & Portal Closures | AB154: Shaft, Raise & Portal Closures
B155: Shaft & Raises | D155: SR | E155: m2 | F155: =IF(ISBLANK(AG155)=TRUE,"",IF($B$3=2024,AG155,IF(SheetName="Other (enter value below)",AG155*(1+$J$4),IF($B$3>_xlfn.AGGREGATE(4,6,INDIRECT("CPI"&SUBSTITUTE(SheetName," ","")&"!$A:$A"))+1,AG155*VLOOKUP($B$3-2,INDIRECT("CPI"&SUBSTITUTE(SheetName," ","")&"!$A:$C"),3,FALSE),AG155*VLOOKUP($B$3-1,INDIRECT("CPI"&SUBSTITUTE(SheetName," ","")&"!$A:$C"),3,FALSE))))) -> 2047.921071 | G155: =IF(ISBLANK(AH155)=TRUE,"",IF($B$3=2024,AH155,IF(SheetName="Other (enter value below)",AH155*(1+$J$4),IF($B$3>_xlfn.AGGREGATE(4,6,INDIRECT("CPI"&SUBSTITUTE(SheetName," ","")&"!$A:$A"))+1,AH155*VLOOKUP($B$3-2,INDIRECT("CPI"&SUBSTITUTE(SheetName," ","")&"!$A:$C"),3,FALSE),AH155*VLOOKUP($B$3-1,INDIRECT("CPI"&SUBSTITUTE(SheetName," ","")&"!$A:$C"),3,FALSE))))) -> 5119.802678 | J155: Low ( <16 m2) High ( >16 m2) | K155: Estimated | L155: Published database - online info | AC155: Shaft & Raises | AE155: SR | AF155: m2 | AG155: 2000 | AH155: 5000
B156: Portals | D156: POR | E156: m3 | F156: =IF(ISBLANK(AG156)=TRUE,"",IF($B$3=2024,AG156,IF(SheetName="Other (enter value below)",AG156*(1+$J$4),IF($B$3>_xlfn.AGGREGATE(4,6,INDIRECT("CPI"&SUBSTITUTE(SheetName," ","")&"!$A:$A"))+1,AG156*VLOOKUP($B$3-2,INDIRECT("CPI"&SUBSTITUTE(SheetName," ","")&"!$A:$C"),3,FALSE),AG156*VLOOKUP($B$3-1,INDIRECT("CPI"&SUBSTITUTE(SheetName," ","")&"!$A:$C"),3,FALSE))))) -> 37.88653982 | G156: =IF(ISBLANK(AH156)=TRUE,"",IF($B$3=2024,AH156,IF(SheetName="Other (enter value below)",AH156*(1+$J$4),IF($B$3>_xlfn.AGGREGATE(4,6,INDIRECT("CPI"&SUBSTITUTE(SheetName," ","")&"!$A:$A"))+1,AH156*VLOOKUP($B$3-2,INDIRECT("CPI"&SUBSTITUTE(SheetName," ","")&"!$A:$C"),3,FALSE),AH156*VLOOKUP($B$3-1,INDIRECT("CPI"&SUBSTITUTE(SheetName," ","")&"!$A:$C"),3,FALSE))))) -> 53.24594785 | H156: =IF(ISBLANK(AI156)=TRUE,"",IF($B$3=2024,AI156,IF(SheetName="Other (enter value below)",AI156*(1+$J$4),IF($B$3>_xlfn.AGGREGATE(4,6,INDIRECT("CPI"&SUBSTITUTE(SheetName," ","")&"!$A:$A"))+1,AI156*VLOOKUP($B$3-2,INDIRECT("CPI"&SUBSTITUTE(SheetName," ","")&"!$A:$C"),3,FALSE),AI156*VLOOKUP($B$3-1,INDIRECT("CPI"&SUBSTITUTE(SheetName," ","")&"!$A:$C"),3,FALSE))))) -> 1535.940803 | J156: Low: unit cost code SC2; High: excavate & backfill collapsed portal; Spec: installed pressure plug | K156: Estimated | L156: Published database - online info | N156: Low: unit cost code SC2; High: excavate & backfill collapsed portal; Spec: installed pressure plug | AC156: Portals | AE156: POR | AF156: m3 | AG156: 37 | AH156: 52 | AI156: 1500
A157: Site Inspection Report | AB157: Site Inspection Report
B158: Specified Acitivity | D158: RPT | E158: each | F158: =IF(ISBLANK(AG158)=TRUE,"",IF($B$3=2024,AG158,IF(SheetName="Other (enter value below)",AG158*(1+$J$4),IF($B$3>_xlfn.AGGREGATE(4,6,INDIRECT("CPI"&SUBSTITUTE(SheetName," ","")&"!$A:$A"))+1,AG158*VLOOKUP($B$3-2,INDIRECT("CPI"&SUBSTITUTE(SheetName," ","")&"!$A:$C"),3,FALSE),AG158*VLOOKUP($B$3-1,INDIRECT("CPI"&SUBSTITUTE(SheetName," ","")&"!$A:$C"),3,FALSE))))) ->  | G158: =IF(ISBLANK(AH158)=TRUE,"",IF($B$3=2024,AH158,IF(SheetName="Other (enter value below)",AH158*(1+$J$4),IF($B$3>_xlfn.AGGREGATE(4,6,INDIRECT("CPI"&SUBSTITUTE(SheetName," ","")&"!$A:$A"))+1,AH158*VLOOKUP($B$3-2,INDIRECT("CPI"&SUBSTITUTE(SheetName," ","")&"!$A:$C"),3,FALSE),AH158*VLOOKUP($B$3-1,INDIRECT("CPI"&SUBSTITUTE(SheetName," ","")&"!$A:$C"),3,FALSE))))) ->  | H158: =IF(ISBLANK(AI158)=TRUE,"",IF($B$3=2024,AI158,IF(SheetName="Other (enter value below)",AI158*(1+$J$4),IF($B$3>_xlfn.AGGREGATE(4,6,INDIRECT("CPI"&SheetName&"!$A:$A"))+1,AI158*VLOOKUP($B$3-2,INDIRECT("CPI"&SheetName&"!$A:$C"),3,FALSE),AI158*VLOOKUP($B$3-1,INDIRECT("CPI"&SheetName&"!$A:$C"),3,FALSE))))) ->  | J158: See user manual | AE158: RPT | AF158: each
A159: Survey/Instrumentation | AB159: Survey/Instrumentation
D160: SI | E160: each | F160: =IF(ISBLANK(AG160)=TRUE,"",IF($B$3=2024,AG160,IF(SheetName="Other (enter value below)",AG160*(1+$J$4),IF($B$3>_xlfn.AGGREGATE(4,6,INDIRECT("CPI"&SUBSTITUTE(SheetName," ","")&"!$A:$A"))+1,AG160*VLOOKUP($B$3-2,INDIRECT("CPI"&SUBSTITUTE(SheetName," ","")&"!$A:$C"),3,FALSE),AG160*VLOOKUP($B$3-1,INDIRECT("CPI"&SUBSTITUTE(SheetName," ","")&"!$A:$C"),3,FALSE))))) -> 15359.40803 | G160: =IF(ISBLANK(AH160)=TRUE,"",IF($B$3=2024,AH160,IF(SheetName="Other (enter value below)",AH160*(1+$J$4),IF($B$3>_xlfn.AGGREGATE(4,6,INDIRECT("CPI"&SUBSTITUTE(SheetName," ","")&"!$A:$A"))+1,AH160*VLOOKUP($B$3-2,INDIRECT("CPI"&SUBSTITUTE(SheetName," ","")&"!$A:$C"),3,FALSE),AH160*VLOOKUP($B$3-1,INDIRECT("CPI"&SUBSTITUTE(SheetName," ","")&"!$A:$C"),3,FALSE))))) ->  | H160: =IF(ISBLANK(AI160)=TRUE,"",IF($B$3=2024,AI160,IF(SheetName="Other (enter value below)",AI160*(1+$J$4),IF($B$3>_xlfn.AGGREGATE(4,6,INDIRECT("CPI"&SheetName&"!$A:$A"))+1,AI160*VLOOKUP($B$3-2,INDIRECT("CPI"&SheetName&"!$A:$C"),3,FALSE),AI160*VLOOKUP($B$3-1,INDIRECT("CPI"&SheetName&"!$A:$C"),3,FALSE))))) ->  | J160: Estimate for 5 days effort (i.e., 1 week) | K160: Estimated | L160: Estimated | AE160: SI | AF160: each | AG160: 15000
A161: Treatment Plant - Construct | AB161: Treatment Plant - Construct
B162: Small (< 1000 m3/d) | D162: TPS | E162: lump sum | F162: =IF(ISBLANK(AG162)=TRUE,"",IF($B$3=2024,AG162,IF(SheetName="Other (enter value below)",AG162*(1+$J$4),IF($B$3>_xlfn.AGGREGATE(4,6,INDIRECT("CPI"&SUBSTITUTE(SheetName," ","")&"!$A:$A"))+1,AG162*VLOOKUP($B$3-2,INDIRECT("CPI"&SUBSTITUTE(SheetName," ","")&"!$A:$C"),3,FALSE),AG162*VLOOKUP($B$3-1,INDIRECT("CPI"&SUBSTITUTE(SheetName," ","")&"!$A:$C"),3,FALSE))))) -> 1433544.75 | G162: =IF(ISBLANK(AH162)=TRUE,"",IF($B$3=2024,AH162,IF(SheetName="Other (enter value below)",AH162*(1+$J$4),IF($B$3>_xlfn.AGGREGATE(4,6,INDIRECT("CPI"&SUBSTITUTE(SheetName," ","")&"!$A:$A"))+1,AH162*VLOOKUP($B$3-2,INDIRECT("CPI"&SUBSTITUTE(SheetName," ","")&"!$A:$C"),3,FALSE),AH162*VLOOKUP($B$3-1,INDIRECT("CPI"&SUBSTITUTE(SheetName," ","")&"!$A:$C"),3,FALSE))))) -> 4095842.142 | H162: =IF(ISBLANK(AI162)=TRUE,"",IF($B$3=2024,AI162,IF(SheetName="Other (enter value below)",AI162*(1+$J$4),IF($B$3>_xlfn.AGGREGATE(4,6,INDIRECT("CPI"&SheetName&"!$A:$A"))+1,AI162*VLOOKUP($B$3-2,INDIRECT("CPI"&SheetName&"!$A:$C"),3,FALSE),AI162*VLOOKUP($B$3-1,INDIRECT("CPI"&SheetName&"!$A:$C"),3,FALSE))))) ->  | K162: Estimated | L162: Estimated | N162: based on historical data (recently projects)/online information and recent actuals Nunavut | AC162: Small (< 1000 m3/d) | AE162: TPS | AF162: lump sum | AG162: 1400000 | AH162: 4000000
B163: Large (> 1000 m3/d) | D163: TPL | E163: lump sum | F163: =IF(ISBLANK(AG163)=TRUE,"",IF($B$3=2024,AG163,IF(SheetName="Other (enter value below)",AG163*(1+$J$4),IF($B$3>_xlfn.AGGREGATE(4,6,INDIRECT("CPI"&SUBSTITUTE(SheetName," ","")&"!$A:$A"))+1,AG163*VLOOKUP($B$3-2,INDIRECT("CPI"&SUBSTITUTE(SheetName," ","")&"!$A:$C"),3,FALSE),AG163*VLOOKUP($B$3-1,INDIRECT("CPI"&SUBSTITUTE(SheetName," ","")&"!$A:$C"),3,FALSE))))) -> 4607822.41 | G163: =IF(ISBLANK(AH163)=TRUE,"",IF($B$3=2024,AH163,IF(SheetName="Other (enter value below)",AH163*(1+$J$4),IF($B$3>_xlfn.AGGREGATE(4,6,INDIRECT("CPI"&SUBSTITUTE(SheetName," ","")&"!$A:$A"))+1,AH163*VLOOKUP($B$3-2,INDIRECT("CPI"&SUBSTITUTE(SheetName," ","")&"!$A:$C"),3,FALSE),AH163*VLOOKUP($B$3-1,INDIRECT("CPI"&SUBSTITUTE(SheetName," ","")&"!$A:$C"),3,FALSE))))) -> 11570754.05 | K163: Estimated | L163: Estimated | N163: based on historical data (recently projects)/online information and recent actuals Nunavut | AC163: Large (> 1000 m3/d) | AE163: TPL | AF163: lump sum | AG163: 4500000 | AH163: 11300000
B164: Constructed Wetland | D164: CWTS | E164: ha | G164: =IF(ISBLANK(AH164)=TRUE,"",IF($B$3=2024,AH164,IF(SheetName="Other (enter value below)",AH164*(1+Z160),IF($B$3>_xlfn.AGGREGATE(4,6,INDIRECT("CPI"&SheetName&"!$A:$A"))+1,AH164*VLOOKUP($B$3-2,INDIRECT("CPI"&SheetName&"!$A:$C"),3,FALSE),AH164*VLOOKUP($B$3-1,INDIRECT("CPI"&SheetName&"!$A:$C"),3,FALSE))))) ->  | J164: site specific costs to be developed if required | L164: Site Specific Cost to be developed if required | AC164: Constructed Wetland | AE164: CWTS | AF164: ha | AG164: TBD
A165: Treatment Plant - Operate | AB165: Treatment Plant - Operate
D166: TPO | E166: m3 | F166: =IF(ISBLANK(AG166)=TRUE,"",IF($B$3=2024,AG166,IF(SheetName="Other (enter value below)",AG166*(1+$J$4),IF($B$3>_xlfn.AGGREGATE(4,6,INDIRECT("CPI"&SUBSTITUTE(SheetName," ","")&"!$A:$A"))+1,AG166*VLOOKUP($B$3-2,INDIRECT("CPI"&SUBSTITUTE(SheetName," ","")&"!$A:$C"),3,FALSE),AG166*VLOOKUP($B$3-1,INDIRECT("CPI"&SUBSTITUTE(SheetName," ","")&"!$A:$C"),3,FALSE))))) -> 1.023960536 | G166: =IF(ISBLANK(AH166)=TRUE,"",IF($B$3=2024,AH166,IF(SheetName="Other (enter value below)",AH166*(1+$J$4),IF($B$3>_xlfn.AGGREGATE(4,6,INDIRECT("CPI"&SUBSTITUTE(SheetName," ","")&"!$A:$A"))+1,AH166*VLOOKUP($B$3-2,INDIRECT("CPI"&SUBSTITUTE(SheetName," ","")&"!$A:$C"),3,FALSE),AH166*VLOOKUP($B$3-1,INDIRECT("CPI"&SUBSTITUTE(SheetName," ","")&"!$A:$C"),3,FALSE))))) -> 4.095842142 | H166: =IF(ISBLANK(AI166)=TRUE,"",IF($B$3=2024,AI166,IF(SheetName="Other (enter value below)",AI166*(1+$J$4),IF($B$3>_xlfn.AGGREGATE(4,6,INDIRECT("CPI"&SheetName&"!$A:$A"))+1,AI166*VLOOKUP($B$3-2,INDIRECT("CPI"&SheetName&"!$A:$C"),3,FALSE),AI166*VLOOKUP($B$3-1,INDIRECT("CPI"&SheetName&"!$A:$C"),3,FALSE))))) ->  | J166: Low (TSS removal) High (Complex) | K166: Escalated | L166: Escalated from previous rate | AE166: TPO | AF166: m3 | AG166: 1 | AH166: 4
A167: Treatment Chemicals | AB167: Treatment Chemicals
B168: ferric sulphate | D168: ferric | E168: kg | F168: =IF(ISBLANK(AG168)=TRUE,"",IF($B$3=2024,AG168,IF(SheetName="Other (enter value below)",AG168*(1+$J$4),IF($B$3>_xlfn.AGGREGATE(4,6,INDIRECT("CPI"&SUBSTITUTE(SheetName," ","")&"!$A:$A"))+1,AG168*VLOOKUP($B$3-2,INDIRECT("CPI"&SUBSTITUTE(SheetName," ","")&"!$A:$C"),3,FALSE),AG168*VLOOKUP($B$3-1,INDIRECT("CPI"&SUBSTITUTE(SheetName," ","")&"!$A:$C"),3,FALSE))))) -> 1.402825934 | G168: =IF(ISBLANK(AH168)=TRUE,"",IF($B$3=2024,AH168,IF(SheetName="Other (enter value below)",AH168*(1+$J$4),IF($B$3>_xlfn.AGGREGATE(4,6,INDIRECT("CPI"&SUBSTITUTE(SheetName," ","")&"!$A:$A"))+1,AH168*VLOOKUP($B$3-2,INDIRECT("CPI"&SUBSTITUTE(SheetName," ","")&"!$A:$C"),3,FALSE),AH168*VLOOKUP($B$3-1,INDIRECT("CPI"&SUBSTITUTE(SheetName," ","")&"!$A:$C"),3,FALSE))))) ->  | H168: =IF(ISBLANK(AI168)=TRUE,"",IF($B$3=2024,AI168,IF(SheetName="Other (enter value below)",AI168*(1+$J$4),IF($B$3>_xlfn.AGGREGATE(4,6,INDIRECT("CPI"&SUBSTITUTE(SheetName," ","")&"!$A:$A"))+1,AI168*VLOOKUP($B$3-2,INDIRECT("CPI"&SUBSTITUTE(SheetName," ","")&"!$A:$C"),3,FALSE),AI168*VLOOKUP($B$3-1,INDIRECT("CPI"&SUBSTITUTE(SheetName," ","")&"!$A:$C"),3,FALSE))))) ->  | K168: Escalated | L168: Escalated from previous rate | N168: Shipping not included | AC168: ferric sulphate | AE168: ferric | AF168: kg | AG168: 1.37
B169: ferrous sulphate | D169: ferrous | E169: kg | F169: =IF(ISBLANK(AG169)=TRUE,"",IF($B$3=2024,AG169,IF(SheetName="Other (enter value below)",AG169*(1+$J$4),IF($B$3>_xlfn.AGGREGATE(4,6,INDIRECT("CPI"&SUBSTITUTE(SheetName," ","")&"!$A:$A"))+1,AG169*VLOOKUP($B$3-2,INDIRECT("CPI"&SUBSTITUTE(SheetName," ","")&"!$A:$C"),3,FALSE),AG169*VLOOKUP($B$3-1,INDIRECT("CPI"&SUBSTITUTE(SheetName," ","")&"!$A:$C"),3,FALSE))))) -> 1.556420014 | G169: =IF(ISBLANK(AH169)=TRUE,"",IF($B$3=2024,AH169,IF(SheetName="Other (enter value below)",AH169*(1+$J$4),IF($B$3>_xlfn.AGGREGATE(4,6,INDIRECT("CPI"&SUBSTITUTE(SheetName," ","")&"!$A:$A"))+1,AH169*VLOOKUP($B$3-2,INDIRECT("CPI"&SUBSTITUTE(SheetName," ","")&"!$A:$C"),3,FALSE),AH169*VLOOKUP($B$3-1,INDIRECT("CPI"&SUBSTITUTE(SheetName," ","")&"!$A:$C"),3,FALSE))))) ->  | H169: =IF(ISBLANK(AI169)=TRUE,"",IF($B$3=2024,AI169,IF(SheetName="Other (enter value below)",AI169*(1+$J$4),IF($B$3>_xlfn.AGGREGATE(4,6,INDIRECT("CPI"&SheetName&"!$A:$A"))+1,AI169*VLOOKUP($B$3-2,INDIRECT("CPI"&SheetName&"!$A:$C"),3,FALSE),AI169*VLOOKUP($B$3-1,INDIRECT("CPI"&SheetName&"!$A:$C"),3,FALSE))))) ->  | K169: Escalated | L169: Escalated from previous rate | N169: Shipping not included | AC169: ferrous sulphate | AE169: ferrous | AF169: kg | AG169: 1.52
B170: lime | D170: lime | E170: kg | F170: 0.3031373728 | K170: Published Database | L170: Published database - online info | M170: https://www.chemanalyst.com/Pricing-data/quicklime-1505 | N170: Shipping not included | AC170: lime | AE170: lime | AF170: kg | AG170: 0.296044
B171: hydrogen peroxide, 35% | D171: hperox | E171: kg | F171: 1.084619958 | K171: Published Database | L171: Published database - online info | M171: https://www.chemanalyst.com/Pricing-data/hydrogen-peroxide-1169 | N171: Shipping not included | AC171: hydrogen peroxide, 35% | AE171: hperox | AF171: kg | AG171: 1.05924
B172: Sodium Metabisulfate | D172: Nametab | E172: kg | F172: 1.392586328 | K172: Published Database | L172: Published database - online info | M172: https://www.chemanalyst.com/Pricing-data/sodium-metasilicate-pentahydrate-1221 | N172: Shipping not included | AC172: Sodium Metabisulfate | AE172: Nametab | AF172: kg | AG172: 1.36
B173: Caustic soda, 50% | D173: caustic | E173: kg | F173: 0.5033749035 | K173: Published Database | L173: Published database - online info | M173: https://www.chemanalyst.com/Pricing-data/caustic-soda-3 | N173: Shipping not included | AC173: Caustic soda, 50% | AE173: caustic | AF173: kg | AG173: 0.491596
B174: Sulfuric acid, 93% | D174: sulfuric | E174: kg | F174: 0.3722383256 | K174: Historical Database | L174: Historical Database | N174: Shipping not included | AC174: Sulfuric acid, 93% | AE174: sulfuric | AF174: kg | AG174: 0.363528
B175: flocculant | D175: flocc | E175: kg | F175: 7.065327696 | K175: Escalated | L175: Escalated from previous rate | N175: Shipping not included | AC175: flocculant | AE175: flocc | AF175: kg | AG175: 6.9
B176: copper sulphate | D176: copper | E176: kg | F176: 3.385961022 | K176: Published Database | L176: Published database - online info | M176: https://www.chemanalyst.com/Pricing-data/copper-sulphate-1163 | N176: Shipping not included | AC176: copper sulphate | AE176: copper | AF176: kg | AG176: 3.30673
B177: shipping | D177: shipping | E177: kg | F177: 0.2355109232 | K177: Escalated | L177: Escalated from previous rate | AC177: shipping | AE177: shipping | AF177: kg | AG177: 0.23
A178: Vegetation | AB178: Vegetation
B179: Hydroseed, Flat (mechanical seeding) | D179: VHF | E179: ha | F179: =IF(ISBLANK(AG179)=TRUE,"",IF($B$3=2024,AG179,IF(SheetName="Other (enter value below)",AG179*(1+$J$4),IF($B$3>_xlfn.AGGREGATE(4,6,INDIRECT("CPI"&SUBSTITUTE(SheetName," ","")&"!$A:$A"))+1,AG179*VLOOKUP($B$3-2,INDIRECT("CPI"&SUBSTITUTE(SheetName," ","")&"!$A:$C"),3,FALSE),AG179*VLOOKUP($B$3-1,INDIRECT("CPI"&SUBSTITUTE(SheetName," ","")&"!$A:$C"),3,FALSE))))) -> 3276.673714 | H179: =IF(ISBLANK(AI179)=TRUE,"",IF($B$3=2024,AI179,IF(SheetName="Other (enter value below)",AI179*(1+$J$4),IF($B$3>_xlfn.AGGREGATE(4,6,INDIRECT("CPI"&SheetName&"!$A:$A"))+1,AI179*VLOOKUP($B$3-2,INDIRECT("CPI"&SheetName&"!$A:$C"),3,FALSE),AI179*VLOOKUP($B$3-1,INDIRECT("CPI"&SheetName&"!$A:$C"),3,FALSE))))) ->  | K179: Task Database | L179: RS means 2024 Q2 Yellowknife | N179: mechanical seeding | AC179: Hydroseed, Flat | AE179: VHF | AF179: ha | AG179: 3200
B180: Hydroseed, Sloped (mechanical seeding) | D180: VHS | E180: ha | F180: 4915.010571 | K180: Escalated | L180: Estimated | N180: factored based on flat | AC180: Hydroseed, Sloped | AE180: VHS | AF180: ha | AG180: 4800
B181: Veg. blanket/erosion mat | D181: VB | E181: ha | F181: 25558.05497 | K181: Task Database | L181: RS means 2024 Q2 Yellowknife | N181: Synthetic erosion control, revegetation mat, webbed | AC181: Veg. blanket/erosion mat | AE181: VB | AF181: ha | AG181: 24960
B182: Tree planting (light soil) | D182: VT1 | E182: ha | K182: Task Database | L182: RS means 2024 Q2 Yellowknife | N182: assumption plant tree ever 10m in light soil, price varies from container to bagged and burlapped in difference size | AC182: Tree planting (user specified) | AE182: VT1 | AF182: ha
B183: Wetland species | D183: VW | E183: ha | F183: =IF(ISBLANK(AG183)=TRUE,"",IF($B$3=2024,AG183,IF(SheetName="Other (enter value below)",AG183*(1+J182),IF($B$3>_xlfn.AGGREGATE(4,6,INDIRECT("CPI"&SheetName&"!$A:$A"))+1,AG183*VLOOKUP($B$3-2,INDIRECT("CPI"&SheetName&"!$A:$C"),3,FALSE),AG183*VLOOKUP($B$3-1,INDIRECT("CPI"&SheetName&"!$A:$C"),3,FALSE))))) ->  | G183: =IF(ISBLANK(AH183)=TRUE,"",IF($B$3=2024,AH183,IF(SheetName="Other (enter value below)",AH183*(1+Z182),IF($B$3>_xlfn.AGGREGATE(4,6,INDIRECT("CPI"&SheetName&"!$A:$A"))+1,AH183*VLOOKUP($B$3-2,INDIRECT("CPI"&SheetName&"!$A:$C"),3,FALSE),AH183*VLOOKUP($B$3-1,INDIRECT("CPI"&SheetName&"!$A:$C"),3,FALSE))))) ->  | H183: =IF(ISBLANK(AI183)=TRUE,"",IF($B$3=2024,AI183,IF(SheetName="Other (enter value below)",AI183*(1+AA182),IF($B$3>_xlfn.AGGREGATE(4,6,INDIRECT("CPI"&SheetName&"!$A:$A"))+1,AI183*VLOOKUP($B$3-2,INDIRECT("CPI"&SheetName&"!$A:$C"),3,FALSE),AI183*VLOOKUP($B$3-1,INDIRECT("CPI"&SheetName&"!$A:$C"),3,FALSE))))) ->  | AC183: Wetland species | AE183: VW | AF183: ha
A184: Waste Disposal | AB184: Waste Disposal
B185: Hazardous Waste Tipping Fee | D185: WTH | E185: tonne | F185: =IF(ISBLANK(AG185)=TRUE,"",IF($B$3=2024,AG185,IF(SheetName="Other (enter value below)",AG185*(1+$J$4),IF($B$3>_xlfn.AGGREGATE(4,6,INDIRECT("CPI"&SUBSTITUTE(SheetName," ","")&"!$A:$A"))+1,AG185*VLOOKUP($B$3-2,INDIRECT("CPI"&SUBSTITUTE(SheetName," ","")&"!$A:$C"),3,FALSE),AG185*VLOOKUP($B$3-1,INDIRECT("CPI"&SUBSTITUTE(SheetName," ","")&"!$A:$C"),3,FALSE))))) -> 3071.881607 | G185: =IF(ISBLANK(AH185)=TRUE,"",IF($B$3=2024,AH185,IF(SheetName="Other (enter value below)",AH185*(1+$J$4),IF($B$3>_xlfn.AGGREGATE(4,6,INDIRECT("CPI"&SUBSTITUTE(SheetName," ","")&"!$A:$A"))+1,AH185*VLOOKUP($B$3-2,INDIRECT("CPI"&SUBSTITUTE(SheetName," ","")&"!$A:$C"),3,FALSE),AH185*VLOOKUP($B$3-1,INDIRECT("CPI"&SUBSTITUTE(SheetName," ","")&"!$A:$C"),3,FALSE))))) ->  | H185: =IF(ISBLANK(AI185)=TRUE,"",IF($B$3=2024,AI185,IF(SheetName="Other (enter value below)",AI185*(1+$J$4),IF($B$3>_xlfn.AGGREGATE(4,6,INDIRECT("CPI"&SheetName&"!$A:$A"))+1,AI185*VLOOKUP($B$3-2,INDIRECT("CPI"&SheetName&"!$A:$C"),3,FALSE),AI185*VLOOKUP($B$3-1,INDIRECT("CPI"&SheetName&"!$A:$C"),3,FALSE))))) ->  | J185: Includes transport | K185: Estimated | AC185: Hazardous Waste Tipping Fee | AE185: WTH | AF185: tonne | AG185: 3000
B186: Non-Hazardous Waste Tipping Fee | D186: WTNH | E186: tonne | F186: =IF(ISBLANK(AG186)=TRUE,"",IF($B$3=2024,AG186,IF(SheetName="Other (enter value below)",AG186*(1+$J$4),IF($B$3>_xlfn.AGGREGATE(4,6,INDIRECT("CPI"&SUBSTITUTE(SheetName," ","")&"!$A:$A"))+1,AG186*VLOOKUP($B$3-2,INDIRECT("CPI"&SUBSTITUTE(SheetName," ","")&"!$A:$C"),3,FALSE),AG186*VLOOKUP($B$3-1,INDIRECT("CPI"&SUBSTITUTE(SheetName," ","")&"!$A:$C"),3,FALSE))))) -> 819.1684285 | G186: =IF(ISBLANK(AH186)=TRUE,"",IF($B$3=2024,AH186,IF(SheetName="Other (enter value below)",AH186*(1+$J$4),IF($B$3>_xlfn.AGGREGATE(4,6,INDIRECT("CPI"&SUBSTITUTE(SheetName," ","")&"!$A:$A"))+1,AH186*VLOOKUP($B$3-2,INDIRECT("CPI"&SUBSTITUTE(SheetName," ","")&"!$A:$C"),3,FALSE),AH186*VLOOKUP($B$3-1,INDIRECT("CPI"&SUBSTITUTE(SheetName," ","")&"!$A:$C"),3,FALSE))))) ->  | K186: Estimated | AC186: Non-Hazardous Waste Tipping Fee | AE186: WTNH | AF186: tonne | AG186: 800
A187: Water Sampling/Analysis/Reporting | AB187: Water Sampling/Analysis/Reporting
D188: WS | E188: each | F188: =IF(ISBLANK(AG188)=TRUE,"",IF($B$3=2024,AG188,IF(SheetName="Other (enter value below)",AG188*(1+$J$4),IF($B$3>_xlfn.AGGREGATE(4,6,INDIRECT("CPI"&SUBSTITUTE(SheetName," ","")&"!$A:$A"))+1,AG188*VLOOKUP($B$3-2,INDIRECT("CPI"&SUBSTITUTE(SheetName," ","")&"!$A:$C"),3,FALSE),AG188*VLOOKUP($B$3-1,INDIRECT("CPI"&SUBSTITUTE(SheetName," ","")&"!$A:$C"),3,FALSE))))) -> 81916.84285 | G188: =IF(ISBLANK(AH188)=TRUE,"",IF($B$3=2024,AH188,IF(SheetName="Other (enter value below)",AH188*(1+$J$4),IF($B$3>_xlfn.AGGREGATE(4,6,INDIRECT("CPI"&SUBSTITUTE(SheetName," ","")&"!$A:$A"))+1,AH188*VLOOKUP($B$3-2,INDIRECT("CPI"&SUBSTITUTE(SheetName," ","")&"!$A:$C"),3,FALSE),AH188*VLOOKUP($B$3-1,INDIRECT("CPI"&SUBSTITUTE(SheetName," ","")&"!$A:$C"),3,FALSE))))) ->  | H188: =IF(ISBLANK(AI188)=TRUE,"",IF($B$3=2024,AI188,IF(SheetName="Other (enter value below)",AI188*(1+$J$4),IF($B$3>_xlfn.AGGREGATE(4,6,INDIRECT("CPI"&SheetName&"!$A:$A"))+1,AI188*VLOOKUP($B$3-2,INDIRECT("CPI"&SheetName&"!$A:$C"),3,FALSE),AI188*VLOOKUP($B$3-1,INDIRECT("CPI"&SheetName&"!$A:$C"),3,FALSE))))) ->  | J188: See User Manual | K188: Estimated | L188: Assumes the following approximate hours (Registered Engineer: 80 hours, Environmental Coordinator: 215 hours, Environmental Technician: 300 hours) | AE188: WS | AF188: each | AG188: 80000
A189: Winter Trail | AB189: Winter Trail
B190: =AC190 -> Snow | D190: =AE190 -> WT | E190: =AF190 -> km | F190: =IF(ISBLANK(AG190)=TRUE,"",IF($B$3=2024,AG190,IF(SheetName="Other (enter value below)",AG190*(1+$J$4),IF($B$3>_xlfn.AGGREGATE(4,6,INDIRECT("CPI"&SUBSTITUTE(SheetName," ","")&"!$A:$A"))+1,AG190*VLOOKUP($B$3-2,INDIRECT("CPI"&SUBSTITUTE(SheetName," ","")&"!$A:$C"),3,FALSE),AG190*VLOOKUP($B$3-1,INDIRECT("CPI"&SUBSTITUTE(SheetName," ","")&"!$A:$C"),3,FALSE))))) -> 2047.921071 | G190: =IF(ISBLANK(AH190)=TRUE,"",IF($B$3=2024,AH190,IF(SheetName="Other (enter value below)",AH190*(1+$J$4),IF($B$3>_xlfn.AGGREGATE(4,6,INDIRECT("CPI"&SUBSTITUTE(SheetName," ","")&"!$A:$A"))+1,AH190*VLOOKUP($B$3-2,INDIRECT("CPI"&SUBSTITUTE(SheetName," ","")&"!$A:$C"),3,FALSE),AH190*VLOOKUP($B$3-1,INDIRECT("CPI"&SUBSTITUTE(SheetName," ","")&"!$A:$C"),3,FALSE))))) -> 10239.60536 | H190: =IF(ISBLANK(AI190)=TRUE,"",IF($B$3=2024,AI190,IF(SheetName="Other (enter value below)",AI190*(1+$J$4),IF($B$3>_xlfn.AGGREGATE(4,6,INDIRECT("CPI"&SheetName&"!$A:$A"))+1,AI190*VLOOKUP($B$3-2,INDIRECT("CPI"&SheetName&"!$A:$C"),3,FALSE),AI190*VLOOKUP($B$3-1,INDIRECT("CPI"&SheetName&"!$A:$C"),3,FALSE))))) ->  | K190: Estimated | AC190: Snow | AE190: WT | AF190: km | AG190: 2000 | AH190: 10000
B191: =AC191 -> Soil | D191: =AE191 -> WT1 | E191: km | F191: =IF(ISBLANK(AG191)=TRUE,"",IF($B$3=2024,AG191,IF(SheetName="Other (enter value below)",AG191*(1+$J$4),IF($B$3>_xlfn.AGGREGATE(4,6,INDIRECT("CPI"&SUBSTITUTE(SheetName," ","")&"!$A:$A"))+1,AG191*VLOOKUP($B$3-2,INDIRECT("CPI"&SUBSTITUTE(SheetName," ","")&"!$A:$C"),3,FALSE),AG191*VLOOKUP($B$3-1,INDIRECT("CPI"&SUBSTITUTE(SheetName," ","")&"!$A:$C"),3,FALSE))))) -> 1023.960536 | G191: =IF(ISBLANK(AH191)=TRUE,"",IF($B$3=2024,AH191,IF(SheetName="Other (enter value below)",AH191*(1+$J$4),IF($B$3>_xlfn.AGGREGATE(4,6,INDIRECT("CPI"&SUBSTITUTE(SheetName," ","")&"!$A:$A"))+1,AH191*VLOOKUP($B$3-2,INDIRECT("CPI"&SUBSTITUTE(SheetName," ","")&"!$A:$C"),3,FALSE),AH191*VLOOKUP($B$3-1,INDIRECT("CPI"&SUBSTITUTE(SheetName," ","")&"!$A:$C"),3,FALSE))))) -> 3071.881607 | K191: Estimated | AC191: Soil | AE191: WT1 | AF191: km | AG191: 1000 | AH191: 3000
A192: Winter Road | AB192: Winter Road
B193: =AC193 -> Bridge | D193: =AE193 -> WRB | E193: =AF193 -> each | F193: =IF(ISBLANK(AG193)=TRUE,"",IF($B$3=2024,AG193,IF(SheetName="Other (enter value below)",AG193*(1+$J$4),IF($B$3>_xlfn.AGGREGATE(4,6,INDIRECT("CPI"&SUBSTITUTE(SheetName," ","")&"!$A:$A"))+1,AG193*VLOOKUP($B$3-2,INDIRECT("CPI"&SUBSTITUTE(SheetName," ","")&"!$A:$C"),3,FALSE),AG193*VLOOKUP($B$3-1,INDIRECT("CPI"&SUBSTITUTE(SheetName," ","")&"!$A:$C"),3,FALSE))))) -> 25599.01339 | G193: 51198.02678 | H193: =IF(ISBLANK(AI193)=TRUE,"",IF($B$3=2024,AI193,IF(SheetName="Other (enter value below)",AI193*(1+$J$4),IF($B$3>_xlfn.AGGREGATE(4,6,INDIRECT("CPI"&SheetName&"!$A:$A"))+1,AI193*VLOOKUP($B$3-2,INDIRECT("CPI"&SheetName&"!$A:$C"),3,FALSE),AI193*VLOOKUP($B$3-1,INDIRECT("CPI"&SheetName&"!$A:$C"),3,FALSE))))) ->  | J193: Low (simple wooden or ice) High (complex steel frame or modular) | K193: Estimated | AC193: Bridge | AE193: WRB | AF193: each | AG193: 25000 | AH193: 50000
B194: Construction and Maintenance | D194: WRC | E194: km | F194: 20479.21071 | K194: Estimated | L194: CIRNAC/ Nunavut Project Reference and Government of Saskatchewan examples (2025) | AC194: Construction | AE194: WRC | AF194: km | AG194: 20000
B195: Usage | D195: WRU | E195: kmtonne | F195: 0.5119802678 | K195: Estimated | AC195: Usage | AE195: WRU | AF195: kmtonne | AG195: 0.5

Sheet Estimator V2
B2: Unit Cost Estimator (RATES IN 2024 DOLARS)
B3: Instructions:
B4: Enter information as needed in the colour coded cells as follows:
C5: Yellow Cells - Enter information for Reference and Calculation
B6: No Fill | C6: No Colour Cells - Information comes from other cell or calculation (i.e., linked calculations - do not edit)
C7: Green Cells - Output based on details and first principles information entered in yellow cells
B9: Calculation Results:
B10: Code Code: | C10: =CONCATENATE(E18,E19) -> RB1L
B11: Estimated Unit Rate | D11: Unit
B12: =E84 -> 9.985773913 | C12: =D84 -> $/unit | D12: =D83 -> m3
C14: Load & Haul Cycle | D14: Unit | E14: QTY | F14: Description
C15: General
C16: Project | E16: NU Example | F16: Input
C17: Description | E17: Excavate Rock Low Spec | F17: Input
C18: Cost Code Root | E18: RB1 | F18: Input
C19: Low$/High$/Specified$ | E19: L | F19: Input
C20: Bid Quantity | D20: m3 | E20: 300000 | F20: Optional
C21: Takeoff Quantity | D21: m3 | E21: 300000 | F21: Input
C22: Loading Machine | E22: CAT 349F | F22: Input
C23: Loading Machine Capacity | D23: m3 | E23: 2.77 | F23: Input
C24: In Situ SG Factor | E24: 2.7 | F24: Input
C25: Swell Factor | E25: 1.75 | F25: Input
C26: Nominal Fill Factor (broken SG) | E26: =E24/E25 -> 1.542857143 | F26: Calculated
C27: Bucket Fill Factor | D27: % | E27: 0.8 | F27: Input
C28: Tonnes/Bucket | E28: =E26*E23*E27 -> 3.418971429 | F28: Calculated
C29: Truck Model | E29: CAT 725C | F29: Input
C30: Truck Capacity of Conveyance | D30: kg | E30: 23000 | F30: Input
D31: tonnes | E31: =E30/1000 -> 23 | F31: Calculated
D32: m3 | E32: =E31/E26 -> 14.90740741 | F32: Calculated
C33: Truck max capacity | D33: m3 | E33: 15 | F33: Input
C34: Verify load and haul system matches with manufacture spec. | E34: TRUE | F34: Manual Check
C35: Time Parameters
C36: Productive time
C37: Cycle minutes per hour | D37: min | E37: 50 | F37: Input
C38: Truck minutes per hour | D38: min | E38: 50 | F38: Input
C39: Loader minutes per hour | D39: min | E39: 50 | F39: Input
C40: Productivity | D40: %/DAY | E40: 0.8 | F40: Input
C41: Hours/Day | D41: ea | E41: 12 | F41: Input
C42: Shifts | D42: Per/day | E42: 1 | F42: Input
C43: Lost Time | D43: %/day | E43: =1-E40 -> 0.2 | F43: Calculated
C44: Loading Cycle
C45: Shovel
C46: Dig time per bucket | D46: sec | E46: 9 | F46: Input
C47: Loaded Turn | D47: sec | E47: 9 | F47: Input
C48: Dump to truck | D48: sec | E48: 5 | F48: Input
C49: Empty turn | D49: sec | E49: 8 | F49: Input
C50: Dig, Turn, Dump, Turn | D50: sec | E50: =SUM(E46:E49) -> 31 | F50: Calculated
C51: Total time per truck | D51: min | E51: =(((E50)*E53)/60) -> 3.616666667 | F51: Calculated
C52: Buckets per truck | E52: =E31/E28 -> 6.727169408 | F52: Calculated
C53: Buckets per truck rounded up | E53: =ROUNDUP(E52,0) -> 7 | F53: Calculated
C54: Loader productivity | D54: m3/hr | E54: =(E23*E52)/(E51)*60 -> 309.1397849 | F54: Calculated
C55: Haul Distance | D55: km | E55: 1 | F55: Input
C56: Average hauling speed round trip | D56: km/hr | E56: 35 | F56: Input
C57: Truck
C58: Back in | D58: sec | E58: 30 | F58: Input
D59: min | E59: =E58/60 -> 0.5 | F59: Calculated
C60: Wait and load | D60: sec | E60: =E53*(E50) -> 217 | F60: Calculated
D61: min | E61: =E60/60 -> 3.616666667 | F61: Calculated
C62: Turn and dump | D62: sec | E62: 55 | F62: Input
C63: Hauling time round trip | D63: sec | E63: =(E55*2)/E56*60*60 -> 205.7142857 | F63: Calculated
D64: min | E64: =(E55*2)/E56*60 -> 3.428571429 | F64: Calculated
C65: Average time per load | D65: minutes | E65: =SUM(E58+E60+E62+E63)/60 -> 8.461904762 | F65: Calculated
C66: Truck productivity (ea) | D66: m3/hr | E66: =E32/E65*60 -> 105.7024948 | F66: Calculated
C67: Verification
C68: Trucks per loader | D68: trucks | E68: =(E65/SUM(E59+E61)) -> 2.055523424 | F68: Calculated
C69: Trucks used | D69: trucks | E69: =ROUNDUP(E68,0) -> 3 | F69: Calculated
E70: =IF(E69>E68,"Loader Constrained","Truck Constrained") -> Loader Constrained | F70: Calculated
C71: Loads total | D71: loads | E71: =ROUNDUP(E21/E32,0) -> 20125 | F71: Calculated
C72: Unconstrained time
C73: Truck Hauling time total | D73: minutes | E73: =E71*E65 -> 170295.8333 | F73: Calculated
D74: hours | E74: =E73/60 -> 2838.263889 | F74: Calculated
C75: Loader time total | D75: hours | E75: =E21/E54 -> 970.4347826 | F75: Calculated
C76: Adjusted Hours
C77: Truck | D77: hours | E77: =E74*((60/E38)*(1/E40)) -> 4257.395833 | F77: Calculated
D78: days | E78: =E77/(E41*E42) -> 354.7829861 | F78: Calculated
C79: Loader | D79: hours | E79: =E75*((60/E39)*(1/E40)) -> 1455.652174 | F79: Calculated
D80: days | E80: =E79/(E41*E42) -> 121.3043478 | F80: Calculated
C82: Unit Rate
D83: =D21 -> m3 | E83: =E21 -> 300000 | F83: Calculated
D84: $/unit | E84: =H102/E83 -> 9.985773913 | F84: Calculated
D85: days | E85: =MAX(E80,E78/E69) -> 121.3043478 | F85: Calculated
D86: m3/day | E86: =E83/E85 -> 2473.11828 | F86: Calculated
C87: Cost Component
C88: Equipment
D89: Rental Rate
C90: =B95 -> CAT 725C | D90: 242
C91: =B96 -> CAT 349F | D91: 343
C92: D8T LGP | D92: 375
C93: Cost Component
B94: Equipment | C94: Description | D94: Unit | E94: $/hour | F94: Hours | G94: QTY | H94: Subtotal Costs | I94: Notes
B95: =E29 -> CAT 725C | C95: Truck | D95: hours | E95: =D90 -> 242 | F95: =E85*E41 -> 1455.652174 | G95: =E69 -> 3 | H95: =G95*F95*E95 -> 1056803.478 | I95: Total equipment hours utilized time only.
B96: =E22 -> CAT 349F | C96: Loader/Shovel | D96: hours | E96: =D91 -> 343 | F96: =F95 -> 1455.652174 | G96: 1 | H96: 499288.6957 | I96: Total equipment hours utilized time only.
B97: =C92 -> D8T LGP | C97: Dozer | D97: hours | E97: =D92 -> 375 | F97: =F96 -> 1455.652174 | G97: =ROUNDUP(G95/2,0) -> 2 | H97: 1091739.13 | I97: Total equipment hours utilized time only.
C98: Dozer Operator | D98: hours | E98: =90*0.35 -> 31.5 | F98: =F97 -> 1455.652174 | G98: =G97 -> 2 | H98: 91706.08696 | I98: Operator rate for Alberta included in rental rate. Escalation of operator rate to northern locations included here.
C99: Truck Driver | D99: hours | E99: =90*0.35 -> 31.5 | F99: =F95 -> 1455.652174 | G99: =G95 -> 3 | H99: 137559.1304 | I99: Operator rate for Alberta included in rental rate. Escalation of operator rate to northern locations included here.
C100: Shovel Operator | D100: hours | E100: 31.5 | F100: =F96 -> 1455.652174 | G100: =G96 -> 1 | H100: 45853.04348 | I100: Operator rate for Alberta included in rental rate. Escalation of operator rate to northern locations included here.
C101: Foreman | D101: hours | E101: 100 | F101: =E85*E41*E42 -> 1455.652174 | G101: 0.5 | H101: 72782.6087 | I101: Assumes half time for supervision. Escalation of operator rate to northern locations included here.
H102: =SUM(H95:H101) -> 2995732.174
C103: Spread and Compact | G103: $/unit | H103: =(H97+H98)/E83 -> 3.944817391
C104: =CONCATENATE(C10," + spread and compact") -> RB1L + spread and compact | G104: $/unit | H104: =E84+H103 -> 13.9305913
C107: Reference Information
E110: SG Factor | F110: Swell Factor
C111: Soil | D111: Wet Sand | E111: 1.95 | F111: 1.25
C112: Rock | D112: Granite | E112: 2.7 | F112: 1.75
C113: Tailings | D113: High Density | E113: 3.25 | F113: 1.25
C116: Source: | D116: https://www.engineeringtoolbox.com/soil-rock-bulking-factor-d_1557.html
D117: https://www.fhwa.dot.gov/publications/research/infrastructure/pavements/97148/036.cfm
C119: Soil/ Rock Type | D119: Fill Factor
C120: Loose Soil/ Easy Digging | D120: 1
C121: Average Soil/ Mixed | D121: 0.95
C122: Rock (blasted or fragmented) | D122: 0.8
C123: Hard Rock (poorly fragmented) | D123: 0.75
C124: Tailings* | D124: 0.6 | E124: *Assume saturated tailings requiring level bucket
C126: Source: | D126: https://www.cat.com/en_US/articles/ci-articles/bucket-fill-factors.html
C128: Low | D128: High | E128: Specified
C129: L | D129: H | E129: S

Sheet CPINunavut (hidden)
A1: Year | B1: Annual CPI (2002 Base Period) | C1: Cumulative CPI Change from 2024 | D1: REF_DATE | E1: GEO | F1: DGUID | G1: Products and product groups | H1: UOM | I1: UOM_ID | J1: SCALAR_FACTOR | K1: SCALAR_ID | L1: VECTOR | M1: COORDINATE | N1: VALUE | O1: STATUS | P1: SYMBOL | Q1: TERMINATED | R1: DECIMALS
A2: =IFERROR(VALUE(dtl_downloadDbLoadingData[[#This Row],[REF_DATE]]),"") -> 2006 | B2: =IFERROR(VALUE(dtl_downloadDbLoadingData[[#This Row],[VALUE]]),"") -> 104.6 | C2: =IF(OR(A2<2023,A2=2023),"",B2/VLOOKUP(2023,A:B,2,FALSE)) ->  | D2: 2006 | E2: Iqaluit, Nunavut | F2: 2011A00056204003 | G2: All-items | H2: 2002=100 | I2: 17 | J2: units | K2: 0 | L2: v41713462 | M2: 31.2 | N2: 104.6 | R2: 1
A3: =IFERROR(VALUE(dtl_downloadDbLoadingData[[#This Row],[REF_DATE]]),"") -> 2007 | B3: =IFERROR(VALUE(dtl_downloadDbLoadingData[[#This Row],[VALUE]]),"") -> 107.9 | C3: =IF(OR(A3<2023,A3=2023),"",B3/VLOOKUP(2023,A:B,2,FALSE)) ->  | D3: 2007 | E3: Iqaluit, Nunavut | F3: 2011A00056204003 | G3: All-items | H3: 2002=100 | I3: 17 | J3: units | K3: 0 | L3: v41713462 | M3: 31.2 | N3: 107.9 | R3: 1
A4: =IFERROR(VALUE(dtl_downloadDbLoadingData[[#This Row],[REF_DATE]]),"") -> 2008 | B4: =IFERROR(VALUE(dtl_downloadDbLoadingData[[#This Row],[VALUE]]),"") -> 110.4 | D4: 2008 | E4: Iqaluit, Nunavut | F4: 2011A00056204003 | G4: All-items | H4: 2002=100 | I4: 17 | J4: units | K4: 0 | L4: v41713462 | M4: 31.2 | N4: 110.4 | R4: 1
A5: =IFERROR(VALUE(dtl_downloadDbLoadingData[[#This Row],[REF_DATE]]),"") -> 2009 | B5: =IFERROR(VALUE(dtl_downloadDbLoadingData[[#This Row],[VALUE]]),"") -> 112.6 | D5: 2009 | E5: Iqaluit, Nunavut | F5: 2011A00056204003 | G5: All-items | H5: 2002=100 | I5: 17 | J5: units | K5: 0 | L5: v41713462 | M5: 31.2 | N5: 112.6 | R5: 1
A6: =IFERROR(VALUE(dtl_downloadDbLoadingData[[#This Row],[REF_DATE]]),"") -> 2010 | B6: =IFERROR(VALUE(dtl_downloadDbLoadingData[[#This Row],[VALUE]]),"") -> 111.8 | D6: 2010 | E6: Iqaluit, Nunavut | F6: 2011A00056204003 | G6: All-items | H6: 2002=100 | I6: 17 | J6: units | K6: 0 | L6: v41713462 | M6: 31.2 | N6: 111.8 | R6: 1
A7: =IFERROR(VALUE(dtl_downloadDbLoadingData[[#This Row],[REF_DATE]]),"") -> 2011 | B7: =IFERROR(VALUE(dtl_downloadDbLoadingData[[#This Row],[VALUE]]),"") -> 113.4 | D7: 2011 | E7: Iqaluit, Nunavut | F7: 2011A00056204003 | G7: All-items | H7: 2002=100 | I7: 17 | J7: units | K7: 0 | L7: v41713462 | M7: 31.2 | N7: 113.4 | R7: 1
A8: =IFERROR(VALUE(dtl_downloadDbLoadingData[[#This Row],[REF_DATE]]),"") -> 2012 | B8: =IFERROR(VALUE(dtl_downloadDbLoadingData[[#This Row],[VALUE]]),"") -> 115.3 | D8: 2012 | E8: Iqaluit, Nunavut | F8: 2011A00056204003 | G8: All-items | H8: 2002=100 | I8: 17 | J8: units | K8: 0 | L8: v41713462 | M8: 31.2 | N8: 115.3 | R8: 1
A9: =IFERROR(VALUE(dtl_downloadDbLoadingData[[#This Row],[REF_DATE]]),"") -> 2013 | B9: =IFERROR(VALUE(dtl_downloadDbLoadingData[[#This Row],[VALUE]]),"") -> 116.6 | D9: 2013 | E9: Iqaluit, Nunavut | F9: 2011A00056204003 | G9: All-items | H9: 2002=100 | I9: 17 | J9: units | K9: 0 | L9: v41713462 | M9: 31.2 | N9: 116.6 | R9: 1
A10: =IFERROR(VALUE(dtl_downloadDbLoadingData[[#This Row],[REF_DATE]]),"") -> 2014 | B10: =IFERROR(VALUE(dtl_downloadDbLoadingData[[#This Row],[VALUE]]),"") -> 118.1 | D10: 2014 | E10: Iqaluit, Nunavut | F10: 2011A00056204003 | G10: All-items | H10: 2002=100 | I10: 17 | J10: units | K10: 0 | L10: v41713462 | M10: 31.2 | N10: 118.1 | R10: 1
A11: =IFERROR(VALUE(dtl_downloadDbLoadingData[[#This Row],[REF_DATE]]),"") -> 2015 | B11: =IFERROR(VALUE(dtl_downloadDbLoadingData[[#This Row],[VALUE]]),"") -> 120.4 | D11: 2015 | E11: Iqaluit, Nunavut | F11: 2011A00056204003 | G11: All-items | H11: 2002=100 | I11: 17 | J11: units | K11: 0 | L11: v41713462 | M11: 31.2 | N11: 120.4 | R11: 1
A12: =IFERROR(VALUE(dtl_downloadDbLoadingData[[#This Row],[REF_DATE]]),"") -> 2016 | B12: =IFERROR(VALUE(dtl_downloadDbLoadingData[[#This Row],[VALUE]]),"") -> 123.4 | D12: 2016 | E12: Iqaluit, Nunavut | F12: 2011A00056204003 | G12: All-items | H12: 2002=100 | I12: 17 | J12: units | K12: 0 | L12: v41713462 | M12: 31.2 | N12: 123.4 | R12: 1
A13: =IFERROR(VALUE(dtl_downloadDbLoadingData[[#This Row],[REF_DATE]]),"") -> 2017 | B13: =IFERROR(VALUE(dtl_downloadDbLoadingData[[#This Row],[VALUE]]),"") -> 125.4 | D13: 2017 | E13: Iqaluit, Nunavut | F13: 2011A00056204003 | G13: All-items | H13: 2002=100 | I13: 17 | J13: units | K13: 0 | L13: v41713462 | M13: 31.2 | N13: 125.4 | R13: 1
A14: =IFERROR(VALUE(dtl_downloadDbLoadingData[[#This Row],[REF_DATE]]),"") -> 2018 | B14: =IFERROR(VALUE(dtl_downloadDbLoadingData[[#This Row],[VALUE]]),"") -> 129.2 | D14: 2018 | E14: Iqaluit, Nunavut | F14: 2011A00056204003 | G14: All-items | H14: 2002=100 | I14: 17 | J14: units | K14: 0 | L14: v41713462 | M14: 31.2 | N14: 129.2 | R14: 1
A15: =IFERROR(VALUE(dtl_downloadDbLoadingData[[#This Row],[REF_DATE]]),"") -> 2019 | B15: =IFERROR(VALUE(dtl_downloadDbLoadingData[[#This Row],[VALUE]]),"") -> 131.4 | D15: 2019 | E15: Iqaluit, Nunavut | F15: 2011A00056204003 | G15: All-items | H15: 2002=100 | I15: 17 | J15: units | K15: 0 | L15: v41713462 | M15: 31.2 | N15: 131.4 | R15: 1
A16: =IFERROR(VALUE(dtl_downloadDbLoadingData[[#This Row],[REF_DATE]]),"") -> 2020 | B16: =IFERROR(VALUE(dtl_downloadDbLoadingData[[#This Row],[VALUE]]),"") -> 131.4 | D16: 2020 | E16: Iqaluit, Nunavut | F16: 2011A00056204003 | G16: All-items | H16: 2002=100 | I16: 17 | J16: units | K16: 0 | L16: v41713462 | M16: 31.2 | N16: 131.4 | R16: 1
A17: =IFERROR(VALUE(dtl_downloadDbLoadingData[[#This Row],[REF_DATE]]),"") -> 2021 | B17: =IFERROR(VALUE(dtl_downloadDbLoadingData[[#This Row],[VALUE]]),"") -> 133.2 | D17: 2021 | E17: Iqaluit, Nunavut | F17: 2011A00056204003 | G17: All-items | H17: 2002=100 | I17: 17 | J17: units | K17: 0 | L17: v41713462 | M17: 31.2 | N17: 133.2 | R17: 1
A18: =IFERROR(VALUE(dtl_downloadDbLoadingData[[#This Row],[REF_DATE]]),"") -> 2022 | B18: =IFERROR(VALUE(dtl_downloadDbLoadingData[[#This Row],[VALUE]]),"") -> 138.4 | D18: 2022 | E18: Iqaluit, Nunavut | F18: 2011A00056204003 | G18: All-items | H18: 2002=100 | I18: 17 | J18: units | K18: 0 | L18: v41713462 | M18: 31.2 | N18: 138.4 | R18: 1
A19: =IFERROR(VALUE(dtl_downloadDbLoadingData[[#This Row],[REF_DATE]]),"") -> 2023 | B19: =IFERROR(VALUE(dtl_downloadDbLoadingData[[#This Row],[VALUE]]),"") -> 141.9 | D19: 2023 | E19: Iqaluit, Nunavut | F19: 2011A00056204003 | G19: All-items | H19: 2002=100 | I19: 17 | J19: units | K19: 0 | L19: v41713462 | M19: 31.2 | N19: 141.9 | R19: 1
A20: =IFERROR(VALUE(dtl_downloadDbLoadingData[[#This Row],[REF_DATE]]),"") -> 2024 | B20: =IFERROR(VALUE(dtl_downloadDbLoadingData[[#This Row],[VALUE]]),"") -> 144.1 | C20: 1.015503876 | D20: 2024 | E20: Iqaluit, Nunavut | F20: 2011A00056204003 | G20: All-items | H20: 2002=100 | I20: 17 | J20: units | K20: 0 | L20: v41713462 | M20: 31.2 | N20: 144.1 | R20: 1
A21: =IFERROR(VALUE(dtl_downloadDbLoadingData[[#This Row],[REF_DATE]]),"") -> 2025 | B21: =IFERROR(VALUE(dtl_downloadDbLoadingData[[#This Row],[VALUE]]),"") -> 145.3 | C21: 1.023960536 | D21: 2025 | E21: Iqaluit, Nunavut | F21: 2011A00056204003 | G21: All-items | H21: 2002=100 | I21: 17 | J21: units | K21: 0 | L21: v41713462 | M21: 31.2 | N21: 145.3 | R21: 1
A22: =IFERROR(VALUE(dtl_downloadDbLoadingData[[#This Row],[REF_DATE]]),"") -> 0 | B22: =IFERROR(VALUE(dtl_downloadDbLoadingData[[#This Row],[VALUE]]),"") -> 0
A23: =IFERROR(VALUE(dtl_downloadDbLoadingData[[#This Row],[REF_DATE]]),"") -> 0 | B23: =IFERROR(VALUE(dtl_downloadDbLoadingData[[#This Row],[VALUE]]),"") -> 0
A24: =IFERROR(VALUE(dtl_downloadDbLoadingData[[#This Row],[REF_DATE]]),"") ->  | B24: =IFERROR(VALUE(dtl_downloadDbLoadingData[[#This Row],[VALUE]]),"") -> 
A25: =IFERROR(VALUE(dtl_downloadDbLoadingData[[#This Row],[REF_DATE]]),"") ->  | B25: =IFERROR(VALUE(dtl_downloadDbLoadingData[[#This Row],[VALUE]]),"") -> 
A26: =IFERROR(VALUE(dtl_downloadDbLoadingData[[#This Row],[REF_DATE]]),"") ->  | B26: =IFERROR(VALUE(dtl_downloadDbLoadingData[[#This Row],[VALUE]]),"") -> 
A27: =IFERROR(VALUE(dtl_downloadDbLoadingData[[#This Row],[REF_DATE]]),"") ->  | B27: =IFERROR(VALUE(dtl_downloadDbLoadingData[[#This Row],[VALUE]]),"") -> 
A28: =IFERROR(VALUE(dtl_downloadDbLoadingData[[#This Row],[REF_DATE]]),"") ->  | B28: =IFERROR(VALUE(dtl_downloadDbLoadingData[[#This Row],[VALUE]]),"") -> 
A29: =IFERROR(VALUE(dtl_downloadDbLoadingData[[#This Row],[REF_DATE]]),"") ->  | B29: =IFERROR(VALUE(dtl_downloadDbLoadingData[[#This Row],[VALUE]]),"") -> 
A30: =IFERROR(VALUE(dtl_downloadDbLoadingData[[#This Row],[REF_DATE]]),"") ->  | B30: =IFERROR(VALUE(dtl_downloadDbLoadingData[[#This Row],[VALUE]]),"") -> 
A31: =IFERROR(VALUE(dtl_downloadDbLoadingData[[#This Row],[REF_DATE]]),"") ->  | B31: =IFERROR(VALUE(dtl_downloadDbLoadingData[[#This Row],[VALUE]]),"") -> 
A32: =IFERROR(VALUE(dtl_downloadDbLoadingData[[#This Row],[REF_DATE]]),"") ->  | B32: =IFERROR(VALUE(dtl_downloadDbLoadingData[[#This Row],[VALUE]]),"") -> 
A33: =IFERROR(VALUE(dtl_downloadDbLoadingData[[#This Row],[REF_DATE]]),"") ->  | B33: =IFERROR(VALUE(dtl_downloadDbLoadingData[[#This Row],[VALUE]]),"") -> 
A34: =IFERROR(VALUE(dtl_downloadDbLoadingData[[#This Row],[REF_DATE]]),"") ->  | B34: =IFERROR(VALUE(dtl_downloadDbLoadingData[[#This Row],[VALUE]]),"") -> 
A35: =IFERROR(VALUE(dtl_downloadDbLoadingData[[#This Row],[REF_DATE]]),"") ->  | B35: =IFERROR(VALUE(dtl_downloadDbLoadingData[[#This Row],[VALUE]]),"") -> 
A36: =IFERROR(VALUE(dtl_downloadDbLoadingData[[#This Row],[REF_DATE]]),"") ->  | B36: =IFERROR(VALUE(dtl_downloadDbLoadingData[[#This Row],[VALUE]]),"") -> 
A37: =IFERROR(VALUE(dtl_downloadDbLoadingData[[#This Row],[REF_DATE]]),"") ->  | B37: =IFERROR(VALUE(dtl_downloadDbLoadingData[[#This Row],[VALUE]]),"") -> 
A38: =IFERROR(VALUE(dtl_downloadDbLoadingData[[#This Row],[REF_DATE]]),"") ->  | B38: =IFERROR(VALUE(dtl_downloadDbLoadingData[[#This Row],[VALUE]]),"") -> 
A39: =IFERROR(VALUE(dtl_downloadDbLoadingData[[#This Row],[REF_DATE]]),"") ->  | B39: =IFERROR(VALUE(dtl_downloadDbLoadingData[[#This Row],[VALUE]]),"") -> 
A40: =IFERROR(VALUE(dtl_downloadDbLoadingData[[#This Row],[REF_DATE]]),"") ->  | B40: =IFERROR(VALUE(dtl_downloadDbLoadingData[[#This Row],[VALUE]]),"") -> 
A41: =IFERROR(VALUE(dtl_downloadDbLoadingData[[#This Row],[REF_DATE]]),"") ->  | B41: =IFERROR(VALUE(dtl_downloadDbLoadingData[[#This Row],[VALUE]]),"") -> 
A42: =IFERROR(VALUE(dtl_downloadDbLoadingData[[#This Row],[REF_DATE]]),"") ->  | B42: =IFERROR(VALUE(dtl_downloadDbLoadingData[[#This Row],[VALUE]]),"") -> 
A43: =IFERROR(VALUE(dtl_downloadDbLoadingData[[#This Row],[REF_DATE]]),"") ->  | B43: =IFERROR(VALUE(dtl_downloadDbLoadingData[[#This Row],[VALUE]]),"") -> 
A44: =IFERROR(VALUE(dtl_downloadDbLoadingData[[#This Row],[REF_DATE]]),"") ->  | B44: =IFERROR(VALUE(dtl_downloadDbLoadingData[[#This Row],[VALUE]]),"") -> 
A45: =IFERROR(VALUE(dtl_downloadDbLoadingData[[#This Row],[REF_DATE]]),"") ->  | B45: =IFERROR(VALUE(dtl_downloadDbLoadingData[[#This Row],[VALUE]]),"") -> 
A46: =IFERROR(VALUE(dtl_downloadDbLoadingData[[#This Row],[REF_DATE]]),"") ->  | B46: =IFERROR(VALUE(dtl_downloadDbLoadingData[[#This Row],[VALUE]]),"") -> 
A47: =IFERROR(VALUE(dtl_downloadDbLoadingData[[#This Row],[REF_DATE]]),"") ->  | B47: =IFERROR(VALUE(dtl_downloadDbLoadingData[[#This Row],[VALUE]]),"") -> 
A48: =IFERROR(VALUE(dtl_downloadDbLoadingData[[#This Row],[REF_DATE]]),"") ->  | B48: =IFERROR(VALUE(dtl_downloadDbLoadingData[[#This Row],[VALUE]]),"") -> 
A49: =IFERROR(VALUE(dtl_downloadDbLoadingData[[#This Row],[REF_DATE]]),"") ->  | B49: =IFERROR(VALUE(dtl_downloadDbLoadingData[[#This Row],[VALUE]]),"") -> 
A50: =IFERROR(VALUE(dtl_downloadDbLoadingData[[#This Row],[REF_DATE]]),"") ->  | B50: =IFERROR(VALUE(dtl_downloadDbLoadingData[[#This Row],[VALUE]]),"") -> 
A51: =IFERROR(VALUE(dtl_downloadDbLoadingData[[#This Row],[REF_DATE]]),"") ->  | B51: =IFERROR(VALUE(dtl_downloadDbLoadingData[[#This Row],[VALUE]]),"") -> 
A52: =IFERROR(VALUE(dtl_downloadDbLoadingData[[#This Row],[REF_DATE]]),"") ->  | B52: =IFERROR(VALUE(dtl_downloadDbLoadingData[[#This Row],[VALUE]]),"") -> 
A53: =IFERROR(VALUE(dtl_downloadDbLoadingData[[#This Row],[REF_DATE]]),"") ->  | B53: =IFERROR(VALUE(dtl_downloadDbLoadingData[[#This Row],[VALUE]]),"") -> 
A54: =IFERROR(VALUE(dtl_downloadDbLoadingData[[#This Row],[REF_DATE]]),"") ->  | B54: =IFERROR(VALUE(dtl_downloadDbLoadingData[[#This Row],[VALUE]]),"") -> 
A55: =IFERROR(VALUE(dtl_downloadDbLoadingData[[#This Row],[REF_DATE]]),"") ->  | B55: =IFERROR(VALUE(dtl_downloadDbLoadingData[[#This Row],[VALUE]]),"") -> 
A56: =IFERROR(VALUE(dtl_downloadDbLoadingData[[#This Row],[REF_DATE]]),"") ->  | B56: =IFERROR(VALUE(dtl_downloadDbLoadingData[[#This Row],[VALUE]]),"") -> 
A57: =IFERROR(VALUE(dtl_downloadDbLoadingData[[#This Row],[REF_DATE]]),"") ->  | B57: =IFERROR(VALUE(dtl_downloadDbLoadingData[[#This Row],[VALUE]]),"") -> 
A58: =IFERROR(VALUE(dtl_downloadDbLoadingData[[#This Row],[REF_DATE]]),"") ->  | B58: =IFERROR(VALUE(dtl_downloadDbLoadingData[[#This Row],[VALUE]]),"") -> 
A59: =IFERROR(VALUE(dtl_downloadDbLoadingData[[#This Row],[REF_DATE]]),"") ->  | B59: =IFERROR(VALUE(dtl_downloadDbLoadingData[[#This Row],[VALUE]]),"") -> 
A60: =IFERROR(VALUE(dtl_downloadDbLoadingData[[#This Row],[REF_DATE]]),"") ->  | B60: =IFERROR(VALUE(dtl_downloadDbLoadingData[[#This Row],[VALUE]]),"") -> 
A61: =IFERROR(VALUE(dtl_downloadDbLoadingData[[#This Row],[REF_DATE]]),"") ->  | B61: =IFERROR(VALUE(dtl_downloadDbLoadingData[[#This Row],[VALUE]]),"") -> 
A62: =IFERROR(VALUE(dtl_downloadDbLoadingData[[#This Row],[REF_DATE]]),"") ->  | B62: =IFERROR(VALUE(dtl_downloadDbLoadingData[[#This Row],[VALUE]]),"") -> 
A63: =IFERROR(VALUE(dtl_downloadDbLoadingData[[#This Row],[REF_DATE]]),"") ->  | B63: =IFERROR(VALUE(dtl_downloadDbLoadingData[[#This Row],[VALUE]]),"") -> 
A64: =IFERROR(VALUE(dtl_downloadDbLoadingData[[#This Row],[REF_DATE]]),"") ->  | B64: =IFERROR(VALUE(dtl_downloadDbLoadingData[[#This Row],[VALUE]]),"") -> 
A65: =IFERROR(VALUE(dtl_downloadDbLoadingData[[#This Row],[REF_DATE]]),"") ->  | B65: =IFERROR(VALUE(dtl_downloadDbLoadingData[[#This Row],[VALUE]]),"") -> 
A66: =IFERROR(VALUE(dtl_downloadDbLoadingData[[#This Row],[REF_DATE]]),"") ->  | B66: =IFERROR(VALUE(dtl_downloadDbLoadingData[[#This Row],[VALUE]]),"") -> 
A67: =IFERROR(VALUE(dtl_downloadDbLoadingData[[#This Row],[REF_DATE]]),"") ->  | B67: =IFERROR(VALUE(dtl_downloadDbLoadingData[[#This Row],[VALUE]]),"") ->  | C67: =IF(OR(A67<2023,A67=2023),"",B67/VLOOKUP(2023,A:B,2,FALSE)) -> 
A68: =IFERROR(VALUE(dtl_downloadDbLoadingData[[#This Row],[REF_DATE]]),"") ->  | B68: =IFERROR(VALUE(dtl_downloadDbLoadingData[[#This Row],[VALUE]]),"") -> 
A69: =IFERROR(VALUE(dtl_downloadDbLoadingData[[#This Row],[REF_DATE]]),"") ->  | B69: =IFERROR(VALUE(dtl_downloadDbLoadingData[[#This Row],[VALUE]]),"") -> 
A70: =IFERROR(VALUE(dtl_downloadDbLoadingData[[#This Row],[REF_DATE]]),"") ->  | B70: =IFERROR(VALUE(dtl_downloadDbLoadingData[[#This Row],[VALUE]]),"") -> 
A71: =IFERROR(VALUE(dtl_downloadDbLoadingData[[#This Row],[REF_DATE]]),"") ->  | B71: =IFERROR(VALUE(dtl_downloadDbLoadingData[[#This Row],[VALUE]]),"") -> 
A72: =IFERROR(VALUE(dtl_downloadDbLoadingData[[#This Row],[REF_DATE]]),"") ->  | B72: =IFERROR(VALUE(dtl_downloadDbLoadingData[[#This Row],[VALUE]]),"") -> 
A73: =IFERROR(VALUE(dtl_downloadDbLoadingData[[#This Row],[REF_DATE]]),"") ->  | B73: =IFERROR(VALUE(dtl_downloadDbLoadingData[[#This Row],[VALUE]]),"") -> 
A74: =IFERROR(VALUE(dtl_downloadDbLoadingData[[#This Row],[REF_DATE]]),"") ->  | B74: =IFERROR(VALUE(dtl_downloadDbLoadingData[[#This Row],[VALUE]]),"") -> 
A75: =IFERROR(VALUE(dtl_downloadDbLoadingData[[#This Row],[REF_DATE]]),"") ->  | B75: =IFERROR(VALUE(dtl_downloadDbLoadingData[[#This Row],[VALUE]]),"") -> 
A76: =IFERROR(VALUE(dtl_downloadDbLoadingData[[#This Row],[REF_DATE]]),"") ->  | B76: =IFERROR(VALUE(dtl_downloadDbLoadingData[[#This Row],[VALUE]]),"") -> 
A77: =IFERROR(VALUE(dtl_downloadDbLoadingData[[#This Row],[REF_DATE]]),"") ->  | B77: =IFERROR(VALUE(dtl_downloadDbLoadingData[[#This Row],[VALUE]]),"") -> 
A78: =IFERROR(VALUE(dtl_downloadDbLoadingData[[#This Row],[REF_DATE]]),"") ->  | B78: =IFERROR(VALUE(dtl_downloadDbLoadingData[[#This Row],[VALUE]]),"") -> 
A79: =IFERROR(VALUE(dtl_downloadDbLoadingData[[#This Row],[REF_DATE]]),"") ->  | B79: =IFERROR(VALUE(dtl_downloadDbLoadingData[[#This Row],[VALUE]]),"") -> 
A80: =IFERROR(VALUE(dtl_downloadDbLoadingData[[#This Row],[REF_DATE]]),"") ->  | B80: =IFERROR(VALUE(dtl_downloadDbLoadingData[[#This Row],[VALUE]]),"") -> 
A81: =IFERROR(VALUE(dtl_downloadDbLoadingData[[#This Row],[REF_DATE]]),"") ->  | B81: =IFERROR(VALUE(dtl_downloadDbLoadingData[[#This Row],[VALUE]]),"") -> 
A82: =IFERROR(VALUE(dtl_downloadDbLoadingData[[#This Row],[REF_DATE]]),"") ->  | B82: =IFERROR(VALUE(dtl_downloadDbLoadingData[[#This Row],[VALUE]]),"") -> 
A83: =IFERROR(VALUE(dtl_downloadDbLoadingData[[#This Row],[REF_DATE]]),"") ->  | B83: =IFERROR(VALUE(dtl_downloadDbLoadingData[[#This Row],[VALUE]]),"") -> 
A84: =IFERROR(VALUE(dtl_downloadDbLoadingData[[#This Row],[REF_DATE]]),"") ->  | B84: =IFERROR(VALUE(dtl_downloadDbLoadingData[[#This Row],[VALUE]]),"") -> 
A85: =IFERROR(VALUE(dtl_downloadDbLoadingData[[#This Row],[REF_DATE]]),"") ->  | B85: =IFERROR(VALUE(dtl_downloadDbLoadingData[[#This Row],[VALUE]]),"") -> 
A86: =IFERROR(VALUE(dtl_downloadDbLoadingData[[#This Row],[REF_DATE]]),"") ->  | B86: =IFERROR(VALUE(dtl_downloadDbLoadingData[[#This Row],[VALUE]]),"") -> 
A87: =IFERROR(VALUE(dtl_downloadDbLoadingData[[#This Row],[REF_DATE]]),"") ->  | B87: =IFERROR(VALUE(dtl_downloadDbLoadingData[[#This Row],[VALUE]]),"") -> 
A88: =IFERROR(VALUE(dtl_downloadDbLoadingData[[#This Row],[REF_DATE]]),"") ->  | B88: =IFERROR(VALUE(dtl_downloadDbLoadingData[[#This Row],[VALUE]]),"") -> 
A89: =IFERROR(VALUE(dtl_downloadDbLoadingData[[#This Row],[REF_DATE]]),"") ->  | B89: =IFERROR(VALUE(dtl_downloadDbLoadingData[[#This Row],[VALUE]]),"") -> 
A90: =IFERROR(VALUE(dtl_downloadDbLoadingData[[#This Row],[REF_DATE]]),"") ->  | B90: =IFERROR(VALUE(dtl_downloadDbLoadingData[[#This Row],[VALUE]]),"") -> 
A91: =IFERROR(VALUE(dtl_downloadDbLoadingData[[#This Row],[REF_DATE]]),"") ->  | B91: =IFERROR(VALUE(dtl_downloadDbLoadingData[[#This Row],[VALUE]]),"") -> 
A92: =IFERROR(VALUE(dtl_downloadDbLoadingData[[#This Row],[REF_DATE]]),"") ->  | B92: =IFERROR(VALUE(dtl_downloadDbLoadingData[[#This Row],[VALUE]]),"") -> 
A93: =IFERROR(VALUE(dtl_downloadDbLoadingData[[#This Row],[REF_DATE]]),"") ->  | B93: =IFERROR(VALUE(dtl_downloadDbLoadingData[[#This Row],[VALUE]]),"") -> 
A94: =IFERROR(VALUE(dtl_downloadDbLoadingData[[#This Row],[REF_DATE]]),"") ->  | B94: =IFERROR(VALUE(dtl_downloadDbLoadingData[[#This Row],[VALUE]]),"") -> 
A95: =IFERROR(VALUE(dtl_downloadDbLoadingData[[#This Row],[REF_DATE]]),"") ->  | B95: =IFERROR(VALUE(dtl_downloadDbLoadingData[[#This Row],[VALUE]]),"") -> 
A96: =IFERROR(VALUE(dtl_downloadDbLoadingData[[#This Row],[REF_DATE]]),"") ->  | B96: =IFERROR(VALUE(dtl_downloadDbLoadingData[[#This Row],[VALUE]]),"") -> 
A97: =IFERROR(VALUE(dtl_downloadDbLoadingData[[#This Row],[REF_DATE]]),"") ->  | B97: =IFERROR(VALUE(dtl_downloadDbLoadingData[[#This Row],[VALUE]]),"") -> 
A98: =IFERROR(VALUE(dtl_downloadDbLoadingData[[#This Row],[REF_DATE]]),"") ->  | B98: =IFERROR(VALUE(dtl_downloadDbLoadingData[[#This Row],[VALUE]]),"") -> 
A99: =IFERROR(VALUE(dtl_downloadDbLoadingData[[#This Row],[REF_DATE]]),"") ->  | B99: =IFERROR(VALUE(dtl_downloadDbLoadingData[[#This Row],[VALUE]]),"") -> 
A100: =IFERROR(VALUE(dtl_downloadDbLoadingData[[#This Row],[REF_DATE]]),"") ->  | B100: =IFERROR(VALUE(dtl_downloadDbLoadingData[[#This Row],[VALUE]]),"") -> 
A101: =IFERROR(VALUE(dtl_downloadDbLoadingData[[#This Row],[REF_DATE]]),"") ->  | B101: =IFERROR(VALUE(dtl_downloadDbLoadingData[[#This Row],[VALUE]]),"") -> 
A102: =IFERROR(VALUE(dtl_downloadDbLoadingData[[#This Row],[REF_DATE]]),"") ->  | B102: =IFERROR(VALUE(dtl_downloadDbLoadingData[[#This Row],[VALUE]]),"") -> 
A103: =IFERROR(VALUE(dtl_downloadDbLoadingData[[#This Row],[REF_DATE]]),"") ->  | B103: =IFERROR(VALUE(dtl_downloadDbLoadingData[[#This Row],[VALUE]]),"") -> 
A104: =IFERROR(VALUE(dtl_downloadDbLoadingData[[#This Row],[REF_DATE]]),"") ->  | B104: =IFERROR(VALUE(dtl_downloadDbLoadingData[[#This Row],[VALUE]]),"") -> 
A105: =IFERROR(VALUE(dtl_downloadDbLoadingData[[#This Row],[REF_DATE]]),"") ->  | B105: =IFERROR(VALUE(dtl_downloadDbLoadingData[[#This Row],[VALUE]]),"") -> 
A106: =IFERROR(VALUE(dtl_downloadDbLoadingData[[#This Row],[REF_DATE]]),"") ->  | B106: =IFERROR(VALUE(dtl_downloadDbLoadingData[[#This Row],[VALUE]]),"") -> 
A107: =IFERROR(VALUE(dtl_downloadDbLoadingData[[#This Row],[REF_DATE]]),"") ->  | B107: =IFERROR(VALUE(dtl_downloadDbLoadingData[[#This Row],[VALUE]]),"") -> 
A108: =IFERROR(VALUE(dtl_downloadDbLoadingData[[#This Row],[REF_DATE]]),"") ->  | B108: =IFERROR(VALUE(dtl_downloadDbLoadingData[[#This Row],[VALUE]]),"") -> 
A109: =IFERROR(VALUE(dtl_downloadDbLoadingData[[#This Row],[REF_DATE]]),"") ->  | B109: =IFERROR(VALUE(dtl_downloadDbLoadingData[[#This Row],[VALUE]]),"") -> 
A110: =IFERROR(VALUE(dtl_downloadDbLoadingData[[#This Row],[REF_DATE]]),"") ->  | B110: =IFERROR(VALUE(dtl_downloadDbLoadingData[[#This Row],[VALUE]]),"") -> 
A111: =IFERROR(VALUE(dtl_downloadDbLoadingData[[#This Row],[REF_DATE]]),"") ->  | B111: =IFERROR(VALUE(dtl_downloadDbLoadingData[[#This Row],[VALUE]]),"") -> 
A112: =IFERROR(VALUE(dtl_downloadDbLoadingData[[#This Row],[REF_DATE]]),"") ->  | B112: =IFERROR(VALUE(dtl_downloadDbLoadingData[[#This Row],[VALUE]]),"") -> 
A113: =IFERROR(VALUE(dtl_downloadDbLoadingData[[#This Row],[REF_DATE]]),"") ->  | B113: =IFERROR(VALUE(dtl_downloadDbLoadingData[[#This Row],[VALUE]]),"") -> 
A114: =IFERROR(VALUE(dtl_downloadDbLoadingData[[#This Row],[REF_DATE]]),"") ->  | B114: =IFERROR(VALUE(dtl_downloadDbLoadingData[[#This Row],[VALUE]]),"") -> 
A115: =IFERROR(VALUE(dtl_downloadDbLoadingData[[#This Row],[REF_DATE]]),"") ->  | B115: =IFERROR(VALUE(dtl_downloadDbLoadingData[[#This Row],[VALUE]]),"") -> 
A116: =IFERROR(VALUE(dtl_downloadDbLoadingData[[#This Row],[REF_DATE]]),"") ->  | B116: =IFERROR(VALUE(dtl_downloadDbLoadingData[[#This Row],[VALUE]]),"") -> 
A117: =IFERROR(VALUE(dtl_downloadDbLoadingData[[#This Row],[REF_DATE]]),"") ->  | B117: =IFERROR(VALUE(dtl_downloadDbLoadingData[[#This Row],[VALUE]]),"") -> 
A118: =IFERROR(VALUE(dtl_downloadDbLoadingData[[#This Row],[REF_DATE]]),"") ->  | B118: =IFERROR(VALUE(dtl_downloadDbLoadingData[[#This Row],[VALUE]]),"") -> 
A119: =IFERROR(VALUE(dtl_downloadDbLoadingData[[#This Row],[REF_DATE]]),"") ->  | B119: =IFERROR(VALUE(dtl_downloadDbLoadingData[[#This Row],[VALUE]]),"") -> 
A120: =IFERROR(VALUE(dtl_downloadDbLoadingData[[#This Row],[REF_DATE]]),"") ->  | B120: =IFERROR(VALUE(dtl_downloadDbLoadingData[[#This Row],[VALUE]]),"") -> 
A121: =IFERROR(VALUE(dtl_downloadDbLoadingData[[#This Row],[REF_DATE]]),"") ->  | B121: =IFERROR(VALUE(dtl_downloadDbLoadingData[[#This Row],[VALUE]]),"") -> 
A122: =IFERROR(VALUE(dtl_downloadDbLoadingData[[#This Row],[REF_DATE]]),"") ->  | B122: =IFERROR(VALUE(dtl_downloadDbLoadingData[[#This Row],[VALUE]]),"") -> 
A123: =IFERROR(VALUE(dtl_downloadDbLoadingData[[#This Row],[REF_DATE]]),"") ->  | B123: =IFERROR(VALUE(dtl_downloadDbLoadingData[[#This Row],[VALUE]]),"") -> 
A124: =IFERROR(VALUE(dtl_downloadDbLoadingData[[#This Row],[REF_DATE]]),"") ->  | B124: =IFERROR(VALUE(dtl_downloadDbLoadingData[[#This Row],[VALUE]]),"") -> 
A125: =IFERROR(VALUE(dtl_downloadDbLoadingData[[#This Row],[REF_DATE]]),"") ->  | B125: =IFERROR(VALUE(dtl_downloadDbLoadingData[[#This Row],[VALUE]]),"") -> 
A126: =IFERROR(VALUE(dtl_downloadDbLoadingData[[#This Row],[REF_DATE]]),"") ->  | B126: =IFERROR(VALUE(dtl_downloadDbLoadingData[[#This Row],[VALUE]]),"") -> 
A127: =IFERROR(VALUE(dtl_downloadDbLoadingData[[#This Row],[REF_DATE]]),"") ->  | B127: =IFERROR(VALUE(dtl_downloadDbLoadingData[[#This Row],[VALUE]]),"") -> 
A128: =IFERROR(VALUE(dtl_downloadDbLoadingData[[#This Row],[REF_DATE]]),"") ->  | B128: =IFERROR(VALUE(dtl_downloadDbLoadingData[[#This Row],[VALUE]]),"") -> 
A129: =IFERROR(VALUE(dtl_downloadDbLoadingData[[#This Row],[REF_DATE]]),"") ->  | B129: =IFERROR(VALUE(dtl_downloadDbLoadingData[[#This Row],[VALUE]]),"") -> 
A130: =IFERROR(VALUE(dtl_downloadDbLoadingData[[#This Row],[REF_DATE]]),"") ->  | B130: =IFERROR(VALUE(dtl_downloadDbLoadingData[[#This Row],[VALUE]]),"") -> 
A131: =IFERROR(VALUE(dtl_downloadDbLoadingData[[#This Row],[REF_DATE]]),"") ->  | B131: =IFERROR(VALUE(dtl_downloadDbLoadingData[[#This Row],[VALUE]]),"") ->  | C131: =IF(OR(A131<2023,A131=2023),"",B131/VLOOKUP(2023,A:B,2,FALSE)) -> 
A132: =IFERROR(VALUE(dtl_downloadDbLoadingData[[#This Row],[REF_DATE]]),"") ->  | B132: =IFERROR(VALUE(dtl_downloadDbLoadingData[[#This Row],[VALUE]]),"") -> 
A133: =IFERROR(VALUE(dtl_downloadDbLoadingData[[#This Row],[REF_DATE]]),"") ->  | B133: =IFERROR(VALUE(dtl_downloadDbLoadingData[[#This Row],[VALUE]]),"") -> 
A134: =IFERROR(VALUE(dtl_downloadDbLoadingData[[#This Row],[REF_DATE]]),"") ->  | B134: =IFERROR(VALUE(dtl_downloadDbLoadingData[[#This Row],[VALUE]]),"") -> 
A135: =IFERROR(VALUE(dtl_downloadDbLoadingData[[#This Row],[REF_DATE]]),"") ->  | B135: =IFERROR(VALUE(dtl_downloadDbLoadingData[[#This Row],[VALUE]]),"") -> 
A136: =IFERROR(VALUE(dtl_downloadDbLoadingData[[#This Row],[REF_DATE]]),"") ->  | B136: =IFERROR(VALUE(dtl_downloadDbLoadingData[[#This Row],[VALUE]]),"") -> 
A137: =IFERROR(VALUE(dtl_downloadDbLoadingData[[#This Row],[REF_DATE]]),"") ->  | B137: =IFERROR(VALUE(dtl_downloadDbLoadingData[[#This Row],[VALUE]]),"") -> 
A138: =IFERROR(VALUE(dtl_downloadDbLoadingData[[#This Row],[REF_DATE]]),"") ->  | B138: =IFERROR(VALUE(dtl_downloadDbLoadingData[[#This Row],[VALUE]]),"") -> 
A139: =IFERROR(VALUE(dtl_downloadDbLoadingData[[#This Row],[REF_DATE]]),"") ->  | B139: =IFERROR(VALUE(dtl_downloadDbLoadingData[[#This Row],[VALUE]]),"") -> 
A140: =IFERROR(VALUE(dtl_downloadDbLoadingData[[#This Row],[REF_DATE]]),"") ->  | B140: =IFERROR(VALUE(dtl_downloadDbLoadingData[[#This Row],[VALUE]]),"") -> 
A141: =IFERROR(VALUE(dtl_downloadDbLoadingData[[#This Row],[REF_DATE]]),"") ->  | B141: =IFERROR(VALUE(dtl_downloadDbLoadingData[[#This Row],[VALUE]]),"") -> 
A142: =IFERROR(VALUE(dtl_downloadDbLoadingData[[#This Row],[REF_DATE]]),"") ->  | B142: =IFERROR(VALUE(dtl_downloadDbLoadingData[[#This Row],[VALUE]]),"") -> 
A143: =IFERROR(VALUE(dtl_downloadDbLoadingData[[#This Row],[REF_DATE]]),"") ->  | B143: =IFERROR(VALUE(dtl_downloadDbLoadingData[[#This Row],[VALUE]]),"") -> 
A144: =IFERROR(VALUE(dtl_downloadDbLoadingData[[#This Row],[REF_DATE]]),"") ->  | B144: =IFERROR(VALUE(dtl_downloadDbLoadingData[[#This Row],[VALUE]]),"") -> 
A145: =IFERROR(VALUE(dtl_downloadDbLoadingData[[#This Row],[REF_DATE]]),"") ->  | B145: =IFERROR(VALUE(dtl_downloadDbLoadingData[[#This Row],[VALUE]]),"") -> 
A146: =IFERROR(VALUE(dtl_downloadDbLoadingData[[#This Row],[REF_DATE]]),"") ->  | B146: =IFERROR(VALUE(dtl_downloadDbLoadingData[[#This Row],[VALUE]]),"") -> 
A147: =IFERROR(VALUE(dtl_downloadDbLoadingData[[#This Row],[REF_DATE]]),"") ->  | B147: =IFERROR(VALUE(dtl_downloadDbLoadingData[[#This Row],[VALUE]]),"") -> 
A148: =IFERROR(VALUE(dtl_downloadDbLoadingData[[#This Row],[REF_DATE]]),"") ->  | B148: =IFERROR(VALUE(dtl_downloadDbLoadingData[[#This Row],[VALUE]]),"") -> 
A149: =IFERROR(VALUE(dtl_downloadDbLoadingData[[#This Row],[REF_DATE]]),"") ->  | B149: =IFERROR(VALUE(dtl_downloadDbLoadingData[[#This Row],[VALUE]]),"") -> 
A150: =IFERROR(VALUE(dtl_downloadDbLoadingData[[#This Row],[REF_DATE]]),"") ->  | B150: =IFERROR(VALUE(dtl_downloadDbLoadingData[[#This Row],[VALUE]]),"") -> 
A151: =IFERROR(VALUE(dtl_downloadDbLoadingData[[#This Row],[REF_DATE]]),"") ->  | B151: =IFERROR(VALUE(dtl_downloadDbLoadingData[[#This Row],[VALUE]]),"") -> 
A152: =IFERROR(VALUE(dtl_downloadDbLoadingData[[#This Row],[REF_DATE]]),"") ->  | B152: =IFERROR(VALUE(dtl_downloadDbLoadingData[[#This Row],[VALUE]]),"") -> 
A153: =IFERROR(VALUE(dtl_downloadDbLoadingData[[#This Row],[REF_DATE]]),"") ->  | B153: =IFERROR(VALUE(dtl_downloadDbLoadingData[[#This Row],[VALUE]]),"") -> 
A154: =IFERROR(VALUE(dtl_downloadDbLoadingData[[#This Row],[REF_DATE]]),"") ->  | B154: =IFERROR(VALUE(dtl_downloadDbLoadingData[[#This Row],[VALUE]]),"") -> 
A155: =IFERROR(VALUE(dtl_downloadDbLoadingData[[#This Row],[REF_DATE]]),"") ->  | B155: =IFERROR(VALUE(dtl_downloadDbLoadingData[[#This Row],[VALUE]]),"") -> 
A156: =IFERROR(VALUE(dtl_downloadDbLoadingData[[#This Row],[REF_DATE]]),"") ->  | B156: =IFERROR(VALUE(dtl_downloadDbLoadingData[[#This Row],[VALUE]]),"") -> 
A157: =IFERROR(VALUE(dtl_downloadDbLoadingData[[#This Row],[REF_DATE]]),"") ->  | B157: =IFERROR(VALUE(dtl_downloadDbLoadingData[[#This Row],[VALUE]]),"") -> 
A158: =IFERROR(VALUE(dtl_downloadDbLoadingData[[#This Row],[REF_DATE]]),"") ->  | B158: =IFERROR(VALUE(dtl_downloadDbLoadingData[[#This Row],[VALUE]]),"") -> 
A159: =IFERROR(VALUE(dtl_downloadDbLoadingData[[#This Row],[REF_DATE]]),"") ->  | B159: =IFERROR(VALUE(dtl_downloadDbLoadingData[[#This Row],[VALUE]]),"") -> 
A160: =IFERROR(VALUE(dtl_downloadDbLoadingData[[#This Row],[REF_DATE]]),"") ->  | B160: =IFERROR(VALUE(dtl_downloadDbLoadingData[[#This Row],[VALUE]]),"") -> 
A161: =IFERROR(VALUE(dtl_downloadDbLoadingData[[#This Row],[REF_DATE]]),"") ->  | B161: =IFERROR(VALUE(dtl_downloadDbLoadingData[[#This Row],[VALUE]]),"") -> 
A162: =IFERROR(VALUE(dtl_downloadDbLoadingData[[#This Row],[REF_DATE]]),"") ->  | B162: =IFERROR(VALUE(dtl_downloadDbLoadingData[[#This Row],[VALUE]]),"") -> 
A163: =IFERROR(VALUE(dtl_downloadDbLoadingData[[#This Row],[REF_DATE]]),"") ->  | B163: =IFERROR(VALUE(dtl_downloadDbLoadingData[[#This Row],[VALUE]]),"") -> 
A164: =IFERROR(VALUE(dtl_downloadDbLoadingData[[#This Row],[REF_DATE]]),"") ->  | B164: =IFERROR(VALUE(dtl_downloadDbLoadingData[[#This Row],[VALUE]]),"") -> 
A165: =IFERROR(VALUE(dtl_downloadDbLoadingData[[#This Row],[REF_DATE]]),"") ->  | B165: =IFERROR(VALUE(dtl_downloadDbLoadingData[[#This Row],[VALUE]]),"") -> 
A166: =IFERROR(VALUE(dtl_downloadDbLoadingData[[#This Row],[REF_DATE]]),"") ->  | B166: =IFERROR(VALUE(dtl_downloadDbLoadingData[[#This Row],[VALUE]]),"") -> 
A167: =IFERROR(VALUE(dtl_downloadDbLoadingData[[#This Row],[REF_DATE]]),"") ->  | B167: =IFERROR(VALUE(dtl_downloadDbLoadingData[[#This Row],[VALUE]]),"") -> 
A168: =IFERROR(VALUE(dtl_downloadDbLoadingData[[#This Row],[REF_DATE]]),"") ->  | B168: =IFERROR(VALUE(dtl_downloadDbLoadingData[[#This Row],[VALUE]]),"") -> 
A169: =IFERROR(VALUE(dtl_downloadDbLoadingData[[#This Row],[REF_DATE]]),"") ->  | B169: =IFERROR(VALUE(dtl_downloadDbLoadingData[[#This Row],[VALUE]]),"") -> 
A170: =IFERROR(VALUE(dtl_downloadDbLoadingData[[#This Row],[REF_DATE]]),"") ->  | B170: =IFERROR(VALUE(dtl_downloadDbLoadingData[[#This Row],[VALUE]]),"") -> 
A171: =IFERROR(VALUE(dtl_downloadDbLoadingData[[#This Row],[REF_DATE]]),"") ->  | B171: =IFERROR(VALUE(dtl_downloadDbLoadingData[[#This Row],[VALUE]]),"") -> 
A172: =IFERROR(VALUE(dtl_downloadDbLoadingData[[#This Row],[REF_DATE]]),"") ->  | B172: =IFERROR(VALUE(dtl_downloadDbLoadingData[[#This Row],[VALUE]]),"") -> 
A173: =IFERROR(VALUE(dtl_downloadDbLoadingData[[#This Row],[REF_DATE]]),"") ->  | B173: =IFERROR(VALUE(dtl_downloadDbLoadingData[[#This Row],[VALUE]]),"") -> 
A174: =IFERROR(VALUE(dtl_downloadDbLoadingData[[#This Row],[REF_DATE]]),"") ->  | B174: =IFERROR(VALUE(dtl_downloadDbLoadingData[[#This Row],[VALUE]]),"") -> 
A175: =IFERROR(VALUE(dtl_downloadDbLoadingData[[#This Row],[REF_DATE]]),"") ->  | B175: =IFERROR(VALUE(dtl_downloadDbLoadingData[[#This Row],[VALUE]]),"") -> 
A176: =IFERROR(VALUE(dtl_downloadDbLoadingData[[#This Row],[REF_DATE]]),"") ->  | B176: =IFERROR(VALUE(dtl_downloadDbLoadingData[[#This Row],[VALUE]]),"") -> 
A177: =IFERROR(VALUE(dtl_downloadDbLoadingData[[#This Row],[REF_DATE]]),"") ->  | B177: =IFERROR(VALUE(dtl_downloadDbLoadingData[[#This Row],[VALUE]]),"") -> 
A178: =IFERROR(VALUE(dtl_downloadDbLoadingData[[#This Row],[REF_DATE]]),"") ->  | B178: =IFERROR(VALUE(dtl_downloadDbLoadingData[[#This Row],[VALUE]]),"") -> 
A179: =IFERROR(VALUE(dtl_downloadDbLoadingData[[#This Row],[REF_DATE]]),"") ->  | B179: =IFERROR(VALUE(dtl_downloadDbLoadingData[[#This Row],[VALUE]]),"") -> 
A180: =IFERROR(VALUE(dtl_downloadDbLoadingData[[#This Row],[REF_DATE]]),"") ->  | B180: =IFERROR(VALUE(dtl_downloadDbLoadingData[[#This Row],[VALUE]]),"") -> 
A181: =IFERROR(VALUE(dtl_downloadDbLoadingData[[#This Row],[REF_DATE]]),"") ->  | B181: =IFERROR(VALUE(dtl_downloadDbLoadingData[[#This Row],[VALUE]]),"") -> 
A182: =IFERROR(VALUE(dtl_downloadDbLoadingData[[#This Row],[REF_DATE]]),"") ->  | B182: =IFERROR(VALUE(dtl_downloadDbLoadingData[[#This Row],[VALUE]]),"") -> 
A183: =IFERROR(VALUE(dtl_downloadDbLoadingData[[#This Row],[REF_DATE]]),"") ->  | B183: =IFERROR(VALUE(dtl_downloadDbLoadingData[[#This Row],[VALUE]]),"") -> 
A184: =IFERROR(VALUE(dtl_downloadDbLoadingData[[#This Row],[REF_DATE]]),"") ->  | B184: =IFERROR(VALUE(dtl_downloadDbLoadingData[[#This Row],[VALUE]]),"") -> 
A185: =IFERROR(VALUE(dtl_downloadDbLoadingData[[#This Row],[REF_DATE]]),"") ->  | B185: =IFERROR(VALUE(dtl_downloadDbLoadingData[[#This Row],[VALUE]]),"") -> 
A186: =IFERROR(VALUE(dtl_downloadDbLoadingData[[#This Row],[REF_DATE]]),"") ->  | B186: =IFERROR(VALUE(dtl_downloadDbLoadingData[[#This Row],[VALUE]]),"") -> 
A187: =IFERROR(VALUE(dtl_downloadDbLoadingData[[#This Row],[REF_DATE]]),"") ->  | B187: =IFERROR(VALUE(dtl_downloadDbLoadingData[[#This Row],[VALUE]]),"") -> 
A188: =IFERROR(VALUE(dtl_downloadDbLoadingData[[#This Row],[REF_DATE]]),"") ->  | B188: =IFERROR(VALUE(dtl_downloadDbLoadingData[[#This Row],[VALUE]]),"") -> 
A189: =IFERROR(VALUE(dtl_downloadDbLoadingData[[#This Row],[REF_DATE]]),"") ->  | B189: =IFERROR(VALUE(dtl_downloadDbLoadingData[[#This Row],[VALUE]]),"") -> 
A190: =IFERROR(VALUE(dtl_downloadDbLoadingData[[#This Row],[REF_DATE]]),"") ->  | B190: =IFERROR(VALUE(dtl_downloadDbLoadingData[[#This Row],[VALUE]]),"") -> 
A191: =IFERROR(VALUE(dtl_downloadDbLoadingData[[#This Row],[REF_DATE]]),"") ->  | B191: =IFERROR(VALUE(dtl_downloadDbLoadingData[[#This Row],[VALUE]]),"") -> 
A192: =IFERROR(VALUE(dtl_downloadDbLoadingData[[#This Row],[REF_DATE]]),"") ->  | B192: =IFERROR(VALUE(dtl_downloadDbLoadingData[[#This Row],[VALUE]]),"") -> 
A193: =IFERROR(VALUE(dtl_downloadDbLoadingData[[#This Row],[REF_DATE]]),"") ->  | B193: =IFERROR(VALUE(dtl_downloadDbLoadingData[[#This Row],[VALUE]]),"") -> 
A194: =IFERROR(VALUE(dtl_downloadDbLoadingData[[#This Row],[REF_DATE]]),"") ->  | B194: =IFERROR(VALUE(dtl_downloadDbLoadingData[[#This Row],[VALUE]]),"") -> 
A195: =IFERROR(VALUE(dtl_downloadDbLoadingData[[#This Row],[REF_DATE]]),"") ->  | B195: =IFERROR(VALUE(dtl_downloadDbLoadingData[[#This Row],[VALUE]]),"") ->  | C195: =IF(OR(A195<2023,A195=2023),"",B195/VLOOKUP(2023,A:B,2,FALSE)) -> 
A196: =IFERROR(VALUE(dtl_downloadDbLoadingData[[#This Row],[REF_DATE]]),"") ->  | B196: =IFERROR(VALUE(dtl_downloadDbLoadingData[[#This Row],[VALUE]]),"") -> 
A197: =IFERROR(VALUE(dtl_downloadDbLoadingData[[#This Row],[REF_DATE]]),"") ->  | B197: =IFERROR(VALUE(dtl_downloadDbLoadingData[[#This Row],[VALUE]]),"") -> 
A198: =IFERROR(VALUE(dtl_downloadDbLoadingData[[#This Row],[REF_DATE]]),"") ->  | B198: =IFERROR(VALUE(dtl_downloadDbLoadingData[[#This Row],[VALUE]]),"") -> 
A199: =IFERROR(VALUE(dtl_downloadDbLoadingData[[#This Row],[REF_DATE]]),"") ->  | B199: =IFERROR(VALUE(dtl_downloadDbLoadingData[[#This Row],[VALUE]]),"") -> 
A200: =IFERROR(VALUE(dtl_downloadDbLoadingData[[#This Row],[REF_DATE]]),"") ->  | B200: =IFERROR(VALUE(dtl_downloadDbLoadingData[[#This Row],[VALUE]]),"") -> 
... 129 more rows

Sheet CPINorthwestTerritories (hidden)
D3: Sum of VALUE | E3: Column Labels
A4: Year | B4: Annual CPI (2002 Base Period) | C4: Cumulative CPI Change from 2024 | D4: Row Labels | E4: All-items | F4: Grand Total
A5: =IFERROR(VALUE(D5),"") -> 2019 | B5: =IFERROR(VALUE(GETPIVOTDATA("VALUE",$D$3,"REF_DATE",A5,"Products and product groups","All-items")),"") -> 138.8 | C5: =IF(OR(A5<2023,A5=2023),"",B5/VLOOKUP(2023,A:B,2,FALSE)) ->  | D5: 2019 | E5: 138.8 | F5: 138.8
A6: =IFERROR(VALUE(D6),"") -> 2020 | B6: =IFERROR(VALUE(GETPIVOTDATA("VALUE",$D$3,"REF_DATE",A6,"Products and product groups","All-items")),"") -> 138.9 | C6: =IF(OR(A6<2023,A6=2023),"",B6/VLOOKUP(2023,A:B,2,FALSE)) ->  | D6: 2020 | E6: 138.9 | F6: 138.9
A7: 2021 | B7: 142 | D7: 2021 | E7: 142 | F7: 142
A8: 2022 | B8: 151.9 | D8: 2022 | E8: 151.9 | F8: 151.9
A9: 2023 | B9: 156.9 | D9: 2023 | E9: 156.9 | F9: 156.9
A10: 2005 | B10: 106.2 | D10: 2005 | E10: 106.2 | F10: 106.2
A11: 2006 | B11: 107.7 | D11: 2006 | E11: 107.7 | F11: 107.7
A12: 2007 | B12: 110.8 | D12: 2007 | E12: 110.8 | F12: 110.8
A13: 2008 | B13: 115.2 | D13: 2008 | E13: 115.2 | F13: 115.2
A14: 2009 | B14: 115.9 | D14: 2009 | E14: 115.9 | F14: 115.9
A15: 2010 | B15: 117.9 | D15: 2010 | E15: 117.9 | F15: 117.9
A16: 2011 | B16: 121.6 | D16: 2011 | E16: 121.6 | F16: 121.6
A17: 2012 | B17: 124.3 | D17: 2012 | E17: 124.3 | F17: 124.3
A18: 2013 | B18: 126.2 | D18: 2013 | E18: 126.2 | F18: 126.2
A19: 2014 | B19: 128.4 | D19: 2014 | E19: 128.4 | F19: 128.4
A20: 2015 | B20: 130.4 | D20: 2015 | E20: 130.4 | F20: 130.4
A21: 2016 | B21: 131.9 | D21: 2016 | E21: 131.9 | F21: 131.9
A22: 2017 | B22: 133.5 | D22: 2017 | E22: 133.5 | F22: 133.5
A23: 2018 | B23: 136.6 | D23: 2018 | E23: 136.6 | F23: 136.6
A24: 2024 | B24: 159.9 | C24: 1.019120459 | D24: 2024 | E24: 159.9 | F24: 159.9
D25: Grand Total | E25: 2595 | F25: 2595
A26: 0
A27: 0
A28: 0
A29: 0
A30: 0
A31: 0
A32: 0
A33: 0 | B33: =IFERROR(VALUE(GETPIVOTDATA("VALUE",$D$3,"REF_DATE",A33,"Products and product groups","All-items")),"") -> 
A34: 0
A35: 0
A36: 0
A37: 0
A38: 0
A39: 0
A40: 0
A41: 0
A42: 0
A43: 0
A44: 0
A45: 0
A46: 0
A47: 0
A48: 0
A49: 0
A50: 0
A51: 0
A52: 0
A53: 0
A54: 0
A55: 0
A56: 0
A57: 0
A58: 0
A59: 0 | B59: =IFERROR(VALUE(dtl_downloadDbLoadingData[[#This Row],[VALUE]]),"") -> 
A60: 0 | B60: =IFERROR(VALUE(dtl_downloadDbLoadingData[[#This Row],[VALUE]]),"") -> 
A61: 0 | B61: =IFERROR(VALUE(dtl_downloadDbLoadingData[[#This Row],[VALUE]]),"") -> 
A62: 0 | B62: =IFERROR(VALUE(dtl_downloadDbLoadingData[[#This Row],[VALUE]]),"") -> 
A63: 0 | B63: =IFERROR(VALUE(dtl_downloadDbLoadingData[[#This Row],[VALUE]]),"") -> 
A64: 0 | B64: =IFERROR(VALUE(dtl_downloadDbLoadingData[[#This Row],[VALUE]]),"") -> 
A65: 0 | B65: =IFERROR(VALUE(dtl_downloadDbLoadingData[[#This Row],[VALUE]]),"") -> 
A66: 0 | B66: =IFERROR(VALUE(dtl_downloadDbLoadingData[[#This Row],[VALUE]]),"") -> 
A67: 0 | B67: =IFERROR(VALUE(dtl_downloadDbLoadingData[[#This Row],[VALUE]]),"") -> 
A68: 0 | B68: =IFERROR(VALUE(dtl_downloadDbLoadingData[[#This Row],[VALUE]]),"") -> 

Sheet CPINWT_base (hidden)
A1: REF_DATE | B1: GEO | C1: DGUID | D1: Products and product groups | E1: UOM | F1: UOM_ID | G1: SCALAR_FACTOR | H1: SCALAR_ID | I1: VECTOR | J1: COORDINATE | K1: VALUE | L1: STATUS | M1: SYMBOL | N1: TERMINATED | O1: DECIMALS
A2: 2005 | B2: Yellowknife, Northwest Territories | C2: 2011A00056106023 | D2: All-items | E2: 2002=100 | F2: 17 | G2: units | H2: 0 | I2: v41695020 | J2: 30.2 | K2: 106.2 | O2: 1
A3: 2006 | B3: Yellowknife, Northwest Territories | C3: 2011A00056106023 | D3: All-items | E3: 2002=100 | F3: 17 | G3: units | H3: 0 | I3: v41695020 | J3: 30.2 | K3: 107.7 | O3: 1
A4: 2007 | B4: Yellowknife, Northwest Territories | C4: 2011A00056106023 | D4: All-items | E4: 2002=100 | F4: 17 | G4: units | H4: 0 | I4: v41695020 | J4: 30.2 | K4: 110.8 | O4: 1
A5: 2008 | B5: Yellowknife, Northwest Territories | C5: 2011A00056106023 | D5: All-items | E5: 2002=100 | F5: 17 | G5: units | H5: 0 | I5: v41695020 | J5: 30.2 | K5: 115.2 | O5: 1
A6: 2009 | B6: Yellowknife, Northwest Territories | C6: 2011A00056106023 | D6: All-items | E6: 2002=100 | F6: 17 | G6: units | H6: 0 | I6: v41695020 | J6: 30.2 | K6: 115.9 | O6: 1
A7: 2010 | B7: Yellowknife, Northwest Territories | C7: 2011A00056106023 | D7: All-items | E7: 2002=100 | F7: 17 | G7: units | H7: 0 | I7: v41695020 | J7: 30.2 | K7: 117.9 | O7: 1
A8: 2011 | B8: Yellowknife, Northwest Territories | C8: 2011A00056106023 | D8: All-items | E8: 2002=100 | F8: 17 | G8: units | H8: 0 | I8: v41695020 | J8: 30.2 | K8: 121.6 | O8: 1
A9: 2012 | B9: Yellowknife, Northwest Territories | C9: 2011A00056106023 | D9: All-items | E9: 2002=100 | F9: 17 | G9: units | H9: 0 | I9: v41695020 | J9: 30.2 | K9: 124.3 | O9: 1
A10: 2013 | B10: Yellowknife, Northwest Territories | C10: 2011A00056106023 | D10: All-items | E10: 2002=100 | F10: 17 | G10: units | H10: 0 | I10: v41695020 | J10: 30.2 | K10: 126.2 | O10: 1
A11: 2014 | B11: Yellowknife, Northwest Territories | C11: 2011A00056106023 | D11: All-items | E11: 2002=100 | F11: 17 | G11: units | H11: 0 | I11: v41695020 | J11: 30.2 | K11: 128.4 | O11: 1
A12: 2015 | B12: Yellowknife, Northwest Territories | C12: 2011A00056106023 | D12: All-items | E12: 2002=100 | F12: 17 | G12: units | H12: 0 | I12: v41695020 | J12: 30.2 | K12: 130.4 | O12: 1
A13: 2016 | B13: Yellowknife, Northwest Territories | C13: 2011A00056106023 | D13: All-items | E13: 2002=100 | F13: 17 | G13: units | H13: 0 | I13: v41695020 | J13: 30.2 | K13: 131.9 | O13: 1
A14: 2017 | B14: Yellowknife, Northwest Territories | C14: 2011A00056106023 | D14: All-items | E14: 2002=100 | F14: 17 | G14: units | H14: 0 | I14: v41695020 | J14: 30.2 | K14: 133.5 | O14: 1
A15: 2018 | B15: Yellowknife, Northwest Territories | C15: 2011A00056106023 | D15: All-items | E15: 2002=100 | F15: 17 | G15: units | H15: 0 | I15: v41695020 | J15: 30.2 | K15: 136.6 | O15: 1
A16: 2019 | B16: Yellowknife, Northwest Territories | C16: 2011A00056106023 | D16: All-items | E16: 2002=100 | F16: 17 | G16: units | H16: 0 | I16: v41695020 | J16: 30.2 | K16: 138.8 | O16: 1
A17: 2020 | B17: Yellowknife, Northwest Territories | C17: 2011A00056106023 | D17: All-items | E17: 2002=100 | F17: 17 | G17: units | H17: 0 | I17: v41695020 | J17: 30.2 | K17: 138.9 | O17: 1
A18: 2021 | B18: Yellowknife, Northwest Territories | C18: 2011A00056106023 | D18: All-items | E18: 2002=100 | F18: 17 | G18: units | H18: 0 | I18: v41695020 | J18: 30.2 | K18: 142 | O18: 1
A19: 2022 | B19: Yellowknife, Northwest Territories | C19: 2011A00056106023 | D19: All-items | E19: 2002=100 | F19: 17 | G19: units | H19: 0 | I19: v41695020 | J19: 30.2 | K19: 151.9 | O19: 1
A20: 2023 | B20: Yellowknife, Northwest Territories | C20: 2011A00056106023 | D20: All-items | E20: 2002=100 | F20: 17 | G20: units | H20: 0 | I20: v41695020 | J20: 30.2 | K20: 156.9 | O20: 1
A21: 2024 | B21: Yellowknife, Northwest Territories | C21: 2011A00056106023 | D21: All-items | E21: 2002=100 | F21: 17 | G21: units | H21: 0 | I21: v41695020 | J21: 30.2 | K21: 159.9 | O21: 1
A22: 2005 | B22: Yellowknife, Northwest Territories | C22: 2011A00056106023 | D22: Food | E22: 2002=100 | F22: 17 | G22: units | H22: 0 | I22: v41695021 | J22: 30.3 | K22: 104.8 | O22: 1
A23: 2006 | B23: Yellowknife, Northwest Territories | C23: 2011A00056106023 | D23: Food | E23: 2002=100 | F23: 17 | G23: units | H23: 0 | I23: v41695021 | J23: 30.3 | K23: 106.6 | O23: 1
A24: 2007 | B24: Yellowknife, Northwest Territories | C24: 2011A00056106023 | D24: Food | E24: 2002=100 | F24: 17 | G24: units | H24: 0 | I24: v41695021 | J24: 30.3 | K24: 108.3 | O24: 1
A25: 2008 | B25: Yellowknife, Northwest Territories | C25: 2011A00056106023 | D25: Food | E25: 2002=100 | F25: 17 | G25: units | H25: 0 | I25: v41695021 | J25: 30.3 | K25: 110.7 | O25: 1
A26: 2009 | B26: Yellowknife, Northwest Territories | C26: 2011A00056106023 | D26: Food | E26: 2002=100 | F26: 17 | G26: units | H26: 0 | I26: v41695021 | J26: 30.3 | K26: 116.9 | O26: 1
A27: 2010 | B27: Yellowknife, Northwest Territories | C27: 2011A00056106023 | D27: Food | E27: 2002=100 | F27: 17 | G27: units | H27: 0 | I27: v41695021 | J27: 30.3 | K27: 119.8 | O27: 1
A28: 2011 | B28: Yellowknife, Northwest Territories | C28: 2011A00056106023 | D28: Food | E28: 2002=100 | F28: 17 | G28: units | H28: 0 | I28: v41695021 | J28: 30.3 | K28: 122.9 | O28: 1
A29: 2012 | B29: Yellowknife, Northwest Territories | C29: 2011A00056106023 | D29: Food | E29: 2002=100 | F29: 17 | G29: units | H29: 0 | I29: v41695021 | J29: 30.3 | K29: 124.4 | O29: 1
A30: 2013 | B30: Yellowknife, Northwest Territories | C30: 2011A00056106023 | D30: Food | E30: 2002=100 | F30: 17 | G30: units | H30: 0 | I30: v41695021 | J30: 30.3 | K30: 128.1 | O30: 1
A31: 2014 | B31: Yellowknife, Northwest Territories | C31: 2011A00056106023 | D31: Food | E31: 2002=100 | F31: 17 | G31: units | H31: 0 | I31: v41695021 | J31: 30.3 | K31: 131.6 | O31: 1
A32: 2015 | B32: Yellowknife, Northwest Territories | C32: 2011A00056106023 | D32: Food | E32: 2002=100 | F32: 17 | G32: units | H32: 0 | I32: v41695021 | J32: 30.3 | K32: 138.6 | O32: 1
A33: 2016 | B33: Yellowknife, Northwest Territories | C33: 2011A00056106023 | D33: Food | E33: 2002=100 | F33: 17 | G33: units | H33: 0 | I33: v41695021 | J33: 30.3 | K33: 142.6 | O33: 1
A34: 2017 | B34: Yellowknife, Northwest Territories | C34: 2011A00056106023 | D34: Food | E34: 2002=100 | F34: 17 | G34: units | H34: 0 | I34: v41695021 | J34: 30.3 | K34: 142.6 | O34: 1
A35: 2018 | B35: Yellowknife, Northwest Territories | C35: 2011A00056106023 | D35: Food | E35: 2002=100 | F35: 17 | G35: units | H35: 0 | I35: v41695021 | J35: 30.3 | K35: 142.5 | O35: 1
A36: 2019 | B36: Yellowknife, Northwest Territories | C36: 2011A00056106023 | D36: Food | E36: 2002=100 | F36: 17 | G36: units | H36: 0 | I36: v41695021 | J36: 30.3 | K36: 146.1 | O36: 1
A37: 2020 | B37: Yellowknife, Northwest Territories | C37: 2011A00056106023 | D37: Food | E37: 2002=100 | F37: 17 | G37: units | H37: 0 | I37: v41695021 | J37: 30.3 | K37: 146.2 | O37: 1
A38: 2021 | B38: Yellowknife, Northwest Territories | C38: 2011A00056106023 | D38: Food | E38: 2002=100 | F38: 17 | G38: units | H38: 0 | I38: v41695021 | J38: 30.3 | K38: 147.3 | O38: 1
A39: 2022 | B39: Yellowknife, Northwest Territories | C39: 2011A00056106023 | D39: Food | E39: 2002=100 | F39: 17 | G39: units | H39: 0 | I39: v41695021 | J39: 30.3 | K39: 159.2 | O39: 1
A40: 2023 | B40: Yellowknife, Northwest Territories | C40: 2011A00056106023 | D40: Food | E40: 2002=100 | F40: 17 | G40: units | H40: 0 | I40: v41695021 | J40: 30.3 | K40: 176.3 | O40: 1
A41: 2024 | B41: Yellowknife, Northwest Territories | C41: 2011A00056106023 | D41: Food | E41: 2002=100 | F41: 17 | G41: units | H41: 0 | I41: v41695021 | J41: 30.3 | K41: 182.2 | O41: 1
A42: 2005 | B42: Yellowknife, Northwest Territories | C42: 2011A00056106023 | D42: Shelter | E42: 2002=100 | F42: 17 | G42: units | H42: 0 | I42: v41695053 | J42: 30.79 | K42: 112 | O42: 1
A43: 2006 | B43: Yellowknife, Northwest Territories | C43: 2011A00056106023 | D43: Shelter | E43: 2002=100 | F43: 17 | G43: units | H43: 0 | I43: v41695053 | J43: 30.79 | K43: 115.2 | O43: 1
A44: 2007 | B44: Yellowknife, Northwest Territories | C44: 2011A00056106023 | D44: Shelter | E44: 2002=100 | F44: 17 | G44: units | H44: 0 | I44: v41695053 | J44: 30.79 | K44: 122 | O44: 1
A45: 2008 | B45: Yellowknife, Northwest Territories | C45: 2011A00056106023 | D45: Shelter | E45: 2002=100 | F45: 17 | G45: units | H45: 0 | I45: v41695053 | J45: 30.79 | K45: 133.5 | O45: 1
A46: 2009 | B46: Yellowknife, Northwest Territories | C46: 2011A00056106023 | D46: Shelter | E46: 2002=100 | F46: 17 | G46: units | H46: 0 | I46: v41695053 | J46: 30.79 | K46: 132.8 | O46: 1
A47: 2010 | B47: Yellowknife, Northwest Territories | C47: 2011A00056106023 | D47: Shelter | E47: 2002=100 | F47: 17 | G47: units | H47: 0 | I47: v41695053 | J47: 30.79 | K47: 135.1 | O47: 1
A48: 2011 | B48: Yellowknife, Northwest Territories | C48: 2011A00056106023 | D48: Shelter | E48: 2002=100 | F48: 17 | G48: units | H48: 0 | I48: v41695053 | J48: 30.79 | K48: 140.5 | O48: 1
A49: 2012 | B49: Yellowknife, Northwest Territories | C49: 2011A00056106023 | D49: Shelter | E49: 2002=100 | F49: 17 | G49: units | H49: 0 | I49: v41695053 | J49: 30.79 | K49: 144.5 | O49: 1
A50: 2013 | B50: Yellowknife, Northwest Territories | C50: 2011A00056106023 | D50: Shelter | E50: 2002=100 | F50: 17 | G50: units | H50: 0 | I50: v41695053 | J50: 30.79 | K50: 146.8 | O50: 1
A51: 2014 | B51: Yellowknife, Northwest Territories | C51: 2011A00056106023 | D51: Shelter | E51: 2002=100 | F51: 17 | G51: units | H51: 0 | I51: v41695053 | J51: 30.79 | K51: 150.8 | O51: 1
A52: 2015 | B52: Yellowknife, Northwest Territories | C52: 2011A00056106023 | D52: Shelter | E52: 2002=100 | F52: 17 | G52: units | H52: 0 | I52: v41695053 | J52: 30.79 | K52: 150.1 | O52: 1
A53: 2016 | B53: Yellowknife, Northwest Territories | C53: 2011A00056106023 | D53: Shelter | E53: 2002=100 | F53: 17 | G53: units | H53: 0 | I53: v41695053 | J53: 30.79 | K53: 149.7 | O53: 1
A54: 2017 | B54: Yellowknife, Northwest Territories | C54: 2011A00056106023 | D54: Shelter | E54: 2002=100 | F54: 17 | G54: units | H54: 0 | I54: v41695053 | J54: 30.79 | K54: 150.9 | O54: 1
A55: 2018 | B55: Yellowknife, Northwest Territories | C55: 2011A00056106023 | D55: Shelter | E55: 2002=100 | F55: 17 | G55: units | H55: 0 | I55: v41695053 | J55: 30.79 | K55: 157 | O55: 1
A56: 2019 | B56: Yellowknife, Northwest Territories | C56: 2011A00056106023 | D56: Shelter | E56: 2002=100 | F56: 17 | G56: units | H56: 0 | I56: v41695053 | J56: 30.79 | K56: 159.9 | O56: 1
A57: 2020 | B57: Yellowknife, Northwest Territories | C57: 2011A00056106023 | D57: Shelter | E57: 2002=100 | F57: 17 | G57: units | H57: 0 | I57: v41695053 | J57: 30.79 | K57: 160.5 | O57: 1
A58: 2021 | B58: Yellowknife, Northwest Territories | C58: 2011A00056106023 | D58: Shelter | E58: 2002=100 | F58: 17 | G58: units | H58: 0 | I58: v41695053 | J58: 30.79 | K58: 163.8 | O58: 1
A59: 2022 | B59: Yellowknife, Northwest Territories | C59: 2011A00056106023 | D59: Shelter | E59: 2002=100 | F59: 17 | G59: units | H59: 0 | I59: v41695053 | J59: 30.79 | K59: 176.4 | O59: 1
A60: 2023 | B60: Yellowknife, Northwest Territories | C60: 2011A00056106023 | D60: Shelter | E60: 2002=100 | F60: 17 | G60: units | H60: 0 | I60: v41695053 | J60: 30.79 | K60: 183.6 | O60: 1
A61: 2024 | B61: Yellowknife, Northwest Territories | C61: 2011A00056106023 | D61: Shelter | E61: 2002=100 | F61: 17 | G61: units | H61: 0 | I61: v41695053 | J61: 30.79 | K61: 191.5 | O61: 1
A62: 2005 | B62: Yellowknife, Northwest Territories | C62: 2011A00056106023 | D62: Household operations, furnishings and equipment | E62: 2002=100 | F62: 17 | G62: units | H62: 0 | I62: v41695058 | J62: 30.96 | K62: 100.6 | O62: 1
A63: 2006 | B63: Yellowknife, Northwest Territories | C63: 2011A00056106023 | D63: Household operations, furnishings and equipment | E63: 2002=100 | F63: 17 | G63: units | H63: 0 | I63: v41695058 | J63: 30.96 | K63: 101.1 | O63: 1
A64: 2007 | B64: Yellowknife, Northwest Territories | C64: 2011A00056106023 | D64: Household operations, furnishings and equipment | E64: 2002=100 | F64: 17 | G64: units | H64: 0 | I64: v41695058 | J64: 30.96 | K64: 103.4 | O64: 1
A65: 2008 | B65: Yellowknife, Northwest Territories | C65: 2011A00056106023 | D65: Household operations, furnishings and equipment | E65: 2002=100 | F65: 17 | G65: units | H65: 0 | I65: v41695058 | J65: 30.96 | K65: 103.7 | O65: 1
A66: 2009 | B66: Yellowknife, Northwest Territories | C66: 2011A00056106023 | D66: Household operations, furnishings and equipment | E66: 2002=100 | F66: 17 | G66: units | H66: 0 | I66: v41695058 | J66: 30.96 | K66: 106.4 | O66: 1
A67: 2010 | B67: Yellowknife, Northwest Territories | C67: 2011A00056106023 | D67: Household operations, furnishings and equipment | E67: 2002=100 | F67: 17 | G67: units | H67: 0 | I67: v41695058 | J67: 30.96 | K67: 107.3 | O67: 1
A68: 2011 | B68: Yellowknife, Northwest Territories | C68: 2011A00056106023 | D68: Household operations, furnishings and equipment | E68: 2002=100 | F68: 17 | G68: units | H68: 0 | I68: v41695058 | J68: 30.96 | K68: 109.5 | O68: 1
A69: 2012 | B69: Yellowknife, Northwest Territories | C69: 2011A00056106023 | D69: Household operations, furnishings and equipment | E69: 2002=100 | F69: 17 | G69: units | H69: 0 | I69: v41695058 | J69: 30.96 | K69: 110.5 | O69: 1
A70: 2013 | B70: Yellowknife, Northwest Territories | C70: 2011A00056106023 | D70: Household operations, furnishings and equipment | E70: 2002=100 | F70: 17 | G70: units | H70: 0 | I70: v41695058 | J70: 30.96 | K70: 110.6 | O70: 1
A71: 2014 | B71: Yellowknife, Northwest Territories | C71: 2011A00056106023 | D71: Household operations, furnishings and equipment | E71: 2002=100 | F71: 17 | G71: units | H71: 0 | I71: v41695058 | J71: 30.96 | K71: 111.6 | O71: 1
A72: 2015 | B72: Yellowknife, Northwest Territories | C72: 2011A00056106023 | D72: Household operations, furnishings and equipment | E72: 2002=100 | F72: 17 | G72: units | H72: 0 | I72: v41695058 | J72: 30.96 | K72: 114.3 | O72: 1
A73: 2016 | B73: Yellowknife, Northwest Territories | C73: 2011A00056106023 | D73: Household operations, furnishings and equipment | E73: 2002=100 | F73: 17 | G73: units | H73: 0 | I73: v41695058 | J73: 30.96 | K73: 115.7 | O73: 1
A74: 2017 | B74: Yellowknife, Northwest Territories | C74: 2011A00056106023 | D74: Household operations, furnishings and equipment | E74: 2002=100 | F74: 17 | G74: units | H74: 0 | I74: v41695058 | J74: 30.96 | K74: 115 | O74: 1
A75: 2018 | B75: Yellowknife, Northwest Territories | C75: 2011A00056106023 | D75: Household operations, furnishings and equipment | E75: 2002=100 | F75: 17 | G75: units | H75: 0 | I75: v41695058 | J75: 30.96 | K75: 113.6 | O75: 1
A76: 2019 | B76: Yellowknife, Northwest Territories | C76: 2011A00056106023 | D76: Household operations, furnishings and equipment | E76: 2002=100 | F76: 17 | G76: units | H76: 0 | I76: v41695058 | J76: 30.96 | K76: 114.1 | O76: 1
A77: 2020 | B77: Yellowknife, Northwest Territories | C77: 2011A00056106023 | D77: Household operations, furnishings and equipment | E77: 2002=100 | F77: 17 | G77: units | H77: 0 | I77: v41695058 | J77: 30.96 | K77: 113 | O77: 1
A78: 2021 | B78: Yellowknife, Northwest Territories | C78: 2011A00056106023 | D78: Household operations, furnishings and equipment | E78: 2002=100 | F78: 17 | G78: units | H78: 0 | I78: v41695058 | J78: 30.96 | K78: 112.7 | O78: 1
A79: 2022 | B79: Yellowknife, Northwest Territories | C79: 2011A00056106023 | D79: Household operations, furnishings and equipment | E79: 2002=100 | F79: 17 | G79: units | H79: 0 | I79: v41695058 | J79: 30.96 | K79: 118.3 | O79: 1
A80: 2023 | B80: Yellowknife, Northwest Territories | C80: 2011A00056106023 | D80: Household operations, furnishings and equipment | E80: 2002=100 | F80: 17 | G80: units | H80: 0 | I80: v41695058 | J80: 30.96 | K80: 110.7 | O80: 1
A81: 2024 | B81: Yellowknife, Northwest Territories | C81: 2011A00056106023 | D81: Household operations, furnishings and equipment | E81: 2002=100 | F81: 17 | G81: units | H81: 0 | I81: v41695058 | J81: 30.96 | K81: 107.9 | O81: 1
A82: 2005 | B82: Yellowknife, Northwest Territories | C82: 2011A00056106023 | D82: Clothing and footwear | E82: 2002=100 | F82: 17 | G82: units | H82: 0 | I82: v41695073 | J82: 30.139 | K82: 98.5 | O82: 1
A83: 2006 | B83: Yellowknife, Northwest Territories | C83: 2011A00056106023 | D83: Clothing and footwear | E83: 2002=100 | F83: 17 | G83: units | H83: 0 | I83: v41695073 | J83: 30.139 | K83: 94.9 | O83: 1
A84: 2007 | B84: Yellowknife, Northwest Territories | C84: 2011A00056106023 | D84: Clothing and footwear | E84: 2002=100 | F84: 17 | G84: units | H84: 0 | I84: v41695073 | J84: 30.139 | K84: 94.8 | O84: 1
A85: 2008 | B85: Yellowknife, Northwest Territories | C85: 2011A00056106023 | D85: Clothing and footwear | E85: 2002=100 | F85: 17 | G85: units | H85: 0 | I85: v41695073 | J85: 30.139 | K85: 95.5 | O85: 1
A86: 2009 | B86: Yellowknife, Northwest Territories | C86: 2011A00056106023 | D86: Clothing and footwear | E86: 2002=100 | F86: 17 | G86: units | H86: 0 | I86: v41695073 | J86: 30.139 | K86: 93.9 | O86: 1
A87: 2010 | B87: Yellowknife, Northwest Territories | C87: 2011A00056106023 | D87: Clothing and footwear | E87: 2002=100 | F87: 17 | G87: units | H87: 0 | I87: v41695073 | J87: 30.139 | K87: 96.1 | O87: 1
A88: 2011 | B88: Yellowknife, Northwest Territories | C88: 2011A00056106023 | D88: Clothing and footwear | E88: 2002=100 | F88: 17 | G88: units | H88: 0 | I88: v41695073 | J88: 30.139 | K88: 98.3 | O88: 1
A89: 2012 | B89: Yellowknife, Northwest Territories | C89: 2011A00056106023 | D89: Clothing and footwear | E89: 2002=100 | F89: 17 | G89: units | H89: 0 | I89: v41695073 | J89: 30.139 | K89: 99.7 | O89: 1
A90: 2013 | B90: Yellowknife, Northwest Territories | C90: 2011A00056106023 | D90: Clothing and footwear | E90: 2002=100 | F90: 17 | G90: units | H90: 0 | I90: v41695073 | J90: 30.139 | K90: 100.6 | O90: 1
A91: 2014 | B91: Yellowknife, Northwest Territories | C91: 2011A00056106023 | D91: Clothing and footwear | E91: 2002=100 | F91: 17 | G91: units | H91: 0 | I91: v41695073 | J91: 30.139 | K91: 99.9 | O91: 1
A92: 2015 | B92: Yellowknife, Northwest Territories | C92: 2011A00056106023 | D92: Clothing and footwear | E92: 2002=100 | F92: 17 | G92: units | H92: 0 | I92: v41695073 | J92: 30.139 | K92: 100.7 | O92: 1
A93: 2016 | B93: Yellowknife, Northwest Territories | C93: 2011A00056106023 | D93: Clothing and footwear | E93: 2002=100 | F93: 17 | G93: units | H93: 0 | I93: v41695073 | J93: 30.139 | K93: 103.4 | O93: 1
A94: 2017 | B94: Yellowknife, Northwest Territories | C94: 2011A00056106023 | D94: Clothing and footwear | E94: 2002=100 | F94: 17 | G94: units | H94: 0 | I94: v41695073 | J94: 30.139 | K94: 107.2 | O94: 1
A95: 2018 | B95: Yellowknife, Northwest Territories | C95: 2011A00056106023 | D95: Clothing and footwear | E95: 2002=100 | F95: 17 | G95: units | H95: 0 | I95: v41695073 | J95: 30.139 | K95: 107.4 | O95: 1
A96: 2019 | B96: Yellowknife, Northwest Territories | C96: 2011A00056106023 | D96: Clothing and footwear | E96: 2002=100 | F96: 17 | G96: units | H96: 0 | I96: v41695073 | J96: 30.139 | K96: 108.5 | O96: 1
A97: 2020 | B97: Yellowknife, Northwest Territories | C97: 2011A00056106023 | D97: Clothing and footwear | E97: 2002=100 | F97: 17 | G97: units | H97: 0 | I97: v41695073 | J97: 30.139 | K97: 106.5 | O97: 1
A98: 2021 | B98: Yellowknife, Northwest Territories | C98: 2011A00056106023 | D98: Clothing and footwear | E98: 2002=100 | F98: 17 | G98: units | H98: 0 | I98: v41695073 | J98: 30.139 | K98: 107.4 | O98: 1
A99: 2022 | B99: Yellowknife, Northwest Territories | C99: 2011A00056106023 | D99: Clothing and footwear | E99: 2002=100 | F99: 17 | G99: units | H99: 0 | I99: v41695073 | J99: 30.139 | K99: 110.8 | O99: 1
A100: 2023 | B100: Yellowknife, Northwest Territories | C100: 2011A00056106023 | D100: Clothing and footwear | E100: 2002=100 | F100: 17 | G100: units | H100: 0 | I100: v41695073 | J100: 30.139 | K100: 114.1 | O100: 1
A101: 2024 | B101: Yellowknife, Northwest Territories | C101: 2011A00056106023 | D101: Clothing and footwear | E101: 2002=100 | F101: 17 | G101: units | H101: 0 | I101: v41695073 | J101: 30.139 | K101: 112 | O101: 1
A102: 2005 | B102: Yellowknife, Northwest Territories | C102: 2011A00056106023 | D102: Transportation | E102: 2002=100 | F102: 17 | G102: units | H102: 0 | I102: v41695081 | J102: 30.176 | K102: 103.9 | O102: 1
A103: 2006 | B103: Yellowknife, Northwest Territories | C103: 2011A00056106023 | D103: Transportation | E103: 2002=100 | F103: 17 | G103: units | H103: 0 | I103: v41695081 | J103: 30.176 | K103: 105.2 | O103: 1
A104: 2007 | B104: Yellowknife, Northwest Territories | C104: 2011A00056106023 | D104: Transportation | E104: 2002=100 | F104: 17 | G104: units | H104: 0 | I104: v41695081 | J104: 30.176 | K104: 107.7 | O104: 1
A105: 2008 | B105: Yellowknife, Northwest Territories | C105: 2011A00056106023 | D105: Transportation | E105: 2002=100 | F105: 17 | G105: units | H105: 0 | I105: v41695081 | J105: 30.176 | K105: 110.5 | O105: 1
A106: 2009 | B106: Yellowknife, Northwest Territories | C106: 2011A00056106023 | D106: Transportation | E106: 2002=100 | F106: 17 | G106: units | H106: 0 | I106: v41695081 | J106: 30.176 | K106: 105.3 | O106: 1
A107: 2010 | B107: Yellowknife, Northwest Territories | C107: 2011A00056106023 | D107: Transportation | E107: 2002=100 | F107: 17 | G107: units | H107: 0 | I107: v41695081 | J107: 30.176 | K107: 107.5 | O107: 1
A108: 2011 | B108: Yellowknife, Northwest Territories | C108: 2011A00056106023 | D108: Transportation | E108: 2002=100 | F108: 17 | G108: units | H108: 0 | I108: v41695081 | J108: 30.176 | K108: 113.5 | O108: 1
A109: 2012 | B109: Yellowknife, Northwest Territories | C109: 2011A00056106023 | D109: Transportation | E109: 2002=100 | F109: 17 | G109: units | H109: 0 | I109: v41695081 | J109: 30.176 | K109: 118.2 | O109: 1
A110: 2013 | B110: Yellowknife, Northwest Territories | C110: 2011A00056106023 | D110: Transportation | E110: 2002=100 | F110: 17 | G110: units | H110: 0 | I110: v41695081 | J110: 30.176 | K110: 120.2 | O110: 1
A111: 2014 | B111: Yellowknife, Northwest Territories | C111: 2011A00056106023 | D111: Transportation | E111: 2002=100 | F111: 17 | G111: units | H111: 0 | I111: v41695081 | J111: 30.176 | K111: 122.3 | O111: 1
A112: 2015 | B112: Yellowknife, Northwest Territories | C112: 2011A00056106023 | D112: Transportation | E112: 2002=100 | F112: 17 | G112: units | H112: 0 | I112: v41695081 | J112: 30.176 | K112: 123.4 | O112: 1
A113: 2016 | B113: Yellowknife, Northwest Territories | C113: 2011A00056106023 | D113: Transportation | E113: 2002=100 | F113: 17 | G113: units | H113: 0 | I113: v41695081 | J113: 30.176 | K113: 126.4 | O113: 1
A114: 2017 | B114: Yellowknife, Northwest Territories | C114: 2011A00056106023 | D114: Transportation | E114: 2002=100 | F114: 17 | G114: units | H114: 0 | I114: v41695081 | J114: 30.176 | K114: 129.7 | O114: 1
A115: 2018 | B115: Yellowknife, Northwest Territories | C115: 2011A00056106023 | D115: Transportation | E115: 2002=100 | F115: 17 | G115: units | H115: 0 | I115: v41695081 | J115: 30.176 | K115: 135.8 | O115: 1
A116: 2019 | B116: Yellowknife, Northwest Territories | C116: 2011A00056106023 | D116: Transportation | E116: 2002=100 | F116: 17 | G116: units | H116: 0 | I116: v41695081 | J116: 30.176 | K116: 138.7 | O116: 1
A117: 2020 | B117: Yellowknife, Northwest Territories | C117: 2011A00056106023 | D117: Transportation | E117: 2002=100 | F117: 17 | G117: units | H117: 0 | I117: v41695081 | J117: 30.176 | K117: 139.7 | O117: 1
A118: 2021 | B118: Yellowknife, Northwest Territories | C118: 2011A00056106023 | D118: Transportation | E118: 2002=100 | F118: 17 | G118: units | H118: 0 | I118: v41695081 | J118: 30.176 | K118: 148.6 | O118: 1
A119: 2022 | B119: Yellowknife, Northwest Territories | C119: 2011A00056106023 | D119: Transportation | E119: 2002=100 | F119: 17 | G119: units | H119: 0 | I119: v41695081 | J119: 30.176 | K119: 164 | O119: 1
A120: 2023 | B120: Yellowknife, Northwest Territories | C120: 2011A00056106023 | D120: Transportation | E120: 2002=100 | F120: 17 | G120: units | H120: 0 | I120: v41695081 | J120: 30.176 | K120: 167.2 | O120: 1
A121: 2024 | B121: Yellowknife, Northwest Territories | C121: 2011A00056106023 | D121: Transportation | E121: 2002=100 | F121: 17 | G121: units | H121: 0 | I121: v41695081 | J121: 30.176 | K121: 167.6 | O121: 1
A122: 2005 | B122: Yellowknife, Northwest Territories | C122: 2011A00056106023 | D122: Gasoline | E122: 2002=100 | F122: 17 | G122: units | H122: 0 | I122: v41695087 | J122: 30.184 | K122: 119.3 | O122: 1
A123: 2006 | B123: Yellowknife, Northwest Territories | C123: 2011A00056106023 | D123: Gasoline | E123: 2002=100 | F123: 17 | G123: units | H123: 0 | I123: v41695087 | J123: 30.184 | K123: 124.1 | O123: 1
A124: 2007 | B124: Yellowknife, Northwest Territories | C124: 2011A00056106023 | D124: Gasoline | E124: 2002=100 | F124: 17 | G124: units | H124: 0 | I124: v41695087 | J124: 30.184 | K124: 133.2 | O124: 1
A125: 2008 | B125: Yellowknife, Northwest Territories | C125: 2011A00056106023 | D125: Gasoline | E125: 2002=100 | F125: 17 | G125: units | H125: 0 | I125: v41695087 | J125: 30.184 | K125: 149.3 | O125: 1
A126: 2009 | B126: Yellowknife, Northwest Territories | C126: 2011A00056106023 | D126: Gasoline | E126: 2002=100 | F126: 17 | G126: units | H126: 0 | I126: v41695087 | J126: 30.184 | K126: 127.4 | O126: 1
A127: 2010 | B127: Yellowknife, Northwest Territories | C127: 2011A00056106023 | D127: Gasoline | E127: 2002=100 | F127: 17 | G127: units | H127: 0 | I127: v41695087 | J127: 30.184 | K127: 134.2 | O127: 1
A128: 2011 | B128: Yellowknife, Northwest Territories | C128: 2011A00056106023 | D128: Gasoline | E128: 2002=100 | F128: 17 | G128: units | H128: 0 | I128: v41695087 | J128: 30.184 | K128: 153 | O128: 1
A129: 2012 | B129: Yellowknife, Northwest Territories | C129: 2011A00056106023 | D129: Gasoline | E129: 2002=100 | F129: 17 | G129: units | H129: 0 | I129: v41695087 | J129: 30.184 | K129: 157.9 | O129: 1
A130: 2013 | B130: Yellowknife, Northwest Territories | C130: 2011A00056106023 | D130: Gasoline | E130: 2002=100 | F130: 17 | G130: units | H130: 0 | I130: v41695087 | J130: 30.184 | K130: 158.1 | O130: 1
A131: 2014 | B131: Yellowknife, Northwest Territories | C131: 2011A00056106023 | D131: Gasoline | E131: 2002=100 | F131: 17 | G131: units | H131: 0 | I131: v41695087 | J131: 30.184 | K131: 157.6 | O131: 1
A132: 2015 | B132: Yellowknife, Northwest Territories | C132: 2011A00056106023 | D132: Gasoline | E132: 2002=100 | F132: 17 | G132: units | H132: 0 | I132: v41695087 | J132: 30.184 | K132: 139.6 | O132: 1
A133: 2016 | B133: Yellowknife, Northwest Territories | C133: 2011A00056106023 | D133: Gasoline | E133: 2002=100 | F133: 17 | G133: units | H133: 0 | I133: v41695087 | J133: 30.184 | K133: 129.4 | O133: 1
A134: 2017 | B134: Yellowknife, Northwest Territories | C134: 2011A00056106023 | D134: Gasoline | E134: 2002=100 | F134: 17 | G134: units | H134: 0 | I134: v41695087 | J134: 30.184 | K134: 134.9 | O134: 1
A135: 2018 | B135: Yellowknife, Northwest Territories | C135: 2011A00056106023 | D135: Gasoline | E135: 2002=100 | F135: 17 | G135: units | H135: 0 | I135: v41695087 | J135: 30.184 | K135: 155.1 | O135: 1
A136: 2019 | B136: Yellowknife, Northwest Territories | C136: 2011A00056106023 | D136: Gasoline | E136: 2002=100 | F136: 17 | G136: units | H136: 0 | I136: v41695087 | J136: 30.184 | K136: 150.4 | O136: 1
A137: 2020 | B137: Yellowknife, Northwest Territories | C137: 2011A00056106023 | D137: Gasoline | E137: 2002=100 | F137: 17 | G137: units | H137: 0 | I137: v41695087 | J137: 30.184 | K137: 131.4 | O137: 1
A138: 2021 | B138: Yellowknife, Northwest Territories | C138: 2011A00056106023 | D138: Gasoline | E138: 2002=100 | F138: 17 | G138: units | H138: 0 | I138: v41695087 | J138: 30.184 | K138: 161.8 | O138: 1
A139: 2022 | B139: Yellowknife, Northwest Territories | C139: 2011A00056106023 | D139: Gasoline | E139: 2002=100 | F139: 17 | G139: units | H139: 0 | I139: v41695087 | J139: 30.184 | K139: 201.7 | O139: 1
A140: 2023 | B140: Yellowknife, Northwest Territories | C140: 2011A00056106023 | D140: Gasoline | E140: 2002=100 | F140: 17 | G140: units | H140: 0 | I140: v41695087 | J140: 30.184 | K140: 188.7 | O140: 1
A141: 2024 | B141: Yellowknife, Northwest Territories | C141: 2011A00056106023 | D141: Gasoline | E141: 2002=100 | F141: 17 | G141: units | H141: 0 | I141: v41695087 | J141: 30.184 | K141: 184.6 | O141: 1
A142: 2005 | B142: Yellowknife, Northwest Territories | C142: 2011A00056106023 | D142: Health and personal care | E142: 2002=100 | F142: 17 | G142: units | H142: 0 | I142: v41695097 | J142: 30.201 | K142: 103.8 | O142: 1
A143: 2006 | B143: Yellowknife, Northwest Territories | C143: 2011A00056106023 | D143: Health and personal care | E143: 2002=100 | F143: 17 | G143: units | H143: 0 | I143: v41695097 | J143: 30.201 | K143: 103.7 | O143: 1
A144: 2007 | B144: Yellowknife, Northwest Territories | C144: 2011A00056106023 | D144: Health and personal care | E144: 2002=100 | F144: 17 | G144: units | H144: 0 | I144: v41695097 | J144: 30.201 | K144: 104.1 | O144: 1
A145: 2008 | B145: Yellowknife, Northwest Territories | C145: 2011A00056106023 | D145: Health and personal care | E145: 2002=100 | F145: 17 | G145: units | H145: 0 | I145: v41695097 | J145: 30.201 | K145: 106.8 | O145: 1
A146: 2009 | B146: Yellowknife, Northwest Territories | C146: 2011A00056106023 | D146: Health and personal care | E146: 2002=100 | F146: 17 | G146: units | H146: 0 | I146: v41695097 | J146: 30.201 | K146: 110.9 | O146: 1
A147: 2010 | B147: Yellowknife, Northwest Territories | C147: 2011A00056106023 | D147: Health and personal care | E147: 2002=100 | F147: 17 | G147: units | H147: 0 | I147: v41695097 | J147: 30.201 | K147: 113.3 | O147: 1
A148: 2011 | B148: Yellowknife, Northwest Territories | C148: 2011A00056106023 | D148: Health and personal care | E148: 2002=100 | F148: 17 | G148: units | H148: 0 | I148: v41695097 | J148: 30.201 | K148: 115.8 | O148: 1
A149: 2012 | B149: Yellowknife, Northwest Territories | C149: 2011A00056106023 | D149: Health and personal care | E149: 2002=100 | F149: 17 | G149: units | H149: 0 | I149: v41695097 | J149: 30.201 | K149: 117.4 | O149: 1
A150: 2013 | B150: Yellowknife, Northwest Territories | C150: 2011A00056106023 | D150: Health and personal care | E150: 2002=100 | F150: 17 | G150: units | H150: 0 | I150: v41695097 | J150: 30.201 | K150: 117.9 | O150: 1
A151: 2014 | B151: Yellowknife, Northwest Territories | C151: 2011A00056106023 | D151: Health and personal care | E151: 2002=100 | F151: 17 | G151: units | H151: 0 | I151: v41695097 | J151: 30.201 | K151: 119 | O151: 1
A152: 2015 | B152: Yellowknife, Northwest Territories | C152: 2011A00056106023 | D152: Health and personal care | E152: 2002=100 | F152: 17 | G152: units | H152: 0 | I152: v41695097 | J152: 30.201 | K152: 120.1 | O152: 1
A153: 2016 | B153: Yellowknife, Northwest Territories | C153: 2011A00056106023 | D153: Health and personal care | E153: 2002=100 | F153: 17 | G153: units | H153: 0 | I153: v41695097 | J153: 30.201 | K153: 120.5 | O153: 1
A154: 2017 | B154: Yellowknife, Northwest Territories | C154: 2011A00056106023 | D154: Health and personal care | E154: 2002=100 | F154: 17 | G154: units | H154: 0 | I154: v41695097 | J154: 30.201 | K154: 122.2 | O154: 1
A155: 2018 | B155: Yellowknife, Northwest Territories | C155: 2011A00056106023 | D155: Health and personal care | E155: 2002=100 | F155: 17 | G155: units | H155: 0 | I155: v41695097 | J155: 30.201 | K155: 124.3 | O155: 1
A156: 2019 | B156: Yellowknife, Northwest Territories | C156: 2011A00056106023 | D156: Health and personal care | E156: 2002=100 | F156: 17 | G156: units | H156: 0 | I156: v41695097 | J156: 30.201 | K156: 126.3 | O156: 1
A157: 2020 | B157: Yellowknife, Northwest Territories | C157: 2011A00056106023 | D157: Health and personal care | E157: 2002=100 | F157: 17 | G157: units | H157: 0 | I157: v41695097 | J157: 30.201 | K157: 125.7 | O157: 1
A158: 2021 | B158: Yellowknife, Northwest Territories | C158: 2011A00056106023 | D158: Health and personal care | E158: 2002=100 | F158: 17 | G158: units | H158: 0 | I158: v41695097 | J158: 30.201 | K158: 126 | O158: 1
A159: 2022 | B159: Yellowknife, Northwest Territories | C159: 2011A00056106023 | D159: Health and personal care | E159: 2002=100 | F159: 17 | G159: units | H159: 0 | I159: v41695097 | J159: 30.201 | K159: 131.5 | O159: 1
A160: 2023 | B160: Yellowknife, Northwest Territories | C160: 2011A00056106023 | D160: Health and personal care | E160: 2002=100 | F160: 17 | G160: units | H160: 0 | I160: v41695097 | J160: 30.201 | K160: 138.1 | O160: 1
A161: 2024 | B161: Yellowknife, Northwest Territories | C161: 2011A00056106023 | D161: Health and personal care | E161: 2002=100 | F161: 17 | G161: units | H161: 0 | I161: v41695097 | J161: 30.201 | K161: 142 | O161: 1
A162: 2005 | B162: Yellowknife, Northwest Territories | C162: 2011A00056106023 | D162: Recreation, education and reading | E162: 2002=100 | F162: 17 | G162: units | H162: 0 | I162: v41695107 | J162: 30.219 | K162: 100.3 | O162: 1
A163: 2006 | B163: Yellowknife, Northwest Territories | C163: 2011A00056106023 | D163: Recreation, education and reading | E163: 2002=100 | F163: 17 | G163: units | H163: 0 | I163: v41695107 | J163: 30.219 | K163: 100 | O163: 1
A164: 2007 | B164: Yellowknife, Northwest Territories | C164: 2011A00056106023 | D164: Recreation, education and reading | E164: 2002=100 | F164: 17 | G164: units | H164: 0 | I164: v41695107 | J164: 30.219 | K164: 100.8 | O164: 1
A165: 2008 | B165: Yellowknife, Northwest Territories | C165: 2011A00056106023 | D165: Recreation, education and reading | E165: 2002=100 | F165: 17 | G165: units | H165: 0 | I165: v41695107 | J165: 30.219 | K165: 100.2 | O165: 1
A166: 2009 | B166: Yellowknife, Northwest Territories | C166: 2011A00056106023 | D166: Recreation, education and reading | E166: 2002=100 | F166: 17 | G166: units | H166: 0 | I166: v41695107 | J166: 30.219 | K166: 99.4 | O166: 1
A167: 2010 | B167: Yellowknife, Northwest Territories | C167: 2011A00056106023 | D167: Recreation, education and reading | E167: 2002=100 | F167: 17 | G167: units | H167: 0 | I167: v41695107 | J167: 30.219 | K167: 99.6 | O167: 1
A168: 2011 | B168: Yellowknife, Northwest Territories | C168: 2011A00056106023 | D168: Recreation, education and reading | E168: 2002=100 | F168: 17 | G168: units | H168: 0 | I168: v41695107 | J168: 30.219 | K168: 99.3 | O168: 1
A169: 2012 | B169: Yellowknife, Northwest Territories | C169: 2011A00056106023 | D169: Recreation, education and reading | E169: 2002=100 | F169: 17 | G169: units | H169: 0 | I169: v41695107 | J169: 30.219 | K169: 100.5 | O169: 1
A170: 2013 | B170: Yellowknife, Northwest Territories | C170: 2011A00056106023 | D170: Recreation, education and reading | E170: 2002=100 | F170: 17 | G170: units | H170: 0 | I170: v41695107 | J170: 30.219 | K170: 101 | O170: 1
A171: 2014 | B171: Yellowknife, Northwest Territories | C171: 2011A00056106023 | D171: Recreation, education and reading | E171: 2002=100 | F171: 17 | G171: units | H171: 0 | I171: v41695107 | J171: 30.219 | K171: 101 | O171: 1
A172: 2015 | B172: Yellowknife, Northwest Territories | C172: 2011A00056106023 | D172: Recreation, education and reading | E172: 2002=100 | F172: 17 | G172: units | H172: 0 | I172: v41695107 | J172: 30.219 | K172: 103.7 | O172: 1
A173: 2016 | B173: Yellowknife, Northwest Territories | C173: 2011A00056106023 | D173: Recreation, education and reading | E173: 2002=100 | F173: 17 | G173: units | H173: 0 | I173: v41695107 | J173: 30.219 | K173: 104 | O173: 1
A174: 2017 | B174: Yellowknife, Northwest Territories | C174: 2011A00056106023 | D174: Recreation, education and reading | E174: 2002=100 | F174: 17 | G174: units | H174: 0 | I174: v41695107 | J174: 30.219 | K174: 106.1 | O174: 1
A175: 2018 | B175: Yellowknife, Northwest Territories | C175: 2011A00056106023 | D175: Recreation, education and reading | E175: 2002=100 | F175: 17 | G175: units | H175: 0 | I175: v41695107 | J175: 30.219 | K175: 107.8 | O175: 1
A176: 2019 | B176: Yellowknife, Northwest Territories | C176: 2011A00056106023 | D176: Recreation, education and reading | E176: 2002=100 | F176: 17 | G176: units | H176: 0 | I176: v41695107 | J176: 30.219 | K176: 108.7 | O176: 1
A177: 2020 | B177: Yellowknife, Northwest Territories | C177: 2011A00056106023 | D177: Recreation, education and reading | E177: 2002=100 | F177: 17 | G177: units | H177: 0 | I177: v41695107 | J177: 30.219 | K177: 108.7 | O177: 1
A178: 2021 | B178: Yellowknife, Northwest Territories | C178: 2011A00056106023 | D178: Recreation, education and reading | E178: 2002=100 | F178: 17 | G178: units | H178: 0 | I178: v41695107 | J178: 30.219 | K178: 110.6 | O178: 1
A179: 2022 | B179: Yellowknife, Northwest Territories | C179: 2011A00056106023 | D179: Recreation, education and reading | E179: 2002=100 | F179: 17 | G179: units | H179: 0 | I179: v41695107 | J179: 30.219 | K179: 117.8 | O179: 1
A180: 2023 | B180: Yellowknife, Northwest Territories | C180: 2011A00056106023 | D180: Recreation, education and reading | E180: 2002=100 | F180: 17 | G180: units | H180: 0 | I180: v41695107 | J180: 30.219 | K180: 118.6 | O180: 1
A181: 2024 | B181: Yellowknife, Northwest Territories | C181: 2011A00056106023 | D181: Recreation, education and reading | E181: 2002=100 | F181: 17 | G181: units | H181: 0 | I181: v41695107 | J181: 30.219 | K181: 119.2 | O181: 1
A182: 2005 | B182: Yellowknife, Northwest Territories | C182: 2011A00056106023 | D182: Alcoholic beverages, tobacco products and recreational cannabis | E182: 2002=100 | F182: 17 | G182: units | H182: 0 | I182: v41695117 | J182: 30.256 | K182: 124.1 | O182: 1
A183: 2006 | B183: Yellowknife, Northwest Territories | C183: 2011A00056106023 | D183: Alcoholic beverages, tobacco products and recreational cannabis | E183: 2002=100 | F183: 17 | G183: units | H183: 0 | I183: v41695117 | J183: 30.256 | K183: 127.3 | O183: 1
A184: 2007 | B184: Yellowknife, Northwest Territories | C184: 2011A00056106023 | D184: Alcoholic beverages, tobacco products and recreational cannabis | E184: 2002=100 | F184: 17 | G184: units | H184: 0 | I184: v41695117 | J184: 30.256 | K184: 129.1 | O184: 1
A185: 2008 | B185: Yellowknife, Northwest Territories | C185: 2011A00056106023 | D185: Alcoholic beverages, tobacco products and recreational cannabis | E185: 2002=100 | F185: 17 | G185: units | H185: 0 | I185: v41695117 | J185: 30.256 | K185: 131.7 | O185: 1
A186: 2009 | B186: Yellowknife, Northwest Territories | C186: 2011A00056106023 | D186: Alcoholic beverages, tobacco products and recreational cannabis | E186: 2002=100 | F186: 17 | G186: units | H186: 0 | I186: v41695117 | J186: 30.256 | K186: 142.8 | O186: 1
